Workbook

Sheet INTRO
B2: Formulaire de Rapport Commun v.3.1
B4: Le but de ce formulaire de rapport commun - disponible sous forme de fichier Excel - est de mettre à disposition des autorités sanitaires nationales et des gestionnaires de données un outil standardisé qui réponde aux défis, facilite l'intégration et par conséquent contribue à améliorer la gestion de programme. Ce formulaire tend à standardiser le rapport de résultats des programmes nationaux, améliore la disponibilité et la coordination des données de chimioprévention à travers les Bureaux des Régions de l'Organisation mondiale de la Santé. Les autorités nationales sont priées de compléter ce formulaire et de le soumettre à l'Organisation mondiale de la Santé avant le 15 août de l'année en cours pour rapporter les données des activités de chimioprévention mises en oeuvre l'année précédente.
B6: Structure de l'application (feuilles de travail) :
B8: INTRO | C8: Cette feuille contient des instructions pour compléter le formulaire de rapport commun et des informations sur le statut de la chimioprévention pour les maladies d'endémie du pays.
B9: COUNTRY_INFO | C9: Cette feuille contient des informations sur la structure administrative du pays, la population par groupe d'âge, le statut d'endémicité pour chaque maladie, la population devant être traitée par chimioprévention, les interventions prévues et les interventions mises en oeuvre.
B10: MDA1, MDA2, MDA3, T1, T2 et T3 | C10: Ces feuilles contiennent des informations sur l'endémicité des districts ciblés pour le traitement aux médicaments spécifiques pour la chimioprévention, les plans de traitement, et le nombre de personnes traitées par groupe d'âge.
B11: DISTRICT | C11: Cette feuille contient un résumé sur les personnes traitées, par maladie, au niveau de mise en oeuvre. Si les données par genre (sexe) sont disponibles, merci de les saisir.
B12: SUMMARY | C12: Cette feuille contient un résumé sur les personnes traitées, par maladie et par type d'intervention de chimioprévention. Avant de générer le rapport (exécuter macro), veuillez sélectionner la maladie pour laquelle vous souhaitez un rapport. Veuillez suivre le même processus pour générer les divers rapports. Cette feuille doit être imprimée et soumise comme formulaire de rapport commun (voir les instructions pour la soumission du formulaire sous la feuille SUMMARY).
B14: Instructions pour la saisie des données
B16: La plupart des cellules des feuilles de travail mentionnées ci-dessus contiennent des formules calculées automatiquement en fonction du protocole de traitement recommandé par l'OMS pour chaque maladie. Voir : http://www.who.int/neglected_diseases/preventive_chemotherapy/pct_manual/en/index.html
B18: Veuillez entrer vos données dans les cellules en fonction de leur code de couleur :
C20: Blanc - la cellule n'est pas protégée. Veuillez entrer la valeur de l'indicateur demandé.
C22: Jaune - la cellule est protégée et inclut le nom de l'indicateur. Aucune entrée de données requise.
C24: Orange - la cellule n'est pas protégée et contient un menu déroulant. Veuillez sélectionner la valeur dans le menu déroulant.
C27: Vert - la cellule n'est pas protégée et contient des formules. Veuillez changer la valeur indiquée uniquement si vos données sont différentes de celles calculées automatiquement.
C30: Bleu - la cellule est protégée et contient des formules. Aucune entrée de données requise.
B32: Données pays
B34: PAYS | E34: BURUNDI
B36: Année de rapport des données | E36: 2020
B38: Le pays est-il endémique à la filariose lymphatique (FL) ? | E38: Endémique mais pas de CP
B40: Le pays est-il endémique à l'onchocercose (ONCHO) ? | E40: Endémique
B42: Le pays est-il endémique aux géohelminthiases (STH) ? | E42: Endémique
B44: Le pays est-il endémique à la schistosomiase (SCH) ? | E44: Endémique
B46: Combien d'unités administratives compte le pays ? | E46: 47
B47: Si les données démographiques par groupe d'âge ne sont pas disponibles au second niveau administratif, veuillez entrer la proportion (%) de population, par groupe d'âge, du pays. Si les données sont disponibles, veuillez laisser les cellules vierges.
B48: 1-4 ans | C48: Enfants d'âge pré-scolaire (EAPréS) | E48: 0.142
B49: 5-14 ans | C49: Enfants d'âge scolaire (EAS) | E49: 0.267
B50: 15 ans et plus | C50: Adultes | E50: 0.554

Sheet COUNTRY_INFO
A1: INFORMATIONS PAYS
A2: Structure administrative, population par groupe d'âge, statut d'endémicité, interventions planifiées et interventions mises en oeuvre
A4: TOTAL | D4: =SUM(D$9:D$1000) -> 11512655.7 | E4: =SUM(E$9:E$1000) -> 1634797 | F4: =SUM(F$9:F$1000) -> 3073880 | G4: =SUM(G$9:G$1000) -> 6378009 | L4: =SUM(L$9:L$1000) -> 0 | M4: =SUM(M$9:M$1000) -> 2008421 | N4: =SUM(N$9:N$1000) -> 2296352 | O4: =SUM(O$9:O$1000) -> 608973.12
A6: Structure administrative du pays | D6: Population | H6: Endémicité | L6: Population nécessitant la CP | P6: Nombre de tournées de traitement prévues pour l'année | T6: Mise en oeuvre de la chimioprévention | V6: Cliquer ci-dessous pour voir la stratégie recommandée | AB6: Prevalence STH
A7: Pays | B7: Région/Département | C7: District | D7: Total | E7: EAPréS | F7: EAS | G7: Adultes | H7: FL | I7: Oncho | J7: STH | K7: SCH | L7: FL | M7: Oncho | N7: STH | O7: SCH | P7: FL | Q7: Oncho | R7: STH | S7: SCH | T7: TOURNEE 1 | U7: TOURNEE 2 | X7: IU_ID | Y7: IU_Name | AB7: Prevalence | AC7: Nombre de Sites | AD7: Endemicité | AE7: Année | AI7: mda3 | AJ7: t1 | AK7: t3r1 | AL7: t3r2
A9: =IF(INTRO!$E$34<>0,INTRO!$E$34,"") -> BURUNDI | B9: Bubanza | C9: Bubanza | D9: 241329.7664 | E9: =IF(INTRO!$E$48="","",ROUND($D9*INTRO!$E$48,0)) -> 34269 | F9: =IF(INTRO!$E$49="","",ROUND($D9*INTRO!$E$49,0)) -> 64435 | G9: =IF(INTRO!$E$50="","",ROUND($D9*INTRO!$E$50,0)) -> 133697 | H9: 0 | I9: 1 | J9: 1 | K9: 1 | L9: =IF([1]INTRO!$E$38="Endémique", IF($H9>0, IF($H9=4,"Inconnu", IF($H9=99,"Interrompu", $D9)), 0),"Non requis") -> Non requis | M9: 250891 | N9: =IF(INTRO!$E$42="Endémique", IF(AND($J9>1,$J9<5), IF($J9=4, "Inconnu", E9+F9), 0),"Non requis") -> 0 | O9: =IF(INTRO!$E$44="Endémique", IF(AND($K9>0,$K9<5), IF($K9=4,"Inconnu", IF($K9=1, $F9*0.33, IF($K9=2, $F9*0.5+$G9*0.2, SUM(F9:G9)))), 0),"Non requis") -> 21263.55 | P9: 0 | Q9: 1 | R9: 2 | S9: 1 | T9: MDA3 (IVM) | U9: T1 (PZQ+ALB/MBD) | X9: 6375 | Y9: Bubanza | AB9: 14.5 | AC9: 5 | AD9: 1 | AE9: 2014 | AI9: ='MDA3'!Q9 -> 206816 | AJ9: ='T1'!M9 -> 63169 | AK9: =T3_R1!L9 -> 83171 | AL9: =T3_R2!L9 -> 0
A10: =IF(INTRO!$E$34<>0,INTRO!$E$34,"") -> BURUNDI | B10: Bubanza | C10: Mpanda | D10: 304583.0164 | E10: =IF(INTRO!$E$48="","",ROUND($D10*INTRO!$E$48,0)) -> 43251 | F10: =IF(INTRO!$E$49="","",ROUND($D10*INTRO!$E$49,0)) -> 81324 | G10: =IF(INTRO!$E$50="","",ROUND($D10*INTRO!$E$50,0)) -> 168739 | H10: 0 | I10: 1 | J10: 1 | K10: 1 | L10: =IF([1]INTRO!$E$38="Endémique", IF($H10>0, IF($H10=4,"Inconnu", IF($H10=99,"Interrompu", $D10)), 0),"Non requis") -> Non requis | M10: 216410 | N10: =IF(INTRO!$E$42="Endémique", IF(AND($J10>1,$J10<5), IF($J10=4, "Inconnu", E10+F10), 0),"Non requis") -> 0 | O10: =IF(INTRO!$E$44="Endémique", IF(AND($K10>0,$K10<5), IF($K10=4,"Inconnu", IF($K10=1, $F10*0.33, IF($K10=2, $F10*0.5+$G10*0.2, SUM(F10:G10)))), 0),"Non requis") -> 26836.92 | P10: 0 | Q10: 1 | R10: 2 | S10: 1 | T10: MDA3 (IVM) | U10: T1 (PZQ+ALB/MBD) | X10: 6376 | Y10: Mpanda | AB10: 10.6 | AC10: 5 | AD10: 1 | AE10: 2014 | AI10: ='MDA3'!Q10 -> 176858 | AJ10: ='T1'!M10 -> 78792 | AK10: =T3_R1!L10 -> 92945 | AL10: =T3_R2!L10 -> 0
A11: =IF(INTRO!$E$34<>0,INTRO!$E$34,"") -> BURUNDI | B11: Bujumbura Mairie | C11: Zone Centre | D11: 132412.0801 | E11: =IF(INTRO!$E$48="","",ROUND($D11*INTRO!$E$48,0)) -> 18803 | F11: =IF(INTRO!$E$49="","",ROUND($D11*INTRO!$E$49,0)) -> 35354 | G11: =IF(INTRO!$E$50="","",ROUND($D11*INTRO!$E$50,0)) -> 73356 | H11: 0 | I11: 0 | J11: 1 | K11: 0 | L11: =IF([1]INTRO!$E$38="Endémique", IF($H11>0, IF($H11=4,"Inconnu", IF($H11=99,"Interrompu", $D11)), 0),"Non requis") -> Non requis | N11: =IF(INTRO!$E$42="Endémique", IF(AND($J11>1,$J11<5), IF($J11=4, "Inconnu", E11+F11), 0),"Non requis") -> 0 | O11: =IF(INTRO!$E$44="Endémique", IF(AND($K11>0,$K11<5), IF($K11=4,"Inconnu", IF($K11=1, $F11*0.33, IF($K11=2, $F11*0.5+$G11*0.2, SUM(F11:G11)))), 0),"Non requis") -> 0 | P11: 0 | Q11: 0 | R11: 2 | S11: 0 | X11: 6380 | Y11: Zone centre | AB11: 8.475 | AC11: 4 | AD11: 1 | AE11: 2014 | AI11: ='MDA3'!Q11 -> 0 | AJ11: ='T1'!M11 -> 0 | AK11: =T3_R1!L11 -> 24803 | AL11: =T3_R2!L11 -> 42545
A12: =IF(INTRO!$E$34<>0,INTRO!$E$34,"") -> BURUNDI | B12: Bujumbura Mairie | C12: Zone Nord | D12: 434428.1576 | E12: =IF(INTRO!$E$48="","",ROUND($D12*INTRO!$E$48,0)) -> 61689 | F12: =IF(INTRO!$E$49="","",ROUND($D12*INTRO!$E$49,0)) -> 115992 | G12: =IF(INTRO!$E$50="","",ROUND($D12*INTRO!$E$50,0)) -> 240673 | H12: 0 | I12: 0 | J12: 1 | K12: 1 | L12: =IF([1]INTRO!$E$38="Endémique", IF($H12>0, IF($H12=4,"Inconnu", IF($H12=99,"Interrompu", $D12)), 0),"Non requis") -> Non requis | N12: =IF(INTRO!$E$42="Endémique", IF(AND($J12>1,$J12<5), IF($J12=4, "Inconnu", E12+F12), 0),"Non requis") -> 0 | O12: =IF(INTRO!$E$44="Endémique", IF(AND($K12>0,$K12<5), IF($K12=4,"Inconnu", IF($K12=1, $F12*0.33, IF($K12=2, $F12*0.5+$G12*0.2, SUM(F12:G12)))), 0),"Non requis") -> 38277.36 | P12: 0 | Q12: 0 | R12: 2 | S12: 1 | U12: T1 (PZQ+ALB/MBD) | X12: 6381 | Y12: Zone Nord | AB12: 4.35 | AC12: 4 | AD12: 1 | AE12: 2014 | AI12: ='MDA3'!Q12 -> 0 | AJ12: ='T1'!M12 -> 101879 | AK12: =T3_R1!L12 -> 71017 | AL12: =T3_R2!L12 -> 0
A13: =IF(INTRO!$E$34<>0,INTRO!$E$34,"") -> BURUNDI | B13: Bujumbura Mairie | C13: Zone Sud | D13: 198625.4602 | E13: =IF(INTRO!$E$48="","",ROUND($D13*INTRO!$E$48,0)) -> 28205 | F13: =IF(INTRO!$E$49="","",ROUND($D13*INTRO!$E$49,0)) -> 53033 | G13: =IF(INTRO!$E$50="","",ROUND($D13*INTRO!$E$50,0)) -> 110039 | H13: 0 | I13: 0 | J13: 1 | K13: 0 | L13: =IF([1]INTRO!$E$38="Endémique", IF($H13>0, IF($H13=4,"Inconnu", IF($H13=99,"Interrompu", $D13)), 0),"Non requis") -> Non requis | N13: =IF(INTRO!$E$42="Endémique", IF(AND($J13>1,$J13<5), IF($J13=4, "Inconnu", E13+F13), 0),"Non requis") -> 0 | O13: =IF(INTRO!$E$44="Endémique", IF(AND($K13>0,$K13<5), IF($K13=4,"Inconnu", IF($K13=1, $F13*0.33, IF($K13=2, $F13*0.5+$G13*0.2, SUM(F13:G13)))), 0),"Non requis") -> 0 | P13: 0 | Q13: 0 | R13: 2 | S13: 0 | X13: 6382 | Y13: Zone Sud | AB13: 1.92 | AC13: 5 | AD13: 1 | AE13: 2014 | AI13: ='MDA3'!Q13 -> 0 | AJ13: ='T1'!M13 -> 0 | AK13: =T3_R1!L13 -> 46069 | AL13: =T3_R2!L13 -> 53934
A14: =IF(INTRO!$E$34<>0,INTRO!$E$34,"") -> BURUNDI | B14: Bujumbura Rural | C14: Isare | D14: 227482.2717 | E14: =IF(INTRO!$E$48="","",ROUND($D14*INTRO!$E$48,0)) -> 32302 | F14: =IF(INTRO!$E$49="","",ROUND($D14*INTRO!$E$49,0)) -> 60738 | G14: =IF(INTRO!$E$50="","",ROUND($D14*INTRO!$E$50,0)) -> 126025 | H14: 0 | I14: 0 | J14: 2 | K14: 1 | L14: =IF([1]INTRO!$E$38="Endémique", IF($H14>0, IF($H14=4,"Inconnu", IF($H14=99,"Interrompu", $D14)), 0),"Non requis") -> Non requis | N14: =IF(INTRO!$E$42="Endémique", IF(AND($J14>1,$J14<5), IF($J14=4, "Inconnu", E14+F14), 0),"Non requis") -> 93040 | O14: =IF(INTRO!$E$44="Endémique", IF(AND($K14>0,$K14<5), IF($K14=4,"Inconnu", IF($K14=1, $F14*0.33, IF($K14=2, $F14*0.5+$G14*0.2, SUM(F14:G14)))), 0),"Non requis") -> 20043.54 | P14: 0 | Q14: 0 | R14: 2 | S14: 1 | U14: T1 (PZQ+ALB/MBD) | X14: 6377 | Y14: Isale | AB14: 23.95 | AC14: 6 | AD14: 2 | AE14: 2014 | AI14: ='MDA3'!Q14 -> 0 | AJ14: ='T1'!M14 -> 96635 | AK14: =T3_R1!L14 -> 94144 | AL14: =T3_R2!L14 -> 0
A15: =IF(INTRO!$E$34<>0,INTRO!$E$34,"") -> BURUNDI | B15: Bujumbura Rural | C15: Kabezi | D15: 266151.6575 | E15: =IF(INTRO!$E$48="","",ROUND($D15*INTRO!$E$48,0)) -> 37794 | F15: =IF(INTRO!$E$49="","",ROUND($D15*INTRO!$E$49,0)) -> 71062 | G15: =IF(INTRO!$E$50="","",ROUND($D15*INTRO!$E$50,0)) -> 147448 | H15: 0 | I15: 0 | J15: 2 | K15: 1 | L15: =IF([1]INTRO!$E$38="Endémique", IF($H15>0, IF($H15=4,"Inconnu", IF($H15=99,"Interrompu", $D15)), 0),"Non requis") -> Non requis | N15: =IF(INTRO!$E$42="Endémique", IF(AND($J15>1,$J15<5), IF($J15=4, "Inconnu", E15+F15), 0),"Non requis") -> 108856 | O15: =IF(INTRO!$E$44="Endémique", IF(AND($K15>0,$K15<5), IF($K15=4,"Inconnu", IF($K15=1, $F15*0.33, IF($K15=2, $F15*0.5+$G15*0.2, SUM(F15:G15)))), 0),"Non requis") -> 23450.46 | P15: 0 | Q15: 0 | R15: 2 | S15: 1 | U15: T1 (PZQ+ALB/MBD) | X15: 6378 | Y15: Kabezi | AB15: 38.95 | AC15: 6 | AD15: 2 | AE15: 2014 | AI15: ='MDA3'!Q15 -> 0 | AJ15: ='T1'!M15 -> 62611 | AK15: =T3_R1!L15 -> 77188 | AL15: =T3_R2!L15 -> 0
A16: =IF(INTRO!$E$34<>0,INTRO!$E$34,"") -> BURUNDI | B16: Bujumbura Rural | C16: Rwibaga | D16: 115010.9614 | E16: =IF(INTRO!$E$48="","",ROUND($D16*INTRO!$E$48,0)) -> 16332 | F16: =IF(INTRO!$E$49="","",ROUND($D16*INTRO!$E$49,0)) -> 30708 | G16: =IF(INTRO!$E$50="","",ROUND($D16*INTRO!$E$50,0)) -> 63716 | H16: 0 | I16: 0 | J16: 2 | K16: 0 | L16: =IF([1]INTRO!$E$38="Endémique", IF($H16>0, IF($H16=4,"Inconnu", IF($H16=99,"Interrompu", $D16)), 0),"Non requis") -> Non requis | N16: =IF(INTRO!$E$42="Endémique", IF(AND($J16>1,$J16<5), IF($J16=4, "Inconnu", E16+F16), 0),"Non requis") -> 47040 | O16: =IF(INTRO!$E$44="Endémique", IF(AND($K16>0,$K16<5), IF($K16=4,"Inconnu", IF($K16=1, $F16*0.33, IF($K16=2, $F16*0.5+$G16*0.2, SUM(F16:G16)))), 0),"Non requis") -> 0 | P16: 0 | Q16: 0 | R16: 2 | S16: 0 | X16: 6379 | Y16: Rwibaga | AB16: 24.55 | AC16: 4 | AD16: 2 | AE16: 2014 | AI16: ='MDA3'!Q16 -> 0 | AJ16: ='T1'!M16 -> 0 | AK16: =T3_R1!L16 -> 39123 | AL16: =T3_R2!L16 -> 39274
A17: =IF(INTRO!$E$34<>0,INTRO!$E$34,"") -> BURUNDI | B17: Bururi | C17: Bururi | D17: 160033.6691 | E17: =IF(INTRO!$E$48="","",ROUND($D17*INTRO!$E$48,0)) -> 22725 | F17: =IF(INTRO!$E$49="","",ROUND($D17*INTRO!$E$49,0)) -> 42729 | G17: =IF(INTRO!$E$50="","",ROUND($D17*INTRO!$E$50,0)) -> 88659 | H17: 0 | I17: 1 | J17: 1 | K17: 0 | L17: =IF([1]INTRO!$E$38="Endémique", IF($H17>0, IF($H17=4,"Inconnu", IF($H17=99,"Interrompu", $D17)), 0),"Non requis") -> Non requis | M17: 54158 | N17: =IF(INTRO!$E$42="Endémique", IF(AND($J17>1,$J17<5), IF($J17=4, "Inconnu", E17+F17), 0),"Non requis") -> 0 | O17: =IF(INTRO!$E$44="Endémique", IF(AND($K17>0,$K17<5), IF($K17=4,"Inconnu", IF($K17=1, $F17*0.33, IF($K17=2, $F17*0.5+$G17*0.2, SUM(F17:G17)))), 0),"Non requis") -> 0 | P17: 0 | Q17: 1 | R17: 2 | S17: 0 | T17: MDA3 (IVM) | X17: 6383 | Y17: Bururi | AB17: 15.9 | AC17: 4 | AD17: 1 | AE17: 2014 | AI17: ='MDA3'!Q17 -> 44170 | AJ17: ='T1'!M17 -> 0 | AK17: =T3_R1!L17 -> 51274 | AL17: =T3_R2!L17 -> 49205
A18: =IF(INTRO!$E$34<>0,INTRO!$E$34,"") -> BURUNDI | B18: Bururi | C18: Matana | D18: 251479.9821 | E18: =IF(INTRO!$E$48="","",ROUND($D18*INTRO!$E$48,0)) -> 35710 | F18: =IF(INTRO!$E$49="","",ROUND($D18*INTRO!$E$49,0)) -> 67145 | G18: =IF(INTRO!$E$50="","",ROUND($D18*INTRO!$E$50,0)) -> 139320 | H18: 0 | I18: 1 | J18: 2 | K18: 0 | L18: =IF([1]INTRO!$E$38="Endémique", IF($H18>0, IF($H18=4,"Inconnu", IF($H18=99,"Interrompu", $D18)), 0),"Non requis") -> Non requis | M18: 22760 | N18: =IF(INTRO!$E$42="Endémique", IF(AND($J18>1,$J18<5), IF($J18=4, "Inconnu", E18+F18), 0),"Non requis") -> 102855 | O18: =IF(INTRO!$E$44="Endémique", IF(AND($K18>0,$K18<5), IF($K18=4,"Inconnu", IF($K18=1, $F18*0.33, IF($K18=2, $F18*0.5+$G18*0.2, SUM(F18:G18)))), 0),"Non requis") -> 0 | P18: 0 | Q18: 1 | R18: 2 | S18: 0 | T18: MDA3 (IVM) | X18: 6384 | Y18: Matana | AB18: 23.425 | AC18: 8 | AD18: 2 | AE18: 2014 | AI18: ='MDA3'!Q18 -> 18640 | AJ18: ='T1'!M18 -> 0 | AK18: =T3_R1!L18 -> 79081 | AL18: =T3_R2!L18 -> 73992
A19: =IF(INTRO!$E$34<>0,INTRO!$E$34,"") -> BURUNDI | B19: Cankuzo | C19: Cankuzo | D19: 199301.7917 | E19: =IF(INTRO!$E$48="","",ROUND($D19*INTRO!$E$48,0)) -> 28301 | F19: =IF(INTRO!$E$49="","",ROUND($D19*INTRO!$E$49,0)) -> 53214 | G19: =IF(INTRO!$E$50="","",ROUND($D19*INTRO!$E$50,0)) -> 110413 | H19: 0 | I19: 0 | J19: 1 | K19: 0 | L19: =IF([1]INTRO!$E$38="Endémique", IF($H19>0, IF($H19=4,"Inconnu", IF($H19=99,"Interrompu", $D19)), 0),"Non requis") -> Non requis | N19: =IF(INTRO!$E$42="Endémique", IF(AND($J19>1,$J19<5), IF($J19=4, "Inconnu", E19+F19), 0),"Non requis") -> 0 | O19: =IF(INTRO!$E$44="Endémique", IF(AND($K19>0,$K19<5), IF($K19=4,"Inconnu", IF($K19=1, $F19*0.33, IF($K19=2, $F19*0.5+$G19*0.2, SUM(F19:G19)))), 0),"Non requis") -> 0 | P19: 0 | Q19: 0 | R19: 2 | S19: 0 | X19: 6386 | Y19: Cankuzo | AB19: 14.93333333 | AC19: 6 | AD19: 1 | AE19: 2014 | AI19: ='MDA3'!Q19 -> 0 | AJ19: ='T1'!M19 -> 0 | AK19: =T3_R1!L19 -> 66867 | AL19: =T3_R2!L19 -> 60788
A20: =IF(INTRO!$E$34<>0,INTRO!$E$34,"") -> BURUNDI | B20: Cankuzo | C20: Murore | D20: 183736.7296 | E20: =IF(INTRO!$E$48="","",ROUND($D20*INTRO!$E$48,0)) -> 26091 | F20: =IF(INTRO!$E$49="","",ROUND($D20*INTRO!$E$49,0)) -> 49058 | G20: =IF(INTRO!$E$50="","",ROUND($D20*INTRO!$E$50,0)) -> 101790 | H20: 0 | I20: 0 | J20: 1 | K20: 1 | L20: =IF([1]INTRO!$E$38="Endémique", IF($H20>0, IF($H20=4,"Inconnu", IF($H20=99,"Interrompu", $D20)), 0),"Non requis") -> Non requis | N20: =IF(INTRO!$E$42="Endémique", IF(AND($J20>1,$J20<5), IF($J20=4, "Inconnu", E20+F20), 0),"Non requis") -> 0 | O20: =IF(INTRO!$E$44="Endémique", IF(AND($K20>0,$K20<5), IF($K20=4,"Inconnu", IF($K20=1, $F20*0.33, IF($K20=2, $F20*0.5+$G20*0.2, SUM(F20:G20)))), 0),"Non requis") -> 16189.14 | P20: 0 | Q20: 0 | R20: 2 | S20: 1 | U20: T1 (PZQ+ALB/MBD) | X20: 6387 | Y20: Murore | AB20: 15.15 | AC20: 4 | AD20: 1 | AE20: 2014 | AI20: ='MDA3'!Q20 -> 0 | AJ20: ='T1'!M20 -> 52745 | AK20: =T3_R1!L20 -> 68217 | AL20: =T3_R2!L20 -> 0
A21: =IF(INTRO!$E$34<>0,INTRO!$E$34,"") -> BURUNDI | B21: Cibitoke | C21: Bukinanyana | D21: 206117.5357 | E21: =IF(INTRO!$E$48="","",ROUND($D21*INTRO!$E$48,0)) -> 29269 | F21: =IF(INTRO!$E$49="","",ROUND($D21*INTRO!$E$49,0)) -> 55033 | G21: =IF(INTRO!$E$50="","",ROUND($D21*INTRO!$E$50,0)) -> 114189 | H21: 0 | I21: 1 | J21: 1 | K21: 1 | L21: =IF([1]INTRO!$E$38="Endémique", IF($H21>0, IF($H21=4,"Inconnu", IF($H21=99,"Interrompu", $D21)), 0),"Non requis") -> Non requis | M21: 225354 | N21: =IF(INTRO!$E$42="Endémique", IF(AND($J21>1,$J21<5), IF($J21=4, "Inconnu", E21+F21), 0),"Non requis") -> 0 | O21: =IF(INTRO!$E$44="Endémique", IF(AND($K21>0,$K21<5), IF($K21=4,"Inconnu", IF($K21=1, $F21*0.33, IF($K21=2, $F21*0.5+$G21*0.2, SUM(F21:G21)))), 0),"Non requis") -> 18160.89 | P21: 0 | Q21: 1 | R21: 2 | S21: 1 | T21: MDA3 (IVM) | U21: T1 (PZQ+ALB/MBD) | X21: 6421 | Y21: Bukinanyana | AI21: ='MDA3'!Q21 -> 185607 | AJ21: ='T1'!M21 -> 65699 | AK21: =T3_R1!L21 -> 68824 | AL21: =T3_R2!L21 -> 0
A22: =IF(INTRO!$E$34<>0,INTRO!$E$34,"") -> BURUNDI | B22: Cibitoke | C22: Cibitoke | D22: 215144.7265 | E22: =IF(INTRO!$E$48="","",ROUND($D22*INTRO!$E$48,0)) -> 30551 | F22: =IF(INTRO!$E$49="","",ROUND($D22*INTRO!$E$49,0)) -> 57444 | G22: =IF(INTRO!$E$50="","",ROUND($D22*INTRO!$E$50,0)) -> 119190 | H22: 0 | I22: 1 | J22: 1 | K22: 2 | L22: =IF([1]INTRO!$E$38="Endémique", IF($H22>0, IF($H22=4,"Inconnu", IF($H22=99,"Interrompu", $D22)), 0),"Non requis") -> Non requis | M22: 249522 | N22: =IF(INTRO!$E$42="Endémique", IF(AND($J22>1,$J22<5), IF($J22=4, "Inconnu", E22+F22), 0),"Non requis") -> 0 | O22: =IF(INTRO!$E$44="Endémique", IF(AND($K22>0,$K22<5), IF($K22=4,"Inconnu", IF($K22=1, $F22*0.33, IF($K22=2, $F22*0.5+$G22*0.2, SUM(F22:G22)))), 0),"Non requis") -> 52560 | P22: 0 | Q22: 1 | R22: 2 | S22: 1 | T22: MDA3 (IVM) | U22: T1 (PZQ+ALB/MBD) | X22: 6422 | Y22: Cibitoke | AB22: 13.78333333 | AC22: 6 | AD22: 1 | AE22: 2014 | AI22: ='MDA3'!Q22 -> 205262 | AJ22: ='T1'!M22 -> 70251 | AK22: =T3_R1!L22 -> 78465 | AL22: =T3_R2!L22 -> 0
A23: =IF(INTRO!$E$34<>0,INTRO!$E$34,"") -> BURUNDI | B23: Cibitoke | C23: Mabayi | D23: 232523.8252 | E23: =IF(INTRO!$E$48="","",ROUND($D23*INTRO!$E$48,0)) -> 33018 | F23: =IF(INTRO!$E$49="","",ROUND($D23*INTRO!$E$49,0)) -> 62084 | G23: =IF(INTRO!$E$50="","",ROUND($D23*INTRO!$E$50,0)) -> 128818 | H23: 0 | I23: 1 | J23: 2 | K23: 1 | L23: =IF([1]INTRO!$E$38="Endémique", IF($H23>0, IF($H23=4,"Inconnu", IF($H23=99,"Interrompu", $D23)), 0),"Non requis") -> Non requis | M23: 220022 | N23: =IF(INTRO!$E$42="Endémique", IF(AND($J23>1,$J23<5), IF($J23=4, "Inconnu", E23+F23), 0),"Non requis") -> 95102 | O23: =IF(INTRO!$E$44="Endémique", IF(AND($K23>0,$K23<5), IF($K23=4,"Inconnu", IF($K23=1, $F23*0.33, IF($K23=2, $F23*0.5+$G23*0.2, SUM(F23:G23)))), 0),"Non requis") -> 20487.72 | P23: 0 | Q23: 1 | R23: 2 | S23: 1 | T23: MDA3 (IVM) | U23: T1 (PZQ+ALB/MBD) | X23: 6423 | Y23: Mabayi | AB23: 21.4 | AC23: 5 | AD23: 2 | AE23: 2014 | AI23: ='MDA3'!Q23 -> 180544 | AJ23: ='T1'!M23 -> 67726 | AK23: =T3_R1!L23 -> 82582 | AL23: =T3_R2!L23 -> 0
A24: =IF(INTRO!$E$34<>0,INTRO!$E$34,"") -> BURUNDI | B24: Gitega | C24: Gitega | D24: 327418.9046 | E24: =IF(INTRO!$E$48="","",ROUND($D24*INTRO!$E$48,0)) -> 46493 | F24: =IF(INTRO!$E$49="","",ROUND($D24*INTRO!$E$49,0)) -> 87421 | G24: =IF(INTRO!$E$50="","",ROUND($D24*INTRO!$E$50,0)) -> 181390 | H24: 0 | I24: 0 | J24: 2 | K24: 0 | L24: =IF([1]INTRO!$E$38="Endémique", IF($H24>0, IF($H24=4,"Inconnu", IF($H24=99,"Interrompu", $D24)), 0),"Non requis") -> Non requis | N24: =IF(INTRO!$E$42="Endémique", IF(AND($J24>1,$J24<5), IF($J24=4, "Inconnu", E24+F24), 0),"Non requis") -> 133914 | O24: =IF(INTRO!$E$44="Endémique", IF(AND($K24>0,$K24<5), IF($K24=4,"Inconnu", IF($K24=1, $F24*0.33, IF($K24=2, $F24*0.5+$G24*0.2, SUM(F24:G24)))), 0),"Non requis") -> 0 | P24: 0 | Q24: 0 | R24: 2 | S24: 0 | X24: 6390 | Y24: Gitega | AB24: 39.8 | AC24: 4 | AD24: 2 | AE24: 2014 | AI24: ='MDA3'!Q24 -> 0 | AJ24: ='T1'!M24 -> 0 | AK24: =T3_R1!L24 -> 103672 | AL24: =T3_R2!L24 -> 109298
A25: =IF(INTRO!$E$34<>0,INTRO!$E$34,"") -> BURUNDI | B25: Gitega | C25: Kibuye | D25: 229981.0284 | E25: =IF(INTRO!$E$48="","",ROUND($D25*INTRO!$E$48,0)) -> 32657 | F25: =IF(INTRO!$E$49="","",ROUND($D25*INTRO!$E$49,0)) -> 61405 | G25: =IF(INTRO!$E$50="","",ROUND($D25*INTRO!$E$50,0)) -> 127409 | H25: 0 | I25: 0 | J25: 2 | K25: 0 | L25: =IF([1]INTRO!$E$38="Endémique", IF($H25>0, IF($H25=4,"Inconnu", IF($H25=99,"Interrompu", $D25)), 0),"Non requis") -> Non requis | N25: =IF(INTRO!$E$42="Endémique", IF(AND($J25>1,$J25<5), IF($J25=4, "Inconnu", E25+F25), 0),"Non requis") -> 94062 | O25: =IF(INTRO!$E$44="Endémique", IF(AND($K25>0,$K25<5), IF($K25=4,"Inconnu", IF($K25=1, $F25*0.33, IF($K25=2, $F25*0.5+$G25*0.2, SUM(F25:G25)))), 0),"Non requis") -> 0 | P25: 0 | Q25: 0 | R25: 2 | S25: 0 | X25: 6391 | Y25: Kibuye | AB25: 36.68 | AC25: 5 | AD25: 2 | AE25: 2014 | AI25: ='MDA3'!Q25 -> 0 | AJ25: ='T1'!M25 -> 0 | AK25: =T3_R1!L25 -> 82522 | AL25: =T3_R2!L25 -> 76156
A26: =IF(INTRO!$E$34<>0,INTRO!$E$34,"") -> BURUNDI | B26: Gitega | C26: Mutaho | D26: 222885.3146 | E26: =IF(INTRO!$E$48="","",ROUND($D26*INTRO!$E$48,0)) -> 31650 | F26: =IF(INTRO!$E$49="","",ROUND($D26*INTRO!$E$49,0)) -> 59510 | G26: =IF(INTRO!$E$50="","",ROUND($D26*INTRO!$E$50,0)) -> 123478 | H26: 0 | I26: 0 | J26: 2 | K26: 0 | L26: =IF([1]INTRO!$E$38="Endémique", IF($H26>0, IF($H26=4,"Inconnu", IF($H26=99,"Interrompu", $D26)), 0),"Non requis") -> Non requis | N26: =IF(INTRO!$E$42="Endémique", IF(AND($J26>1,$J26<5), IF($J26=4, "Inconnu", E26+F26), 0),"Non requis") -> 91160 | O26: =IF(INTRO!$E$44="Endémique", IF(AND($K26>0,$K26<5), IF($K26=4,"Inconnu", IF($K26=1, $F26*0.33, IF($K26=2, $F26*0.5+$G26*0.2, SUM(F26:G26)))), 0),"Non requis") -> 0 | P26: 0 | Q26: 0 | R26: 2 | S26: 0 | X26: 6392 | Y26: Mutaho | AB26: 44.825 | AC26: 4 | AD26: 2 | AE26: 2014 | AI26: ='MDA3'!Q26 -> 0 | AJ26: ='T1'!M26 -> 0 | AK26: =T3_R1!L26 -> 69717 | AL26: =T3_R2!L26 -> 71442
A27: =IF(INTRO!$E$34<>0,INTRO!$E$34,"") -> BURUNDI | B27: Gitega | C27: Ryansoro | D27: 164534.1573 | E27: =IF(INTRO!$E$48="","",ROUND($D27*INTRO!$E$48,0)) -> 23364 | F27: =IF(INTRO!$E$49="","",ROUND($D27*INTRO!$E$49,0)) -> 43931 | G27: =IF(INTRO!$E$50="","",ROUND($D27*INTRO!$E$50,0)) -> 91152 | H27: 0 | I27: 0 | J27: 2 | K27: 0 | L27: =IF([1]INTRO!$E$38="Endémique", IF($H27>0, IF($H27=4,"Inconnu", IF($H27=99,"Interrompu", $D27)), 0),"Non requis") -> Non requis | N27: =IF(INTRO!$E$42="Endémique", IF(AND($J27>1,$J27<5), IF($J27=4, "Inconnu", E27+F27), 0),"Non requis") -> 67295 | O27: =IF(INTRO!$E$44="Endémique", IF(AND($K27>0,$K27<5), IF($K27=4,"Inconnu", IF($K27=1, $F27*0.33, IF($K27=2, $F27*0.5+$G27*0.2, SUM(F27:G27)))), 0),"Non requis") -> 0 | P27: 0 | Q27: 0 | R27: 2 | S27: 0 | X27: 6393 | Y27: Ryansoro | AB27: 45.33333333 | AC27: 3 | AD27: 2 | AE27: 2014 | AI27: ='MDA3'!Q27 -> 0 | AJ27: ='T1'!M27 -> 0 | AK27: =T3_R1!L27 -> 53472 | AL27: =T3_R2!L27 -> 52951
A28: =IF(INTRO!$E$34<>0,INTRO!$E$34,"") -> BURUNDI | B28: Karusi | C28: Buhiga | D28: 236121.4894 | E28: =IF(INTRO!$E$48="","",ROUND($D28*INTRO!$E$48,0)) -> 33529 | F28: =IF(INTRO!$E$49="","",ROUND($D28*INTRO!$E$49,0)) -> 63044 | G28: =IF(INTRO!$E$50="","",ROUND($D28*INTRO!$E$50,0)) -> 130811 | H28: 0 | I28: 0 | J28: 2 | K28: 0 | L28: =IF([1]INTRO!$E$38="Endémique", IF($H28>0, IF($H28=4,"Inconnu", IF($H28=99,"Interrompu", $D28)), 0),"Non requis") -> Non requis | N28: =IF(INTRO!$E$42="Endémique", IF(AND($J28>1,$J28<5), IF($J28=4, "Inconnu", E28+F28), 0),"Non requis") -> 96573 | O28: =IF(INTRO!$E$44="Endémique", IF(AND($K28>0,$K28<5), IF($K28=4,"Inconnu", IF($K28=1, $F28*0.33, IF($K28=2, $F28*0.5+$G28*0.2, SUM(F28:G28)))), 0),"Non requis") -> 0 | P28: 0 | Q28: 0 | R28: 2 | S28: 0 | X28: 6394 | Y28: Buhiga | AB28: 20.3 | AC28: 5 | AD28: 2 | AE28: 2014 | AI28: ='MDA3'!Q28 -> 0 | AJ28: ='T1'!M28 -> 0 | AK28: =T3_R1!L28 -> 106476 | AL28: =T3_R2!L28 -> 112706
A29: =IF(INTRO!$E$34<>0,INTRO!$E$34,"") -> BURUNDI | B29: Karusi | C29: Nyabikere | D29: 269973.717 | E29: =IF(INTRO!$E$48="","",ROUND($D29*INTRO!$E$48,0)) -> 38336 | F29: =IF(INTRO!$E$49="","",ROUND($D29*INTRO!$E$49,0)) -> 72083 | G29: =IF(INTRO!$E$50="","",ROUND($D29*INTRO!$E$50,0)) -> 149565 | H29: 0 | I29: 0 | J29: 2 | K29: 0 | L29: =IF([1]INTRO!$E$38="Endémique", IF($H29>0, IF($H29=4,"Inconnu", IF($H29=99,"Interrompu", $D29)), 0),"Non requis") -> Non requis | N29: =IF(INTRO!$E$42="Endémique", IF(AND($J29>1,$J29<5), IF($J29=4, "Inconnu", E29+F29), 0),"Non requis") -> 110419 | O29: =IF(INTRO!$E$44="Endémique", IF(AND($K29>0,$K29<5), IF($K29=4,"Inconnu", IF($K29=1, $F29*0.33, IF($K29=2, $F29*0.5+$G29*0.2, SUM(F29:G29)))), 0),"Non requis") -> 0 | P29: 0 | Q29: 0 | R29: 2 | S29: 0 | X29: 6395 | Y29: Nyabikere | AB29: 22.625 | AC29: 4 | AD29: 2 | AE29: 2014 | AI29: ='MDA3'!Q29 -> 0 | AJ29: ='T1'!M29 -> 0 | AK29: =T3_R1!L29 -> 86089 | AL29: =T3_R2!L29 -> 88025
A30: =IF(INTRO!$E$34<>0,INTRO!$E$34,"") -> BURUNDI | B30: Kayanza | C30: Gahombo | D30: 249962.6994 | E30: =IF(INTRO!$E$48="","",ROUND($D30*INTRO!$E$48,0)) -> 35495 | F30: =IF(INTRO!$E$49="","",ROUND($D30*INTRO!$E$49,0)) -> 66740 | G30: =IF(INTRO!$E$50="","",ROUND($D30*INTRO!$E$50,0)) -> 138479 | H30: 0 | I30: 0 | J30: 2 | K30: 0 | L30: =IF([1]INTRO!$E$38="Endémique", IF($H30>0, IF($H30=4,"Inconnu", IF($H30=99,"Interrompu", $D30)), 0),"Non requis") -> Non requis | N30: =IF(INTRO!$E$42="Endémique", IF(AND($J30>1,$J30<5), IF($J30=4, "Inconnu", E30+F30), 0),"Non requis") -> 102235 | O30: =IF(INTRO!$E$44="Endémique", IF(AND($K30>0,$K30<5), IF($K30=4,"Inconnu", IF($K30=1, $F30*0.33, IF($K30=2, $F30*0.5+$G30*0.2, SUM(F30:G30)))), 0),"Non requis") -> 0 | P30: 0 | Q30: 0 | R30: 2 | S30: 0 | X30: 6396 | Y30: Gahombo | AB30: 36.42 | AC30: 5 | AD30: 2 | AE30: 2014 | AI30: ='MDA3'!Q30 -> 0 | AJ30: ='T1'!M30 -> 0 | AK30: =T3_R1!L30 -> 65917 | AL30: =T3_R2!L30 -> 66415
A31: =IF(INTRO!$E$34<>0,INTRO!$E$34,"") -> BURUNDI | B31: Kayanza | C31: Kayanza | D31: 314035.9291 | E31: =IF(INTRO!$E$48="","",ROUND($D31*INTRO!$E$48,0)) -> 44593 | F31: =IF(INTRO!$E$49="","",ROUND($D31*INTRO!$E$49,0)) -> 83848 | G31: =IF(INTRO!$E$50="","",ROUND($D31*INTRO!$E$50,0)) -> 173976 | H31: 0 | I31: 0 | J31: 2 | K31: 0 | L31: =IF([1]INTRO!$E$38="Endémique", IF($H31>0, IF($H31=4,"Inconnu", IF($H31=99,"Interrompu", $D31)), 0),"Non requis") -> Non requis | N31: =IF(INTRO!$E$42="Endémique", IF(AND($J31>1,$J31<5), IF($J31=4, "Inconnu", E31+F31), 0),"Non requis") -> 128441 | O31: =IF(INTRO!$E$44="Endémique", IF(AND($K31>0,$K31<5), IF($K31=4,"Inconnu", IF($K31=1, $F31*0.33, IF($K31=2, $F31*0.5+$G31*0.2, SUM(F31:G31)))), 0),"Non requis") -> 0 | P31: 0 | Q31: 0 | R31: 2 | S31: 0 | X31: 6397 | Y31: Kayanza | AB31: 41.76 | AC31: 5 | AD31: 2 | AE31: 2014 | AI31: ='MDA3'!Q31 -> 0 | AJ31: ='T1'!M31 -> 0 | AK31: =T3_R1!L31 -> 96062 | AL31: =T3_R2!L31 -> 97070
A32: =IF(INTRO!$E$34<>0,INTRO!$E$34,"") -> BURUNDI | B32: Kayanza | C32: Musema | D32: 274304.3359 | E32: =IF(INTRO!$E$48="","",ROUND($D32*INTRO!$E$48,0)) -> 38951 | F32: =IF(INTRO!$E$49="","",ROUND($D32*INTRO!$E$49,0)) -> 73239 | G32: =IF(INTRO!$E$50="","",ROUND($D32*INTRO!$E$50,0)) -> 151965 | H32: 0 | I32: 0 | J32: 2 | K32: 0 | L32: =IF([1]INTRO!$E$38="Endémique", IF($H32>0, IF($H32=4,"Inconnu", IF($H32=99,"Interrompu", $D32)), 0),"Non requis") -> Non requis | N32: =IF(INTRO!$E$42="Endémique", IF(AND($J32>1,$J32<5), IF($J32=4, "Inconnu", E32+F32), 0),"Non requis") -> 112190 | O32: =IF(INTRO!$E$44="Endémique", IF(AND($K32>0,$K32<5), IF($K32=4,"Inconnu", IF($K32=1, $F32*0.33, IF($K32=2, $F32*0.5+$G32*0.2, SUM(F32:G32)))), 0),"Non requis") -> 0 | P32: 0 | Q32: 0 | R32: 2 | S32: 0 | X32: 6398 | Y32: Musema | AB32: 41.96 | AC32: 5 | AD32: 2 | AE32: 2014 | AI32: ='MDA3'!Q32 -> 0 | AJ32: ='T1'!M32 -> 0 | AK32: =T3_R1!L32 -> 95603 | AL32: =T3_R2!L32 -> 83589
A33: =IF(INTRO!$E$34<>0,INTRO!$E$34,"") -> BURUNDI | B33: Kirundo | C33: Busoni | D33: 192779.649 | E33: =IF(INTRO!$E$48="","",ROUND($D33*INTRO!$E$48,0)) -> 27375 | F33: =IF(INTRO!$E$49="","",ROUND($D33*INTRO!$E$49,0)) -> 51472 | G33: =IF(INTRO!$E$50="","",ROUND($D33*INTRO!$E$50,0)) -> 106800 | H33: 0 | I33: 0 | J33: 1 | K33: 1 | L33: =IF([1]INTRO!$E$38="Endémique", IF($H33>0, IF($H33=4,"Inconnu", IF($H33=99,"Interrompu", $D33)), 0),"Non requis") -> Non requis | N33: =IF(INTRO!$E$42="Endémique", IF(AND($J33>1,$J33<5), IF($J33=4, "Inconnu", E33+F33), 0),"Non requis") -> 0 | O33: =IF(INTRO!$E$44="Endémique", IF(AND($K33>0,$K33<5), IF($K33=4,"Inconnu", IF($K33=1, $F33*0.33, IF($K33=2, $F33*0.5+$G33*0.2, SUM(F33:G33)))), 0),"Non requis") -> 16985.76 | P33: 0 | Q33: 0 | R33: 2 | S33: 1 | U33: T1 (PZQ+ALB/MBD) | X33: 6399 | Y33: Busoni | AB33: 17.56666667 | AC33: 3 | AD33: 1 | AE33: 2014 | AI33: ='MDA3'!Q33 -> 0 | AJ33: ='T1'!M33 -> 59729 | AK33: =T3_R1!L33 -> 65456 | AL33: =T3_R2!L33 -> 0
A34: =IF(INTRO!$E$34<>0,INTRO!$E$34,"") -> BURUNDI | B34: Kirundo | C34: Kirundo | D34: 256841.3512 | E34: =IF(INTRO!$E$48="","",ROUND($D34*INTRO!$E$48,0)) -> 36471 | F34: =IF(INTRO!$E$49="","",ROUND($D34*INTRO!$E$49,0)) -> 68577 | G34: =IF(INTRO!$E$50="","",ROUND($D34*INTRO!$E$50,0)) -> 142290 | H34: 0 | I34: 0 | J34: 1 | K34: 1 | L34: =IF([1]INTRO!$E$38="Endémique", IF($H34>0, IF($H34=4,"Inconnu", IF($H34=99,"Interrompu", $D34)), 0),"Non requis") -> Non requis | N34: =IF(INTRO!$E$42="Endémique", IF(AND($J34>1,$J34<5), IF($J34=4, "Inconnu", E34+F34), 0),"Non requis") -> 0 | O34: =IF(INTRO!$E$44="Endémique", IF(AND($K34>0,$K34<5), IF($K34=4,"Inconnu", IF($K34=1, $F34*0.33, IF($K34=2, $F34*0.5+$G34*0.2, SUM(F34:G34)))), 0),"Non requis") -> 22630.41 | P34: 0 | Q34: 0 | R34: 2 | S34: 1 | U34: T1 (PZQ+ALB/MBD) | X34: 6400 | Y34: Kirundo | AB34: 16.26 | AC34: 5 | AD34: 1 | AE34: 2014 | AI34: ='MDA3'!Q34 -> 0 | AJ34: ='T1'!M34 -> 64765 | AK34: =T3_R1!L34 -> 81819 | AL34: =T3_R2!L34 -> 0
A35: =IF(INTRO!$E$34<>0,INTRO!$E$34,"") -> BURUNDI | B35: Kirundo | C35: Mukenke | D35: 187942.5679 | E35: =IF(INTRO!$E$48="","",ROUND($D35*INTRO!$E$48,0)) -> 26688 | F35: =IF(INTRO!$E$49="","",ROUND($D35*INTRO!$E$49,0)) -> 50181 | G35: =IF(INTRO!$E$50="","",ROUND($D35*INTRO!$E$50,0)) -> 104120 | H35: 0 | I35: 0 | J35: 1 | K35: 1 | L35: =IF([1]INTRO!$E$38="Endémique", IF($H35>0, IF($H35=4,"Inconnu", IF($H35=99,"Interrompu", $D35)), 0),"Non requis") -> Non requis | N35: =IF(INTRO!$E$42="Endémique", IF(AND($J35>1,$J35<5), IF($J35=4, "Inconnu", E35+F35), 0),"Non requis") -> 0 | O35: =IF(INTRO!$E$44="Endémique", IF(AND($K35>0,$K35<5), IF($K35=4,"Inconnu", IF($K35=1, $F35*0.33, IF($K35=2, $F35*0.5+$G35*0.2, SUM(F35:G35)))), 0),"Non requis") -> 16559.73 | P35: 0 | Q35: 0 | R35: 2 | S35: 1 | U35: T1 (PZQ+ALB/MBD) | X35: 6401 | Y35: Mukenke | AB35: 15 | AC35: 4 | AD35: 1 | AE35: 2014 | AI35: ='MDA3'!Q35 -> 0 | AJ35: ='T1'!M35 -> 56343 | AK35: =T3_R1!L35 -> 55075 | AL35: =T3_R2!L35 -> 0
A36: =IF(INTRO!$E$34<>0,INTRO!$E$34,"") -> BURUNDI | B36: Kirundo | C36: Vumbi | D36: 225234.1248 | E36: =IF(INTRO!$E$48="","",ROUND($D36*INTRO!$E$48,0)) -> 31983 | F36: =IF(INTRO!$E$49="","",ROUND($D36*INTRO!$E$49,0)) -> 60138 | G36: =IF(INTRO!$E$50="","",ROUND($D36*INTRO!$E$50,0)) -> 124780 | H36: 0 | I36: 0 | J36: 2 | K36: 1 | L36: =IF([1]INTRO!$E$38="Endémique", IF($H36>0, IF($H36=4,"Inconnu", IF($H36=99,"Interrompu", $D36)), 0),"Non requis") -> Non requis | N36: =IF(INTRO!$E$42="Endémique", IF(AND($J36>1,$J36<5), IF($J36=4, "Inconnu", E36+F36), 0),"Non requis") -> 92121 | O36: =IF(INTRO!$E$44="Endémique", IF(AND($K36>0,$K36<5), IF($K36=4,"Inconnu", IF($K36=1, $F36*0.33, IF($K36=2, $F36*0.5+$G36*0.2, SUM(F36:G36)))), 0),"Non requis") -> 19845.54 | P36: 0 | Q36: 0 | R36: 2 | S36: 1 | U36: T1 (PZQ+ALB/MBD) | X36: 6402 | Y36: Vumbi | AB36: 23.82 | AC36: 5 | AD36: 2 | AE36: 2014 | AI36: ='MDA3'!Q36 -> 0 | AJ36: ='T1'!M36 -> 70249 | AK36: =T3_R1!L36 -> 72881 | AL36: =T3_R2!L36 -> 0
A37: =IF(INTRO!$E$34<>0,INTRO!$E$34,"") -> BURUNDI | B37: Makamba | C37: Makamba | D37: 361904.4721 | E37: =IF(INTRO!$E$48="","",ROUND($D37*INTRO!$E$48,0)) -> 51390 | F37: =IF(INTRO!$E$49="","",ROUND($D37*INTRO!$E$49,0)) -> 96628 | G37: =IF(INTRO!$E$50="","",ROUND($D37*INTRO!$E$50,0)) -> 200495 | H37: 0 | I37: 1 | J37: 1 | K37: 1 | L37: =IF([1]INTRO!$E$38="Endémique", IF($H37>0, IF($H37=4,"Inconnu", IF($H37=99,"Interrompu", $D37)), 0),"Non requis") -> Non requis | M37: 62095 | N37: =IF(INTRO!$E$42="Endémique", IF(AND($J37>1,$J37<5), IF($J37=4, "Inconnu", E37+F37), 0),"Non requis") -> 0 | O37: =IF(INTRO!$E$44="Endémique", IF(AND($K37>0,$K37<5), IF($K37=4,"Inconnu", IF($K37=1, $F37*0.33, IF($K37=2, $F37*0.5+$G37*0.2, SUM(F37:G37)))), 0),"Non requis") -> 31887.24 | P37: 0 | Q37: 1 | R37: 2 | S37: 1 | T37: MDA3 (IVM) | U37: T1 (PZQ+ALB/MBD) | X37: 6403 | Y37: Makamba | AB37: 10.65 | AC37: 4 | AD37: 1 | AE37: 2014 | AI37: ='MDA3'!Q37 -> 50998 | AJ37: ='T1'!M37 -> 80558 | AK37: =T3_R1!L37 -> 123480 | AL37: =T3_R2!L37 -> 0
A38: =IF(INTRO!$E$34<>0,INTRO!$E$34,"") -> BURUNDI | B38: Makamba | C38: Nyanza-Lac | D38: 397939.8349 | E38: =IF(INTRO!$E$48="","",ROUND($D38*INTRO!$E$48,0)) -> 56507 | F38: =IF(INTRO!$E$49="","",ROUND($D38*INTRO!$E$49,0)) -> 106250 | G38: =IF(INTRO!$E$50="","",ROUND($D38*INTRO!$E$50,0)) -> 220459 | H38: 0 | I38: 0 | J38: 1 | K38: 2 | L38: =IF([1]INTRO!$E$38="Endémique", IF($H38>0, IF($H38=4,"Inconnu", IF($H38=99,"Interrompu", $D38)), 0),"Non requis") -> Non requis | N38: =IF(INTRO!$E$42="Endémique", IF(AND($J38>1,$J38<5), IF($J38=4, "Inconnu", E38+F38), 0),"Non requis") -> 0 | O38: =IF(INTRO!$E$44="Endémique", IF(AND($K38>0,$K38<5), IF($K38=4,"Inconnu", IF($K38=1, $F38*0.33, IF($K38=2, $F38*0.5+$G38*0.2, SUM(F38:G38)))), 0),"Non requis") -> 97216.8 | P38: 0 | Q38: 0 | R38: 2 | S38: 1 | U38: T1 (PZQ+ALB/MBD) | X38: 6404 | Y38: Nyanza Lac | AB38: 10.9 | AC38: 5 | AD38: 1 | AE38: 2014 | AI38: ='MDA3'!Q38 -> 0 | AJ38: ='T1'!M38 -> 93442 | AK38: =T3_R1!L38 -> 130738 | AL38: =T3_R2!L38 -> 0
A39: =IF(INTRO!$E$34<>0,INTRO!$E$34,"") -> BURUNDI | B39: Muramvya | C39: Kiganda | D39: 207328.641 | E39: =IF(INTRO!$E$48="","",ROUND($D39*INTRO!$E$48,0)) -> 29441 | F39: =IF(INTRO!$E$49="","",ROUND($D39*INTRO!$E$49,0)) -> 55357 | G39: =IF(INTRO!$E$50="","",ROUND($D39*INTRO!$E$50,0)) -> 114860 | H39: 0 | I39: 0 | J39: 2 | K39: 0 | L39: =IF([1]INTRO!$E$38="Endémique", IF($H39>0, IF($H39=4,"Inconnu", IF($H39=99,"Interrompu", $D39)), 0),"Non requis") -> Non requis | N39: =IF(INTRO!$E$42="Endémique", IF(AND($J39>1,$J39<5), IF($J39=4, "Inconnu", E39+F39), 0),"Non requis") -> 84798 | O39: =IF(INTRO!$E$44="Endémique", IF(AND($K39>0,$K39<5), IF($K39=4,"Inconnu", IF($K39=1, $F39*0.33, IF($K39=2, $F39*0.5+$G39*0.2, SUM(F39:G39)))), 0),"Non requis") -> 0 | P39: 0 | Q39: 0 | R39: 2 | S39: 0 | X39: 6405 | Y39: Kiganda | AB39: 28.94 | AC39: 5 | AD39: 2 | AE39: 2014 | AI39: ='MDA3'!Q39 -> 0 | AJ39: ='T1'!M39 -> 0 | AK39: =T3_R1!L39 -> 62966 | AL39: =T3_R2!L39 -> 61502
A40: =IF(INTRO!$E$34<>0,INTRO!$E$34,"") -> BURUNDI | B40: Muramvya | C40: Muramvya | D40: 205830.2259 | E40: =IF(INTRO!$E$48="","",ROUND($D40*INTRO!$E$48,0)) -> 29228 | F40: =IF(INTRO!$E$49="","",ROUND($D40*INTRO!$E$49,0)) -> 54957 | G40: =IF(INTRO!$E$50="","",ROUND($D40*INTRO!$E$50,0)) -> 114030 | H40: 0 | I40: 0 | J40: 2 | K40: 0 | L40: =IF([1]INTRO!$E$38="Endémique", IF($H40>0, IF($H40=4,"Inconnu", IF($H40=99,"Interrompu", $D40)), 0),"Non requis") -> Non requis | N40: =IF(INTRO!$E$42="Endémique", IF(AND($J40>1,$J40<5), IF($J40=4, "Inconnu", E40+F40), 0),"Non requis") -> 84185 | O40: =IF(INTRO!$E$44="Endémique", IF(AND($K40>0,$K40<5), IF($K40=4,"Inconnu", IF($K40=1, $F40*0.33, IF($K40=2, $F40*0.5+$G40*0.2, SUM(F40:G40)))), 0),"Non requis") -> 0 | P40: 0 | Q40: 0 | R40: 2 | S40: 0 | X40: 6406 | Y40: Muramvya | AB40: 31.94 | AC40: 5 | AD40: 2 | AE40: 2014 | AI40: ='MDA3'!Q40 -> 0 | AJ40: ='T1'!M40 -> 0 | AK40: =T3_R1!L40 -> 71357 | AL40: =T3_R2!L40 -> 66600
A41: =IF(INTRO!$E$34<>0,INTRO!$E$34,"") -> BURUNDI | B41: Muyinga | C41: Gashoho | D41: 207275.1636 | E41: =IF(INTRO!$E$48="","",ROUND($D41*INTRO!$E$48,0)) -> 29433 | F41: =IF(INTRO!$E$49="","",ROUND($D41*INTRO!$E$49,0)) -> 55342 | G41: =IF(INTRO!$E$50="","",ROUND($D41*INTRO!$E$50,0)) -> 114830 | H41: 0 | I41: 0 | J41: 2 | K41: 0 | L41: =IF([1]INTRO!$E$38="Endémique", IF($H41>0, IF($H41=4,"Inconnu", IF($H41=99,"Interrompu", $D41)), 0),"Non requis") -> Non requis | N41: =IF(INTRO!$E$42="Endémique", IF(AND($J41>1,$J41<5), IF($J41=4, "Inconnu", E41+F41), 0),"Non requis") -> 84775 | O41: =IF(INTRO!$E$44="Endémique", IF(AND($K41>0,$K41<5), IF($K41=4,"Inconnu", IF($K41=1, $F41*0.33, IF($K41=2, $F41*0.5+$G41*0.2, SUM(F41:G41)))), 0),"Non requis") -> 0 | P41: 0 | Q41: 0 | R41: 2 | S41: 0 | X41: 6407 | Y41: Gashoho | AB41: 43.55 | AC41: 4 | AD41: 2 | AE41: 2014 | AI41: ='MDA3'!Q41 -> 0 | AJ41: ='T1'!M41 -> 0 | AK41: =T3_R1!L41 -> 72280 | AL41: =T3_R2!L41 -> 64642
A42: =IF(INTRO!$E$34<>0,INTRO!$E$34,"") -> BURUNDI | B42: Muyinga | C42: Giteranyi | D42: 368465.4121 | E42: =IF(INTRO!$E$48="","",ROUND($D42*INTRO!$E$48,0)) -> 52322 | F42: =IF(INTRO!$E$49="","",ROUND($D42*INTRO!$E$49,0)) -> 98380 | G42: =IF(INTRO!$E$50="","",ROUND($D42*INTRO!$E$50,0)) -> 204130 | H42: 0 | I42: 0 | J42: 2 | K42: 0 | L42: =IF([1]INTRO!$E$38="Endémique", IF($H42>0, IF($H42=4,"Inconnu", IF($H42=99,"Interrompu", $D42)), 0),"Non requis") -> Non requis | N42: =IF(INTRO!$E$42="Endémique", IF(AND($J42>1,$J42<5), IF($J42=4, "Inconnu", E42+F42), 0),"Non requis") -> 150702 | O42: =IF(INTRO!$E$44="Endémique", IF(AND($K42>0,$K42<5), IF($K42=4,"Inconnu", IF($K42=1, $F42*0.33, IF($K42=2, $F42*0.5+$G42*0.2, SUM(F42:G42)))), 0),"Non requis") -> 0 | P42: 0 | Q42: 0 | R42: 2 | S42: 0 | X42: 6408 | Y42: Giteranyi | AB42: 23.275 | AC42: 4 | AD42: 2 | AE42: 2014 | AI42: ='MDA3'!Q42 -> 0 | AJ42: ='T1'!M42 -> 0 | AK42: =T3_R1!L42 -> 124262 | AL42: =T3_R2!L42 -> 102880
A43: =IF(INTRO!$E$34<>0,INTRO!$E$34,"") -> BURUNDI | B43: Muyinga | C43: Muyinga | D43: 365587.071 | E43: =IF(INTRO!$E$48="","",ROUND($D43*INTRO!$E$48,0)) -> 51913 | F43: =IF(INTRO!$E$49="","",ROUND($D43*INTRO!$E$49,0)) -> 97612 | G43: =IF(INTRO!$E$50="","",ROUND($D43*INTRO!$E$50,0)) -> 202535 | H43: 0 | I43: 0 | J43: 1 | K43: 1 | L43: =IF([1]INTRO!$E$38="Endémique", IF($H43>0, IF($H43=4,"Inconnu", IF($H43=99,"Interrompu", $D43)), 0),"Non requis") -> Non requis | N43: =IF(INTRO!$E$42="Endémique", IF(AND($J43>1,$J43<5), IF($J43=4, "Inconnu", E43+F43), 0),"Non requis") -> 0 | O43: =IF(INTRO!$E$44="Endémique", IF(AND($K43>0,$K43<5), IF($K43=4,"Inconnu", IF($K43=1, $F43*0.33, IF($K43=2, $F43*0.5+$G43*0.2, SUM(F43:G43)))), 0),"Non requis") -> 32211.96 | P43: 0 | Q43: 0 | R43: 2 | S43: 1 | U43: T1 (PZQ+ALB/MBD) | X43: 6409 | Y43: Muyinga | AB43: 18.32 | AC43: 5 | AD43: 1 | AE43: 2014 | AI43: ='MDA3'!Q43 -> 0 | AJ43: ='T1'!M43 -> 106465 | AK43: =T3_R1!L43 -> 122444 | AL43: =T3_R2!L43 -> 0
A44: =IF(INTRO!$E$34<>0,INTRO!$E$34,"") -> BURUNDI | B44: Mwaro | C44: Fota | D44: 172627.0669 | E44: =IF(INTRO!$E$48="","",ROUND($D44*INTRO!$E$48,0)) -> 24513 | F44: =IF(INTRO!$E$49="","",ROUND($D44*INTRO!$E$49,0)) -> 46091 | G44: =IF(INTRO!$E$50="","",ROUND($D44*INTRO!$E$50,0)) -> 95635 | H44: 0 | I44: 0 | J44: 1 | K44: 0 | L44: =IF([1]INTRO!$E$38="Endémique", IF($H44>0, IF($H44=4,"Inconnu", IF($H44=99,"Interrompu", $D44)), 0),"Non requis") -> Non requis | N44: =IF(INTRO!$E$42="Endémique", IF(AND($J44>1,$J44<5), IF($J44=4, "Inconnu", E44+F44), 0),"Non requis") -> 0 | O44: =IF(INTRO!$E$44="Endémique", IF(AND($K44>0,$K44<5), IF($K44=4,"Inconnu", IF($K44=1, $F44*0.33, IF($K44=2, $F44*0.5+$G44*0.2, SUM(F44:G44)))), 0),"Non requis") -> 0 | P44: 0 | Q44: 0 | R44: 2 | S44: 0 | X44: 6410 | Y44: Fota | AB44: 19.52 | AC44: 5 | AD44: 1 | AE44: 2016 | AI44: ='MDA3'!Q44 -> 0 | AJ44: ='T1'!M44 -> 0 | AK44: =T3_R1!L44 -> 46886 | AL44: =T3_R2!L44 -> 45441
A45: =IF(INTRO!$E$34<>0,INTRO!$E$34,"") -> BURUNDI | B45: Mwaro | C45: Kibumbu | D45: 159071.0764 | E45: =IF(INTRO!$E$48="","",ROUND($D45*INTRO!$E$48,0)) -> 22588 | F45: =IF(INTRO!$E$49="","",ROUND($D45*INTRO!$E$49,0)) -> 42472 | G45: =IF(INTRO!$E$50="","",ROUND($D45*INTRO!$E$50,0)) -> 88125 | H45: 0 | I45: 0 | J45: 1 | K45: 0 | L45: =IF([1]INTRO!$E$38="Endémique", IF($H45>0, IF($H45=4,"Inconnu", IF($H45=99,"Interrompu", $D45)), 0),"Non requis") -> Non requis | N45: =IF(INTRO!$E$42="Endémique", IF(AND($J45>1,$J45<5), IF($J45=4, "Inconnu", E45+F45), 0),"Non requis") -> 0 | O45: =IF(INTRO!$E$44="Endémique", IF(AND($K45>0,$K45<5), IF($K45=4,"Inconnu", IF($K45=1, $F45*0.33, IF($K45=2, $F45*0.5+$G45*0.2, SUM(F45:G45)))), 0),"Non requis") -> 0 | P45: 0 | Q45: 0 | R45: 2 | S45: 0 | X45: 6411 | Y45: Kibumbu | AB45: 8.92 | AC45: 5 | AD45: 1 | AE45: 2016 | AI45: ='MDA3'!Q45 -> 0 | AJ45: ='T1'!M45 -> 0 | AK45: =T3_R1!L45 -> 55330 | AL45: =T3_R2!L45 -> 53779
A46: =IF(INTRO!$E$34<>0,INTRO!$E$34,"") -> BURUNDI | B46: Ngozi | C46: Buye | D46: 215837.8353 | E46: =IF(INTRO!$E$48="","",ROUND($D46*INTRO!$E$48,0)) -> 30649 | F46: =IF(INTRO!$E$49="","",ROUND($D46*INTRO!$E$49,0)) -> 57629 | G46: =IF(INTRO!$E$50="","",ROUND($D46*INTRO!$E$50,0)) -> 119574 | H46: 0 | I46: 0 | J46: 1 | K46: 0 | L46: =IF([1]INTRO!$E$38="Endémique", IF($H46>0, IF($H46=4,"Inconnu", IF($H46=99,"Interrompu", $D46)), 0),"Non requis") -> Non requis | N46: =IF(INTRO!$E$42="Endémique", IF(AND($J46>1,$J46<5), IF($J46=4, "Inconnu", E46+F46), 0),"Non requis") -> 0 | O46: =IF(INTRO!$E$44="Endémique", IF(AND($K46>0,$K46<5), IF($K46=4,"Inconnu", IF($K46=1, $F46*0.33, IF($K46=2, $F46*0.5+$G46*0.2, SUM(F46:G46)))), 0),"Non requis") -> 0 | P46: 0 | Q46: 0 | R46: 2 | S46: 0 | X46: 6412 | Y46: Buye | AB46: 17.88 | AC46: 5 | AD46: 1 | AE46: 2016 | AI46: ='MDA3'!Q46 -> 0 | AJ46: ='T1'!M46 -> 0 | AK46: =T3_R1!L46 -> 74609 | AL46: =T3_R2!L46 -> 69150
A47: =IF(INTRO!$E$34<>0,INTRO!$E$34,"") -> BURUNDI | B47: Ngozi | C47: Kiremba | D47: 309424.2918 | E47: =IF(INTRO!$E$48="","",ROUND($D47*INTRO!$E$48,0)) -> 43938 | F47: =IF(INTRO!$E$49="","",ROUND($D47*INTRO!$E$49,0)) -> 82616 | G47: =IF(INTRO!$E$50="","",ROUND($D47*INTRO!$E$50,0)) -> 171421 | H47: 0 | I47: 0 | J47: 2 | K47: 0 | L47: =IF([1]INTRO!$E$38="Endémique", IF($H47>0, IF($H47=4,"Inconnu", IF($H47=99,"Interrompu", $D47)), 0),"Non requis") -> Non requis | N47: =IF(INTRO!$E$42="Endémique", IF(AND($J47>1,$J47<5), IF($J47=4, "Inconnu", E47+F47), 0),"Non requis") -> 126554 | O47: =IF(INTRO!$E$44="Endémique", IF(AND($K47>0,$K47<5), IF($K47=4,"Inconnu", IF($K47=1, $F47*0.33, IF($K47=2, $F47*0.5+$G47*0.2, SUM(F47:G47)))), 0),"Non requis") -> 0 | P47: 0 | Q47: 0 | R47: 2 | S47: 0 | X47: 6413 | Y47: Kiremba | AB47: 25.3 | AC47: 5 | AD47: 2 | AE47: 2016 | AI47: ='MDA3'!Q47 -> 0 | AJ47: ='T1'!M47 -> 0 | AK47: =T3_R1!L47 -> 100851 | AL47: =T3_R2!L47 -> 102059
A48: =IF(INTRO!$E$34<>0,INTRO!$E$34,"") -> BURUNDI | B48: Ngozi | C48: Ngozi | D48: 346532.3479 | E48: =IF(INTRO!$E$48="","",ROUND($D48*INTRO!$E$48,0)) -> 49208 | F48: =IF(INTRO!$E$49="","",ROUND($D48*INTRO!$E$49,0)) -> 92524 | G48: =IF(INTRO!$E$50="","",ROUND($D48*INTRO!$E$50,0)) -> 191979 | H48: 0 | I48: 0 | J48: 2 | K48: 0 | L48: =IF([1]INTRO!$E$38="Endémique", IF($H48>0, IF($H48=4,"Inconnu", IF($H48=99,"Interrompu", $D48)), 0),"Non requis") -> Non requis | N48: =IF(INTRO!$E$42="Endémique", IF(AND($J48>1,$J48<5), IF($J48=4, "Inconnu", E48+F48), 0),"Non requis") -> 141732 | O48: =IF(INTRO!$E$44="Endémique", IF(AND($K48>0,$K48<5), IF($K48=4,"Inconnu", IF($K48=1, $F48*0.33, IF($K48=2, $F48*0.5+$G48*0.2, SUM(F48:G48)))), 0),"Non requis") -> 0 | P48: 0 | Q48: 0 | R48: 2 | S48: 0 | X48: 6414 | Y48: Ngozi | AB48: 32.12 | AC48: 5 | AD48: 2 | AE48: 2016 | AI48: ='MDA3'!Q48 -> 0 | AJ48: ='T1'!M48 -> 0 | AK48: =T3_R1!L48 -> 115596 | AL48: =T3_R2!L48 -> 106376
A49: =IF(INTRO!$E$34<>0,INTRO!$E$34,"") -> BURUNDI | B49: Rumonge | C49: Bugarama | D49: 229151.013 | E49: =IF(INTRO!$E$48="","",ROUND($D49*INTRO!$E$48,0)) -> 32539 | F49: =IF(INTRO!$E$49="","",ROUND($D49*INTRO!$E$49,0)) -> 61183 | G49: =IF(INTRO!$E$50="","",ROUND($D49*INTRO!$E$50,0)) -> 126950 | H49: 0 | I49: 1 | J49: 1 | K49: 1 | L49: =IF([1]INTRO!$E$38="Endémique", IF($H49>0, IF($H49=4,"Inconnu", IF($H49=99,"Interrompu", $D49)), 0),"Non requis") -> Non requis | M49: 81407 | N49: =IF(INTRO!$E$42="Endémique", IF(AND($J49>1,$J49<5), IF($J49=4, "Inconnu", E49+F49), 0),"Non requis") -> 0 | O49: =IF(INTRO!$E$44="Endémique", IF(AND($K49>0,$K49<5), IF($K49=4,"Inconnu", IF($K49=1, $F49*0.33, IF($K49=2, $F49*0.5+$G49*0.2, SUM(F49:G49)))), 0),"Non requis") -> 20190.39 | P49: 0 | Q49: 1 | R49: 2 | S49: 1 | T49: MDA3 (IVM) | U49: T1 (PZQ+ALB/MBD) | X49: 6420 | Y49: Bugarama | AI49: ='MDA3'!Q49 -> 66330 | AJ49: ='T1'!M49 -> 75991 | AK49: =T3_R1!L49 -> 75154 | AL49: =T3_R2!L49 -> 0
A50: =IF(INTRO!$E$34<>0,INTRO!$E$34,"") -> BURUNDI | B50: Rumonge | C50: Rumonge | D50: 350620.7457 | E50: =IF(INTRO!$E$48="","",ROUND($D50*INTRO!$E$48,0)) -> 49788 | F50: =IF(INTRO!$E$49="","",ROUND($D50*INTRO!$E$49,0)) -> 93616 | G50: =IF(INTRO!$E$50="","",ROUND($D50*INTRO!$E$50,0)) -> 194244 | H50: 0 | I50: 1 | J50: 1 | K50: 1 | L50: =IF([1]INTRO!$E$38="Endémique", IF($H50>0, IF($H50=4,"Inconnu", IF($H50=99,"Interrompu", $D50)), 0),"Non requis") -> Non requis | M50: 319430 | N50: =IF(INTRO!$E$42="Endémique", IF(AND($J50>1,$J50<5), IF($J50=4, "Inconnu", E50+F50), 0),"Non requis") -> 0 | O50: =IF(INTRO!$E$44="Endémique", IF(AND($K50>0,$K50<5), IF($K50=4,"Inconnu", IF($K50=1, $F50*0.33, IF($K50=2, $F50*0.5+$G50*0.2, SUM(F50:G50)))), 0),"Non requis") -> 30893.28 | P50: 0 | Q50: 1 | R50: 2 | S50: 1 | T50: MDA3 (IVM) | U50: T1 (PZQ+ALB/MBD) | X50: 6385 | Y50: Rumonge | AB50: 14.1875 | AC50: 8 | AD50: 1 | AE50: 2014 | AI50: ='MDA3'!Q50 -> 254810 | AJ50: ='T1'!M50 -> 103336 | AK50: =T3_R1!L50 -> 108348 | AL50: =T3_R2!L50 -> 0
A51: =IF(INTRO!$E$34<>0,INTRO!$E$34,"") -> BURUNDI | B51: Rutana | C51: Gihofi | D51: 269981.057 | E51: =IF(INTRO!$E$48="","",ROUND($D51*INTRO!$E$48,0)) -> 38337 | F51: =IF(INTRO!$E$49="","",ROUND($D51*INTRO!$E$49,0)) -> 72085 | G51: =IF(INTRO!$E$50="","",ROUND($D51*INTRO!$E$50,0)) -> 149570 | H51: 0 | I51: 1 | J51: 1 | K51: 1 | L51: =IF([1]INTRO!$E$38="Endémique", IF($H51>0, IF($H51=4,"Inconnu", IF($H51=99,"Interrompu", $D51)), 0),"Non requis") -> Non requis | M51: 283786 | N51: =IF(INTRO!$E$42="Endémique", IF(AND($J51>1,$J51<5), IF($J51=4, "Inconnu", E51+F51), 0),"Non requis") -> 0 | O51: =IF(INTRO!$E$44="Endémique", IF(AND($K51>0,$K51<5), IF($K51=4,"Inconnu", IF($K51=1, $F51*0.33, IF($K51=2, $F51*0.5+$G51*0.2, SUM(F51:G51)))), 0),"Non requis") -> 23788.05 | P51: 0 | Q51: 1 | R51: 2 | S51: 1 | T51: MDA3 (IVM) | U51: T1 (PZQ+ALB/MBD) | X51: 6415 | Y51: Gihofi | AB51: 15.43333333 | AC51: 6 | AD51: 1 | AE51: 2014 | AI51: ='MDA3'!Q51 -> 230835 | AJ51: ='T1'!M51 -> 88786 | AK51: =T3_R1!L51 -> 92285 | AL51: =T3_R2!L51 -> 0
A52: =IF(INTRO!$E$34<>0,INTRO!$E$34,"") -> BURUNDI | B52: Rutana | C52: Rutana | D52: 216722.8334 | E52: =IF(INTRO!$E$48="","",ROUND($D52*INTRO!$E$48,0)) -> 30775 | F52: =IF(INTRO!$E$49="","",ROUND($D52*INTRO!$E$49,0)) -> 57865 | G52: =IF(INTRO!$E$50="","",ROUND($D52*INTRO!$E$50,0)) -> 120064 | H52: 0 | I52: 1 | J52: 2 | K52: 1 | L52: =IF([1]INTRO!$E$38="Endémique", IF($H52>0, IF($H52=4,"Inconnu", IF($H52=99,"Interrompu", $D52)), 0),"Non requis") -> Non requis | M52: 22586 | N52: =IF(INTRO!$E$42="Endémique", IF(AND($J52>1,$J52<5), IF($J52=4, "Inconnu", E52+F52), 0),"Non requis") -> 88640 | O52: =IF(INTRO!$E$44="Endémique", IF(AND($K52>0,$K52<5), IF($K52=4,"Inconnu", IF($K52=1, $F52*0.33, IF($K52=2, $F52*0.5+$G52*0.2, SUM(F52:G52)))), 0),"Non requis") -> 19095.45 | P52: 0 | Q52: 1 | R52: 2 | S52: 1 | T52: MDA3 (IVM) | U52: T1 (PZQ+ALB/MBD) | X52: 6416 | Y52: Rutana | AB52: 32.28 | AC52: 5 | AD52: 2 | AE52: 2014 | AI52: ='MDA3'!Q52 -> 18447 | AJ52: ='T1'!M52 -> 62798 | AK52: =T3_R1!L52 -> 76589 | AL52: =T3_R2!L52 -> 0
A53: =IF(INTRO!$E$34<>0,INTRO!$E$34,"") -> BURUNDI | B53: Ruyigi | C53: Butezi | D53: 145874.7818 | E53: =IF(INTRO!$E$48="","",ROUND($D53*INTRO!$E$48,0)) -> 20714 | F53: =IF(INTRO!$E$49="","",ROUND($D53*INTRO!$E$49,0)) -> 38949 | G53: =IF(INTRO!$E$50="","",ROUND($D53*INTRO!$E$50,0)) -> 80815 | H53: 0 | I53: 0 | J53: 2 | K53: 1 | L53: =IF([1]INTRO!$E$38="Endémique", IF($H53>0, IF($H53=4,"Inconnu", IF($H53=99,"Interrompu", $D53)), 0),"Non requis") -> Non requis | N53: =IF(INTRO!$E$42="Endémique", IF(AND($J53>1,$J53<5), IF($J53=4, "Inconnu", E53+F53), 0),"Non requis") -> 59663 | O53: =IF(INTRO!$E$44="Endémique", IF(AND($K53>0,$K53<5), IF($K53=4,"Inconnu", IF($K53=1, $F53*0.33, IF($K53=2, $F53*0.5+$G53*0.2, SUM(F53:G53)))), 0),"Non requis") -> 12853.17 | P53: 0 | Q53: 0 | R53: 2 | S53: 1 | U53: T1 (PZQ+ALB/MBD) | X53: 6417 | Y53: Butezi | AB53: 44.72 | AC53: 5 | AD53: 2 | AE53: 2014 | AI53: ='MDA3'!Q53 -> 0 | AJ53: ='T1'!M53 -> 37390 | AK53: =T3_R1!L53 -> 61385 | AL53: =T3_R2!L53 -> 0
A54: =IF(INTRO!$E$34<>0,INTRO!$E$34,"") -> BURUNDI | B54: Ruyigi | C54: Kinyinya | D54: 312630.4168 | E54: =IF(INTRO!$E$48="","",ROUND($D54*INTRO!$E$48,0)) -> 44394 | F54: =IF(INTRO!$E$49="","",ROUND($D54*INTRO!$E$49,0)) -> 83472 | G54: =IF(INTRO!$E$50="","",ROUND($D54*INTRO!$E$50,0)) -> 173197 | H54: 0 | I54: 0 | J54: 1 | K54: 1 | L54: =IF([1]INTRO!$E$38="Endémique", IF($H54>0, IF($H54=4,"Inconnu", IF($H54=99,"Interrompu", $D54)), 0),"Non requis") -> Non requis | N54: =IF(INTRO!$E$42="Endémique", IF(AND($J54>1,$J54<5), IF($J54=4, "Inconnu", E54+F54), 0),"Non requis") -> 0 | O54: =IF(INTRO!$E$44="Endémique", IF(AND($K54>0,$K54<5), IF($K54=4,"Inconnu", IF($K54=1, $F54*0.33, IF($K54=2, $F54*0.5+$G54*0.2, SUM(F54:G54)))), 0),"Non requis") -> 27545.76 | P54: 0 | Q54: 0 | R54: 2 | S54: 1 | U54: T1 (PZQ+ALB/MBD) | X54: 6418 | Y54: Kinyinya | AB54: 8.35 | AC54: 6 | AD54: 1 | AE54: 2014 | AI54: ='MDA3'!Q54 -> 0 | AJ54: ='T1'!M54 -> 74191 | AK54: =T3_R1!L54 -> 96225 | AL54: =T3_R2!L54 -> 0
A55: =IF(INTRO!$E$34<>0,INTRO!$E$34,"") -> BURUNDI | B55: Ruyigi | C55: Ruyigi | D55: 149474.5088 | E55: =IF(INTRO!$E$48="","",ROUND($D55*INTRO!$E$48,0)) -> 21225 | F55: =IF(INTRO!$E$49="","",ROUND($D55*INTRO!$E$49,0)) -> 39910 | G55: =IF(INTRO!$E$50="","",ROUND($D55*INTRO!$E$50,0)) -> 82809 | H55: 0 | I55: 0 | J55: 1 | K55: 0 | L55: =IF([1]INTRO!$E$38="Endémique", IF($H55>0, IF($H55=4,"Inconnu", IF($H55=99,"Interrompu", $D55)), 0),"Non requis") -> Non requis | N55: =IF(INTRO!$E$42="Endémique", IF(AND($J55>1,$J55<5), IF($J55=4, "Inconnu", E55+F55), 0),"Non requis") -> 0 | O55: =IF(INTRO!$E$44="Endémique", IF(AND($K55>0,$K55<5), IF($K55=4,"Inconnu", IF($K55=1, $F55*0.33, IF($K55=2, $F55*0.5+$G55*0.2, SUM(F55:G55)))), 0),"Non requis") -> 0 | P55: 0 | Q55: 0 | R55: 2 | S55: 0 | X55: 6419 | Y55: Ruyigi | AI55: ='MDA3'!Q55 -> 0 | AJ55: ='T1'!M55 -> 0 | AK55: =T3_R1!L55 -> 49746 | AL55: =T3_R2!L55 -> 42051

Sheet MDA1 (hidden)
A1: MDA 1 - Ivermectine (IVM) et Albendazole (ALB)
A2: Structure administrative, population nécessitant une chimioprévention par groupe d'âge, population traitée par groupe d'âge et couverture
A4: TOTAL | G4: =SUM(G$9:G$1000) -> 0 | H4: =SUM(H$9:H$1000) -> 0 | I4: =SUM(I$9:I$1000) -> 0 | K4: =SUM(K$9:K$1000) -> 0 | L4: =SUM(L$9:L$1000) -> 0 | M4: =SUM(M$9:M$1000) -> 0 | O4: =IF(G4<>0, IF(K4/G4*100=0, "-", K4/G4*100), " ") ->  | P4: =IF(H4<>0, IF(L4/H4*100=0, "-", L4/H4*100), " ") ->  | Q4: =IF(I4<>0, IF(M4/I4*100=0, "-", M4/I4*100), " ") -> 
A6: Structure administrative du pays | D6: Mise en oeuvre de la CP | E6: Date | F6: Population ciblée pour MDA 1 | J6: Population traitée | N6: Couverture du Programme (%)
A7: Pays | B7: Région/Département | C7: District | F7: EAPréS | G7: EAS | H7: Adultes | I7: Total | J7: EAPréS | K7: EAS | L7: Adultes | M7: Total | N7: EAPréS | O7: EAS | P7: Adultes | Q7: Total
A9: =IF(COUNTRY_INFO!A9=0," ",COUNTRY_INFO!A9) -> BURUNDI | B9: =IF(COUNTRY_INFO!B9=0," ",COUNTRY_INFO!B9) -> Bubanza | C9: =IF(COUNTRY_INFO!C9=0," ",COUNTRY_INFO!C9) -> Bubanza | D9: =IF(COUNTRY_INFO!$T$9:$T$1000="MDA1 (IVM+ALB)", COUNTRY_INFO!$T$9:$T$1000, " ") ->  | I9: =SUM(F9:H9) -> 0 | M9: =SUM(J9:L9) -> 0 | O9: =IF(G9<>0, IF(K9/G9*100=0, "-", K9/G9*100), " ") ->  | P9: =IF(H9<>0, IF(L9/H9*100=0, "-", L9/H9*100), " ") -> 
A10: =IF(COUNTRY_INFO!A10=0," ",COUNTRY_INFO!A10) -> BURUNDI | B10: =IF(COUNTRY_INFO!B10=0," ",COUNTRY_INFO!B10) -> Bubanza | C10: =IF(COUNTRY_INFO!C10=0," ",COUNTRY_INFO!C10) -> Mpanda | D10: =IF(COUNTRY_INFO!$T$9:$T$1000="MDA1 (IVM+ALB)", COUNTRY_INFO!$T$9:$T$1000, " ") ->  | I10: =SUM(F10:H10) -> 0 | M10: =SUM(J10:L10) -> 0 | O10: =IF(G10<>0, IF(K10/G10*100=0, "-", K10/G10*100), " ") ->  | P10: =IF(H10<>0, IF(L10/H10*100=0, "-", L10/H10*100), " ") ->  | Q10: =IF(I10<>0, IF(M10/I10*100=0, "-", M10/I10*100), " ") -> 
A11: =IF(COUNTRY_INFO!A11=0," ",COUNTRY_INFO!A11) -> BURUNDI | B11: =IF(COUNTRY_INFO!B11=0," ",COUNTRY_INFO!B11) -> Bujumbura Mairie | C11: =IF(COUNTRY_INFO!C11=0," ",COUNTRY_INFO!C11) -> Zone Centre | D11: =IF(COUNTRY_INFO!$T$9:$T$1000="MDA1 (IVM+ALB)", COUNTRY_INFO!$T$9:$T$1000, " ") ->  | I11: 0 | M11: 0
A12: =IF(COUNTRY_INFO!A12=0," ",COUNTRY_INFO!A12) -> BURUNDI | B12: =IF(COUNTRY_INFO!B12=0," ",COUNTRY_INFO!B12) -> Bujumbura Mairie | C12: =IF(COUNTRY_INFO!C12=0," ",COUNTRY_INFO!C12) -> Zone Nord | D12: =IF(COUNTRY_INFO!$T$9:$T$1000="MDA1 (IVM+ALB)", COUNTRY_INFO!$T$9:$T$1000, " ") ->  | I12: 0 | M12: 0
A13: =IF(COUNTRY_INFO!A13=0," ",COUNTRY_INFO!A13) -> BURUNDI | B13: =IF(COUNTRY_INFO!B13=0," ",COUNTRY_INFO!B13) -> Bujumbura Mairie | C13: =IF(COUNTRY_INFO!C13=0," ",COUNTRY_INFO!C13) -> Zone Sud | D13: =IF(COUNTRY_INFO!$T$9:$T$1000="MDA1 (IVM+ALB)", COUNTRY_INFO!$T$9:$T$1000, " ") ->  | I13: 0 | M13: 0
A14: =IF(COUNTRY_INFO!A14=0," ",COUNTRY_INFO!A14) -> BURUNDI | B14: =IF(COUNTRY_INFO!B14=0," ",COUNTRY_INFO!B14) -> Bujumbura Rural | C14: =IF(COUNTRY_INFO!C14=0," ",COUNTRY_INFO!C14) -> Isare | D14: =IF(COUNTRY_INFO!$T$9:$T$1000="MDA1 (IVM+ALB)", COUNTRY_INFO!$T$9:$T$1000, " ") ->  | I14: 0 | M14: 0
A15: =IF(COUNTRY_INFO!A15=0," ",COUNTRY_INFO!A15) -> BURUNDI | B15: =IF(COUNTRY_INFO!B15=0," ",COUNTRY_INFO!B15) -> Bujumbura Rural | C15: =IF(COUNTRY_INFO!C15=0," ",COUNTRY_INFO!C15) -> Kabezi | D15: =IF(COUNTRY_INFO!$T$9:$T$1000="MDA1 (IVM+ALB)", COUNTRY_INFO!$T$9:$T$1000, " ") ->  | I15: 0 | M15: 0
A16: =IF(COUNTRY_INFO!A16=0," ",COUNTRY_INFO!A16) -> BURUNDI | B16: =IF(COUNTRY_INFO!B16=0," ",COUNTRY_INFO!B16) -> Bujumbura Rural | C16: =IF(COUNTRY_INFO!C16=0," ",COUNTRY_INFO!C16) -> Rwibaga | D16: =IF(COUNTRY_INFO!$T$9:$T$1000="MDA1 (IVM+ALB)", COUNTRY_INFO!$T$9:$T$1000, " ") ->  | I16: 0 | M16: 0
A17: =IF(COUNTRY_INFO!A17=0," ",COUNTRY_INFO!A17) -> BURUNDI | B17: =IF(COUNTRY_INFO!B17=0," ",COUNTRY_INFO!B17) -> Bururi | C17: =IF(COUNTRY_INFO!C17=0," ",COUNTRY_INFO!C17) -> Bururi | D17: =IF(COUNTRY_INFO!$T$9:$T$1000="MDA1 (IVM+ALB)", COUNTRY_INFO!$T$9:$T$1000, " ") ->  | I17: 0 | M17: 0
A18: =IF(COUNTRY_INFO!A18=0," ",COUNTRY_INFO!A18) -> BURUNDI | B18: =IF(COUNTRY_INFO!B18=0," ",COUNTRY_INFO!B18) -> Bururi | C18: =IF(COUNTRY_INFO!C18=0," ",COUNTRY_INFO!C18) -> Matana | D18: =IF(COUNTRY_INFO!$T$9:$T$1000="MDA1 (IVM+ALB)", COUNTRY_INFO!$T$9:$T$1000, " ") ->  | I18: 0 | M18: 0
A19: =IF(COUNTRY_INFO!A19=0," ",COUNTRY_INFO!A19) -> BURUNDI | B19: =IF(COUNTRY_INFO!B19=0," ",COUNTRY_INFO!B19) -> Cankuzo | C19: =IF(COUNTRY_INFO!C19=0," ",COUNTRY_INFO!C19) -> Cankuzo | D19: =IF(COUNTRY_INFO!$T$9:$T$1000="MDA1 (IVM+ALB)", COUNTRY_INFO!$T$9:$T$1000, " ") ->  | I19: 0 | M19: 0
A20: =IF(COUNTRY_INFO!A20=0," ",COUNTRY_INFO!A20) -> BURUNDI | B20: =IF(COUNTRY_INFO!B20=0," ",COUNTRY_INFO!B20) -> Cankuzo | C20: =IF(COUNTRY_INFO!C20=0," ",COUNTRY_INFO!C20) -> Murore | D20: =IF(COUNTRY_INFO!$T$9:$T$1000="MDA1 (IVM+ALB)", COUNTRY_INFO!$T$9:$T$1000, " ") ->  | I20: 0 | M20: 0
A21: =IF(COUNTRY_INFO!A21=0," ",COUNTRY_INFO!A21) -> BURUNDI | B21: =IF(COUNTRY_INFO!B21=0," ",COUNTRY_INFO!B21) -> Cibitoke | C21: =IF(COUNTRY_INFO!C21=0," ",COUNTRY_INFO!C21) -> Bukinanyana | D21: =IF(COUNTRY_INFO!$T$9:$T$1000="MDA1 (IVM+ALB)", COUNTRY_INFO!$T$9:$T$1000, " ") ->  | I21: 0 | M21: 0
A22: =IF(COUNTRY_INFO!A22=0," ",COUNTRY_INFO!A22) -> BURUNDI | B22: =IF(COUNTRY_INFO!B22=0," ",COUNTRY_INFO!B22) -> Cibitoke | C22: =IF(COUNTRY_INFO!C22=0," ",COUNTRY_INFO!C22) -> Cibitoke | D22: =IF(COUNTRY_INFO!$T$9:$T$1000="MDA1 (IVM+ALB)", COUNTRY_INFO!$T$9:$T$1000, " ") ->  | I22: 0 | M22: 0
A23: =IF(COUNTRY_INFO!A23=0," ",COUNTRY_INFO!A23) -> BURUNDI | B23: =IF(COUNTRY_INFO!B23=0," ",COUNTRY_INFO!B23) -> Cibitoke | C23: =IF(COUNTRY_INFO!C23=0," ",COUNTRY_INFO!C23) -> Mabayi | D23: =IF(COUNTRY_INFO!$T$9:$T$1000="MDA1 (IVM+ALB)", COUNTRY_INFO!$T$9:$T$1000, " ") ->  | I23: 0 | M23: 0
A24: =IF(COUNTRY_INFO!A24=0," ",COUNTRY_INFO!A24) -> BURUNDI | B24: =IF(COUNTRY_INFO!B24=0," ",COUNTRY_INFO!B24) -> Gitega | C24: =IF(COUNTRY_INFO!C24=0," ",COUNTRY_INFO!C24) -> Gitega | D24: =IF(COUNTRY_INFO!$T$9:$T$1000="MDA1 (IVM+ALB)", COUNTRY_INFO!$T$9:$T$1000, " ") ->  | I24: 0 | M24: 0
A25: =IF(COUNTRY_INFO!A25=0," ",COUNTRY_INFO!A25) -> BURUNDI | B25: =IF(COUNTRY_INFO!B25=0," ",COUNTRY_INFO!B25) -> Gitega | C25: =IF(COUNTRY_INFO!C25=0," ",COUNTRY_INFO!C25) -> Kibuye | D25: =IF(COUNTRY_INFO!$T$9:$T$1000="MDA1 (IVM+ALB)", COUNTRY_INFO!$T$9:$T$1000, " ") ->  | I25: 0 | M25: 0
A26: =IF(COUNTRY_INFO!A26=0," ",COUNTRY_INFO!A26) -> BURUNDI | B26: =IF(COUNTRY_INFO!B26=0," ",COUNTRY_INFO!B26) -> Gitega | C26: =IF(COUNTRY_INFO!C26=0," ",COUNTRY_INFO!C26) -> Mutaho | D26: =IF(COUNTRY_INFO!$T$9:$T$1000="MDA1 (IVM+ALB)", COUNTRY_INFO!$T$9:$T$1000, " ") ->  | I26: 0 | M26: 0
A27: =IF(COUNTRY_INFO!A27=0," ",COUNTRY_INFO!A27) -> BURUNDI | B27: =IF(COUNTRY_INFO!B27=0," ",COUNTRY_INFO!B27) -> Gitega | C27: =IF(COUNTRY_INFO!C27=0," ",COUNTRY_INFO!C27) -> Ryansoro | D27: =IF(COUNTRY_INFO!$T$9:$T$1000="MDA1 (IVM+ALB)", COUNTRY_INFO!$T$9:$T$1000, " ") ->  | I27: 0 | M27: 0
A28: =IF(COUNTRY_INFO!A28=0," ",COUNTRY_INFO!A28) -> BURUNDI | B28: =IF(COUNTRY_INFO!B28=0," ",COUNTRY_INFO!B28) -> Karusi | C28: =IF(COUNTRY_INFO!C28=0," ",COUNTRY_INFO!C28) -> Buhiga | D28: =IF(COUNTRY_INFO!$T$9:$T$1000="MDA1 (IVM+ALB)", COUNTRY_INFO!$T$9:$T$1000, " ") ->  | I28: 0 | M28: 0
A29: =IF(COUNTRY_INFO!A29=0," ",COUNTRY_INFO!A29) -> BURUNDI | B29: =IF(COUNTRY_INFO!B29=0," ",COUNTRY_INFO!B29) -> Karusi | C29: =IF(COUNTRY_INFO!C29=0," ",COUNTRY_INFO!C29) -> Nyabikere | D29: =IF(COUNTRY_INFO!$T$9:$T$1000="MDA1 (IVM+ALB)", COUNTRY_INFO!$T$9:$T$1000, " ") ->  | I29: 0 | M29: 0
A30: =IF(COUNTRY_INFO!A30=0," ",COUNTRY_INFO!A30) -> BURUNDI | B30: =IF(COUNTRY_INFO!B30=0," ",COUNTRY_INFO!B30) -> Kayanza | C30: =IF(COUNTRY_INFO!C30=0," ",COUNTRY_INFO!C30) -> Gahombo | D30: =IF(COUNTRY_INFO!$T$9:$T$1000="MDA1 (IVM+ALB)", COUNTRY_INFO!$T$9:$T$1000, " ") ->  | I30: 0 | M30: 0
A31: =IF(COUNTRY_INFO!A31=0," ",COUNTRY_INFO!A31) -> BURUNDI | B31: =IF(COUNTRY_INFO!B31=0," ",COUNTRY_INFO!B31) -> Kayanza | C31: =IF(COUNTRY_INFO!C31=0," ",COUNTRY_INFO!C31) -> Kayanza | D31: =IF(COUNTRY_INFO!$T$9:$T$1000="MDA1 (IVM+ALB)", COUNTRY_INFO!$T$9:$T$1000, " ") ->  | I31: 0 | M31: 0
A32: =IF(COUNTRY_INFO!A32=0," ",COUNTRY_INFO!A32) -> BURUNDI | B32: =IF(COUNTRY_INFO!B32=0," ",COUNTRY_INFO!B32) -> Kayanza | C32: =IF(COUNTRY_INFO!C32=0," ",COUNTRY_INFO!C32) -> Musema | D32: =IF(COUNTRY_INFO!$T$9:$T$1000="MDA1 (IVM+ALB)", COUNTRY_INFO!$T$9:$T$1000, " ") ->  | I32: 0 | M32: 0
A33: =IF(COUNTRY_INFO!A33=0," ",COUNTRY_INFO!A33) -> BURUNDI | B33: =IF(COUNTRY_INFO!B33=0," ",COUNTRY_INFO!B33) -> Kirundo | C33: =IF(COUNTRY_INFO!C33=0," ",COUNTRY_INFO!C33) -> Busoni | D33: =IF(COUNTRY_INFO!$T$9:$T$1000="MDA1 (IVM+ALB)", COUNTRY_INFO!$T$9:$T$1000, " ") ->  | I33: 0 | M33: 0
A34: =IF(COUNTRY_INFO!A34=0," ",COUNTRY_INFO!A34) -> BURUNDI | B34: =IF(COUNTRY_INFO!B34=0," ",COUNTRY_INFO!B34) -> Kirundo | C34: =IF(COUNTRY_INFO!C34=0," ",COUNTRY_INFO!C34) -> Kirundo | D34: =IF(COUNTRY_INFO!$T$9:$T$1000="MDA1 (IVM+ALB)", COUNTRY_INFO!$T$9:$T$1000, " ") ->  | I34: 0 | M34: 0
A35: =IF(COUNTRY_INFO!A35=0," ",COUNTRY_INFO!A35) -> BURUNDI | B35: =IF(COUNTRY_INFO!B35=0," ",COUNTRY_INFO!B35) -> Kirundo | C35: =IF(COUNTRY_INFO!C35=0," ",COUNTRY_INFO!C35) -> Mukenke | D35: =IF(COUNTRY_INFO!$T$9:$T$1000="MDA1 (IVM+ALB)", COUNTRY_INFO!$T$9:$T$1000, " ") ->  | I35: 0 | M35: 0
A36: =IF(COUNTRY_INFO!A36=0," ",COUNTRY_INFO!A36) -> BURUNDI | B36: =IF(COUNTRY_INFO!B36=0," ",COUNTRY_INFO!B36) -> Kirundo | C36: =IF(COUNTRY_INFO!C36=0," ",COUNTRY_INFO!C36) -> Vumbi | D36: =IF(COUNTRY_INFO!$T$9:$T$1000="MDA1 (IVM+ALB)", COUNTRY_INFO!$T$9:$T$1000, " ") ->  | I36: 0 | M36: 0
A37: =IF(COUNTRY_INFO!A37=0," ",COUNTRY_INFO!A37) -> BURUNDI | B37: =IF(COUNTRY_INFO!B37=0," ",COUNTRY_INFO!B37) -> Makamba | C37: =IF(COUNTRY_INFO!C37=0," ",COUNTRY_INFO!C37) -> Makamba | D37: =IF(COUNTRY_INFO!$T$9:$T$1000="MDA1 (IVM+ALB)", COUNTRY_INFO!$T$9:$T$1000, " ") ->  | I37: 0 | M37: 0
A38: =IF(COUNTRY_INFO!A38=0," ",COUNTRY_INFO!A38) -> BURUNDI | B38: =IF(COUNTRY_INFO!B38=0," ",COUNTRY_INFO!B38) -> Makamba | C38: =IF(COUNTRY_INFO!C38=0," ",COUNTRY_INFO!C38) -> Nyanza-Lac | D38: =IF(COUNTRY_INFO!$T$9:$T$1000="MDA1 (IVM+ALB)", COUNTRY_INFO!$T$9:$T$1000, " ") ->  | I38: 0 | M38: 0
A39: =IF(COUNTRY_INFO!A39=0," ",COUNTRY_INFO!A39) -> BURUNDI | B39: =IF(COUNTRY_INFO!B39=0," ",COUNTRY_INFO!B39) -> Muramvya | C39: =IF(COUNTRY_INFO!C39=0," ",COUNTRY_INFO!C39) -> Kiganda | D39: =IF(COUNTRY_INFO!$T$9:$T$1000="MDA1 (IVM+ALB)", COUNTRY_INFO!$T$9:$T$1000, " ") ->  | I39: 0 | M39: 0
A40: =IF(COUNTRY_INFO!A40=0," ",COUNTRY_INFO!A40) -> BURUNDI | B40: =IF(COUNTRY_INFO!B40=0," ",COUNTRY_INFO!B40) -> Muramvya | C40: =IF(COUNTRY_INFO!C40=0," ",COUNTRY_INFO!C40) -> Muramvya | D40: =IF(COUNTRY_INFO!$T$9:$T$1000="MDA1 (IVM+ALB)", COUNTRY_INFO!$T$9:$T$1000, " ") ->  | I40: 0 | M40: 0
A41: =IF(COUNTRY_INFO!A41=0," ",COUNTRY_INFO!A41) -> BURUNDI | B41: =IF(COUNTRY_INFO!B41=0," ",COUNTRY_INFO!B41) -> Muyinga | C41: =IF(COUNTRY_INFO!C41=0," ",COUNTRY_INFO!C41) -> Gashoho | D41: =IF(COUNTRY_INFO!$T$9:$T$1000="MDA1 (IVM+ALB)", COUNTRY_INFO!$T$9:$T$1000, " ") ->  | I41: 0 | M41: 0
A42: =IF(COUNTRY_INFO!A42=0," ",COUNTRY_INFO!A42) -> BURUNDI | B42: =IF(COUNTRY_INFO!B42=0," ",COUNTRY_INFO!B42) -> Muyinga | C42: =IF(COUNTRY_INFO!C42=0," ",COUNTRY_INFO!C42) -> Giteranyi | D42: =IF(COUNTRY_INFO!$T$9:$T$1000="MDA1 (IVM+ALB)", COUNTRY_INFO!$T$9:$T$1000, " ") ->  | I42: 0 | M42: 0
A43: =IF(COUNTRY_INFO!A43=0," ",COUNTRY_INFO!A43) -> BURUNDI | B43: =IF(COUNTRY_INFO!B43=0," ",COUNTRY_INFO!B43) -> Muyinga | C43: =IF(COUNTRY_INFO!C43=0," ",COUNTRY_INFO!C43) -> Muyinga | D43: =IF(COUNTRY_INFO!$T$9:$T$1000="MDA1 (IVM+ALB)", COUNTRY_INFO!$T$9:$T$1000, " ") ->  | I43: 0 | M43: 0
A44: =IF(COUNTRY_INFO!A44=0," ",COUNTRY_INFO!A44) -> BURUNDI | B44: =IF(COUNTRY_INFO!B44=0," ",COUNTRY_INFO!B44) -> Mwaro | C44: =IF(COUNTRY_INFO!C44=0," ",COUNTRY_INFO!C44) -> Fota | D44: =IF(COUNTRY_INFO!$T$9:$T$1000="MDA1 (IVM+ALB)", COUNTRY_INFO!$T$9:$T$1000, " ") ->  | I44: 0 | M44: 0
A45: =IF(COUNTRY_INFO!A45=0," ",COUNTRY_INFO!A45) -> BURUNDI | B45: =IF(COUNTRY_INFO!B45=0," ",COUNTRY_INFO!B45) -> Mwaro | C45: =IF(COUNTRY_INFO!C45=0," ",COUNTRY_INFO!C45) -> Kibumbu | D45: =IF(COUNTRY_INFO!$T$9:$T$1000="MDA1 (IVM+ALB)", COUNTRY_INFO!$T$9:$T$1000, " ") ->  | I45: 0 | M45: 0
A46: =IF(COUNTRY_INFO!A46=0," ",COUNTRY_INFO!A46) -> BURUNDI | B46: =IF(COUNTRY_INFO!B46=0," ",COUNTRY_INFO!B46) -> Ngozi | C46: =IF(COUNTRY_INFO!C46=0," ",COUNTRY_INFO!C46) -> Buye | D46: =IF(COUNTRY_INFO!$T$9:$T$1000="MDA1 (IVM+ALB)", COUNTRY_INFO!$T$9:$T$1000, " ") ->  | I46: 0 | M46: 0
A47: =IF(COUNTRY_INFO!A47=0," ",COUNTRY_INFO!A47) -> BURUNDI | B47: =IF(COUNTRY_INFO!B47=0," ",COUNTRY_INFO!B47) -> Ngozi | C47: =IF(COUNTRY_INFO!C47=0," ",COUNTRY_INFO!C47) -> Kiremba | D47: =IF(COUNTRY_INFO!$T$9:$T$1000="MDA1 (IVM+ALB)", COUNTRY_INFO!$T$9:$T$1000, " ") ->  | I47: 0 | M47: 0
A48: =IF(COUNTRY_INFO!A48=0," ",COUNTRY_INFO!A48) -> BURUNDI | B48: =IF(COUNTRY_INFO!B48=0," ",COUNTRY_INFO!B48) -> Ngozi | C48: =IF(COUNTRY_INFO!C48=0," ",COUNTRY_INFO!C48) -> Ngozi | D48: =IF(COUNTRY_INFO!$T$9:$T$1000="MDA1 (IVM+ALB)", COUNTRY_INFO!$T$9:$T$1000, " ") ->  | I48: 0 | M48: 0
A49: =IF(COUNTRY_INFO!A49=0," ",COUNTRY_INFO!A49) -> BURUNDI | B49: =IF(COUNTRY_INFO!B49=0," ",COUNTRY_INFO!B49) -> Rumonge | C49: =IF(COUNTRY_INFO!C49=0," ",COUNTRY_INFO!C49) -> Bugarama | D49: =IF(COUNTRY_INFO!$T$9:$T$1000="MDA1 (IVM+ALB)", COUNTRY_INFO!$T$9:$T$1000, " ") ->  | I49: 0 | M49: 0
A50: =IF(COUNTRY_INFO!A50=0," ",COUNTRY_INFO!A50) -> BURUNDI | B50: =IF(COUNTRY_INFO!B50=0," ",COUNTRY_INFO!B50) -> Rumonge | C50: =IF(COUNTRY_INFO!C50=0," ",COUNTRY_INFO!C50) -> Rumonge | D50: =IF(COUNTRY_INFO!$T$9:$T$1000="MDA1 (IVM+ALB)", COUNTRY_INFO!$T$9:$T$1000, " ") ->  | I50: 0 | M50: 0
A51: =IF(COUNTRY_INFO!A51=0," ",COUNTRY_INFO!A51) -> BURUNDI | B51: =IF(COUNTRY_INFO!B51=0," ",COUNTRY_INFO!B51) -> Rutana | C51: =IF(COUNTRY_INFO!C51=0," ",COUNTRY_INFO!C51) -> Gihofi | D51: =IF(COUNTRY_INFO!$T$9:$T$1000="MDA1 (IVM+ALB)", COUNTRY_INFO!$T$9:$T$1000, " ") ->  | I51: 0 | M51: 0
A52: =IF(COUNTRY_INFO!A52=0," ",COUNTRY_INFO!A52) -> BURUNDI | B52: =IF(COUNTRY_INFO!B52=0," ",COUNTRY_INFO!B52) -> Rutana | C52: =IF(COUNTRY_INFO!C52=0," ",COUNTRY_INFO!C52) -> Rutana | D52: =IF(COUNTRY_INFO!$T$9:$T$1000="MDA1 (IVM+ALB)", COUNTRY_INFO!$T$9:$T$1000, " ") ->  | I52: 0 | M52: 0
A53: =IF(COUNTRY_INFO!A53=0," ",COUNTRY_INFO!A53) -> BURUNDI | B53: =IF(COUNTRY_INFO!B53=0," ",COUNTRY_INFO!B53) -> Ruyigi | C53: =IF(COUNTRY_INFO!C53=0," ",COUNTRY_INFO!C53) -> Butezi | D53: =IF(COUNTRY_INFO!$T$9:$T$1000="MDA1 (IVM+ALB)", COUNTRY_INFO!$T$9:$T$1000, " ") ->  | I53: 0 | M53: 0
A54: =IF(COUNTRY_INFO!A54=0," ",COUNTRY_INFO!A54) -> BURUNDI | B54: =IF(COUNTRY_INFO!B54=0," ",COUNTRY_INFO!B54) -> Ruyigi | C54: =IF(COUNTRY_INFO!C54=0," ",COUNTRY_INFO!C54) -> Kinyinya | D54: =IF(COUNTRY_INFO!$T$9:$T$1000="MDA1 (IVM+ALB)", COUNTRY_INFO!$T$9:$T$1000, " ") ->  | I54: 0 | M54: 0
A55: =IF(COUNTRY_INFO!A55=0," ",COUNTRY_INFO!A55) -> BURUNDI | B55: =IF(COUNTRY_INFO!B55=0," ",COUNTRY_INFO!B55) -> Ruyigi | C55: =IF(COUNTRY_INFO!C55=0," ",COUNTRY_INFO!C55) -> Ruyigi | D55: =IF(COUNTRY_INFO!$T$9:$T$1000="MDA1 (IVM+ALB)", COUNTRY_INFO!$T$9:$T$1000, " ") ->  | I55: 0 | M55: 0

Sheet MDA2 (hidden)
A1: MDA 2 - Diethylcarbamazine (DEC) + Albendazole (ALB)
A2: Structure administrative, population nécessitant une chimioprévention par groupe d'âge, population traitée par groupe d'âge et couverture
A4: TOTAL | F4: =SUM(F$9:F$1000) -> 0 | G4: =SUM(G$9:G$1000) -> 0 | H4: 0 | I4: 0 | J4: 0 | K4: 0 | L4: 0 | M4: 0 | N4: =IF(F4<>0, IF(J4/F4*100=0, "-", J4/F4*100), " ") ->  | O4: =IF(G4<>0, IF(K4/G4*100=0, "-", K4/G4*100), " ") ->  | P4: =IF(H4<>0, IF(L4/H4*100=0, "-", L4/H4*100), " ") ->  | Q4: =IF(I4<>0, IF(M4/I4*100=0, "-", M4/I4*100), " ") -> 
A6: Structure administrative du pays | D6: Mise en oeuvre de la CP | E6: Date | F6: Population ciblée pour MDA 2 | J6: Population traitée | N6: Couverture du Programme (%)
A7: Pays | B7: Région/Département | C7: District | F7: EAPréS | G7: EAS | H7: Adultes | I7: Total | J7: EAPréS | K7: EAS | L7: Adultes | M7: Total | N7: EAPréS | O7: EAS | P7: Adultes | Q7: Total
A9: =IF(COUNTRY_INFO!A9=0," ",COUNTRY_INFO!A9) -> BURUNDI | B9: =IF(COUNTRY_INFO!B9=0," ",COUNTRY_INFO!B9) -> Bubanza | C9: =IF(COUNTRY_INFO!C9=0," ",COUNTRY_INFO!C9) -> Bubanza | D9: =IF(COUNTRY_INFO!$T$9:$T$1000="MDA2 (DEC+ALB)", COUNTRY_INFO!$T$9:$T$1000, " ") ->  | I9: =SUM(F9:H9) -> 0 | M9: =SUM(J9:L9) -> 0 | N9: =IF(F9<>0, IF(J9/F9*100=0, "-", J9/F9*100), " ") -> 
A10: =IF(COUNTRY_INFO!A10=0," ",COUNTRY_INFO!A10) -> BURUNDI | B10: =IF(COUNTRY_INFO!B10=0," ",COUNTRY_INFO!B10) -> Bubanza | C10: =IF(COUNTRY_INFO!C10=0," ",COUNTRY_INFO!C10) -> Mpanda | D10: =IF(COUNTRY_INFO!$T$9:$T$1000="MDA2 (DEC+ALB)", COUNTRY_INFO!$T$9:$T$1000, " ") ->  | I10: =SUM(F10:H10) -> 0 | M10: =SUM(J10:L10) -> 0 | N10: =IF(F10<>0, IF(J10/F10*100=0, "-", J10/F10*100), " ") ->  | O10: =IF(G10<>0, IF(K10/G10*100=0, "-", K10/G10*100), " ") ->  | P10: =IF(H10<>0, IF(L10/H10*100=0, "-", L10/H10*100), " ") ->  | Q10: =IF(I10<>0, IF(M10/I10*100=0, "-", M10/I10*100), " ") -> 
A11: =IF(COUNTRY_INFO!A11=0," ",COUNTRY_INFO!A11) -> BURUNDI | B11: =IF(COUNTRY_INFO!B11=0," ",COUNTRY_INFO!B11) -> Bujumbura Mairie | C11: =IF(COUNTRY_INFO!C11=0," ",COUNTRY_INFO!C11) -> Zone Centre | D11: =IF(COUNTRY_INFO!$T$9:$T$1000="MDA2 (DEC+ALB)", COUNTRY_INFO!$T$9:$T$1000, " ") ->  | I11: 0 | M11: 0
A12: =IF(COUNTRY_INFO!A12=0," ",COUNTRY_INFO!A12) -> BURUNDI | B12: =IF(COUNTRY_INFO!B12=0," ",COUNTRY_INFO!B12) -> Bujumbura Mairie | C12: =IF(COUNTRY_INFO!C12=0," ",COUNTRY_INFO!C12) -> Zone Nord | D12: =IF(COUNTRY_INFO!$T$9:$T$1000="MDA2 (DEC+ALB)", COUNTRY_INFO!$T$9:$T$1000, " ") ->  | I12: 0 | M12: 0
A13: =IF(COUNTRY_INFO!A13=0," ",COUNTRY_INFO!A13) -> BURUNDI | B13: =IF(COUNTRY_INFO!B13=0," ",COUNTRY_INFO!B13) -> Bujumbura Mairie | C13: =IF(COUNTRY_INFO!C13=0," ",COUNTRY_INFO!C13) -> Zone Sud | D13: =IF(COUNTRY_INFO!$T$9:$T$1000="MDA2 (DEC+ALB)", COUNTRY_INFO!$T$9:$T$1000, " ") ->  | I13: 0 | M13: 0
A14: =IF(COUNTRY_INFO!A14=0," ",COUNTRY_INFO!A14) -> BURUNDI | B14: =IF(COUNTRY_INFO!B14=0," ",COUNTRY_INFO!B14) -> Bujumbura Rural | C14: =IF(COUNTRY_INFO!C14=0," ",COUNTRY_INFO!C14) -> Isare | D14: =IF(COUNTRY_INFO!$T$9:$T$1000="MDA2 (DEC+ALB)", COUNTRY_INFO!$T$9:$T$1000, " ") ->  | I14: 0 | M14: 0
A15: =IF(COUNTRY_INFO!A15=0," ",COUNTRY_INFO!A15) -> BURUNDI | B15: =IF(COUNTRY_INFO!B15=0," ",COUNTRY_INFO!B15) -> Bujumbura Rural | C15: =IF(COUNTRY_INFO!C15=0," ",COUNTRY_INFO!C15) -> Kabezi | D15: =IF(COUNTRY_INFO!$T$9:$T$1000="MDA2 (DEC+ALB)", COUNTRY_INFO!$T$9:$T$1000, " ") ->  | I15: 0 | M15: 0
A16: =IF(COUNTRY_INFO!A16=0," ",COUNTRY_INFO!A16) -> BURUNDI | B16: =IF(COUNTRY_INFO!B16=0," ",COUNTRY_INFO!B16) -> Bujumbura Rural | C16: =IF(COUNTRY_INFO!C16=0," ",COUNTRY_INFO!C16) -> Rwibaga | D16: =IF(COUNTRY_INFO!$T$9:$T$1000="MDA2 (DEC+ALB)", COUNTRY_INFO!$T$9:$T$1000, " ") ->  | I16: 0 | M16: 0
A17: =IF(COUNTRY_INFO!A17=0," ",COUNTRY_INFO!A17) -> BURUNDI | B17: =IF(COUNTRY_INFO!B17=0," ",COUNTRY_INFO!B17) -> Bururi | C17: =IF(COUNTRY_INFO!C17=0," ",COUNTRY_INFO!C17) -> Bururi | D17: =IF(COUNTRY_INFO!$T$9:$T$1000="MDA2 (DEC+ALB)", COUNTRY_INFO!$T$9:$T$1000, " ") ->  | I17: 0 | M17: 0
A18: =IF(COUNTRY_INFO!A18=0," ",COUNTRY_INFO!A18) -> BURUNDI | B18: =IF(COUNTRY_INFO!B18=0," ",COUNTRY_INFO!B18) -> Bururi | C18: =IF(COUNTRY_INFO!C18=0," ",COUNTRY_INFO!C18) -> Matana | D18: =IF(COUNTRY_INFO!$T$9:$T$1000="MDA2 (DEC+ALB)", COUNTRY_INFO!$T$9:$T$1000, " ") ->  | I18: 0 | M18: 0
A19: =IF(COUNTRY_INFO!A19=0," ",COUNTRY_INFO!A19) -> BURUNDI | B19: =IF(COUNTRY_INFO!B19=0," ",COUNTRY_INFO!B19) -> Cankuzo | C19: =IF(COUNTRY_INFO!C19=0," ",COUNTRY_INFO!C19) -> Cankuzo | D19: =IF(COUNTRY_INFO!$T$9:$T$1000="MDA2 (DEC+ALB)", COUNTRY_INFO!$T$9:$T$1000, " ") ->  | I19: 0 | M19: 0
A20: =IF(COUNTRY_INFO!A20=0," ",COUNTRY_INFO!A20) -> BURUNDI | B20: =IF(COUNTRY_INFO!B20=0," ",COUNTRY_INFO!B20) -> Cankuzo | C20: =IF(COUNTRY_INFO!C20=0," ",COUNTRY_INFO!C20) -> Murore | D20: =IF(COUNTRY_INFO!$T$9:$T$1000="MDA2 (DEC+ALB)", COUNTRY_INFO!$T$9:$T$1000, " ") ->  | I20: 0 | M20: 0
A21: =IF(COUNTRY_INFO!A21=0," ",COUNTRY_INFO!A21) -> BURUNDI | B21: =IF(COUNTRY_INFO!B21=0," ",COUNTRY_INFO!B21) -> Cibitoke | C21: =IF(COUNTRY_INFO!C21=0," ",COUNTRY_INFO!C21) -> Bukinanyana | D21: =IF(COUNTRY_INFO!$T$9:$T$1000="MDA2 (DEC+ALB)", COUNTRY_INFO!$T$9:$T$1000, " ") ->  | I21: 0 | M21: 0
A22: =IF(COUNTRY_INFO!A22=0," ",COUNTRY_INFO!A22) -> BURUNDI | B22: =IF(COUNTRY_INFO!B22=0," ",COUNTRY_INFO!B22) -> Cibitoke | C22: =IF(COUNTRY_INFO!C22=0," ",COUNTRY_INFO!C22) -> Cibitoke | D22: =IF(COUNTRY_INFO!$T$9:$T$1000="MDA2 (DEC+ALB)", COUNTRY_INFO!$T$9:$T$1000, " ") ->  | I22: 0 | M22: 0
A23: =IF(COUNTRY_INFO!A23=0," ",COUNTRY_INFO!A23) -> BURUNDI | B23: =IF(COUNTRY_INFO!B23=0," ",COUNTRY_INFO!B23) -> Cibitoke | C23: =IF(COUNTRY_INFO!C23=0," ",COUNTRY_INFO!C23) -> Mabayi | D23: =IF(COUNTRY_INFO!$T$9:$T$1000="MDA2 (DEC+ALB)", COUNTRY_INFO!$T$9:$T$1000, " ") ->  | I23: 0 | M23: 0
A24: =IF(COUNTRY_INFO!A24=0," ",COUNTRY_INFO!A24) -> BURUNDI | B24: =IF(COUNTRY_INFO!B24=0," ",COUNTRY_INFO!B24) -> Gitega | C24: =IF(COUNTRY_INFO!C24=0," ",COUNTRY_INFO!C24) -> Gitega | D24: =IF(COUNTRY_INFO!$T$9:$T$1000="MDA2 (DEC+ALB)", COUNTRY_INFO!$T$9:$T$1000, " ") ->  | I24: 0 | M24: 0
A25: =IF(COUNTRY_INFO!A25=0," ",COUNTRY_INFO!A25) -> BURUNDI | B25: =IF(COUNTRY_INFO!B25=0," ",COUNTRY_INFO!B25) -> Gitega | C25: =IF(COUNTRY_INFO!C25=0," ",COUNTRY_INFO!C25) -> Kibuye | D25: =IF(COUNTRY_INFO!$T$9:$T$1000="MDA2 (DEC+ALB)", COUNTRY_INFO!$T$9:$T$1000, " ") ->  | I25: 0 | M25: 0
A26: =IF(COUNTRY_INFO!A26=0," ",COUNTRY_INFO!A26) -> BURUNDI | B26: =IF(COUNTRY_INFO!B26=0," ",COUNTRY_INFO!B26) -> Gitega | C26: =IF(COUNTRY_INFO!C26=0," ",COUNTRY_INFO!C26) -> Mutaho | D26: =IF(COUNTRY_INFO!$T$9:$T$1000="MDA2 (DEC+ALB)", COUNTRY_INFO!$T$9:$T$1000, " ") ->  | I26: 0 | M26: 0
A27: =IF(COUNTRY_INFO!A27=0," ",COUNTRY_INFO!A27) -> BURUNDI | B27: =IF(COUNTRY_INFO!B27=0," ",COUNTRY_INFO!B27) -> Gitega | C27: =IF(COUNTRY_INFO!C27=0," ",COUNTRY_INFO!C27) -> Ryansoro | D27: =IF(COUNTRY_INFO!$T$9:$T$1000="MDA2 (DEC+ALB)", COUNTRY_INFO!$T$9:$T$1000, " ") ->  | I27: 0 | M27: 0
A28: =IF(COUNTRY_INFO!A28=0," ",COUNTRY_INFO!A28) -> BURUNDI | B28: =IF(COUNTRY_INFO!B28=0," ",COUNTRY_INFO!B28) -> Karusi | C28: =IF(COUNTRY_INFO!C28=0," ",COUNTRY_INFO!C28) -> Buhiga | D28: =IF(COUNTRY_INFO!$T$9:$T$1000="MDA2 (DEC+ALB)", COUNTRY_INFO!$T$9:$T$1000, " ") ->  | I28: 0 | M28: 0
A29: =IF(COUNTRY_INFO!A29=0," ",COUNTRY_INFO!A29) -> BURUNDI | B29: =IF(COUNTRY_INFO!B29=0," ",COUNTRY_INFO!B29) -> Karusi | C29: =IF(COUNTRY_INFO!C29=0," ",COUNTRY_INFO!C29) -> Nyabikere | D29: =IF(COUNTRY_INFO!$T$9:$T$1000="MDA2 (DEC+ALB)", COUNTRY_INFO!$T$9:$T$1000, " ") ->  | I29: 0 | M29: 0
A30: =IF(COUNTRY_INFO!A30=0," ",COUNTRY_INFO!A30) -> BURUNDI | B30: =IF(COUNTRY_INFO!B30=0," ",COUNTRY_INFO!B30) -> Kayanza | C30: =IF(COUNTRY_INFO!C30=0," ",COUNTRY_INFO!C30) -> Gahombo | D30: =IF(COUNTRY_INFO!$T$9:$T$1000="MDA2 (DEC+ALB)", COUNTRY_INFO!$T$9:$T$1000, " ") ->  | I30: 0 | M30: 0
A31: =IF(COUNTRY_INFO!A31=0," ",COUNTRY_INFO!A31) -> BURUNDI | B31: =IF(COUNTRY_INFO!B31=0," ",COUNTRY_INFO!B31) -> Kayanza | C31: =IF(COUNTRY_INFO!C31=0," ",COUNTRY_INFO!C31) -> Kayanza | D31: =IF(COUNTRY_INFO!$T$9:$T$1000="MDA2 (DEC+ALB)", COUNTRY_INFO!$T$9:$T$1000, " ") ->  | I31: 0 | M31: 0
A32: =IF(COUNTRY_INFO!A32=0," ",COUNTRY_INFO!A32) -> BURUNDI | B32: =IF(COUNTRY_INFO!B32=0," ",COUNTRY_INFO!B32) -> Kayanza | C32: =IF(COUNTRY_INFO!C32=0," ",COUNTRY_INFO!C32) -> Musema | D32: =IF(COUNTRY_INFO!$T$9:$T$1000="MDA2 (DEC+ALB)", COUNTRY_INFO!$T$9:$T$1000, " ") ->  | I32: 0 | M32: 0
A33: =IF(COUNTRY_INFO!A33=0," ",COUNTRY_INFO!A33) -> BURUNDI | B33: =IF(COUNTRY_INFO!B33=0," ",COUNTRY_INFO!B33) -> Kirundo | C33: =IF(COUNTRY_INFO!C33=0," ",COUNTRY_INFO!C33) -> Busoni | D33: =IF(COUNTRY_INFO!$T$9:$T$1000="MDA2 (DEC+ALB)", COUNTRY_INFO!$T$9:$T$1000, " ") ->  | I33: 0 | M33: 0
A34: =IF(COUNTRY_INFO!A34=0," ",COUNTRY_INFO!A34) -> BURUNDI | B34: =IF(COUNTRY_INFO!B34=0," ",COUNTRY_INFO!B34) -> Kirundo | C34: =IF(COUNTRY_INFO!C34=0," ",COUNTRY_INFO!C34) -> Kirundo | D34: =IF(COUNTRY_INFO!$T$9:$T$1000="MDA2 (DEC+ALB)", COUNTRY_INFO!$T$9:$T$1000, " ") ->  | I34: 0 | M34: 0
A35: =IF(COUNTRY_INFO!A35=0," ",COUNTRY_INFO!A35) -> BURUNDI | B35: =IF(COUNTRY_INFO!B35=0," ",COUNTRY_INFO!B35) -> Kirundo | C35: =IF(COUNTRY_INFO!C35=0," ",COUNTRY_INFO!C35) -> Mukenke | D35: =IF(COUNTRY_INFO!$T$9:$T$1000="MDA2 (DEC+ALB)", COUNTRY_INFO!$T$9:$T$1000, " ") ->  | I35: 0 | M35: 0
A36: =IF(COUNTRY_INFO!A36=0," ",COUNTRY_INFO!A36) -> BURUNDI | B36: =IF(COUNTRY_INFO!B36=0," ",COUNTRY_INFO!B36) -> Kirundo | C36: =IF(COUNTRY_INFO!C36=0," ",COUNTRY_INFO!C36) -> Vumbi | D36: =IF(COUNTRY_INFO!$T$9:$T$1000="MDA2 (DEC+ALB)", COUNTRY_INFO!$T$9:$T$1000, " ") ->  | I36: 0 | M36: 0
A37: =IF(COUNTRY_INFO!A37=0," ",COUNTRY_INFO!A37) -> BURUNDI | B37: =IF(COUNTRY_INFO!B37=0," ",COUNTRY_INFO!B37) -> Makamba | C37: =IF(COUNTRY_INFO!C37=0," ",COUNTRY_INFO!C37) -> Makamba | D37: =IF(COUNTRY_INFO!$T$9:$T$1000="MDA2 (DEC+ALB)", COUNTRY_INFO!$T$9:$T$1000, " ") ->  | I37: 0 | M37: 0
A38: =IF(COUNTRY_INFO!A38=0," ",COUNTRY_INFO!A38) -> BURUNDI | B38: =IF(COUNTRY_INFO!B38=0," ",COUNTRY_INFO!B38) -> Makamba | C38: =IF(COUNTRY_INFO!C38=0," ",COUNTRY_INFO!C38) -> Nyanza-Lac | D38: =IF(COUNTRY_INFO!$T$9:$T$1000="MDA2 (DEC+ALB)", COUNTRY_INFO!$T$9:$T$1000, " ") ->  | I38: 0 | M38: 0
A39: =IF(COUNTRY_INFO!A39=0," ",COUNTRY_INFO!A39) -> BURUNDI | B39: =IF(COUNTRY_INFO!B39=0," ",COUNTRY_INFO!B39) -> Muramvya | C39: =IF(COUNTRY_INFO!C39=0," ",COUNTRY_INFO!C39) -> Kiganda | D39: =IF(COUNTRY_INFO!$T$9:$T$1000="MDA2 (DEC+ALB)", COUNTRY_INFO!$T$9:$T$1000, " ") ->  | I39: 0 | M39: 0
A40: =IF(COUNTRY_INFO!A40=0," ",COUNTRY_INFO!A40) -> BURUNDI | B40: =IF(COUNTRY_INFO!B40=0," ",COUNTRY_INFO!B40) -> Muramvya | C40: =IF(COUNTRY_INFO!C40=0," ",COUNTRY_INFO!C40) -> Muramvya | D40: =IF(COUNTRY_INFO!$T$9:$T$1000="MDA2 (DEC+ALB)", COUNTRY_INFO!$T$9:$T$1000, " ") ->  | I40: 0 | M40: 0
A41: =IF(COUNTRY_INFO!A41=0," ",COUNTRY_INFO!A41) -> BURUNDI | B41: =IF(COUNTRY_INFO!B41=0," ",COUNTRY_INFO!B41) -> Muyinga | C41: =IF(COUNTRY_INFO!C41=0," ",COUNTRY_INFO!C41) -> Gashoho | D41: =IF(COUNTRY_INFO!$T$9:$T$1000="MDA2 (DEC+ALB)", COUNTRY_INFO!$T$9:$T$1000, " ") ->  | I41: 0 | M41: 0
A42: =IF(COUNTRY_INFO!A42=0," ",COUNTRY_INFO!A42) -> BURUNDI | B42: =IF(COUNTRY_INFO!B42=0," ",COUNTRY_INFO!B42) -> Muyinga | C42: =IF(COUNTRY_INFO!C42=0," ",COUNTRY_INFO!C42) -> Giteranyi | D42: =IF(COUNTRY_INFO!$T$9:$T$1000="MDA2 (DEC+ALB)", COUNTRY_INFO!$T$9:$T$1000, " ") ->  | I42: 0 | M42: 0
A43: =IF(COUNTRY_INFO!A43=0," ",COUNTRY_INFO!A43) -> BURUNDI | B43: =IF(COUNTRY_INFO!B43=0," ",COUNTRY_INFO!B43) -> Muyinga | C43: =IF(COUNTRY_INFO!C43=0," ",COUNTRY_INFO!C43) -> Muyinga | D43: =IF(COUNTRY_INFO!$T$9:$T$1000="MDA2 (DEC+ALB)", COUNTRY_INFO!$T$9:$T$1000, " ") ->  | I43: 0 | M43: 0
A44: =IF(COUNTRY_INFO!A44=0," ",COUNTRY_INFO!A44) -> BURUNDI | B44: =IF(COUNTRY_INFO!B44=0," ",COUNTRY_INFO!B44) -> Mwaro | C44: =IF(COUNTRY_INFO!C44=0," ",COUNTRY_INFO!C44) -> Fota | D44: =IF(COUNTRY_INFO!$T$9:$T$1000="MDA2 (DEC+ALB)", COUNTRY_INFO!$T$9:$T$1000, " ") ->  | I44: 0 | M44: 0
A45: =IF(COUNTRY_INFO!A45=0," ",COUNTRY_INFO!A45) -> BURUNDI | B45: =IF(COUNTRY_INFO!B45=0," ",COUNTRY_INFO!B45) -> Mwaro | C45: =IF(COUNTRY_INFO!C45=0," ",COUNTRY_INFO!C45) -> Kibumbu | D45: =IF(COUNTRY_INFO!$T$9:$T$1000="MDA2 (DEC+ALB)", COUNTRY_INFO!$T$9:$T$1000, " ") ->  | I45: 0 | M45: 0
A46: =IF(COUNTRY_INFO!A46=0," ",COUNTRY_INFO!A46) -> BURUNDI | B46: =IF(COUNTRY_INFO!B46=0," ",COUNTRY_INFO!B46) -> Ngozi | C46: =IF(COUNTRY_INFO!C46=0," ",COUNTRY_INFO!C46) -> Buye | D46: =IF(COUNTRY_INFO!$T$9:$T$1000="MDA2 (DEC+ALB)", COUNTRY_INFO!$T$9:$T$1000, " ") ->  | I46: 0 | M46: 0
A47: =IF(COUNTRY_INFO!A47=0," ",COUNTRY_INFO!A47) -> BURUNDI | B47: =IF(COUNTRY_INFO!B47=0," ",COUNTRY_INFO!B47) -> Ngozi | C47: =IF(COUNTRY_INFO!C47=0," ",COUNTRY_INFO!C47) -> Kiremba | D47: =IF(COUNTRY_INFO!$T$9:$T$1000="MDA2 (DEC+ALB)", COUNTRY_INFO!$T$9:$T$1000, " ") ->  | I47: 0 | M47: 0
A48: =IF(COUNTRY_INFO!A48=0," ",COUNTRY_INFO!A48) -> BURUNDI | B48: =IF(COUNTRY_INFO!B48=0," ",COUNTRY_INFO!B48) -> Ngozi | C48: =IF(COUNTRY_INFO!C48=0," ",COUNTRY_INFO!C48) -> Ngozi | D48: =IF(COUNTRY_INFO!$T$9:$T$1000="MDA2 (DEC+ALB)", COUNTRY_INFO!$T$9:$T$1000, " ") ->  | I48: 0 | M48: 0
A49: =IF(COUNTRY_INFO!A49=0," ",COUNTRY_INFO!A49) -> BURUNDI | B49: =IF(COUNTRY_INFO!B49=0," ",COUNTRY_INFO!B49) -> Rumonge | C49: =IF(COUNTRY_INFO!C49=0," ",COUNTRY_INFO!C49) -> Bugarama | D49: =IF(COUNTRY_INFO!$T$9:$T$1000="MDA2 (DEC+ALB)", COUNTRY_INFO!$T$9:$T$1000, " ") ->  | I49: 0 | M49: 0
A50: =IF(COUNTRY_INFO!A50=0," ",COUNTRY_INFO!A50) -> BURUNDI | B50: =IF(COUNTRY_INFO!B50=0," ",COUNTRY_INFO!B50) -> Rumonge | C50: =IF(COUNTRY_INFO!C50=0," ",COUNTRY_INFO!C50) -> Rumonge | D50: =IF(COUNTRY_INFO!$T$9:$T$1000="MDA2 (DEC+ALB)", COUNTRY_INFO!$T$9:$T$1000, " ") ->  | I50: 0 | M50: 0
A51: =IF(COUNTRY_INFO!A51=0," ",COUNTRY_INFO!A51) -> BURUNDI | B51: =IF(COUNTRY_INFO!B51=0," ",COUNTRY_INFO!B51) -> Rutana | C51: =IF(COUNTRY_INFO!C51=0," ",COUNTRY_INFO!C51) -> Gihofi | D51: =IF(COUNTRY_INFO!$T$9:$T$1000="MDA2 (DEC+ALB)", COUNTRY_INFO!$T$9:$T$1000, " ") ->  | I51: 0 | M51: 0
A52: =IF(COUNTRY_INFO!A52=0," ",COUNTRY_INFO!A52) -> BURUNDI | B52: =IF(COUNTRY_INFO!B52=0," ",COUNTRY_INFO!B52) -> Rutana | C52: =IF(COUNTRY_INFO!C52=0," ",COUNTRY_INFO!C52) -> Rutana | D52: =IF(COUNTRY_INFO!$T$9:$T$1000="MDA2 (DEC+ALB)", COUNTRY_INFO!$T$9:$T$1000, " ") ->  | I52: 0 | M52: 0
A53: =IF(COUNTRY_INFO!A53=0," ",COUNTRY_INFO!A53) -> BURUNDI | B53: =IF(COUNTRY_INFO!B53=0," ",COUNTRY_INFO!B53) -> Ruyigi | C53: =IF(COUNTRY_INFO!C53=0," ",COUNTRY_INFO!C53) -> Butezi | D53: =IF(COUNTRY_INFO!$T$9:$T$1000="MDA2 (DEC+ALB)", COUNTRY_INFO!$T$9:$T$1000, " ") ->  | I53: 0 | M53: 0
A54: =IF(COUNTRY_INFO!A54=0," ",COUNTRY_INFO!A54) -> BURUNDI | B54: =IF(COUNTRY_INFO!B54=0," ",COUNTRY_INFO!B54) -> Ruyigi | C54: =IF(COUNTRY_INFO!C54=0," ",COUNTRY_INFO!C54) -> Kinyinya | D54: =IF(COUNTRY_INFO!$T$9:$T$1000="MDA2 (DEC+ALB)", COUNTRY_INFO!$T$9:$T$1000, " ") ->  | I54: 0 | M54: 0
A55: =IF(COUNTRY_INFO!A55=0," ",COUNTRY_INFO!A55) -> BURUNDI | B55: =IF(COUNTRY_INFO!B55=0," ",COUNTRY_INFO!B55) -> Ruyigi | C55: =IF(COUNTRY_INFO!C55=0," ",COUNTRY_INFO!C55) -> Ruyigi | D55: =IF(COUNTRY_INFO!$T$9:$T$1000="MDA2 (DEC+ALB)", COUNTRY_INFO!$T$9:$T$1000, " ") ->  | I55: 0 | M55: 0

Sheet MDA3
A1: MDA 3 - Ivermectine (IVM)
A2: Structure administrative, population nécessitant une chimioprévention par groupe d'âge, population traitée par groupe d'âge et couverture
A4: TOTAL | F4: =SUM(F$9:F$1000) -> 536248 | G4: 1472173 | H4: 2008421 | I4: 437696 | J4: 1201621 | K4: 1639317 | L4: 0 | M4: 0 | N4: 0 | O4: 437696 | P4: 1201621 | Q4: 1639317 | R4: =IF(F4<>0, IF(O4/F4*100=0, "-", O4/F4*100), " ") -> 81.62193612 | S4: =IF(G4<>0, IF(P4/G4*100=0, "-", P4/G4*100), " ") -> 81.62226858 | T4: =IF(H4<>0, IF(Q4/H4*100=0, "-", Q4/H4*100), " ") -> 81.62217981
A6: Structure administrative du pays | D6: Mise en oeuvre de la CP | E6: Date | F6: Population ciblée pour MDA 3 | I6: Population traitée - tournée 1 | L6: Population traitée - tournée 2 | O6: Population traitée | R6: Couverture du Programme (%)
A7: Pays | B7: Région/Département | C7: District | F7: EAS | G7: Adultes | H7: Total | I7: EAS | J7: Adultes | K7: Total | L7: EAS | M7: Adultes | N7: Total | O7: EAS | P7: Adultes | Q7: Total | R7: EAS | S7: Adultes | T7: Total
A9: =IF(COUNTRY_INFO!A9=0," ",COUNTRY_INFO!A9) -> BURUNDI | B9: =IF(COUNTRY_INFO!B9=0," ",COUNTRY_INFO!B9) -> Bubanza | C9: =IF(COUNTRY_INFO!C9=0," ",COUNTRY_INFO!C9) -> Bubanza | D9: =IF(COUNTRY_INFO!$T$9:$T$1000="MDA3 (IVM)", COUNTRY_INFO!$T$9:$T$1000, " ") -> MDA3 (IVM) | E9: Mars 2021 | F9: 66988 | G9: 183903 | H9: =SUM(F9:G9) -> 250891 | I9: 55220 | J9: 151596 | K9: =SUM(I9:J9) -> 206816 | N9: =SUM(L9:M9) -> 0 | O9: =MAX(I9,L9) -> 55220 | P9: 151596 | Q9: =SUM(O9:P9) -> 206816 | R9: =IF(F9<>0, IF(MAX(I9,L9)/F9*100=0, "-", MAX(I9,L9)/F9*100), " ") -> 82.43267451 | S9: 82.43258674 | T9: =IF(H9<>0, IF((MAX(I9,L9)+MAX(J9,M9))/H9*100=0, "-",(MAX(I9,L9)+MAX(J9,M9))/H9*100), " ") -> 82.43261018
A10: =IF(COUNTRY_INFO!A10=0," ",COUNTRY_INFO!A10) -> BURUNDI | B10: =IF(COUNTRY_INFO!B10=0," ",COUNTRY_INFO!B10) -> Bubanza | C10: =IF(COUNTRY_INFO!C10=0," ",COUNTRY_INFO!C10) -> Mpanda | D10: =IF(COUNTRY_INFO!$T$9:$T$1000="MDA3 (IVM)", COUNTRY_INFO!$T$9:$T$1000, " ") -> MDA3 (IVM) | E10: Mars 2021 | F10: 57781 | G10: 158629 | H10: =SUM(F10:G10) -> 216410 | I10: 47221 | J10: 129637 | K10: =SUM(I10:J10) -> 176858 | N10: =SUM(L10:M10) -> 0 | O10: =MAX(I10,L10) -> 47221 | P10: =MAX(J10,M10) -> 129637 | Q10: =SUM(O10:P10) -> 176858 | R10: =IF(F10<>0, IF(MAX(I10,L10)/F10*100=0, "-", MAX(I10,L10)/F10*100), " ") -> 81.72409616 | S10: =IF(G10<>0, IF(MAX(J10,M10)/G10*100=0, "-", MAX(J10,M10)/G10*100), " ") -> 81.72339232 | T10: =IF(H10<>0, IF((MAX(I10,L10)+MAX(J10,M10))/H10*100=0, "-",(MAX(I10,L10)+MAX(J10,M10))/H10*100), " ") -> 81.72358024
A11: =IF(COUNTRY_INFO!A11=0," ",COUNTRY_INFO!A11) -> BURUNDI | B11: =IF(COUNTRY_INFO!B11=0," ",COUNTRY_INFO!B11) -> Bujumbura Mairie | C11: =IF(COUNTRY_INFO!C11=0," ",COUNTRY_INFO!C11) -> Zone Centre | D11: =IF(COUNTRY_INFO!$T$9:$T$1000="MDA3 (IVM)", COUNTRY_INFO!$T$9:$T$1000, " ") ->  | H11: 0 | K11: 0 | N11: 0 | O11: 0 | P11: 0 | Q11: 0
A12: =IF(COUNTRY_INFO!A12=0," ",COUNTRY_INFO!A12) -> BURUNDI | B12: =IF(COUNTRY_INFO!B12=0," ",COUNTRY_INFO!B12) -> Bujumbura Mairie | C12: =IF(COUNTRY_INFO!C12=0," ",COUNTRY_INFO!C12) -> Zone Nord | D12: =IF(COUNTRY_INFO!$T$9:$T$1000="MDA3 (IVM)", COUNTRY_INFO!$T$9:$T$1000, " ") ->  | H12: 0 | K12: 0 | N12: 0 | O12: 0 | P12: 0 | Q12: 0
A13: =IF(COUNTRY_INFO!A13=0," ",COUNTRY_INFO!A13) -> BURUNDI | B13: =IF(COUNTRY_INFO!B13=0," ",COUNTRY_INFO!B13) -> Bujumbura Mairie | C13: =IF(COUNTRY_INFO!C13=0," ",COUNTRY_INFO!C13) -> Zone Sud | D13: =IF(COUNTRY_INFO!$T$9:$T$1000="MDA3 (IVM)", COUNTRY_INFO!$T$9:$T$1000, " ") ->  | H13: 0 | K13: 0 | N13: 0 | O13: 0 | P13: 0 | Q13: 0
A14: =IF(COUNTRY_INFO!A14=0," ",COUNTRY_INFO!A14) -> BURUNDI | B14: =IF(COUNTRY_INFO!B14=0," ",COUNTRY_INFO!B14) -> Bujumbura Rural | C14: =IF(COUNTRY_INFO!C14=0," ",COUNTRY_INFO!C14) -> Isare | D14: =IF(COUNTRY_INFO!$T$9:$T$1000="MDA3 (IVM)", COUNTRY_INFO!$T$9:$T$1000, " ") ->  | H14: 0 | K14: 0 | N14: 0 | O14: 0 | P14: 0 | Q14: 0
A15: =IF(COUNTRY_INFO!A15=0," ",COUNTRY_INFO!A15) -> BURUNDI | B15: =IF(COUNTRY_INFO!B15=0," ",COUNTRY_INFO!B15) -> Bujumbura Rural | C15: =IF(COUNTRY_INFO!C15=0," ",COUNTRY_INFO!C15) -> Kabezi | D15: =IF(COUNTRY_INFO!$T$9:$T$1000="MDA3 (IVM)", COUNTRY_INFO!$T$9:$T$1000, " ") ->  | H15: 0 | K15: 0 | N15: 0 | O15: 0 | P15: 0 | Q15: 0
A16: =IF(COUNTRY_INFO!A16=0," ",COUNTRY_INFO!A16) -> BURUNDI | B16: =IF(COUNTRY_INFO!B16=0," ",COUNTRY_INFO!B16) -> Bujumbura Rural | C16: =IF(COUNTRY_INFO!C16=0," ",COUNTRY_INFO!C16) -> Rwibaga | D16: =IF(COUNTRY_INFO!$T$9:$T$1000="MDA3 (IVM)", COUNTRY_INFO!$T$9:$T$1000, " ") ->  | H16: 0 | K16: 0 | N16: 0 | O16: 0 | P16: 0 | Q16: 0
A17: =IF(COUNTRY_INFO!A17=0," ",COUNTRY_INFO!A17) -> BURUNDI | B17: =IF(COUNTRY_INFO!B17=0," ",COUNTRY_INFO!B17) -> Bururi | C17: =IF(COUNTRY_INFO!C17=0," ",COUNTRY_INFO!C17) -> Bururi | D17: =IF(COUNTRY_INFO!$T$9:$T$1000="MDA3 (IVM)", COUNTRY_INFO!$T$9:$T$1000, " ") -> MDA3 (IVM) | E17: Mars 2021 | F17: 14460 | G17: 39698 | H17: 54158 | I17: 11793 | J17: 32377 | K17: 44170 | N17: 0 | O17: 11793 | P17: 32377 | Q17: 44170 | R17: 81.5560166 | S17: 81.5582649 | T17: 81.55766461
A18: =IF(COUNTRY_INFO!A18=0," ",COUNTRY_INFO!A18) -> BURUNDI | B18: =IF(COUNTRY_INFO!B18=0," ",COUNTRY_INFO!B18) -> Bururi | C18: =IF(COUNTRY_INFO!C18=0," ",COUNTRY_INFO!C18) -> Matana | D18: =IF(COUNTRY_INFO!$T$9:$T$1000="MDA3 (IVM)", COUNTRY_INFO!$T$9:$T$1000, " ") -> MDA3 (IVM) | E18: Mars 2021 | F18: 6077 | G18: 16683 | H18: 22760 | I18: 4977 | J18: 13663 | K18: 18640 | N18: 0 | O18: 4977 | P18: 13663 | Q18: 18640 | R18: 81.8989633 | S18: 81.89774021 | T18: 81.89806678
A19: =IF(COUNTRY_INFO!A19=0," ",COUNTRY_INFO!A19) -> BURUNDI | B19: =IF(COUNTRY_INFO!B19=0," ",COUNTRY_INFO!B19) -> Cankuzo | C19: =IF(COUNTRY_INFO!C19=0," ",COUNTRY_INFO!C19) -> Cankuzo | D19: =IF(COUNTRY_INFO!$T$9:$T$1000="MDA3 (IVM)", COUNTRY_INFO!$T$9:$T$1000, " ") ->  | H19: 0 | K19: 0 | N19: 0 | O19: 0 | P19: 0 | Q19: 0
A20: =IF(COUNTRY_INFO!A20=0," ",COUNTRY_INFO!A20) -> BURUNDI | B20: =IF(COUNTRY_INFO!B20=0," ",COUNTRY_INFO!B20) -> Cankuzo | C20: =IF(COUNTRY_INFO!C20=0," ",COUNTRY_INFO!C20) -> Murore | D20: =IF(COUNTRY_INFO!$T$9:$T$1000="MDA3 (IVM)", COUNTRY_INFO!$T$9:$T$1000, " ") ->  | H20: 0 | K20: 0 | N20: 0 | O20: 0 | P20: 0 | Q20: 0
A21: =IF(COUNTRY_INFO!A21=0," ",COUNTRY_INFO!A21) -> BURUNDI | B21: =IF(COUNTRY_INFO!B21=0," ",COUNTRY_INFO!B21) -> Cibitoke | C21: =IF(COUNTRY_INFO!C21=0," ",COUNTRY_INFO!C21) -> Bukinanyana | D21: =IF(COUNTRY_INFO!$T$9:$T$1000="MDA3 (IVM)", COUNTRY_INFO!$T$9:$T$1000, " ") -> MDA3 (IVM) | E21: Mars 2021 | F21: 60170 | G21: 165184 | H21: 225354 | I21: 49557 | J21: 136050 | K21: 185607 | N21: 0 | O21: 49557 | P21: 136050 | Q21: 185607 | R21: 82.36164201 | S21: 82.36269857 | T21: 82.36241646
A22: =IF(COUNTRY_INFO!A22=0," ",COUNTRY_INFO!A22) -> BURUNDI | B22: =IF(COUNTRY_INFO!B22=0," ",COUNTRY_INFO!B22) -> Cibitoke | C22: =IF(COUNTRY_INFO!C22=0," ",COUNTRY_INFO!C22) -> Cibitoke | D22: =IF(COUNTRY_INFO!$T$9:$T$1000="MDA3 (IVM)", COUNTRY_INFO!$T$9:$T$1000, " ") -> MDA3 (IVM) | E22: Mars 2021 | F22: 66622 | G22: 182900 | H22: 249522 | I22: 54805 | J22: 150457 | K22: 205262 | N22: 0 | O22: 54805 | P22: 150457 | Q22: 205262 | R22: 82.26261595 | S22: 82.26189174 | T22: 82.26208511
A23: =IF(COUNTRY_INFO!A23=0," ",COUNTRY_INFO!A23) -> BURUNDI | B23: =IF(COUNTRY_INFO!B23=0," ",COUNTRY_INFO!B23) -> Cibitoke | C23: =IF(COUNTRY_INFO!C23=0," ",COUNTRY_INFO!C23) -> Mabayi | D23: =IF(COUNTRY_INFO!$T$9:$T$1000="MDA3 (IVM)", COUNTRY_INFO!$T$9:$T$1000, " ") -> MDA3 (IVM) | E23: Mars 2021 | F23: 58746 | G23: 161276 | H23: 220022 | I23: 48205 | J23: 132339 | K23: 180544 | N23: 0 | O23: 48205 | P23: 132339 | Q23: 180544 | R23: 82.05665067 | S23: 82.0574667 | T23: 82.05724882
A24: =IF(COUNTRY_INFO!A24=0," ",COUNTRY_INFO!A24) -> BURUNDI | B24: =IF(COUNTRY_INFO!B24=0," ",COUNTRY_INFO!B24) -> Gitega | C24: =IF(COUNTRY_INFO!C24=0," ",COUNTRY_INFO!C24) -> Gitega | D24: =IF(COUNTRY_INFO!$T$9:$T$1000="MDA3 (IVM)", COUNTRY_INFO!$T$9:$T$1000, " ") ->  | H24: 0 | K24: 0 | N24: 0 | O24: 0 | P24: 0 | Q24: 0
A25: =IF(COUNTRY_INFO!A25=0," ",COUNTRY_INFO!A25) -> BURUNDI | B25: =IF(COUNTRY_INFO!B25=0," ",COUNTRY_INFO!B25) -> Gitega | C25: =IF(COUNTRY_INFO!C25=0," ",COUNTRY_INFO!C25) -> Kibuye | D25: =IF(COUNTRY_INFO!$T$9:$T$1000="MDA3 (IVM)", COUNTRY_INFO!$T$9:$T$1000, " ") ->  | H25: 0 | K25: 0 | N25: 0 | O25: 0 | P25: 0 | Q25: 0
A26: =IF(COUNTRY_INFO!A26=0," ",COUNTRY_INFO!A26) -> BURUNDI | B26: =IF(COUNTRY_INFO!B26=0," ",COUNTRY_INFO!B26) -> Gitega | C26: =IF(COUNTRY_INFO!C26=0," ",COUNTRY_INFO!C26) -> Mutaho | D26: =IF(COUNTRY_INFO!$T$9:$T$1000="MDA3 (IVM)", COUNTRY_INFO!$T$9:$T$1000, " ") ->  | H26: 0 | K26: 0 | N26: 0 | O26: 0 | P26: 0 | Q26: 0
A27: =IF(COUNTRY_INFO!A27=0," ",COUNTRY_INFO!A27) -> BURUNDI | B27: =IF(COUNTRY_INFO!B27=0," ",COUNTRY_INFO!B27) -> Gitega | C27: =IF(COUNTRY_INFO!C27=0," ",COUNTRY_INFO!C27) -> Ryansoro | D27: =IF(COUNTRY_INFO!$T$9:$T$1000="MDA3 (IVM)", COUNTRY_INFO!$T$9:$T$1000, " ") ->  | H27: 0 | K27: 0 | N27: 0 | O27: 0 | P27: 0 | Q27: 0
A28: =IF(COUNTRY_INFO!A28=0," ",COUNTRY_INFO!A28) -> BURUNDI | B28: =IF(COUNTRY_INFO!B28=0," ",COUNTRY_INFO!B28) -> Karusi | C28: =IF(COUNTRY_INFO!C28=0," ",COUNTRY_INFO!C28) -> Buhiga | D28: =IF(COUNTRY_INFO!$T$9:$T$1000="MDA3 (IVM)", COUNTRY_INFO!$T$9:$T$1000, " ") ->  | H28: 0 | K28: 0 | N28: 0 | O28: 0 | P28: 0 | Q28: 0
A29: =IF(COUNTRY_INFO!A29=0," ",COUNTRY_INFO!A29) -> BURUNDI | B29: =IF(COUNTRY_INFO!B29=0," ",COUNTRY_INFO!B29) -> Karusi | C29: =IF(COUNTRY_INFO!C29=0," ",COUNTRY_INFO!C29) -> Nyabikere | D29: =IF(COUNTRY_INFO!$T$9:$T$1000="MDA3 (IVM)", COUNTRY_INFO!$T$9:$T$1000, " ") ->  | H29: 0 | K29: 0 | N29: 0 | O29: 0 | P29: 0 | Q29: 0
A30: =IF(COUNTRY_INFO!A30=0," ",COUNTRY_INFO!A30) -> BURUNDI | B30: =IF(COUNTRY_INFO!B30=0," ",COUNTRY_INFO!B30) -> Kayanza | C30: =IF(COUNTRY_INFO!C30=0," ",COUNTRY_INFO!C30) -> Gahombo | D30: =IF(COUNTRY_INFO!$T$9:$T$1000="MDA3 (IVM)", COUNTRY_INFO!$T$9:$T$1000, " ") ->  | H30: 0 | K30: 0 | N30: 0 | O30: 0 | P30: 0 | Q30: 0
A31: =IF(COUNTRY_INFO!A31=0," ",COUNTRY_INFO!A31) -> BURUNDI | B31: =IF(COUNTRY_INFO!B31=0," ",COUNTRY_INFO!B31) -> Kayanza | C31: =IF(COUNTRY_INFO!C31=0," ",COUNTRY_INFO!C31) -> Kayanza | D31: =IF(COUNTRY_INFO!$T$9:$T$1000="MDA3 (IVM)", COUNTRY_INFO!$T$9:$T$1000, " ") ->  | H31: 0 | K31: 0 | N31: 0 | O31: 0 | P31: 0 | Q31: 0
A32: =IF(COUNTRY_INFO!A32=0," ",COUNTRY_INFO!A32) -> BURUNDI | B32: =IF(COUNTRY_INFO!B32=0," ",COUNTRY_INFO!B32) -> Kayanza | C32: =IF(COUNTRY_INFO!C32=0," ",COUNTRY_INFO!C32) -> Musema | D32: =IF(COUNTRY_INFO!$T$9:$T$1000="MDA3 (IVM)", COUNTRY_INFO!$T$9:$T$1000, " ") ->  | H32: 0 | K32: 0 | N32: 0 | O32: 0 | P32: 0 | Q32: 0
A33: =IF(COUNTRY_INFO!A33=0," ",COUNTRY_INFO!A33) -> BURUNDI | B33: =IF(COUNTRY_INFO!B33=0," ",COUNTRY_INFO!B33) -> Kirundo | C33: =IF(COUNTRY_INFO!C33=0," ",COUNTRY_INFO!C33) -> Busoni | D33: =IF(COUNTRY_INFO!$T$9:$T$1000="MDA3 (IVM)", COUNTRY_INFO!$T$9:$T$1000, " ") ->  | H33: 0 | K33: 0 | N33: 0 | O33: 0 | P33: 0 | Q33: 0
A34: =IF(COUNTRY_INFO!A34=0," ",COUNTRY_INFO!A34) -> BURUNDI | B34: =IF(COUNTRY_INFO!B34=0," ",COUNTRY_INFO!B34) -> Kirundo | C34: =IF(COUNTRY_INFO!C34=0," ",COUNTRY_INFO!C34) -> Kirundo | D34: =IF(COUNTRY_INFO!$T$9:$T$1000="MDA3 (IVM)", COUNTRY_INFO!$T$9:$T$1000, " ") ->  | H34: 0 | K34: 0 | N34: 0 | O34: 0 | P34: 0 | Q34: 0
A35: =IF(COUNTRY_INFO!A35=0," ",COUNTRY_INFO!A35) -> BURUNDI | B35: =IF(COUNTRY_INFO!B35=0," ",COUNTRY_INFO!B35) -> Kirundo | C35: =IF(COUNTRY_INFO!C35=0," ",COUNTRY_INFO!C35) -> Mukenke | D35: =IF(COUNTRY_INFO!$T$9:$T$1000="MDA3 (IVM)", COUNTRY_INFO!$T$9:$T$1000, " ") ->  | H35: 0 | K35: 0 | N35: 0 | O35: 0 | P35: 0 | Q35: 0
A36: =IF(COUNTRY_INFO!A36=0," ",COUNTRY_INFO!A36) -> BURUNDI | B36: =IF(COUNTRY_INFO!B36=0," ",COUNTRY_INFO!B36) -> Kirundo | C36: =IF(COUNTRY_INFO!C36=0," ",COUNTRY_INFO!C36) -> Vumbi | D36: =IF(COUNTRY_INFO!$T$9:$T$1000="MDA3 (IVM)", COUNTRY_INFO!$T$9:$T$1000, " ") ->  | H36: 0 | K36: 0 | N36: 0 | O36: 0 | P36: 0 | Q36: 0
A37: =IF(COUNTRY_INFO!A37=0," ",COUNTRY_INFO!A37) -> BURUNDI | B37: =IF(COUNTRY_INFO!B37=0," ",COUNTRY_INFO!B37) -> Makamba | C37: =IF(COUNTRY_INFO!C37=0," ",COUNTRY_INFO!C37) -> Makamba | D37: =IF(COUNTRY_INFO!$T$9:$T$1000="MDA3 (IVM)", COUNTRY_INFO!$T$9:$T$1000, " ") -> MDA3 (IVM) | E37: Mars 2021 | F37: 16579 | G37: 45516 | H37: 62095 | I37: 13616 | J37: 37382 | K37: 50998 | N37: 0 | O37: 13616 | P37: 37382 | Q37: 50998 | R37: 82.12799324 | S37: 82.1293611 | T37: 82.12899589
A38: =IF(COUNTRY_INFO!A38=0," ",COUNTRY_INFO!A38) -> BURUNDI | B38: =IF(COUNTRY_INFO!B38=0," ",COUNTRY_INFO!B38) -> Makamba | C38: =IF(COUNTRY_INFO!C38=0," ",COUNTRY_INFO!C38) -> Nyanza-Lac | D38: =IF(COUNTRY_INFO!$T$9:$T$1000="MDA3 (IVM)", COUNTRY_INFO!$T$9:$T$1000, " ") ->  | H38: 0 | K38: 0 | N38: 0 | O38: 0 | P38: 0 | Q38: 0
A39: =IF(COUNTRY_INFO!A39=0," ",COUNTRY_INFO!A39) -> BURUNDI | B39: =IF(COUNTRY_INFO!B39=0," ",COUNTRY_INFO!B39) -> Muramvya | C39: =IF(COUNTRY_INFO!C39=0," ",COUNTRY_INFO!C39) -> Kiganda | D39: =IF(COUNTRY_INFO!$T$9:$T$1000="MDA3 (IVM)", COUNTRY_INFO!$T$9:$T$1000, " ") ->  | H39: 0 | K39: 0 | N39: 0 | O39: 0 | P39: 0 | Q39: 0
A40: =IF(COUNTRY_INFO!A40=0," ",COUNTRY_INFO!A40) -> BURUNDI | B40: =IF(COUNTRY_INFO!B40=0," ",COUNTRY_INFO!B40) -> Muramvya | C40: =IF(COUNTRY_INFO!C40=0," ",COUNTRY_INFO!C40) -> Muramvya | D40: =IF(COUNTRY_INFO!$T$9:$T$1000="MDA3 (IVM)", COUNTRY_INFO!$T$9:$T$1000, " ") ->  | H40: 0 | K40: 0 | N40: 0 | O40: 0 | P40: 0 | Q40: 0
A41: =IF(COUNTRY_INFO!A41=0," ",COUNTRY_INFO!A41) -> BURUNDI | B41: =IF(COUNTRY_INFO!B41=0," ",COUNTRY_INFO!B41) -> Muyinga | C41: =IF(COUNTRY_INFO!C41=0," ",COUNTRY_INFO!C41) -> Gashoho | D41: =IF(COUNTRY_INFO!$T$9:$T$1000="MDA3 (IVM)", COUNTRY_INFO!$T$9:$T$1000, " ") ->  | H41: 0 | K41: 0 | N41: 0 | O41: 0 | P41: 0 | Q41: 0
A42: =IF(COUNTRY_INFO!A42=0," ",COUNTRY_INFO!A42) -> BURUNDI | B42: =IF(COUNTRY_INFO!B42=0," ",COUNTRY_INFO!B42) -> Muyinga | C42: =IF(COUNTRY_INFO!C42=0," ",COUNTRY_INFO!C42) -> Giteranyi | D42: =IF(COUNTRY_INFO!$T$9:$T$1000="MDA3 (IVM)", COUNTRY_INFO!$T$9:$T$1000, " ") ->  | H42: 0 | K42: 0 | N42: 0 | O42: 0 | P42: 0 | Q42: 0
A43: =IF(COUNTRY_INFO!A43=0," ",COUNTRY_INFO!A43) -> BURUNDI | B43: =IF(COUNTRY_INFO!B43=0," ",COUNTRY_INFO!B43) -> Muyinga | C43: =IF(COUNTRY_INFO!C43=0," ",COUNTRY_INFO!C43) -> Muyinga | D43: =IF(COUNTRY_INFO!$T$9:$T$1000="MDA3 (IVM)", COUNTRY_INFO!$T$9:$T$1000, " ") ->  | H43: 0 | K43: 0 | N43: 0 | O43: 0 | P43: 0 | Q43: 0
A44: =IF(COUNTRY_INFO!A44=0," ",COUNTRY_INFO!A44) -> BURUNDI | B44: =IF(COUNTRY_INFO!B44=0," ",COUNTRY_INFO!B44) -> Mwaro | C44: =IF(COUNTRY_INFO!C44=0," ",COUNTRY_INFO!C44) -> Fota | D44: =IF(COUNTRY_INFO!$T$9:$T$1000="MDA3 (IVM)", COUNTRY_INFO!$T$9:$T$1000, " ") ->  | H44: 0 | K44: 0 | N44: 0 | O44: 0 | P44: 0 | Q44: 0
A45: =IF(COUNTRY_INFO!A45=0," ",COUNTRY_INFO!A45) -> BURUNDI | B45: =IF(COUNTRY_INFO!B45=0," ",COUNTRY_INFO!B45) -> Mwaro | C45: =IF(COUNTRY_INFO!C45=0," ",COUNTRY_INFO!C45) -> Kibumbu | D45: =IF(COUNTRY_INFO!$T$9:$T$1000="MDA3 (IVM)", COUNTRY_INFO!$T$9:$T$1000, " ") ->  | H45: 0 | K45: 0 | N45: 0 | O45: 0 | P45: 0 | Q45: 0
A46: =IF(COUNTRY_INFO!A46=0," ",COUNTRY_INFO!A46) -> BURUNDI | B46: =IF(COUNTRY_INFO!B46=0," ",COUNTRY_INFO!B46) -> Ngozi | C46: =IF(COUNTRY_INFO!C46=0," ",COUNTRY_INFO!C46) -> Buye | D46: =IF(COUNTRY_INFO!$T$9:$T$1000="MDA3 (IVM)", COUNTRY_INFO!$T$9:$T$1000, " ") ->  | H46: 0 | K46: 0 | N46: 0 | O46: 0 | P46: 0 | Q46: 0
A47: =IF(COUNTRY_INFO!A47=0," ",COUNTRY_INFO!A47) -> BURUNDI | B47: =IF(COUNTRY_INFO!B47=0," ",COUNTRY_INFO!B47) -> Ngozi | C47: =IF(COUNTRY_INFO!C47=0," ",COUNTRY_INFO!C47) -> Kiremba | D47: =IF(COUNTRY_INFO!$T$9:$T$1000="MDA3 (IVM)", COUNTRY_INFO!$T$9:$T$1000, " ") ->  | H47: 0 | K47: 0 | N47: 0 | O47: 0 | P47: 0 | Q47: 0
A48: =IF(COUNTRY_INFO!A48=0," ",COUNTRY_INFO!A48) -> BURUNDI | B48: =IF(COUNTRY_INFO!B48=0," ",COUNTRY_INFO!B48) -> Ngozi | C48: =IF(COUNTRY_INFO!C48=0," ",COUNTRY_INFO!C48) -> Ngozi | D48: =IF(COUNTRY_INFO!$T$9:$T$1000="MDA3 (IVM)", COUNTRY_INFO!$T$9:$T$1000, " ") ->  | H48: 0 | K48: 0 | N48: 0 | O48: 0 | P48: 0 | Q48: 0
A49: =IF(COUNTRY_INFO!A49=0," ",COUNTRY_INFO!A49) -> BURUNDI | B49: =IF(COUNTRY_INFO!B49=0," ",COUNTRY_INFO!B49) -> Rumonge | C49: =IF(COUNTRY_INFO!C49=0," ",COUNTRY_INFO!C49) -> Bugarama | D49: =IF(COUNTRY_INFO!$T$9:$T$1000="MDA3 (IVM)", COUNTRY_INFO!$T$9:$T$1000, " ") -> MDA3 (IVM) | E49: Mars 2021 | F49: 21736 | G49: 59671 | H49: 81407 | I49: 17710 | J49: 48620 | K49: 66330 | N49: 0 | O49: 17710 | P49: 48620 | Q49: 66330 | R49: 81.47773279 | S49: 81.48011597 | T49: 81.47947965
A50: =IF(COUNTRY_INFO!A50=0," ",COUNTRY_INFO!A50) -> BURUNDI | B50: =IF(COUNTRY_INFO!B50=0," ",COUNTRY_INFO!B50) -> Rumonge | C50: =IF(COUNTRY_INFO!C50=0," ",COUNTRY_INFO!C50) -> Rumonge | D50: =IF(COUNTRY_INFO!$T$9:$T$1000="MDA3 (IVM)", COUNTRY_INFO!$T$9:$T$1000, " ") -> MDA3 (IVM) | E50: Mars 2021 | F50: 85288 | G50: 234142 | H50: 319430 | I50: 68034 | J50: 186776 | K50: 254810 | N50: 0 | O50: 68034 | P50: 186776 | Q50: 254810 | R50: 79.76972141 | S50: 79.77039574 | T50: 79.7702157
A51: =IF(COUNTRY_INFO!A51=0," ",COUNTRY_INFO!A51) -> BURUNDI | B51: =IF(COUNTRY_INFO!B51=0," ",COUNTRY_INFO!B51) -> Rutana | C51: =IF(COUNTRY_INFO!C51=0," ",COUNTRY_INFO!C51) -> Gihofi | D51: =IF(COUNTRY_INFO!$T$9:$T$1000="MDA3 (IVM)", COUNTRY_INFO!$T$9:$T$1000, " ") -> MDA3 (IVM) | E51: Mars 2021 | F51: 75771 | G51: 208015 | H51: 283786 | I51: 61633 | J51: 169202 | K51: 230835 | N51: 0 | O51: 61633 | P51: 169202 | Q51: 230835 | R51: 81.34114635 | S51: 81.34124943 | T51: 81.34122191
A52: =IF(COUNTRY_INFO!A52=0," ",COUNTRY_INFO!A52) -> BURUNDI | B52: =IF(COUNTRY_INFO!B52=0," ",COUNTRY_INFO!B52) -> Rutana | C52: =IF(COUNTRY_INFO!C52=0," ",COUNTRY_INFO!C52) -> Rutana | D52: =IF(COUNTRY_INFO!$T$9:$T$1000="MDA3 (IVM)", COUNTRY_INFO!$T$9:$T$1000, " ") -> MDA3 (IVM) | E52: Mars 2021 | F52: 6030 | G52: 16556 | H52: 22586 | I52: 4925 | J52: 13522 | K52: 18447 | N52: 0 | O52: 4925 | P52: 13522 | Q52: 18447 | R52: 81.67495854 | S52: 81.67431747 | T52: 81.67448862
A53: =IF(COUNTRY_INFO!A53=0," ",COUNTRY_INFO!A53) -> BURUNDI | B53: =IF(COUNTRY_INFO!B53=0," ",COUNTRY_INFO!B53) -> Ruyigi | C53: =IF(COUNTRY_INFO!C53=0," ",COUNTRY_INFO!C53) -> Butezi | D53: =IF(COUNTRY_INFO!$T$9:$T$1000="MDA3 (IVM)", COUNTRY_INFO!$T$9:$T$1000, " ") ->  | H53: 0 | K53: 0 | N53: 0 | O53: 0 | P53: 0 | Q53: 0
A54: =IF(COUNTRY_INFO!A54=0," ",COUNTRY_INFO!A54) -> BURUNDI | B54: =IF(COUNTRY_INFO!B54=0," ",COUNTRY_INFO!B54) -> Ruyigi | C54: =IF(COUNTRY_INFO!C54=0," ",COUNTRY_INFO!C54) -> Kinyinya | D54: =IF(COUNTRY_INFO!$T$9:$T$1000="MDA3 (IVM)", COUNTRY_INFO!$T$9:$T$1000, " ") ->  | H54: 0 | K54: 0 | N54: 0 | O54: 0 | P54: 0 | Q54: 0
A55: =IF(COUNTRY_INFO!A55=0," ",COUNTRY_INFO!A55) -> BURUNDI | B55: =IF(COUNTRY_INFO!B55=0," ",COUNTRY_INFO!B55) -> Ruyigi | C55: =IF(COUNTRY_INFO!C55=0," ",COUNTRY_INFO!C55) -> Ruyigi | D55: =IF(COUNTRY_INFO!$T$9:$T$1000="MDA3 (IVM)", COUNTRY_INFO!$T$9:$T$1000, " ") ->  | H55: 0 | K55: 0 | N55: 0 | O55: 0 | P55: 0 | Q55: 0

Sheet T1
A1: T 1 - Praziquantel (PZQ) et Albendazole (ALB) ou Mebendazole (MBD)
A2: Structure administrative, population nécessitant une chimioprévention par groupe d'âge, population traitée par groupe d'âge et couverture
A4: TOTAL | G4: =SUM(G$9:G$1000) -> 0 | H4: 1555196.931 | I4: 1555196.931 | J4: 0 | K4: =SUM(K$9:K$1000) -> 1555196.931 | L4: 0 | M4: 1633550 | N4: 0 | O4: 1633550 | P4: =IF(G4<>0, IF(L4/G4*100=0, "-", L4/G4*100), " ") ->  | Q4: =IF(OR(I4<>0,H4<>0), IF(M4/MAX(H4,I4)*100=0, "-", M4/MAX(H4,I4)*100), " ") -> 105.0381445 | R4: =IF(J4<>0, IF(N4/J4*100=0, "-", N4/J4*100), " ") ->  | S4: =IF(K4<>0, IF(O4/K4*100=0, "-", O4/K4*100), " ") -> 105.0381445
A6: Structure administrative du pays | D6: Mise en oeuvre de la CP | E6: Médica-ment | F6: Date | G6: Population ciblée pour T1 | L6: Population traitée | P6: Couverture du Programme (%)
A7: Pays | B7: Région/Département | C7: District | G7: EAPréS (ALB) | H7: EAS (ALB) | I7: EAS (PZQ) | J7: Adultes (PZQ) | K7: Total | L7: EAPréS | M7: EAS | N7: Adultes | O7: Total | P7: EAPréS | Q7: EAS | R7: Adultes | S7: Total
A9: =IF(COUNTRY_INFO!A9=0," ",COUNTRY_INFO!A9) -> BURUNDI | B9: =IF(COUNTRY_INFO!B9=0," ",COUNTRY_INFO!B9) -> Bubanza | C9: =IF(COUNTRY_INFO!C9=0," ",COUNTRY_INFO!C9) -> Bubanza | D9: =IF(OR(COUNTRY_INFO!$T$9:$T$1000="T1 (PZQ+ALB/MBD)",COUNTRY_INFO!$U$9:$U$1000="T1 (PZQ+ALB/MBD)"), "T1 (PZQ+ALB/MBD)", " ") -> T1 (PZQ+ALB/MBD) | E9: PZQ+ALB | F9: Decembre 2020 | H9: 64435.04763 | I9: 64435.04763 | K9: =MAX(H9:I9)+G9+J9 -> 64435.04763 | M9: 63169 | O9: =SUM(L9:N9) -> 63169 | P9: =IF(G9<>0, IF(L9/G9*100=0, "-", L9/G9*100), " ") ->  | Q9: =IF(OR(I9<>0,H9<>0), IF(M9/MAX(H9,I9)*100=0, "-", M9/MAX(H9,I9)*100), " ") -> 98.03515684 | R9: =IF(J9<>0, IF(N9/J9*100=0, "-", N9/J9*100), " ") ->  | S9: 98.03515684
A10: =IF(COUNTRY_INFO!A10=0," ",COUNTRY_INFO!A10) -> BURUNDI | B10: =IF(COUNTRY_INFO!B10=0," ",COUNTRY_INFO!B10) -> Bubanza | C10: =IF(COUNTRY_INFO!C10=0," ",COUNTRY_INFO!C10) -> Mpanda | D10: =IF(OR(COUNTRY_INFO!$T$9:$T$1000="T1 (PZQ+ALB/MBD)",COUNTRY_INFO!$U$9:$U$1000="T1 (PZQ+ALB/MBD)"), "T1 (PZQ+ALB/MBD)", " ") -> T1 (PZQ+ALB/MBD) | E10: PZQ+ALB | F10: Decembre 2020 | H10: 81323.66539 | I10: 81323.66539 | K10: =MAX(H10:I10)+G10+J10 -> 81323.66539 | M10: 78792 | O10: =SUM(L10:N10) -> 78792 | P10: =IF(G10<>0, IF(L10/G10*100=0, "-", L10/G10*100), " ") ->  | Q10: =IF(OR(I10<>0,H10<>0), IF(M10/MAX(H10,I10)*100=0, "-", M10/MAX(H10,I10)*100), " ") -> 96.8869266 | R10: =IF(J10<>0, IF(N10/J10*100=0, "-", N10/J10*100), " ") ->  | S10: =IF(K10<>0, IF(O10/K10*100=0, "-", O10/K10*100), " ") -> 96.8869266
A11: =IF(COUNTRY_INFO!A11=0," ",COUNTRY_INFO!A11) -> BURUNDI | B11: =IF(COUNTRY_INFO!B11=0," ",COUNTRY_INFO!B11) -> Bujumbura Mairie | C11: =IF(COUNTRY_INFO!C11=0," ",COUNTRY_INFO!C11) -> Zone Centre | D11: =IF(OR(COUNTRY_INFO!$T$9:$T$1000="T1 (PZQ+ALB/MBD)",COUNTRY_INFO!$U$9:$U$1000="T1 (PZQ+ALB/MBD)"), "T1 (PZQ+ALB/MBD)", " ") ->  | E11: PZQ+ALB | F11: Decembre 2020 | H11: 0 | I11: 0 | K11: 0 | M11: 0 | O11: 0
A12: =IF(COUNTRY_INFO!A12=0," ",COUNTRY_INFO!A12) -> BURUNDI | B12: =IF(COUNTRY_INFO!B12=0," ",COUNTRY_INFO!B12) -> Bujumbura Mairie | C12: =IF(COUNTRY_INFO!C12=0," ",COUNTRY_INFO!C12) -> Zone Nord | D12: =IF(OR(COUNTRY_INFO!$T$9:$T$1000="T1 (PZQ+ALB/MBD)",COUNTRY_INFO!$U$9:$U$1000="T1 (PZQ+ALB/MBD)"), "T1 (PZQ+ALB/MBD)", " ") -> T1 (PZQ+ALB/MBD) | E12: PZQ+ALB | F12: Decembre 2020 | H12: 115992.3181 | I12: 115992.3181 | K12: 115992.3181 | M12: 101879 | O12: 101879 | Q12: 87.83254071 | S12: 87.83254071
A13: =IF(COUNTRY_INFO!A13=0," ",COUNTRY_INFO!A13) -> BURUNDI | B13: =IF(COUNTRY_INFO!B13=0," ",COUNTRY_INFO!B13) -> Bujumbura Mairie | C13: =IF(COUNTRY_INFO!C13=0," ",COUNTRY_INFO!C13) -> Zone Sud | D13: =IF(OR(COUNTRY_INFO!$T$9:$T$1000="T1 (PZQ+ALB/MBD)",COUNTRY_INFO!$U$9:$U$1000="T1 (PZQ+ALB/MBD)"), "T1 (PZQ+ALB/MBD)", " ") ->  | E13: PZQ+ALB | F13: Decembre 2020 | I13: 0 | K13: 0 | M13: 0 | O13: 0
A14: =IF(COUNTRY_INFO!A14=0," ",COUNTRY_INFO!A14) -> BURUNDI | B14: =IF(COUNTRY_INFO!B14=0," ",COUNTRY_INFO!B14) -> Bujumbura Rural | C14: =IF(COUNTRY_INFO!C14=0," ",COUNTRY_INFO!C14) -> Isare | D14: =IF(OR(COUNTRY_INFO!$T$9:$T$1000="T1 (PZQ+ALB/MBD)",COUNTRY_INFO!$U$9:$U$1000="T1 (PZQ+ALB/MBD)"), "T1 (PZQ+ALB/MBD)", " ") -> T1 (PZQ+ALB/MBD) | E14: PZQ+ALB | F14: Decembre 2020 | H14: 71062.49255 | I14: 71062.49255 | K14: 71062.49255 | M14: 96635 | O14: 96635 | Q14: 135.9859421 | S14: 135.9859421
A15: =IF(COUNTRY_INFO!A15=0," ",COUNTRY_INFO!A15) -> BURUNDI | B15: =IF(COUNTRY_INFO!B15=0," ",COUNTRY_INFO!B15) -> Bujumbura Rural | C15: =IF(COUNTRY_INFO!C15=0," ",COUNTRY_INFO!C15) -> Kabezi | D15: =IF(OR(COUNTRY_INFO!$T$9:$T$1000="T1 (PZQ+ALB/MBD)",COUNTRY_INFO!$U$9:$U$1000="T1 (PZQ+ALB/MBD)"), "T1 (PZQ+ALB/MBD)", " ") -> T1 (PZQ+ALB/MBD) | E15: PZQ+ALB | F15: Decembre 2020 | H15: 60737.76656 | I15: 60737.76656 | K15: 60737.76656 | M15: 62611 | O15: 62611 | Q15: 103.0841329 | S15: 103.0841329
A16: =IF(COUNTRY_INFO!A16=0," ",COUNTRY_INFO!A16) -> BURUNDI | B16: =IF(COUNTRY_INFO!B16=0," ",COUNTRY_INFO!B16) -> Bujumbura Rural | C16: =IF(COUNTRY_INFO!C16=0," ",COUNTRY_INFO!C16) -> Rwibaga | D16: =IF(OR(COUNTRY_INFO!$T$9:$T$1000="T1 (PZQ+ALB/MBD)",COUNTRY_INFO!$U$9:$U$1000="T1 (PZQ+ALB/MBD)"), "T1 (PZQ+ALB/MBD)", " ") ->  | E16: PZQ+ALB | F16: Decembre 2020 | I16: 0 | K16: 0 | M16: 0 | O16: 0
A17: =IF(COUNTRY_INFO!A17=0," ",COUNTRY_INFO!A17) -> BURUNDI | B17: =IF(COUNTRY_INFO!B17=0," ",COUNTRY_INFO!B17) -> Bururi | C17: =IF(COUNTRY_INFO!C17=0," ",COUNTRY_INFO!C17) -> Bururi | D17: =IF(OR(COUNTRY_INFO!$T$9:$T$1000="T1 (PZQ+ALB/MBD)",COUNTRY_INFO!$U$9:$U$1000="T1 (PZQ+ALB/MBD)"), "T1 (PZQ+ALB/MBD)", " ") ->  | E17: PZQ+ALB | F17: Decembre 2020 | H17: 0 | I17: 0 | K17: 0 | M17: 0 | O17: 0
A18: =IF(COUNTRY_INFO!A18=0," ",COUNTRY_INFO!A18) -> BURUNDI | B18: =IF(COUNTRY_INFO!B18=0," ",COUNTRY_INFO!B18) -> Bururi | C18: =IF(COUNTRY_INFO!C18=0," ",COUNTRY_INFO!C18) -> Matana | D18: =IF(OR(COUNTRY_INFO!$T$9:$T$1000="T1 (PZQ+ALB/MBD)",COUNTRY_INFO!$U$9:$U$1000="T1 (PZQ+ALB/MBD)"), "T1 (PZQ+ALB/MBD)", " ") ->  | E18: PZQ+ALB | F18: Decembre 2020 | H18: 0 | I18: 0 | K18: 0 | M18: 0 | O18: 0
A19: =IF(COUNTRY_INFO!A19=0," ",COUNTRY_INFO!A19) -> BURUNDI | B19: =IF(COUNTRY_INFO!B19=0," ",COUNTRY_INFO!B19) -> Cankuzo | C19: =IF(COUNTRY_INFO!C19=0," ",COUNTRY_INFO!C19) -> Cankuzo | D19: =IF(OR(COUNTRY_INFO!$T$9:$T$1000="T1 (PZQ+ALB/MBD)",COUNTRY_INFO!$U$9:$U$1000="T1 (PZQ+ALB/MBD)"), "T1 (PZQ+ALB/MBD)", " ") ->  | E19: PZQ+ALB | F19: Decembre 2020 | H19: 0 | I19: 0 | K19: 0 | M19: 0 | O19: 0
A20: =IF(COUNTRY_INFO!A20=0," ",COUNTRY_INFO!A20) -> BURUNDI | B20: =IF(COUNTRY_INFO!B20=0," ",COUNTRY_INFO!B20) -> Cankuzo | C20: =IF(COUNTRY_INFO!C20=0," ",COUNTRY_INFO!C20) -> Murore | D20: =IF(OR(COUNTRY_INFO!$T$9:$T$1000="T1 (PZQ+ALB/MBD)",COUNTRY_INFO!$U$9:$U$1000="T1 (PZQ+ALB/MBD)"), "T1 (PZQ+ALB/MBD)", " ") -> T1 (PZQ+ALB/MBD) | E20: PZQ+ALB | F20: Decembre 2020 | H20: 49057.7068 | I20: 49057.7068 | K20: 49057.7068 | M20: 52745 | O20: 52745 | Q20: 107.5162364 | S20: 107.5162364
A21: =IF(COUNTRY_INFO!A21=0," ",COUNTRY_INFO!A21) -> BURUNDI | B21: =IF(COUNTRY_INFO!B21=0," ",COUNTRY_INFO!B21) -> Cibitoke | C21: =IF(COUNTRY_INFO!C21=0," ",COUNTRY_INFO!C21) -> Bukinanyana | D21: =IF(OR(COUNTRY_INFO!$T$9:$T$1000="T1 (PZQ+ALB/MBD)",COUNTRY_INFO!$U$9:$U$1000="T1 (PZQ+ALB/MBD)"), "T1 (PZQ+ALB/MBD)", " ") -> T1 (PZQ+ALB/MBD) | E21: PZQ+ALB | F21: Decembre 2020 | H21: 55033.38204 | I21: 55033.38204 | K21: 55033.38204 | M21: 65699 | O21: 65699 | Q21: 119.3802699 | S21: 119.3802699
A22: =IF(COUNTRY_INFO!A22=0," ",COUNTRY_INFO!A22) -> BURUNDI | B22: =IF(COUNTRY_INFO!B22=0," ",COUNTRY_INFO!B22) -> Cibitoke | C22: =IF(COUNTRY_INFO!C22=0," ",COUNTRY_INFO!C22) -> Cibitoke | D22: =IF(OR(COUNTRY_INFO!$T$9:$T$1000="T1 (PZQ+ALB/MBD)",COUNTRY_INFO!$U$9:$U$1000="T1 (PZQ+ALB/MBD)"), "T1 (PZQ+ALB/MBD)", " ") -> T1 (PZQ+ALB/MBD) | E22: PZQ+ALB | F22: Decembre 2020 | H22: 57443.64198 | I22: 57443.64198 | K22: 57443.64198 | M22: 70251 | O22: 70251 | Q22: 122.2955188 | S22: 122.2955188
A23: =IF(COUNTRY_INFO!A23=0," ",COUNTRY_INFO!A23) -> BURUNDI | B23: =IF(COUNTRY_INFO!B23=0," ",COUNTRY_INFO!B23) -> Cibitoke | C23: =IF(COUNTRY_INFO!C23=0," ",COUNTRY_INFO!C23) -> Mabayi | D23: =IF(OR(COUNTRY_INFO!$T$9:$T$1000="T1 (PZQ+ALB/MBD)",COUNTRY_INFO!$U$9:$U$1000="T1 (PZQ+ALB/MBD)"), "T1 (PZQ+ALB/MBD)", " ") -> T1 (PZQ+ALB/MBD) | E23: PZQ+ALB | F23: Decembre 2020 | H23: 62083.86132 | I23: 62083.86132 | K23: 62083.86132 | M23: 67726 | O23: 67726 | Q23: 109.0879313 | S23: 109.0879313
A24: =IF(COUNTRY_INFO!A24=0," ",COUNTRY_INFO!A24) -> BURUNDI | B24: =IF(COUNTRY_INFO!B24=0," ",COUNTRY_INFO!B24) -> Gitega | C24: =IF(COUNTRY_INFO!C24=0," ",COUNTRY_INFO!C24) -> Gitega | D24: =IF(OR(COUNTRY_INFO!$T$9:$T$1000="T1 (PZQ+ALB/MBD)",COUNTRY_INFO!$U$9:$U$1000="T1 (PZQ+ALB/MBD)"), "T1 (PZQ+ALB/MBD)", " ") ->  | E24: PZQ+ALB | F24: Decembre 2020 | I24: 0 | K24: 0 | M24: 0 | O24: 0
A25: =IF(COUNTRY_INFO!A25=0," ",COUNTRY_INFO!A25) -> BURUNDI | B25: =IF(COUNTRY_INFO!B25=0," ",COUNTRY_INFO!B25) -> Gitega | C25: =IF(COUNTRY_INFO!C25=0," ",COUNTRY_INFO!C25) -> Kibuye | D25: =IF(OR(COUNTRY_INFO!$T$9:$T$1000="T1 (PZQ+ALB/MBD)",COUNTRY_INFO!$U$9:$U$1000="T1 (PZQ+ALB/MBD)"), "T1 (PZQ+ALB/MBD)", " ") ->  | E25: PZQ+ALB | F25: Decembre 2020 | H25: 0 | I25: 0 | K25: 0 | M25: 0 | O25: 0
A26: =IF(COUNTRY_INFO!A26=0," ",COUNTRY_INFO!A26) -> BURUNDI | B26: =IF(COUNTRY_INFO!B26=0," ",COUNTRY_INFO!B26) -> Gitega | C26: =IF(COUNTRY_INFO!C26=0," ",COUNTRY_INFO!C26) -> Mutaho | D26: =IF(OR(COUNTRY_INFO!$T$9:$T$1000="T1 (PZQ+ALB/MBD)",COUNTRY_INFO!$U$9:$U$1000="T1 (PZQ+ALB/MBD)"), "T1 (PZQ+ALB/MBD)", " ") ->  | E26: PZQ+ALB | F26: Decembre 2020 | H26: 0 | I26: 0 | K26: 0 | M26: 0 | O26: 0
A27: =IF(COUNTRY_INFO!A27=0," ",COUNTRY_INFO!A27) -> BURUNDI | B27: =IF(COUNTRY_INFO!B27=0," ",COUNTRY_INFO!B27) -> Gitega | C27: =IF(COUNTRY_INFO!C27=0," ",COUNTRY_INFO!C27) -> Ryansoro | D27: =IF(OR(COUNTRY_INFO!$T$9:$T$1000="T1 (PZQ+ALB/MBD)",COUNTRY_INFO!$U$9:$U$1000="T1 (PZQ+ALB/MBD)"), "T1 (PZQ+ALB/MBD)", " ") ->  | E27: PZQ+ALB | F27: Decembre 2020 | H27: 0 | I27: 0 | K27: 0 | M27: 0 | O27: 0
A28: =IF(COUNTRY_INFO!A28=0," ",COUNTRY_INFO!A28) -> BURUNDI | B28: =IF(COUNTRY_INFO!B28=0," ",COUNTRY_INFO!B28) -> Karusi | C28: =IF(COUNTRY_INFO!C28=0," ",COUNTRY_INFO!C28) -> Buhiga | D28: =IF(OR(COUNTRY_INFO!$T$9:$T$1000="T1 (PZQ+ALB/MBD)",COUNTRY_INFO!$U$9:$U$1000="T1 (PZQ+ALB/MBD)"), "T1 (PZQ+ALB/MBD)", " ") ->  | E28: PZQ+ALB | F28: Decembre 2020 | H28: 0 | I28: 0 | K28: 0 | M28: 0 | O28: 0
A29: =IF(COUNTRY_INFO!A29=0," ",COUNTRY_INFO!A29) -> BURUNDI | B29: =IF(COUNTRY_INFO!B29=0," ",COUNTRY_INFO!B29) -> Karusi | C29: =IF(COUNTRY_INFO!C29=0," ",COUNTRY_INFO!C29) -> Nyabikere | D29: =IF(OR(COUNTRY_INFO!$T$9:$T$1000="T1 (PZQ+ALB/MBD)",COUNTRY_INFO!$U$9:$U$1000="T1 (PZQ+ALB/MBD)"), "T1 (PZQ+ALB/MBD)", " ") ->  | E29: PZQ+ALB | F29: Decembre 2020 | H29: 0 | I29: 0 | K29: 0 | M29: 0 | O29: 0
A30: =IF(COUNTRY_INFO!A30=0," ",COUNTRY_INFO!A30) -> BURUNDI | B30: =IF(COUNTRY_INFO!B30=0," ",COUNTRY_INFO!B30) -> Kayanza | C30: =IF(COUNTRY_INFO!C30=0," ",COUNTRY_INFO!C30) -> Gahombo | D30: =IF(OR(COUNTRY_INFO!$T$9:$T$1000="T1 (PZQ+ALB/MBD)",COUNTRY_INFO!$U$9:$U$1000="T1 (PZQ+ALB/MBD)"), "T1 (PZQ+ALB/MBD)", " ") ->  | E30: PZQ+ALB | F30: Decembre 2020 | H30: 0 | I30: 0 | K30: 0 | M30: 0 | O30: 0
A31: =IF(COUNTRY_INFO!A31=0," ",COUNTRY_INFO!A31) -> BURUNDI | B31: =IF(COUNTRY_INFO!B31=0," ",COUNTRY_INFO!B31) -> Kayanza | C31: =IF(COUNTRY_INFO!C31=0," ",COUNTRY_INFO!C31) -> Kayanza | D31: =IF(OR(COUNTRY_INFO!$T$9:$T$1000="T1 (PZQ+ALB/MBD)",COUNTRY_INFO!$U$9:$U$1000="T1 (PZQ+ALB/MBD)"), "T1 (PZQ+ALB/MBD)", " ") ->  | E31: PZQ+ALB | F31: Decembre 2020 | H31: 0 | I31: 0 | K31: 0 | M31: 0 | O31: 0
A32: =IF(COUNTRY_INFO!A32=0," ",COUNTRY_INFO!A32) -> BURUNDI | B32: =IF(COUNTRY_INFO!B32=0," ",COUNTRY_INFO!B32) -> Kayanza | C32: =IF(COUNTRY_INFO!C32=0," ",COUNTRY_INFO!C32) -> Musema | D32: =IF(OR(COUNTRY_INFO!$T$9:$T$1000="T1 (PZQ+ALB/MBD)",COUNTRY_INFO!$U$9:$U$1000="T1 (PZQ+ALB/MBD)"), "T1 (PZQ+ALB/MBD)", " ") ->  | E32: PZQ+ALB | F32: Decembre 2020 | H32: 0 | I32: 0 | K32: 0 | M32: 0 | O32: 0
A33: =IF(COUNTRY_INFO!A33=0," ",COUNTRY_INFO!A33) -> BURUNDI | B33: =IF(COUNTRY_INFO!B33=0," ",COUNTRY_INFO!B33) -> Kirundo | C33: =IF(COUNTRY_INFO!C33=0," ",COUNTRY_INFO!C33) -> Busoni | D33: =IF(OR(COUNTRY_INFO!$T$9:$T$1000="T1 (PZQ+ALB/MBD)",COUNTRY_INFO!$U$9:$U$1000="T1 (PZQ+ALB/MBD)"), "T1 (PZQ+ALB/MBD)", " ") -> T1 (PZQ+ALB/MBD) | E33: PZQ+ALB | F33: Decembre 2020 | H33: 51472.16629 | I33: 51472.16629 | K33: 51472.16629 | M33: 59729 | O33: 59729 | Q33: 116.0413565 | S33: 116.0413565
A34: =IF(COUNTRY_INFO!A34=0," ",COUNTRY_INFO!A34) -> BURUNDI | B34: =IF(COUNTRY_INFO!B34=0," ",COUNTRY_INFO!B34) -> Kirundo | C34: =IF(COUNTRY_INFO!C34=0," ",COUNTRY_INFO!C34) -> Kirundo | D34: =IF(OR(COUNTRY_INFO!$T$9:$T$1000="T1 (PZQ+ALB/MBD)",COUNTRY_INFO!$U$9:$U$1000="T1 (PZQ+ALB/MBD)"), "T1 (PZQ+ALB/MBD)", " ") -> T1 (PZQ+ALB/MBD) | E34: PZQ+ALB | F34: Decembre 2020 | H34: 68576.64076 | I34: 68576.64076 | K34: 68576.64076 | M34: 64765 | O34: 64765 | Q34: 94.44177971 | S34: 94.44177971
A35: =IF(COUNTRY_INFO!A35=0," ",COUNTRY_INFO!A35) -> BURUNDI | B35: =IF(COUNTRY_INFO!B35=0," ",COUNTRY_INFO!B35) -> Kirundo | C35: =IF(COUNTRY_INFO!C35=0," ",COUNTRY_INFO!C35) -> Mukenke | D35: =IF(OR(COUNTRY_INFO!$T$9:$T$1000="T1 (PZQ+ALB/MBD)",COUNTRY_INFO!$U$9:$U$1000="T1 (PZQ+ALB/MBD)"), "T1 (PZQ+ALB/MBD)", " ") -> T1 (PZQ+ALB/MBD) | E35: PZQ+ALB | F35: Decembre 2020 | H35: 50180.66564 | I35: 50180.66564 | K35: 50180.66564 | M35: 56343 | O35: 56343 | Q35: 112.2802962 | S35: 112.2802962
A36: =IF(COUNTRY_INFO!A36=0," ",COUNTRY_INFO!A36) -> BURUNDI | B36: =IF(COUNTRY_INFO!B36=0," ",COUNTRY_INFO!B36) -> Kirundo | C36: =IF(COUNTRY_INFO!C36=0," ",COUNTRY_INFO!C36) -> Vumbi | D36: =IF(OR(COUNTRY_INFO!$T$9:$T$1000="T1 (PZQ+ALB/MBD)",COUNTRY_INFO!$U$9:$U$1000="T1 (PZQ+ALB/MBD)"), "T1 (PZQ+ALB/MBD)", " ") -> T1 (PZQ+ALB/MBD) | E36: PZQ+ALB | F36: Decembre 2020 | H36: 60137.51132 | I36: 60137.51132 | K36: 60137.51132 | M36: 70249 | O36: 70249 | Q36: 116.813946 | S36: 116.813946
A37: =IF(COUNTRY_INFO!A37=0," ",COUNTRY_INFO!A37) -> BURUNDI | B37: =IF(COUNTRY_INFO!B37=0," ",COUNTRY_INFO!B37) -> Makamba | C37: =IF(COUNTRY_INFO!C37=0," ",COUNTRY_INFO!C37) -> Makamba | D37: =IF(OR(COUNTRY_INFO!$T$9:$T$1000="T1 (PZQ+ALB/MBD)",COUNTRY_INFO!$U$9:$U$1000="T1 (PZQ+ALB/MBD)"), "T1 (PZQ+ALB/MBD)", " ") -> T1 (PZQ+ALB/MBD) | E37: PZQ+ALB | F37: Decembre 2020 | H37: 96628.49404 | I37: 96628.49404 | K37: 96628.49404 | M37: 80558 | O37: 80558 | Q37: 83.3687835 | S37: 83.3687835
A38: =IF(COUNTRY_INFO!A38=0," ",COUNTRY_INFO!A38) -> BURUNDI | B38: =IF(COUNTRY_INFO!B38=0," ",COUNTRY_INFO!B38) -> Makamba | C38: =IF(COUNTRY_INFO!C38=0," ",COUNTRY_INFO!C38) -> Nyanza-Lac | D38: =IF(OR(COUNTRY_INFO!$T$9:$T$1000="T1 (PZQ+ALB/MBD)",COUNTRY_INFO!$U$9:$U$1000="T1 (PZQ+ALB/MBD)"), "T1 (PZQ+ALB/MBD)", " ") -> T1 (PZQ+ALB/MBD) | E38: PZQ+ALB | F38: Decembre 2020 | H38: 106249.9359 | I38: 106249.9359 | K38: 106249.9359 | M38: 93442 | O38: 93442 | Q38: 87.94546481 | S38: 87.94546481
A39: =IF(COUNTRY_INFO!A39=0," ",COUNTRY_INFO!A39) -> BURUNDI | B39: =IF(COUNTRY_INFO!B39=0," ",COUNTRY_INFO!B39) -> Muramvya | C39: =IF(COUNTRY_INFO!C39=0," ",COUNTRY_INFO!C39) -> Kiganda | D39: =IF(OR(COUNTRY_INFO!$T$9:$T$1000="T1 (PZQ+ALB/MBD)",COUNTRY_INFO!$U$9:$U$1000="T1 (PZQ+ALB/MBD)"), "T1 (PZQ+ALB/MBD)", " ") ->  | E39: PZQ+ALB | F39: Decembre 2020 | I39: 0 | K39: 0 | M39: 0 | O39: 0
A40: =IF(COUNTRY_INFO!A40=0," ",COUNTRY_INFO!A40) -> BURUNDI | B40: =IF(COUNTRY_INFO!B40=0," ",COUNTRY_INFO!B40) -> Muramvya | C40: =IF(COUNTRY_INFO!C40=0," ",COUNTRY_INFO!C40) -> Muramvya | D40: =IF(OR(COUNTRY_INFO!$T$9:$T$1000="T1 (PZQ+ALB/MBD)",COUNTRY_INFO!$U$9:$U$1000="T1 (PZQ+ALB/MBD)"), "T1 (PZQ+ALB/MBD)", " ") ->  | E40: PZQ+ALB | F40: Decembre 2020 | H40: 0 | I40: 0 | K40: 0 | M40: 0 | O40: 0
A41: =IF(COUNTRY_INFO!A41=0," ",COUNTRY_INFO!A41) -> BURUNDI | B41: =IF(COUNTRY_INFO!B41=0," ",COUNTRY_INFO!B41) -> Muyinga | C41: =IF(COUNTRY_INFO!C41=0," ",COUNTRY_INFO!C41) -> Gashoho | D41: =IF(OR(COUNTRY_INFO!$T$9:$T$1000="T1 (PZQ+ALB/MBD)",COUNTRY_INFO!$U$9:$U$1000="T1 (PZQ+ALB/MBD)"), "T1 (PZQ+ALB/MBD)", " ") ->  | E41: PZQ+ALB | F41: Decembre 2020 | H41: 0 | I41: 0 | K41: 0 | M41: 0 | O41: 0
A42: =IF(COUNTRY_INFO!A42=0," ",COUNTRY_INFO!A42) -> BURUNDI | B42: =IF(COUNTRY_INFO!B42=0," ",COUNTRY_INFO!B42) -> Muyinga | C42: =IF(COUNTRY_INFO!C42=0," ",COUNTRY_INFO!C42) -> Giteranyi | D42: =IF(OR(COUNTRY_INFO!$T$9:$T$1000="T1 (PZQ+ALB/MBD)",COUNTRY_INFO!$U$9:$U$1000="T1 (PZQ+ALB/MBD)"), "T1 (PZQ+ALB/MBD)", " ") ->  | E42: PZQ+ALB | F42: Decembre 2020 | H42: 0 | I42: 0 | K42: 0 | M42: 0 | O42: 0
A43: =IF(COUNTRY_INFO!A43=0," ",COUNTRY_INFO!A43) -> BURUNDI | B43: =IF(COUNTRY_INFO!B43=0," ",COUNTRY_INFO!B43) -> Muyinga | C43: =IF(COUNTRY_INFO!C43=0," ",COUNTRY_INFO!C43) -> Muyinga | D43: =IF(OR(COUNTRY_INFO!$T$9:$T$1000="T1 (PZQ+ALB/MBD)",COUNTRY_INFO!$U$9:$U$1000="T1 (PZQ+ALB/MBD)"), "T1 (PZQ+ALB/MBD)", " ") -> T1 (PZQ+ALB/MBD) | E43: PZQ+ALB | F43: Decembre 2020 | H43: 97611.74795 | I43: 97611.74795 | K43: 97611.74795 | M43: 106465 | O43: 106465 | Q43: 109.0698632 | S43: 109.0698632
A44: =IF(COUNTRY_INFO!A44=0," ",COUNTRY_INFO!A44) -> BURUNDI | B44: =IF(COUNTRY_INFO!B44=0," ",COUNTRY_INFO!B44) -> Mwaro | C44: =IF(COUNTRY_INFO!C44=0," ",COUNTRY_INFO!C44) -> Fota | D44: =IF(OR(COUNTRY_INFO!$T$9:$T$1000="T1 (PZQ+ALB/MBD)",COUNTRY_INFO!$U$9:$U$1000="T1 (PZQ+ALB/MBD)"), "T1 (PZQ+ALB/MBD)", " ") ->  | E44: PZQ+ALB | F44: Decembre 2020 | I44: 0 | K44: 0 | M44: 0 | O44: 0
A45: =IF(COUNTRY_INFO!A45=0," ",COUNTRY_INFO!A45) -> BURUNDI | B45: =IF(COUNTRY_INFO!B45=0," ",COUNTRY_INFO!B45) -> Mwaro | C45: =IF(COUNTRY_INFO!C45=0," ",COUNTRY_INFO!C45) -> Kibumbu | D45: =IF(OR(COUNTRY_INFO!$T$9:$T$1000="T1 (PZQ+ALB/MBD)",COUNTRY_INFO!$U$9:$U$1000="T1 (PZQ+ALB/MBD)"), "T1 (PZQ+ALB/MBD)", " ") ->  | E45: PZQ+ALB | F45: Decembre 2020 | H45: 0 | I45: 0 | K45: 0 | M45: 0 | O45: 0
A46: =IF(COUNTRY_INFO!A46=0," ",COUNTRY_INFO!A46) -> BURUNDI | B46: =IF(COUNTRY_INFO!B46=0," ",COUNTRY_INFO!B46) -> Ngozi | C46: =IF(COUNTRY_INFO!C46=0," ",COUNTRY_INFO!C46) -> Buye | D46: =IF(OR(COUNTRY_INFO!$T$9:$T$1000="T1 (PZQ+ALB/MBD)",COUNTRY_INFO!$U$9:$U$1000="T1 (PZQ+ALB/MBD)"), "T1 (PZQ+ALB/MBD)", " ") ->  | E46: PZQ+ALB | F46: Decembre 2020 | H46: 0 | I46: 0 | K46: 0 | M46: 0 | O46: 0
A47: =IF(COUNTRY_INFO!A47=0," ",COUNTRY_INFO!A47) -> BURUNDI | B47: =IF(COUNTRY_INFO!B47=0," ",COUNTRY_INFO!B47) -> Ngozi | C47: =IF(COUNTRY_INFO!C47=0," ",COUNTRY_INFO!C47) -> Kiremba | D47: =IF(OR(COUNTRY_INFO!$T$9:$T$1000="T1 (PZQ+ALB/MBD)",COUNTRY_INFO!$U$9:$U$1000="T1 (PZQ+ALB/MBD)"), "T1 (PZQ+ALB/MBD)", " ") ->  | E47: PZQ+ALB | F47: Decembre 2020 | H47: 0 | I47: 0 | K47: 0 | M47: 0 | O47: 0
A48: =IF(COUNTRY_INFO!A48=0," ",COUNTRY_INFO!A48) -> BURUNDI | B48: =IF(COUNTRY_INFO!B48=0," ",COUNTRY_INFO!B48) -> Ngozi | C48: =IF(COUNTRY_INFO!C48=0," ",COUNTRY_INFO!C48) -> Ngozi | D48: =IF(OR(COUNTRY_INFO!$T$9:$T$1000="T1 (PZQ+ALB/MBD)",COUNTRY_INFO!$U$9:$U$1000="T1 (PZQ+ALB/MBD)"), "T1 (PZQ+ALB/MBD)", " ") ->  | E48: PZQ+ALB | F48: Decembre 2020 | H48: 0 | I48: 0 | K48: 0 | M48: 0 | O48: 0
A49: =IF(COUNTRY_INFO!A49=0," ",COUNTRY_INFO!A49) -> BURUNDI | B49: =IF(COUNTRY_INFO!B49=0," ",COUNTRY_INFO!B49) -> Rumonge | C49: =IF(COUNTRY_INFO!C49=0," ",COUNTRY_INFO!C49) -> Bugarama | D49: =IF(OR(COUNTRY_INFO!$T$9:$T$1000="T1 (PZQ+ALB/MBD)",COUNTRY_INFO!$U$9:$U$1000="T1 (PZQ+ALB/MBD)"), "T1 (PZQ+ALB/MBD)", " ") -> T1 (PZQ+ALB/MBD) | E49: PZQ+ALB | F49: Decembre 2020 | H49: 61183.32046 | I49: 61183.32046 | K49: 61183.32046 | M49: 75991 | O49: 75991 | Q49: 124.2021509 | S49: 124.2021509
A50: =IF(COUNTRY_INFO!A50=0," ",COUNTRY_INFO!A50) -> BURUNDI | B50: =IF(COUNTRY_INFO!B50=0," ",COUNTRY_INFO!B50) -> Rumonge | C50: =IF(COUNTRY_INFO!C50=0," ",COUNTRY_INFO!C50) -> Rumonge | D50: =IF(OR(COUNTRY_INFO!$T$9:$T$1000="T1 (PZQ+ALB/MBD)",COUNTRY_INFO!$U$9:$U$1000="T1 (PZQ+ALB/MBD)"), "T1 (PZQ+ALB/MBD)", " ") -> T1 (PZQ+ALB/MBD) | E50: PZQ+ALB | F50: Decembre 2020 | H50: 93615.73911 | I50: 93615.73911 | K50: 93615.73911 | M50: 103336 | O50: 103336 | Q50: 110.3831482 | S50: 110.3831482
A51: =IF(COUNTRY_INFO!A51=0," ",COUNTRY_INFO!A51) -> BURUNDI | B51: =IF(COUNTRY_INFO!B51=0," ",COUNTRY_INFO!B51) -> Rutana | C51: =IF(COUNTRY_INFO!C51=0," ",COUNTRY_INFO!C51) -> Gihofi | D51: =IF(OR(COUNTRY_INFO!$T$9:$T$1000="T1 (PZQ+ALB/MBD)",COUNTRY_INFO!$U$9:$U$1000="T1 (PZQ+ALB/MBD)"), "T1 (PZQ+ALB/MBD)", " ") -> T1 (PZQ+ALB/MBD) | E51: PZQ+ALB | F51: Decembre 2020 | H51: 72084.94223 | I51: 72084.94223 | K51: 72084.94223 | M51: 88786 | O51: 88786 | Q51: 123.1685804 | S51: 123.1685804
A52: =IF(COUNTRY_INFO!A52=0," ",COUNTRY_INFO!A52) -> BURUNDI | B52: =IF(COUNTRY_INFO!B52=0," ",COUNTRY_INFO!B52) -> Rutana | C52: =IF(COUNTRY_INFO!C52=0," ",COUNTRY_INFO!C52) -> Rutana | D52: =IF(OR(COUNTRY_INFO!$T$9:$T$1000="T1 (PZQ+ALB/MBD)",COUNTRY_INFO!$U$9:$U$1000="T1 (PZQ+ALB/MBD)"), "T1 (PZQ+ALB/MBD)", " ") -> T1 (PZQ+ALB/MBD) | E52: PZQ+ALB | F52: Decembre 2020 | H52: 57864.99652 | I52: 57864.99652 | K52: 57864.99652 | M52: 62798 | O52: 62798 | Q52: 108.5250216 | S52: 108.5250216
A53: =IF(COUNTRY_INFO!A53=0," ",COUNTRY_INFO!A53) -> BURUNDI | B53: =IF(COUNTRY_INFO!B53=0," ",COUNTRY_INFO!B53) -> Ruyigi | C53: =IF(COUNTRY_INFO!C53=0," ",COUNTRY_INFO!C53) -> Butezi | D53: =IF(OR(COUNTRY_INFO!$T$9:$T$1000="T1 (PZQ+ALB/MBD)",COUNTRY_INFO!$U$9:$U$1000="T1 (PZQ+ALB/MBD)"), "T1 (PZQ+ALB/MBD)", " ") -> T1 (PZQ+ALB/MBD) | E53: PZQ+ALB | F53: Decembre 2020 | H53: 38948.56675 | I53: 38948.56675 | K53: 38948.56675 | M53: 37390 | O53: 37390 | Q53: 95.99839768 | S53: 95.99839768
A54: =IF(COUNTRY_INFO!A54=0," ",COUNTRY_INFO!A54) -> BURUNDI | B54: =IF(COUNTRY_INFO!B54=0," ",COUNTRY_INFO!B54) -> Ruyigi | C54: =IF(COUNTRY_INFO!C54=0," ",COUNTRY_INFO!C54) -> Kinyinya | D54: =IF(OR(COUNTRY_INFO!$T$9:$T$1000="T1 (PZQ+ALB/MBD)",COUNTRY_INFO!$U$9:$U$1000="T1 (PZQ+ALB/MBD)"), "T1 (PZQ+ALB/MBD)", " ") -> T1 (PZQ+ALB/MBD) | E54: PZQ+ALB | F54: Decembre 2020 | H54: 83472.32127 | I54: 83472.32127 | K54: 83472.32127 | M54: 74191 | O54: 74191 | Q54: 88.88095942 | S54: 88.88095942
A55: =IF(COUNTRY_INFO!A55=0," ",COUNTRY_INFO!A55) -> BURUNDI | B55: =IF(COUNTRY_INFO!B55=0," ",COUNTRY_INFO!B55) -> Ruyigi | C55: =IF(COUNTRY_INFO!C55=0," ",COUNTRY_INFO!C55) -> Ruyigi | D55: =IF(OR(COUNTRY_INFO!$T$9:$T$1000="T1 (PZQ+ALB/MBD)",COUNTRY_INFO!$U$9:$U$1000="T1 (PZQ+ALB/MBD)"), "T1 (PZQ+ALB/MBD)", " ") ->  | E55: PZQ+ALB | F55: Decembre 2020 | I55: 0 | K55: 0 | M55: 0 | O55: 0

Sheet T2
A1: T 2 - Praziquantel (PZQ)
A2: Structure administrative, population nécessitant une chimioprévention par groupe d'âge, population traitée par groupe d'âge et couverture
A4: TOTAL | F4: =SUM(F$9:F$1000) -> 0 | G4: 0 | H4: 0 | I4: 0 | J4: 0 | K4: 0 | L4: 0 | M4: 0 | N4: =IF(F4<>0, IF(J4/F4*100=0, "-", J4/F4*100), " ") ->  | O4: =IF(G4<>0, IF(K4/G4*100=0, "-", K4/G4*100), " ") ->  | P4: =IF(H4<>0, IF(L4/H4*100=0, "-", L4/H4*100), " ") ->  | Q4: =IF(I4<>0, IF(M4/I4*100=0, "-", M4/I4*100), " ") -> 
A6: Structure administrative du pays | D6: Mise en oeuvre de la CP | E6: Date | F6: Population ciblée pour T2 | J6: Population traitée | N6: Couverture du Programme (%)
A7: Pays | B7: Région/Département | C7: District | F7: EAPréS | G7: EAS | H7: Adultes | I7: Total | J7: EAPréS | K7: EAS | L7: Adultes | M7: Total | N7: EAPréS | O7: EAS | P7: Adultes | Q7: Total
A9: =IF(COUNTRY_INFO!A9=0," ",COUNTRY_INFO!A9) -> BURUNDI | B9: =IF(COUNTRY_INFO!B9=0," ",COUNTRY_INFO!B9) -> Bubanza | C9: =IF(COUNTRY_INFO!C9=0," ",COUNTRY_INFO!C9) -> Bubanza | D9: =IF(OR(COUNTRY_INFO!$T$9:$T$1000="T2 (PZQ)",COUNTRY_INFO!$U$9:$U$1000="T2 (PZQ)"), "T2 (PZQ)", " ") ->  | I9: =SUM(F9:H9) -> 0 | M9: =SUM(J9:L9) -> 0 | N9: =IF(F9<>0, IF(J9/F9*100=0, "-", J9/F9*100), " ") -> 
A10: =IF(COUNTRY_INFO!A10=0," ",COUNTRY_INFO!A10) -> BURUNDI | B10: =IF(COUNTRY_INFO!B10=0," ",COUNTRY_INFO!B10) -> Bubanza | C10: =IF(COUNTRY_INFO!C10=0," ",COUNTRY_INFO!C10) -> Mpanda | D10: =IF(OR(COUNTRY_INFO!$T$9:$T$1000="T2 (PZQ)",COUNTRY_INFO!$U$9:$U$1000="T2 (PZQ)"), "T2 (PZQ)", " ") ->  | I10: =SUM(F10:H10) -> 0 | M10: =SUM(J10:L10) -> 0 | N10: =IF(F10<>0, IF(J10/F10*100=0, "-", J10/F10*100), " ") ->  | O10: =IF(G10<>0, IF(K10/G10*100=0, "-", K10/G10*100), " ") ->  | P10: =IF(H10<>0, IF(L10/H10*100=0, "-", L10/H10*100), " ") ->  | Q10: =IF(I10<>0, IF(M10/I10*100=0, "-", M10/I10*100), " ") -> 
A11: =IF(COUNTRY_INFO!A11=0," ",COUNTRY_INFO!A11) -> BURUNDI | B11: =IF(COUNTRY_INFO!B11=0," ",COUNTRY_INFO!B11) -> Bujumbura Mairie | C11: =IF(COUNTRY_INFO!C11=0," ",COUNTRY_INFO!C11) -> Zone Centre | D11: =IF(OR(COUNTRY_INFO!$T$9:$T$1000="T2 (PZQ)",COUNTRY_INFO!$U$9:$U$1000="T2 (PZQ)"), "T2 (PZQ)", " ") ->  | I11: 0 | M11: 0
A12: =IF(COUNTRY_INFO!A12=0," ",COUNTRY_INFO!A12) -> BURUNDI | B12: =IF(COUNTRY_INFO!B12=0," ",COUNTRY_INFO!B12) -> Bujumbura Mairie | C12: =IF(COUNTRY_INFO!C12=0," ",COUNTRY_INFO!C12) -> Zone Nord | D12: =IF(OR(COUNTRY_INFO!$T$9:$T$1000="T2 (PZQ)",COUNTRY_INFO!$U$9:$U$1000="T2 (PZQ)"), "T2 (PZQ)", " ") ->  | I12: 0 | M12: 0
A13: =IF(COUNTRY_INFO!A13=0," ",COUNTRY_INFO!A13) -> BURUNDI | B13: =IF(COUNTRY_INFO!B13=0," ",COUNTRY_INFO!B13) -> Bujumbura Mairie | C13: =IF(COUNTRY_INFO!C13=0," ",COUNTRY_INFO!C13) -> Zone Sud | D13: =IF(OR(COUNTRY_INFO!$T$9:$T$1000="T2 (PZQ)",COUNTRY_INFO!$U$9:$U$1000="T2 (PZQ)"), "T2 (PZQ)", " ") ->  | I13: 0 | M13: 0
A14: =IF(COUNTRY_INFO!A14=0," ",COUNTRY_INFO!A14) -> BURUNDI | B14: =IF(COUNTRY_INFO!B14=0," ",COUNTRY_INFO!B14) -> Bujumbura Rural | C14: =IF(COUNTRY_INFO!C14=0," ",COUNTRY_INFO!C14) -> Isare | D14: =IF(OR(COUNTRY_INFO!$T$9:$T$1000="T2 (PZQ)",COUNTRY_INFO!$U$9:$U$1000="T2 (PZQ)"), "T2 (PZQ)", " ") ->  | I14: 0 | M14: 0
A15: =IF(COUNTRY_INFO!A15=0," ",COUNTRY_INFO!A15) -> BURUNDI | B15: =IF(COUNTRY_INFO!B15=0," ",COUNTRY_INFO!B15) -> Bujumbura Rural | C15: =IF(COUNTRY_INFO!C15=0," ",COUNTRY_INFO!C15) -> Kabezi | D15: =IF(OR(COUNTRY_INFO!$T$9:$T$1000="T2 (PZQ)",COUNTRY_INFO!$U$9:$U$1000="T2 (PZQ)"), "T2 (PZQ)", " ") ->  | I15: 0 | M15: 0
A16: =IF(COUNTRY_INFO!A16=0," ",COUNTRY_INFO!A16) -> BURUNDI | B16: =IF(COUNTRY_INFO!B16=0," ",COUNTRY_INFO!B16) -> Bujumbura Rural | C16: =IF(COUNTRY_INFO!C16=0," ",COUNTRY_INFO!C16) -> Rwibaga | D16: =IF(OR(COUNTRY_INFO!$T$9:$T$1000="T2 (PZQ)",COUNTRY_INFO!$U$9:$U$1000="T2 (PZQ)"), "T2 (PZQ)", " ") ->  | I16: 0 | M16: 0
A17: =IF(COUNTRY_INFO!A17=0," ",COUNTRY_INFO!A17) -> BURUNDI | B17: =IF(COUNTRY_INFO!B17=0," ",COUNTRY_INFO!B17) -> Bururi | C17: =IF(COUNTRY_INFO!C17=0," ",COUNTRY_INFO!C17) -> Bururi | D17: =IF(OR(COUNTRY_INFO!$T$9:$T$1000="T2 (PZQ)",COUNTRY_INFO!$U$9:$U$1000="T2 (PZQ)"), "T2 (PZQ)", " ") ->  | I17: 0 | M17: 0
A18: =IF(COUNTRY_INFO!A18=0," ",COUNTRY_INFO!A18) -> BURUNDI | B18: =IF(COUNTRY_INFO!B18=0," ",COUNTRY_INFO!B18) -> Bururi | C18: =IF(COUNTRY_INFO!C18=0," ",COUNTRY_INFO!C18) -> Matana | D18: =IF(OR(COUNTRY_INFO!$T$9:$T$1000="T2 (PZQ)",COUNTRY_INFO!$U$9:$U$1000="T2 (PZQ)"), "T2 (PZQ)", " ") ->  | I18: 0 | M18: 0
A19: =IF(COUNTRY_INFO!A19=0," ",COUNTRY_INFO!A19) -> BURUNDI | B19: =IF(COUNTRY_INFO!B19=0," ",COUNTRY_INFO!B19) -> Cankuzo | C19: =IF(COUNTRY_INFO!C19=0," ",COUNTRY_INFO!C19) -> Cankuzo | D19: =IF(OR(COUNTRY_INFO!$T$9:$T$1000="T2 (PZQ)",COUNTRY_INFO!$U$9:$U$1000="T2 (PZQ)"), "T2 (PZQ)", " ") ->  | I19: 0 | M19: 0
A20: =IF(COUNTRY_INFO!A20=0," ",COUNTRY_INFO!A20) -> BURUNDI | B20: =IF(COUNTRY_INFO!B20=0," ",COUNTRY_INFO!B20) -> Cankuzo | C20: =IF(COUNTRY_INFO!C20=0," ",COUNTRY_INFO!C20) -> Murore | D20: =IF(OR(COUNTRY_INFO!$T$9:$T$1000="T2 (PZQ)",COUNTRY_INFO!$U$9:$U$1000="T2 (PZQ)"), "T2 (PZQ)", " ") ->  | I20: 0 | M20: 0
A21: =IF(COUNTRY_INFO!A21=0," ",COUNTRY_INFO!A21) -> BURUNDI | B21: =IF(COUNTRY_INFO!B21=0," ",COUNTRY_INFO!B21) -> Cibitoke | C21: =IF(COUNTRY_INFO!C21=0," ",COUNTRY_INFO!C21) -> Bukinanyana | D21: =IF(OR(COUNTRY_INFO!$T$9:$T$1000="T2 (PZQ)",COUNTRY_INFO!$U$9:$U$1000="T2 (PZQ)"), "T2 (PZQ)", " ") ->  | I21: 0 | M21: 0
A22: =IF(COUNTRY_INFO!A22=0," ",COUNTRY_INFO!A22) -> BURUNDI | B22: =IF(COUNTRY_INFO!B22=0," ",COUNTRY_INFO!B22) -> Cibitoke | C22: =IF(COUNTRY_INFO!C22=0," ",COUNTRY_INFO!C22) -> Cibitoke | D22: =IF(OR(COUNTRY_INFO!$T$9:$T$1000="T2 (PZQ)",COUNTRY_INFO!$U$9:$U$1000="T2 (PZQ)"), "T2 (PZQ)", " ") ->  | I22: 0 | M22: 0
A23: =IF(COUNTRY_INFO!A23=0," ",COUNTRY_INFO!A23) -> BURUNDI | B23: =IF(COUNTRY_INFO!B23=0," ",COUNTRY_INFO!B23) -> Cibitoke | C23: =IF(COUNTRY_INFO!C23=0," ",COUNTRY_INFO!C23) -> Mabayi | D23: =IF(OR(COUNTRY_INFO!$T$9:$T$1000="T2 (PZQ)",COUNTRY_INFO!$U$9:$U$1000="T2 (PZQ)"), "T2 (PZQ)", " ") ->  | I23: 0 | M23: 0
A24: =IF(COUNTRY_INFO!A24=0," ",COUNTRY_INFO!A24) -> BURUNDI | B24: =IF(COUNTRY_INFO!B24=0," ",COUNTRY_INFO!B24) -> Gitega | C24: =IF(COUNTRY_INFO!C24=0," ",COUNTRY_INFO!C24) -> Gitega | D24: =IF(OR(COUNTRY_INFO!$T$9:$T$1000="T2 (PZQ)",COUNTRY_INFO!$U$9:$U$1000="T2 (PZQ)"), "T2 (PZQ)", " ") ->  | I24: 0 | M24: 0
A25: =IF(COUNTRY_INFO!A25=0," ",COUNTRY_INFO!A25) -> BURUNDI | B25: =IF(COUNTRY_INFO!B25=0," ",COUNTRY_INFO!B25) -> Gitega | C25: =IF(COUNTRY_INFO!C25=0," ",COUNTRY_INFO!C25) -> Kibuye | D25: =IF(OR(COUNTRY_INFO!$T$9:$T$1000="T2 (PZQ)",COUNTRY_INFO!$U$9:$U$1000="T2 (PZQ)"), "T2 (PZQ)", " ") ->  | I25: 0 | M25: 0
A26: =IF(COUNTRY_INFO!A26=0," ",COUNTRY_INFO!A26) -> BURUNDI | B26: =IF(COUNTRY_INFO!B26=0," ",COUNTRY_INFO!B26) -> Gitega | C26: =IF(COUNTRY_INFO!C26=0," ",COUNTRY_INFO!C26) -> Mutaho | D26: =IF(OR(COUNTRY_INFO!$T$9:$T$1000="T2 (PZQ)",COUNTRY_INFO!$U$9:$U$1000="T2 (PZQ)"), "T2 (PZQ)", " ") ->  | I26: 0 | M26: 0
A27: =IF(COUNTRY_INFO!A27=0," ",COUNTRY_INFO!A27) -> BURUNDI | B27: =IF(COUNTRY_INFO!B27=0," ",COUNTRY_INFO!B27) -> Gitega | C27: =IF(COUNTRY_INFO!C27=0," ",COUNTRY_INFO!C27) -> Ryansoro | D27: =IF(OR(COUNTRY_INFO!$T$9:$T$1000="T2 (PZQ)",COUNTRY_INFO!$U$9:$U$1000="T2 (PZQ)"), "T2 (PZQ)", " ") ->  | I27: 0 | M27: 0
A28: =IF(COUNTRY_INFO!A28=0," ",COUNTRY_INFO!A28) -> BURUNDI | B28: =IF(COUNTRY_INFO!B28=0," ",COUNTRY_INFO!B28) -> Karusi | C28: =IF(COUNTRY_INFO!C28=0," ",COUNTRY_INFO!C28) -> Buhiga | D28: =IF(OR(COUNTRY_INFO!$T$9:$T$1000="T2 (PZQ)",COUNTRY_INFO!$U$9:$U$1000="T2 (PZQ)"), "T2 (PZQ)", " ") ->  | I28: 0 | M28: 0
A29: =IF(COUNTRY_INFO!A29=0," ",COUNTRY_INFO!A29) -> BURUNDI | B29: =IF(COUNTRY_INFO!B29=0," ",COUNTRY_INFO!B29) -> Karusi | C29: =IF(COUNTRY_INFO!C29=0," ",COUNTRY_INFO!C29) -> Nyabikere | D29: =IF(OR(COUNTRY_INFO!$T$9:$T$1000="T2 (PZQ)",COUNTRY_INFO!$U$9:$U$1000="T2 (PZQ)"), "T2 (PZQ)", " ") ->  | I29: 0 | M29: 0
A30: =IF(COUNTRY_INFO!A30=0," ",COUNTRY_INFO!A30) -> BURUNDI | B30: =IF(COUNTRY_INFO!B30=0," ",COUNTRY_INFO!B30) -> Kayanza | C30: =IF(COUNTRY_INFO!C30=0," ",COUNTRY_INFO!C30) -> Gahombo | D30: =IF(OR(COUNTRY_INFO!$T$9:$T$1000="T2 (PZQ)",COUNTRY_INFO!$U$9:$U$1000="T2 (PZQ)"), "T2 (PZQ)", " ") ->  | I30: 0 | M30: 0
A31: =IF(COUNTRY_INFO!A31=0," ",COUNTRY_INFO!A31) -> BURUNDI | B31: =IF(COUNTRY_INFO!B31=0," ",COUNTRY_INFO!B31) -> Kayanza | C31: =IF(COUNTRY_INFO!C31=0," ",COUNTRY_INFO!C31) -> Kayanza | D31: =IF(OR(COUNTRY_INFO!$T$9:$T$1000="T2 (PZQ)",COUNTRY_INFO!$U$9:$U$1000="T2 (PZQ)"), "T2 (PZQ)", " ") ->  | I31: 0 | M31: 0
A32: =IF(COUNTRY_INFO!A32=0," ",COUNTRY_INFO!A32) -> BURUNDI | B32: =IF(COUNTRY_INFO!B32=0," ",COUNTRY_INFO!B32) -> Kayanza | C32: =IF(COUNTRY_INFO!C32=0," ",COUNTRY_INFO!C32) -> Musema | D32: =IF(OR(COUNTRY_INFO!$T$9:$T$1000="T2 (PZQ)",COUNTRY_INFO!$U$9:$U$1000="T2 (PZQ)"), "T2 (PZQ)", " ") ->  | I32: 0 | M32: 0
A33: =IF(COUNTRY_INFO!A33=0," ",COUNTRY_INFO!A33) -> BURUNDI | B33: =IF(COUNTRY_INFO!B33=0," ",COUNTRY_INFO!B33) -> Kirundo | C33: =IF(COUNTRY_INFO!C33=0," ",COUNTRY_INFO!C33) -> Busoni | D33: =IF(OR(COUNTRY_INFO!$T$9:$T$1000="T2 (PZQ)",COUNTRY_INFO!$U$9:$U$1000="T2 (PZQ)"), "T2 (PZQ)", " ") ->  | I33: 0 | M33: 0
A34: =IF(COUNTRY_INFO!A34=0," ",COUNTRY_INFO!A34) -> BURUNDI | B34: =IF(COUNTRY_INFO!B34=0," ",COUNTRY_INFO!B34) -> Kirundo | C34: =IF(COUNTRY_INFO!C34=0," ",COUNTRY_INFO!C34) -> Kirundo | D34: =IF(OR(COUNTRY_INFO!$T$9:$T$1000="T2 (PZQ)",COUNTRY_INFO!$U$9:$U$1000="T2 (PZQ)"), "T2 (PZQ)", " ") ->  | I34: 0 | M34: 0
A35: =IF(COUNTRY_INFO!A35=0," ",COUNTRY_INFO!A35) -> BURUNDI | B35: =IF(COUNTRY_INFO!B35=0," ",COUNTRY_INFO!B35) -> Kirundo | C35: =IF(COUNTRY_INFO!C35=0," ",COUNTRY_INFO!C35) -> Mukenke | D35: =IF(OR(COUNTRY_INFO!$T$9:$T$1000="T2 (PZQ)",COUNTRY_INFO!$U$9:$U$1000="T2 (PZQ)"), "T2 (PZQ)", " ") ->  | I35: 0 | M35: 0
A36: =IF(COUNTRY_INFO!A36=0," ",COUNTRY_INFO!A36) -> BURUNDI | B36: =IF(COUNTRY_INFO!B36=0," ",COUNTRY_INFO!B36) -> Kirundo | C36: =IF(COUNTRY_INFO!C36=0," ",COUNTRY_INFO!C36) -> Vumbi | D36: =IF(OR(COUNTRY_INFO!$T$9:$T$1000="T2 (PZQ)",COUNTRY_INFO!$U$9:$U$1000="T2 (PZQ)"), "T2 (PZQ)", " ") ->  | I36: 0 | M36: 0
A37: =IF(COUNTRY_INFO!A37=0," ",COUNTRY_INFO!A37) -> BURUNDI | B37: =IF(COUNTRY_INFO!B37=0," ",COUNTRY_INFO!B37) -> Makamba | C37: =IF(COUNTRY_INFO!C37=0," ",COUNTRY_INFO!C37) -> Makamba | D37: =IF(OR(COUNTRY_INFO!$T$9:$T$1000="T2 (PZQ)",COUNTRY_INFO!$U$9:$U$1000="T2 (PZQ)"), "T2 (PZQ)", " ") ->  | I37: 0 | M37: 0
A38: =IF(COUNTRY_INFO!A38=0," ",COUNTRY_INFO!A38) -> BURUNDI | B38: =IF(COUNTRY_INFO!B38=0," ",COUNTRY_INFO!B38) -> Makamba | C38: =IF(COUNTRY_INFO!C38=0," ",COUNTRY_INFO!C38) -> Nyanza-Lac | D38: =IF(OR(COUNTRY_INFO!$T$9:$T$1000="T2 (PZQ)",COUNTRY_INFO!$U$9:$U$1000="T2 (PZQ)"), "T2 (PZQ)", " ") ->  | I38: 0 | M38: 0
A39: =IF(COUNTRY_INFO!A39=0," ",COUNTRY_INFO!A39) -> BURUNDI | B39: =IF(COUNTRY_INFO!B39=0," ",COUNTRY_INFO!B39) -> Muramvya | C39: =IF(COUNTRY_INFO!C39=0," ",COUNTRY_INFO!C39) -> Kiganda | D39: =IF(OR(COUNTRY_INFO!$T$9:$T$1000="T2 (PZQ)",COUNTRY_INFO!$U$9:$U$1000="T2 (PZQ)"), "T2 (PZQ)", " ") ->  | I39: 0 | M39: 0
A40: =IF(COUNTRY_INFO!A40=0," ",COUNTRY_INFO!A40) -> BURUNDI | B40: =IF(COUNTRY_INFO!B40=0," ",COUNTRY_INFO!B40) -> Muramvya | C40: =IF(COUNTRY_INFO!C40=0," ",COUNTRY_INFO!C40) -> Muramvya | D40: =IF(OR(COUNTRY_INFO!$T$9:$T$1000="T2 (PZQ)",COUNTRY_INFO!$U$9:$U$1000="T2 (PZQ)"), "T2 (PZQ)", " ") ->  | I40: 0 | M40: 0
A41: =IF(COUNTRY_INFO!A41=0," ",COUNTRY_INFO!A41) -> BURUNDI | B41: =IF(COUNTRY_INFO!B41=0," ",COUNTRY_INFO!B41) -> Muyinga | C41: =IF(COUNTRY_INFO!C41=0," ",COUNTRY_INFO!C41) -> Gashoho | D41: =IF(OR(COUNTRY_INFO!$T$9:$T$1000="T2 (PZQ)",COUNTRY_INFO!$U$9:$U$1000="T2 (PZQ)"), "T2 (PZQ)", " ") ->  | I41: 0 | M41: 0
A42: =IF(COUNTRY_INFO!A42=0," ",COUNTRY_INFO!A42) -> BURUNDI | B42: =IF(COUNTRY_INFO!B42=0," ",COUNTRY_INFO!B42) -> Muyinga | C42: =IF(COUNTRY_INFO!C42=0," ",COUNTRY_INFO!C42) -> Giteranyi | D42: =IF(OR(COUNTRY_INFO!$T$9:$T$1000="T2 (PZQ)",COUNTRY_INFO!$U$9:$U$1000="T2 (PZQ)"), "T2 (PZQ)", " ") ->  | I42: 0 | M42: 0
A43: =IF(COUNTRY_INFO!A43=0," ",COUNTRY_INFO!A43) -> BURUNDI | B43: =IF(COUNTRY_INFO!B43=0," ",COUNTRY_INFO!B43) -> Muyinga | C43: =IF(COUNTRY_INFO!C43=0," ",COUNTRY_INFO!C43) -> Muyinga | D43: =IF(OR(COUNTRY_INFO!$T$9:$T$1000="T2 (PZQ)",COUNTRY_INFO!$U$9:$U$1000="T2 (PZQ)"), "T2 (PZQ)", " ") ->  | I43: 0 | M43: 0
A44: =IF(COUNTRY_INFO!A44=0," ",COUNTRY_INFO!A44) -> BURUNDI | B44: =IF(COUNTRY_INFO!B44=0," ",COUNTRY_INFO!B44) -> Mwaro | C44: =IF(COUNTRY_INFO!C44=0," ",COUNTRY_INFO!C44) -> Fota | D44: =IF(OR(COUNTRY_INFO!$T$9:$T$1000="T2 (PZQ)",COUNTRY_INFO!$U$9:$U$1000="T2 (PZQ)"), "T2 (PZQ)", " ") ->  | I44: 0 | M44: 0
A45: =IF(COUNTRY_INFO!A45=0," ",COUNTRY_INFO!A45) -> BURUNDI | B45: =IF(COUNTRY_INFO!B45=0," ",COUNTRY_INFO!B45) -> Mwaro | C45: =IF(COUNTRY_INFO!C45=0," ",COUNTRY_INFO!C45) -> Kibumbu | D45: =IF(OR(COUNTRY_INFO!$T$9:$T$1000="T2 (PZQ)",COUNTRY_INFO!$U$9:$U$1000="T2 (PZQ)"), "T2 (PZQ)", " ") ->  | I45: 0 | M45: 0
A46: =IF(COUNTRY_INFO!A46=0," ",COUNTRY_INFO!A46) -> BURUNDI | B46: =IF(COUNTRY_INFO!B46=0," ",COUNTRY_INFO!B46) -> Ngozi | C46: =IF(COUNTRY_INFO!C46=0," ",COUNTRY_INFO!C46) -> Buye | D46: =IF(OR(COUNTRY_INFO!$T$9:$T$1000="T2 (PZQ)",COUNTRY_INFO!$U$9:$U$1000="T2 (PZQ)"), "T2 (PZQ)", " ") ->  | I46: 0 | M46: 0
A47: =IF(COUNTRY_INFO!A47=0," ",COUNTRY_INFO!A47) -> BURUNDI | B47: =IF(COUNTRY_INFO!B47=0," ",COUNTRY_INFO!B47) -> Ngozi | C47: =IF(COUNTRY_INFO!C47=0," ",COUNTRY_INFO!C47) -> Kiremba | D47: =IF(OR(COUNTRY_INFO!$T$9:$T$1000="T2 (PZQ)",COUNTRY_INFO!$U$9:$U$1000="T2 (PZQ)"), "T2 (PZQ)", " ") ->  | I47: 0 | M47: 0
A48: =IF(COUNTRY_INFO!A48=0," ",COUNTRY_INFO!A48) -> BURUNDI | B48: =IF(COUNTRY_INFO!B48=0," ",COUNTRY_INFO!B48) -> Ngozi | C48: =IF(COUNTRY_INFO!C48=0," ",COUNTRY_INFO!C48) -> Ngozi | D48: =IF(OR(COUNTRY_INFO!$T$9:$T$1000="T2 (PZQ)",COUNTRY_INFO!$U$9:$U$1000="T2 (PZQ)"), "T2 (PZQ)", " ") ->  | I48: 0 | M48: 0
A49: =IF(COUNTRY_INFO!A49=0," ",COUNTRY_INFO!A49) -> BURUNDI | B49: =IF(COUNTRY_INFO!B49=0," ",COUNTRY_INFO!B49) -> Rumonge | C49: =IF(COUNTRY_INFO!C49=0," ",COUNTRY_INFO!C49) -> Bugarama | D49: =IF(OR(COUNTRY_INFO!$T$9:$T$1000="T2 (PZQ)",COUNTRY_INFO!$U$9:$U$1000="T2 (PZQ)"), "T2 (PZQ)", " ") ->  | I49: 0 | M49: 0
A50: =IF(COUNTRY_INFO!A50=0," ",COUNTRY_INFO!A50) -> BURUNDI | B50: =IF(COUNTRY_INFO!B50=0," ",COUNTRY_INFO!B50) -> Rumonge | C50: =IF(COUNTRY_INFO!C50=0," ",COUNTRY_INFO!C50) -> Rumonge | D50: =IF(OR(COUNTRY_INFO!$T$9:$T$1000="T2 (PZQ)",COUNTRY_INFO!$U$9:$U$1000="T2 (PZQ)"), "T2 (PZQ)", " ") ->  | I50: 0 | M50: 0
A51: =IF(COUNTRY_INFO!A51=0," ",COUNTRY_INFO!A51) -> BURUNDI | B51: =IF(COUNTRY_INFO!B51=0," ",COUNTRY_INFO!B51) -> Rutana | C51: =IF(COUNTRY_INFO!C51=0," ",COUNTRY_INFO!C51) -> Gihofi | D51: =IF(OR(COUNTRY_INFO!$T$9:$T$1000="T2 (PZQ)",COUNTRY_INFO!$U$9:$U$1000="T2 (PZQ)"), "T2 (PZQ)", " ") ->  | I51: 0 | M51: 0
A52: =IF(COUNTRY_INFO!A52=0," ",COUNTRY_INFO!A52) -> BURUNDI | B52: =IF(COUNTRY_INFO!B52=0," ",COUNTRY_INFO!B52) -> Rutana | C52: =IF(COUNTRY_INFO!C52=0," ",COUNTRY_INFO!C52) -> Rutana | D52: =IF(OR(COUNTRY_INFO!$T$9:$T$1000="T2 (PZQ)",COUNTRY_INFO!$U$9:$U$1000="T2 (PZQ)"), "T2 (PZQ)", " ") ->  | I52: 0 | M52: 0
A53: =IF(COUNTRY_INFO!A53=0," ",COUNTRY_INFO!A53) -> BURUNDI | B53: =IF(COUNTRY_INFO!B53=0," ",COUNTRY_INFO!B53) -> Ruyigi | C53: =IF(COUNTRY_INFO!C53=0," ",COUNTRY_INFO!C53) -> Butezi | D53: =IF(OR(COUNTRY_INFO!$T$9:$T$1000="T2 (PZQ)",COUNTRY_INFO!$U$9:$U$1000="T2 (PZQ)"), "T2 (PZQ)", " ") ->  | I53: 0 | M53: 0
A54: =IF(COUNTRY_INFO!A54=0," ",COUNTRY_INFO!A54) -> BURUNDI | B54: =IF(COUNTRY_INFO!B54=0," ",COUNTRY_INFO!B54) -> Ruyigi | C54: =IF(COUNTRY_INFO!C54=0," ",COUNTRY_INFO!C54) -> Kinyinya | D54: =IF(OR(COUNTRY_INFO!$T$9:$T$1000="T2 (PZQ)",COUNTRY_INFO!$U$9:$U$1000="T2 (PZQ)"), "T2 (PZQ)", " ") ->  | I54: 0 | M54: 0
A55: =IF(COUNTRY_INFO!A55=0," ",COUNTRY_INFO!A55) -> BURUNDI | B55: =IF(COUNTRY_INFO!B55=0," ",COUNTRY_INFO!B55) -> Ruyigi | C55: =IF(COUNTRY_INFO!C55=0," ",COUNTRY_INFO!C55) -> Ruyigi | D55: =IF(OR(COUNTRY_INFO!$T$9:$T$1000="T2 (PZQ)",COUNTRY_INFO!$U$9:$U$1000="T2 (PZQ)"), "T2 (PZQ)", " ") ->  | I55: 0 | M55: 0

Sheet T3_R1
A1: T 3 - Albendazole (ALB) ou Mebendazole (MBD) - Tournée 1
A2: Structure administrative, population nécessitant une chimioprévention par groupe d'âge, population traitée par groupe d'âge et couverture
A4: TOTAL | G4: =SUM(G$9:G$1000) -> 1634797.109 | H4: 3073879.071 | I4: 287816.3924 | J4: 4996492.572 | K4: 1504835 | L4: 3719062 | M4: 153999 | N4: 5377896 | O4: =IF(G4<>0, IF(K4/G4*100=0, "-", K4/G4*100), " ") -> 92.05026067 | P4: =IF(H4<>0, IF(L4/H4*100=0, "-", L4/H4*100), " ") -> 120.9892099 | Q4: =IF(I4<>0, IF(M4/I4*100=0, "-", M4/I4*100), " ") -> 53.50598648 | R4: =IF(J4<>0, IF(N4/J4*100=0, "-", N4/J4*100), " ") -> 107.6334233
A6: Structure administrative du pays | D6: Mise en oeuvre de la CP | E6: Médica-ment | F6: Date | G6: Population ciblée pour T3 | K6: Population traitée | O6: Couverture du Programme (%)
A7: Pays | B7: Région/Département | C7: District | G7: EAPréS | H7: EAS | I7: Adultes | J7: Total | K7: EAPréS | L7: EAS | M7: Adultes | N7: Total | O7: EAPréS | P7: EAS | Q7: Adultes | R7: Total
A9: =IF(COUNTRY_INFO!A9=0," ",COUNTRY_INFO!A9) -> BURUNDI | B9: =IF(COUNTRY_INFO!B9=0," ",COUNTRY_INFO!B9) -> Bubanza | C9: =IF(COUNTRY_INFO!C9=0," ",COUNTRY_INFO!C9) -> Bubanza | D9: T3 (ALB/MBD) | E9: ALB | F9: Juin 2020 | G9: 34268.82683 | H9: 64435.04763 | I9: 6033.24416 | J9: =SUM(G9:I9) -> 104737.1186 | K9: 28962 | L9: 83171 | M9: 2488 | N9: =SUM(K9:M9) -> 114621 | O9: =IF(G9<>0, IF(K9/G9*100=0, "-", K9/G9*100), " ") -> 84.5141275 | P9: 129.0772694 | Q9: 41.23817857 | R9: 109.4368468
A10: =IF(COUNTRY_INFO!A10=0," ",COUNTRY_INFO!A10) -> BURUNDI | B10: =IF(COUNTRY_INFO!B10=0," ",COUNTRY_INFO!B10) -> Bubanza | C10: =IF(COUNTRY_INFO!C10=0," ",COUNTRY_INFO!C10) -> Mpanda | D10: T3 (ALB/MBD) | E10: ALB | F10: Juin 2020 | G10: 43250.78834 | H10: 81323.66539 | I10: 7614.575411 | J10: =SUM(G10:I10) -> 132189.0291 | K10: 38757 | L10: 92945 | M10: 3611 | N10: =SUM(K10:M10) -> 135313 | O10: =IF(G10<>0, IF(K10/G10*100=0, "-", K10/G10*100), " ") -> 89.60992734 | P10: =IF(H10<>0, IF(L10/H10*100=0, "-", L10/H10*100), " ") -> 114.2902248 | Q10: =IF(I10<>0, IF(M10/I10*100=0, "-", M10/I10*100), " ") -> 47.42221076 | R10: =IF(J10<>0, IF(N10/J10*100=0, "-", N10/J10*100), " ") -> 102.3632603
A11: =IF(COUNTRY_INFO!A11=0," ",COUNTRY_INFO!A11) -> BURUNDI | B11: =IF(COUNTRY_INFO!B11=0," ",COUNTRY_INFO!B11) -> Bujumbura Mairie | C11: =IF(COUNTRY_INFO!C11=0," ",COUNTRY_INFO!C11) -> Zone Centre | D11: T3 (ALB/MBD) | E11: ALB | F11: Juin 2020 | G11: 18802.51538 | H11: 35354.02539 | I11: 3310.302003 | J11: 57466.84278 | K11: 11566 | L11: 24803 | M11: 806 | N11: 37175 | O11: 61.51304635 | P11: 70.1560847 | Q11: 24.34823165 | R11: 64.68947693
A12: =IF(COUNTRY_INFO!A12=0," ",COUNTRY_INFO!A12) -> BURUNDI | B12: =IF(COUNTRY_INFO!B12=0," ",COUNTRY_INFO!B12) -> Bujumbura Mairie | C12: =IF(COUNTRY_INFO!C12=0," ",COUNTRY_INFO!C12) -> Zone Nord | D12: T3 (ALB/MBD) | E12: ALB | F12: Juin 2020 | G12: 61688.79838 | H12: 115992.3181 | I12: 10860.70394 | J12: 188541.8204 | K12: 42347 | L12: 71017 | M12: 3749 | N12: 117113 | O12: 68.6461742 | P12: 61.22560629 | Q12: 34.51894114 | R12: 62.11513167
A13: =IF(COUNTRY_INFO!A13=0," ",COUNTRY_INFO!A13) -> BURUNDI | B13: =IF(COUNTRY_INFO!B13=0," ",COUNTRY_INFO!B13) -> Bujumbura Mairie | C13: =IF(COUNTRY_INFO!C13=0," ",COUNTRY_INFO!C13) -> Zone Sud | D13: T3 (ALB/MBD) | E13: ALB | F13: Juin 2020 | G13: 28204.81535 | H13: 53032.99788 | I13: 4965.636506 | J13: 86203.44974 | K13: 12010 | L13: 46069 | M13: 1303 | N13: 59382 | O13: 42.58138141 | P13: 86.86855702 | Q13: 26.24034197 | R13: 68.88587427
A14: =IF(COUNTRY_INFO!A14=0," ",COUNTRY_INFO!A14) -> BURUNDI | B14: =IF(COUNTRY_INFO!B14=0," ",COUNTRY_INFO!B14) -> Bujumbura Rural | C14: =IF(COUNTRY_INFO!C14=0," ",COUNTRY_INFO!C14) -> Isare | D14: T3 (ALB/MBD) | E14: ALB | F14: Juin 2020 | G14: 37793.53536 | H14: 71062.49255 | I14: 6653.791437 | J14: 115509.8193 | K14: 25801 | L14: 94144 | M14: 2988 | N14: 122933 | O14: 68.26828915 | P14: 132.4805768 | Q14: 44.90672767 | R14: 106.4264499
A15: =IF(COUNTRY_INFO!A15=0," ",COUNTRY_INFO!A15) -> BURUNDI | B15: =IF(COUNTRY_INFO!B15=0," ",COUNTRY_INFO!B15) -> Bujumbura Rural | C15: =IF(COUNTRY_INFO!C15=0," ",COUNTRY_INFO!C15) -> Kabezi | D15: T3 (ALB/MBD) | E15: ALB | F15: Juin 2020 | G15: 32302.48259 | H15: 60737.76656 | I15: 5687.056794 | J15: 98727.30594 | K15: 29242 | L15: 77188 | M15: 2923 | N15: 109353 | O15: 90.52554992 | P15: 127.0840276 | Q15: 51.39741181 | R15: 110.7626699
A16: =IF(COUNTRY_INFO!A16=0," ",COUNTRY_INFO!A16) -> BURUNDI | B16: =IF(COUNTRY_INFO!B16=0," ",COUNTRY_INFO!B16) -> Bujumbura Rural | C16: =IF(COUNTRY_INFO!C16=0," ",COUNTRY_INFO!C16) -> Rwibaga | D16: T3 (ALB/MBD) | E16: ALB | F16: Juin 2020 | G16: 16331.55652 | H16: 30707.9267 | I16: 2875.274035 | J16: 49914.75725 | K16: 14605 | L16: 39123 | M16: 1435 | N16: 55163 | O16: 89.42809574 | P16: 127.4035867 | Q16: 49.90828639 | R16: 110.514411
A17: =IF(COUNTRY_INFO!A17=0," ",COUNTRY_INFO!A17) -> BURUNDI | B17: =IF(COUNTRY_INFO!B17=0," ",COUNTRY_INFO!B17) -> Bururi | C17: =IF(COUNTRY_INFO!C17=0," ",COUNTRY_INFO!C17) -> Bururi | D17: T3 (ALB/MBD) | E17: ALB | F17: Juin 2020 | G17: 22724.78102 | H17: 42728.98966 | I17: 4000.841728 | J17: 69454.6124 | K17: 25789 | L17: 51274 | M17: 3202 | N17: 80265 | O17: 113.4840419 | P17: 119.9981568 | Q17: 80.03315846 | R17: 115.5646792
A18: =IF(COUNTRY_INFO!A18=0," ",COUNTRY_INFO!A18) -> BURUNDI | B18: =IF(COUNTRY_INFO!B18=0," ",COUNTRY_INFO!B18) -> Bururi | C18: =IF(COUNTRY_INFO!C18=0," ",COUNTRY_INFO!C18) -> Matana | D18: T3 (ALB/MBD) | E18: ALB | F18: Juin 2020 | G18: 35710.15746 | H18: 67145.15522 | I18: 6286.999552 | J18: 109142.3122 | K18: 29210 | L18: 79081 | M18: 3011 | N18: 111302 | O18: 81.79745507 | P18: 117.7761817 | Q18: 47.89247995 | R18: 101.9787814
A19: =IF(COUNTRY_INFO!A19=0," ",COUNTRY_INFO!A19) -> BURUNDI | B19: =IF(COUNTRY_INFO!B19=0," ",COUNTRY_INFO!B19) -> Cankuzo | C19: =IF(COUNTRY_INFO!C19=0," ",COUNTRY_INFO!C19) -> Cankuzo | D19: T3 (ALB/MBD) | E19: ALB | F19: Juin 2020 | G19: 28300.85443 | H19: 53213.5784 | I19: 4982.544794 | J19: 86496.97762 | K19: 28137 | L19: 66867 | M19: 2912 | N19: 97916 | O19: 99.42102657 | P19: 125.6577776 | Q19: 58.44403052 | R19: 113.2016432
A20: =IF(COUNTRY_INFO!A20=0," ",COUNTRY_INFO!A20) -> BURUNDI | B20: =IF(COUNTRY_INFO!B20=0," ",COUNTRY_INFO!B20) -> Cankuzo | C20: =IF(COUNTRY_INFO!C20=0," ",COUNTRY_INFO!C20) -> Murore | D20: T3 (ALB/MBD) | E20: ALB | F20: Juin 2020 | G20: 26090.6156 | H20: 49057.7068 | I20: 4593.41824 | J20: 79741.74065 | K20: 27544 | L20: 68217 | M20: 3180 | N20: 98941 | O20: 105.5705255 | P20: 139.0546041 | Q20: 69.22948954 | R20: 124.0767999
A21: =IF(COUNTRY_INFO!A21=0," ",COUNTRY_INFO!A21) -> BURUNDI | B21: =IF(COUNTRY_INFO!B21=0," ",COUNTRY_INFO!B21) -> Cibitoke | C21: =IF(COUNTRY_INFO!C21=0," ",COUNTRY_INFO!C21) -> Bukinanyana | D21: T3 (ALB/MBD) | E21: ALB | F21: Juin 2020 | G21: 29268.69008 | H21: 55033.38204 | I21: 5152.938394 | J21: 89455.01051 | K21: 28098 | L21: 68824 | M21: 2118 | N21: 99040 | O21: 96.00019655 | P21: 125.0586416 | Q21: 41.10276192 | R21: 110.7148716
A22: =IF(COUNTRY_INFO!A22=0," ",COUNTRY_INFO!A22) -> BURUNDI | B22: =IF(COUNTRY_INFO!B22=0," ",COUNTRY_INFO!B22) -> Cibitoke | C22: =IF(COUNTRY_INFO!C22=0," ",COUNTRY_INFO!C22) -> Cibitoke | D22: T3 (ALB/MBD) | E22: ALB | F22: Juin 2020 | G22: 30550.55117 | H22: 57443.64198 | I22: 5378.618163 | J22: 93372.81131 | K22: 25978 | L22: 78465 | M22: 2085 | N22: 106528 | O22: 85.03283577 | P22: 136.5947515 | Q22: 38.76460341 | R22: 114.0888857
A23: =IF(COUNTRY_INFO!A23=0," ",COUNTRY_INFO!A23) -> BURUNDI | B23: =IF(COUNTRY_INFO!B23=0," ",COUNTRY_INFO!B23) -> Cibitoke | C23: =IF(COUNTRY_INFO!C23=0," ",COUNTRY_INFO!C23) -> Mabayi | D23: T3 (ALB/MBD) | E23: ALB | F23: Juin 2020 | G23: 33018.38317 | H23: 62083.86132 | I23: 5813.095629 | J23: 100915.3401 | K23: 31453 | L23: 82582 | M23: 3076 | N23: 117111 | O23: 95.25905565 | P23: 133.0168553 | Q23: 52.91500771 | R23: 116.0487592
A24: =IF(COUNTRY_INFO!A24=0," ",COUNTRY_INFO!A24) -> BURUNDI | B24: =IF(COUNTRY_INFO!B24=0," ",COUNTRY_INFO!B24) -> Gitega | C24: =IF(COUNTRY_INFO!C24=0," ",COUNTRY_INFO!C24) -> Gitega | D24: T3 (ALB/MBD) | E24: ALB | F24: Juin 2020 | G24: 46493.48445 | H24: 87420.84752 | I24: 8185.472614 | J24: 142099.8046 | K24: 41958 | L24: 103672 | M24: 3524 | N24: 149154 | O24: 90.24490312 | P24: 118.5895618 | Q24: 43.05188186 | R24: 104.9642541
A25: =IF(COUNTRY_INFO!A25=0," ",COUNTRY_INFO!A25) -> BURUNDI | B25: =IF(COUNTRY_INFO!B25=0," ",COUNTRY_INFO!B25) -> Gitega | C25: =IF(COUNTRY_INFO!C25=0," ",COUNTRY_INFO!C25) -> Kibuye | D25: T3 (ALB/MBD) | E25: ALB | F25: Juin 2020 | G25: 32657.30603 | H25: 61404.93457 | I25: 5749.525709 | J25: 99811.7663 | K25: 35032 | L25: 82522 | M25: 3232 | N25: 120786 | O25: 107.271555 | P25: 134.3898509 | Q25: 56.21333243 | R25: 121.0137887
A26: =IF(COUNTRY_INFO!A26=0," ",COUNTRY_INFO!A26) -> BURUNDI | B26: =IF(COUNTRY_INFO!B26=0," ",COUNTRY_INFO!B26) -> Gitega | C26: =IF(COUNTRY_INFO!C26=0," ",COUNTRY_INFO!C26) -> Mutaho | D26: T3 (ALB/MBD) | E26: ALB | F26: Juin 2020 | G26: 31649.71467 | H26: 59510.37899 | I26: 5572.132864 | J26: 96732.22652 | K26: 29907 | L26: 69717 | M26: 2595 | N26: 102219 | O26: 94.49374288 | P26: 117.1509931 | Q26: 46.57103596 | R26: 105.6721257
A27: =IF(COUNTRY_INFO!A27=0," ",COUNTRY_INFO!A27) -> BURUNDI | B27: =IF(COUNTRY_INFO!B27=0," ",COUNTRY_INFO!B27) -> Gitega | C27: =IF(COUNTRY_INFO!C27=0," ",COUNTRY_INFO!C27) -> Ryansoro | D27: T3 (ALB/MBD) | E27: ALB | F27: Juin 2020 | G27: 23363.85034 | H27: 43930.62 | I27: 4113.353933 | J27: 71407.82427 | K27: 22334 | L27: 53472 | M27: 2452 | N27: 78258 | O27: 95.59212063 | P27: 121.7192018 | Q27: 59.61072254 | R27: 109.5930324
A28: =IF(COUNTRY_INFO!A28=0," ",COUNTRY_INFO!A28) -> BURUNDI | B28: =IF(COUNTRY_INFO!B28=0," ",COUNTRY_INFO!B28) -> Karusi | C28: =IF(COUNTRY_INFO!C28=0," ",COUNTRY_INFO!C28) -> Buhiga | D28: T3 (ALB/MBD) | E28: ALB | F28: Juin 2020 | G28: 44593.10193 | H28: 83847.59307 | I28: 7850.898227 | J28: 136291.5932 | K28: 48234 | L28: 106476 | M28: 4826 | N28: 159536 | O28: 108.1647114 | P28: 126.987545 | Q28: 61.4706733 | R28: 117.0549087
A29: =IF(COUNTRY_INFO!A29=0," ",COUNTRY_INFO!A29) -> BURUNDI | B29: =IF(COUNTRY_INFO!B29=0," ",COUNTRY_INFO!B29) -> Karusi | C29: =IF(COUNTRY_INFO!C29=0," ",COUNTRY_INFO!C29) -> Nyabikere | D29: T3 (ALB/MBD) | E29: ALB | F29: Juin 2020 | G29: 38951.21569 | H29: 73239.25768 | I29: 6857.608397 | J29: 119048.0818 | K29: 39337 | L29: 86089 | M29: 3966 | N29: 129392 | O29: 100.9904294 | P29: 117.5448833 | Q29: 57.83357361 | R29: 108.6888575
A30: =IF(COUNTRY_INFO!A30=0," ",COUNTRY_INFO!A30) -> BURUNDI | B30: =IF(COUNTRY_INFO!B30=0," ",COUNTRY_INFO!B30) -> Kayanza | C30: =IF(COUNTRY_INFO!C30=0," ",COUNTRY_INFO!C30) -> Gahombo | D30: T3 (ALB/MBD) | E30: ALB | F30: Juin 2020 | G30: 33529.2515 | H30: 63044.43767 | I30: 5903.037235 | J30: 102476.7264 | K30: 29636 | L30: 65917 | M30: 3436 | N30: 98989 | O30: 88.38849267 | P30: 104.5564088 | Q30: 58.20732384 | R30: 96.59656731
A31: =IF(COUNTRY_INFO!A31=0," ",COUNTRY_INFO!A31) -> BURUNDI | B31: =IF(COUNTRY_INFO!B31=0," ",COUNTRY_INFO!B31) -> Kayanza | C31: =IF(COUNTRY_INFO!C31=0," ",COUNTRY_INFO!C31) -> Kayanza | D31: T3 (ALB/MBD) | E31: ALB | F31: Juin 2020 | G31: 38336.26781 | H31: 72082.98244 | I31: 6749.342925 | J31: 117168.5932 | K31: 41160 | L31: 96062 | M31: 3521 | N31: 140743 | O31: 107.365694 | P31: 133.265851 | Q31: 52.16804123 | R31: 120.1200733
A32: =IF(COUNTRY_INFO!A32=0," ",COUNTRY_INFO!A32) -> BURUNDI | B32: =IF(COUNTRY_INFO!B32=0," ",COUNTRY_INFO!B32) -> Kayanza | C32: =IF(COUNTRY_INFO!C32=0," ",COUNTRY_INFO!C32) -> Musema | D32: T3 (ALB/MBD) | E32: ALB | F32: Juin 2020 | G32: 35494.70332 | H32: 66740.04075 | I32: 6249.067486 | J32: 108483.8116 | K32: 35294 | L32: 95603 | M32: 3226 | N32: 134123 | O32: 99.43455417 | P32: 143.2468409 | Q32: 51.62370237 | R32: 123.6341147
A33: =IF(COUNTRY_INFO!A33=0," ",COUNTRY_INFO!A33) -> BURUNDI | B33: =IF(COUNTRY_INFO!B33=0," ",COUNTRY_INFO!B33) -> Kirundo | C33: =IF(COUNTRY_INFO!C33=0," ",COUNTRY_INFO!C33) -> Busoni | D33: T3 (ALB/MBD) | E33: ALB | F33: Juin 2020 | G33: 27374.71016 | H33: 51472.16629 | I33: 4819.491226 | J33: 83666.36768 | K33: 24844 | L33: 65456 | M33: 2831 | N33: 93131 | O33: 90.75529879 | P33: 127.1677583 | Q33: 58.74064019 | R33: 111.31235
A34: =IF(COUNTRY_INFO!A34=0," ",COUNTRY_INFO!A34) -> BURUNDI | B34: =IF(COUNTRY_INFO!B34=0," ",COUNTRY_INFO!B34) -> Kirundo | C34: =IF(COUNTRY_INFO!C34=0," ",COUNTRY_INFO!C34) -> Kirundo | D34: T3 (ALB/MBD) | E34: ALB | F34: Juin 2020 | G34: 36471.47187 | H34: 68576.64076 | I34: 6421.033779 | J34: 111469.1464 | K34: 30373 | L34: 81819 | M34: 3453 | N34: 115645 | O34: 83.27878872 | P34: 119.3103061 | Q34: 53.7763874 | R34: 103.7461968
A35: =IF(COUNTRY_INFO!A35=0," ",COUNTRY_INFO!A35) -> BURUNDI | B35: =IF(COUNTRY_INFO!B35=0," ",COUNTRY_INFO!B35) -> Kirundo | C35: =IF(COUNTRY_INFO!C35=0," ",COUNTRY_INFO!C35) -> Mukenke | D35: T3 (ALB/MBD) | E35: ALB | F35: Juin 2020 | G35: 26687.84465 | H35: 50180.66564 | I35: 4698.564198 | J35: 81567.07448 | K35: 25047 | L35: 55075 | M35: 2645 | N35: 82767 | O35: 93.85171538 | P35: 109.7534265 | Q35: 56.29379292 | R35: 101.4710905
A36: =IF(COUNTRY_INFO!A36=0," ",COUNTRY_INFO!A36) -> BURUNDI | B36: =IF(COUNTRY_INFO!B36=0," ",COUNTRY_INFO!B36) -> Kirundo | C36: =IF(COUNTRY_INFO!C36=0," ",COUNTRY_INFO!C36) -> Vumbi | D36: T3 (ALB/MBD) | E36: ALB | F36: Juin 2020 | G36: 31983.24572 | H36: 60137.51132 | I36: 5630.85312 | J36: 97751.61016 | K36: 29709 | L36: 72881 | M36: 3604 | N36: 106194 | O36: 92.88925914 | P36: 121.190582 | Q36: 64.00451092 | R36: 108.6365737
A37: =IF(COUNTRY_INFO!A37=0," ",COUNTRY_INFO!A37) -> BURUNDI | B37: =IF(COUNTRY_INFO!B37=0," ",COUNTRY_INFO!B37) -> Makamba | C37: =IF(COUNTRY_INFO!C37=0," ",COUNTRY_INFO!C37) -> Makamba | D37: T3 (ALB/MBD) | E37: ALB | F37: Juin 2020 | G37: 51390.43503 | H37: 96628.49404 | I37: 9047.611802 | J37: 157066.5409 | K37: 51617 | L37: 123480 | M37: 5598 | N37: 180695 | O37: 100.4408699 | P37: 127.7883933 | Q37: 61.87268113 | R37: 115.0435981
A38: =IF(COUNTRY_INFO!A38=0," ",COUNTRY_INFO!A38) -> BURUNDI | B38: =IF(COUNTRY_INFO!B38=0," ",COUNTRY_INFO!B38) -> Makamba | C38: =IF(COUNTRY_INFO!C38=0," ",COUNTRY_INFO!C38) -> Nyanza-Lac | D38: T3 (ALB/MBD) | E38: ALB | F38: Juin 2020 | G38: 56507.45655 | H38: 106249.9359 | I38: 9948.495872 | J38: 172705.8883 | K38: 52834 | L38: 130738 | M38: 8751 | N38: 192323 | O38: 93.49916493 | P38: 123.0476036 | Q38: 87.963046 | R38: 111.3586814
A39: =IF(COUNTRY_INFO!A39=0," ",COUNTRY_INFO!A39) -> BURUNDI | B39: =IF(COUNTRY_INFO!B39=0," ",COUNTRY_INFO!B39) -> Muramvya | C39: =IF(COUNTRY_INFO!C39=0," ",COUNTRY_INFO!C39) -> Kiganda | D39: T3 (ALB/MBD) | E39: ALB | F39: Juin 2020 | G39: 29440.66703 | H39: 55356.74715 | I39: 5183.216026 | J39: 89980.6302 | K39: 26416 | L39: 62966 | M39: 2819 | N39: 92201 | O39: 89.72622793 | P39: 113.7458453 | Q39: 54.38708296 | R39: 102.4676086
A40: =IF(COUNTRY_INFO!A40=0," ",COUNTRY_INFO!A40) -> BURUNDI | B40: =IF(COUNTRY_INFO!B40=0," ",COUNTRY_INFO!B40) -> Muramvya | C40: =IF(COUNTRY_INFO!C40=0," ",COUNTRY_INFO!C40) -> Muramvya | D40: T3 (ALB/MBD) | E40: ALB | F40: Juin 2020 | G40: 29227.89208 | H40: 54956.67032 | I40: 5145.755648 | J40: 89330.31805 | K40: 26670 | L40: 71357 | M40: 2383 | N40: 100410 | O40: 91.24845516 | P40: 129.8422914 | Q40: 46.31001087 | R40: 112.4030477
A41: =IF(COUNTRY_INFO!A41=0," ",COUNTRY_INFO!A41) -> BURUNDI | B41: =IF(COUNTRY_INFO!B41=0," ",COUNTRY_INFO!B41) -> Muyinga | C41: =IF(COUNTRY_INFO!C41=0," ",COUNTRY_INFO!C41) -> Gashoho | D41: T3 (ALB/MBD) | E41: ALB | F41: Juin 2020 | G41: 29433.07324 | H41: 55342.46869 | I41: 5181.879091 | J41: 89957.42102 | K41: 28821 | L41: 72280 | M41: 3727 | N41: 104828 | O41: 97.9204576 | P41: 130.6049436 | Q41: 71.92371598 | R41: 116.5306862
A42: =IF(COUNTRY_INFO!A42=0," ",COUNTRY_INFO!A42) -> BURUNDI | B42: =IF(COUNTRY_INFO!B42=0," ",COUNTRY_INFO!B42) -> Muyinga | C42: =IF(COUNTRY_INFO!C42=0," ",COUNTRY_INFO!C42) -> Giteranyi | D42: T3 (ALB/MBD) | E42: ALB | F42: Juin 2020 | G42: 52322.08852 | H42: 98380.26503 | I42: 9211.635302 | J42: 159913.9888 | K42: 51690 | L42: 124262 | M42: 4883 | N42: 180835 | O42: 98.79192797 | P42: 126.3078525 | Q42: 53.00904606 | R42: 113.0826648
A43: =IF(COUNTRY_INFO!A43=0," ",COUNTRY_INFO!A43) -> BURUNDI | B43: =IF(COUNTRY_INFO!B43=0," ",COUNTRY_INFO!B43) -> Muyinga | C43: =IF(COUNTRY_INFO!C43=0," ",COUNTRY_INFO!C43) -> Muyinga | D43: T3 (ALB/MBD) | E43: ALB | F43: Juin 2020 | G43: 51913.36408 | H43: 97611.74795 | I43: 9139.676774 | J43: 158664.7888 | K43: 55254 | L43: 122444 | M43: 4863 | N43: 182561 | O43: 106.4350211 | P43: 125.439819 | Q43: 53.2075709 | R43: 115.0608156
A44: =IF(COUNTRY_INFO!A44=0," ",COUNTRY_INFO!A44) -> BURUNDI | B44: =IF(COUNTRY_INFO!B44=0," ",COUNTRY_INFO!B44) -> Mwaro | C44: =IF(COUNTRY_INFO!C44=0," ",COUNTRY_INFO!C44) -> Fota | D44: T3 (ALB/MBD) | E44: ALB | F44: Juin 2020 | G44: 22588.09284 | H44: 42471.97739 | I44: 4315.676672 | J44: 69375.7469 | K44: 19522 | L44: 46886 | M44: 2260 | N44: 68668 | O44: 86.42606588 | P44: 110.3927881 | Q44: 52.36722238 | R44: 98.97983527
A45: =IF(COUNTRY_INFO!A45=0," ",COUNTRY_INFO!A45) -> BURUNDI | B45: =IF(COUNTRY_INFO!B45=0," ",COUNTRY_INFO!B45) -> Mwaro | C45: =IF(COUNTRY_INFO!C45=0," ",COUNTRY_INFO!C45) -> Kibumbu | D45: T3 (ALB/MBD) | E45: ALB | F45: Juin 2020 | G45: 24513.0435 | H45: 46091.42686 | I45: 3976.776909 | J45: 74581.24726 | K45: 22787 | L45: 55330 | M45: 2073 | N45: 80190 | O45: 92.95867322 | P45: 120.0440164 | Q45: 52.12764124 | R45: 107.5203257
A46: =IF(COUNTRY_INFO!A46=0," ",COUNTRY_INFO!A46) -> BURUNDI | B46: =IF(COUNTRY_INFO!B46=0," ",COUNTRY_INFO!B46) -> Ngozi | C46: =IF(COUNTRY_INFO!C46=0," ",COUNTRY_INFO!C46) -> Buye | D46: T3 (ALB/MBD) | E46: ALB | F46: Juin 2020 | G46: 30648.97261 | H46: 57628.70202 | I46: 5395.945882 | J46: 93673.6205 | K46: 23359 | L46: 74609 | M46: 2316 | N46: 100284 | O46: 76.2146265 | P46: 129.4650016 | Q46: 42.92111246 | R46: 107.0568208
A47: =IF(COUNTRY_INFO!A47=0," ",COUNTRY_INFO!A47) -> BURUNDI | B47: =IF(COUNTRY_INFO!B47=0," ",COUNTRY_INFO!B47) -> Ngozi | C47: =IF(COUNTRY_INFO!C47=0," ",COUNTRY_INFO!C47) -> Kiremba | D47: T3 (ALB/MBD) | E47: ALB | F47: Juin 2020 | G47: 43938.24944 | H47: 82616.28592 | I47: 7735.607296 | J47: 134290.1427 | K47: 38985 | L47: 100851 | M47: 3924 | N47: 143760 | O47: 88.72679384 | P47: 122.0715733 | Q47: 50.72646335 | R47: 107.0517889
A48: =IF(COUNTRY_INFO!A48=0," ",COUNTRY_INFO!A48) -> BURUNDI | B48: =IF(COUNTRY_INFO!B48=0," ",COUNTRY_INFO!B48) -> Ngozi | C48: =IF(COUNTRY_INFO!C48=0," ",COUNTRY_INFO!C48) -> Ngozi | D48: T3 (ALB/MBD) | E48: ALB | F48: Juin 2020 | G48: 49207.5934 | H48: 92524.13689 | I48: 8663.308698 | J48: 150395.039 | K48: 45077 | L48: 115596 | M48: 4894 | N48: 165567 | O48: 91.6057805 | P48: 124.9360479 | Q48: 56.4911187 | R48: 110.0880728
A49: =IF(COUNTRY_INFO!A49=0," ",COUNTRY_INFO!A49) -> BURUNDI | B49: =IF(COUNTRY_INFO!B49=0," ",COUNTRY_INFO!B49) -> Rumonge | C49: =IF(COUNTRY_INFO!C49=0," ",COUNTRY_INFO!C49) -> Bugarama | D49: T3 (ALB/MBD) | E49: ALB | F49: Juin 2020 | G49: 32539.44384 | H49: 61183.32046 | I49: 5728.775324 | J49: 99451.53963 | K49: 26352 | L49: 75154 | M49: 2601 | N49: 104107 | O49: 80.98478919 | P49: 122.834131 | Q49: 45.40237403 | R49: 104.6811345
A50: =IF(COUNTRY_INFO!A50=0," ",COUNTRY_INFO!A50) -> BURUNDI | B50: =IF(COUNTRY_INFO!B50=0," ",COUNTRY_INFO!B50) -> Rumonge | C50: =IF(COUNTRY_INFO!C50=0," ",COUNTRY_INFO!C50) -> Rumonge | D50: T3 (ALB/MBD) | E50: ALB | F50: Juin 2020 | G50: 49788.14589 | H50: 93615.73911 | I50: 8765.518643 | J50: 152169.4036 | K50: 45696 | L50: 108348 | M50: 4612 | N50: 158656 | O50: 91.78088314 | P50: 115.7369488 | Q50: 52.61525516 | R50: 104.2627468
A51: =IF(COUNTRY_INFO!A51=0," ",COUNTRY_INFO!A51) -> BURUNDI | B51: =IF(COUNTRY_INFO!B51=0," ",COUNTRY_INFO!B51) -> Rutana | C51: =IF(COUNTRY_INFO!C51=0," ",COUNTRY_INFO!C51) -> Gihofi | D51: T3 (ALB/MBD) | E51: ALB | F51: Juin 2020 | G51: 38337.3101 | H51: 72084.94223 | I51: 6749.526426 | J51: 117171.7787 | K51: 38623 | L51: 92285 | M51: 3532 | N51: 134440 | O51: 100.7452007 | P51: 128.0225761 | Q51: 52.32959733 | R51: 114.7375259
A52: =IF(COUNTRY_INFO!A52=0," ",COUNTRY_INFO!A52) -> BURUNDI | B52: =IF(COUNTRY_INFO!B52=0," ",COUNTRY_INFO!B52) -> Rutana | C52: =IF(COUNTRY_INFO!C52=0," ",COUNTRY_INFO!C52) -> Rutana | D52: T3 (ALB/MBD) | E52: ALB | F52: Juin 2020 | G52: 30774.64234 | H52: 57864.99652 | I52: 5418.070835 | J52: 94057.7097 | K52: 32921 | L52: 76589 | M52: 3740 | N52: 113250 | O52: 106.9744357 | P52: 132.3580828 | Q52: 69.02825957 | R52: 120.4048029
A53: =IF(COUNTRY_INFO!A53=0," ",COUNTRY_INFO!A53) -> BURUNDI | B53: =IF(COUNTRY_INFO!B53=0," ",COUNTRY_INFO!B53) -> Ruyigi | C53: =IF(COUNTRY_INFO!C53=0," ",COUNTRY_INFO!C53) -> Butezi | D53: T3 (ALB/MBD) | E53: ALB | F53: Juin 2020 | G53: 20714.21902 | H53: 38948.56675 | I53: 3646.869546 | J53: 63309.65532 | K53: 20882 | L53: 61385 | M53: 2411 | N53: 84678 | O53: 100.8099797 | P53: 157.6052859 | Q53: 66.11149561 | R53: 133.7521103
A54: =IF(COUNTRY_INFO!A54=0," ",COUNTRY_INFO!A54) -> BURUNDI | B54: =IF(COUNTRY_INFO!B54=0," ",COUNTRY_INFO!B54) -> Ruyigi | C54: =IF(COUNTRY_INFO!C54=0," ",COUNTRY_INFO!C54) -> Kinyinya | D54: T3 (ALB/MBD) | E54: ALB | F54: Juin 2020 | G54: 44393.51918 | H54: 83472.32127 | I54: 7815.760419 | J54: 135681.6009 | K54: 45555 | L54: 96225 | M54: 4569 | N54: 146349 | O54: 102.6163297 | P54: 115.2777334 | Q54: 58.45880318 | R54: 107.8620823
A55: =IF(COUNTRY_INFO!A55=0," ",COUNTRY_INFO!A55) -> BURUNDI | B55: =IF(COUNTRY_INFO!B55=0," ",COUNTRY_INFO!B55) -> Ruyigi | C55: =IF(COUNTRY_INFO!C55=0," ",COUNTRY_INFO!C55) -> Ruyigi | D55: T3 (ALB/MBD) | E55: ALB | F55: Juin 2020 | G55: 21225.38025 | H55: 39909.69385 | I55: 3736.86272 | J55: 64871.93682 | K55: 19410 | L55: 49746 | M55: 1845 | N55: 71001 | O55: 91.44712496 | P55: 124.6464084 | Q55: 49.37296706 | R55: 109.4479423

Sheet T3_R2
A1: T 3 - Albendazole (ALB) ou Mebendazole (MBD) - Tournée 2
A2: Structure administrative, population nécessitant une chimioprévention par groupe d'âge, population traitée par groupe d'âge et couverture
A4: TOTAL | G4: =SUM(G$9:G$1000) -> 1634797.109 | H4: 1518682.14 | I4: 1531037.576 | J4: 4684516.825 | K4: 1404463 | L4: 1791870 | M4: 1442460 | N4: 4638793 | O4: =IF(G4<>0, IF(K4/G4*100=0, "-", K4/G4*100), " ") -> 85.91053853 | P4: =IF(H4<>0, IF(L4/H4*100=0, "-", L4/H4*100), " ") -> 117.9884818 | Q4: =IF(I4<>0, IF(M4/I4*100=0, "-", M4/I4*100), " ") -> 94.21453936 | R4: =IF(J4<>0, IF(N4/J4*100=0, "-", N4/J4*100), " ") -> 99.02393722
A6: Structure administrative du pays | D6: Mise en oeuvre de la CP | E6: Médica-ment | F6: Date | G6: Population ciblée pour T3 | K6: Population traitée | O6: Couverture du Programme (%)
A7: Pays | B7: Région/Département | C7: District | G7: EAPréS | H7: EAS | I7: Adultes | J7: Total | K7: EAPréS | L7: EAS | M7: Adultes | N7: Total | O7: EAPréS | P7: EAS | Q7: Adultes | R7: Total
A9: =IF(COUNTRY_INFO!A9=0," ",COUNTRY_INFO!A9) -> BURUNDI | B9: =IF(COUNTRY_INFO!B9=0," ",COUNTRY_INFO!B9) -> Bubanza | C9: =IF(COUNTRY_INFO!C9=0," ",COUNTRY_INFO!C9) -> Bubanza | D9: T3 (ALB/MBD) | E9: ALB | F9: Decembre 2020 | G9: 34268.82683 | I9: 168657 | J9: =SUM(G9:I9) -> 202925.8268 | K9: 28640 | M9: 161720 | N9: =SUM(K9:M9) -> 190360 | O9: =IF(G9<>0, IF(K9/G9*100=0, "-", K9/G9*100), " ") -> 83.57449802 | Q9: 95.88691842 | R9: 93.80767494
A10: =IF(COUNTRY_INFO!A10=0," ",COUNTRY_INFO!A10) -> BURUNDI | B10: =IF(COUNTRY_INFO!B10=0," ",COUNTRY_INFO!B10) -> Bubanza | C10: =IF(COUNTRY_INFO!C10=0," ",COUNTRY_INFO!C10) -> Mpanda | D10: T3 (ALB/MBD) | E10: ALB | F10: Decembre 2020 | G10: 43250.78834 | I10: 141308 | J10: =SUM(G10:I10) -> 184558.7883 | K10: 37513 | M10: 137107 | N10: =SUM(K10:M10) -> 174620 | O10: =IF(G10<>0, IF(K10/G10*100=0, "-", K10/G10*100), " ") -> 86.73367919 | P10: =IF(H10<>0, IF(L10/H10*100=0, "-", L10/H10*100), " ") ->  | Q10: =IF(I10<>0, IF(M10/I10*100=0, "-", M10/I10*100), " ") -> 97.02706145 | R10: =IF(J10<>0, IF(N10/J10*100=0, "-", N10/J10*100), " ") -> 94.61483876
A11: =IF(COUNTRY_INFO!A11=0," ",COUNTRY_INFO!A11) -> BURUNDI | B11: =IF(COUNTRY_INFO!B11=0," ",COUNTRY_INFO!B11) -> Bujumbura Mairie | C11: =IF(COUNTRY_INFO!C11=0," ",COUNTRY_INFO!C11) -> Zone Centre | D11: T3 (ALB/MBD) | E11: ALB | F11: Decembre 2020 | G11: 18802.51538 | H11: 35354.02539 | I11: 3310.302003 | J11: 57466.84278 | K11: 6353 | L11: 42545 | M11: 2229 | N11: 51127 | O11: 33.78803246 | P11: 120.3399034 | Q11: 67.33524608 | R11: 88.9678248
A12: =IF(COUNTRY_INFO!A12=0," ",COUNTRY_INFO!A12) -> BURUNDI | B12: =IF(COUNTRY_INFO!B12=0," ",COUNTRY_INFO!B12) -> Bujumbura Mairie | C12: =IF(COUNTRY_INFO!C12=0," ",COUNTRY_INFO!C12) -> Zone Nord | D12: T3 (ALB/MBD) | E12: ALB | F12: Decembre 2020 | G12: 61688.79838 | I12: 10860.70394 | J12: 72549.50232 | K12: 39994 | M12: 8383 | N12: 48377 | O12: 64.83186745 | Q12: 77.18652535 | R12: 66.68136714
A13: =IF(COUNTRY_INFO!A13=0," ",COUNTRY_INFO!A13) -> BURUNDI | B13: =IF(COUNTRY_INFO!B13=0," ",COUNTRY_INFO!B13) -> Bujumbura Mairie | C13: =IF(COUNTRY_INFO!C13=0," ",COUNTRY_INFO!C13) -> Zone Sud | D13: T3 (ALB/MBD) | E13: ALB | F13: Decembre 2020 | G13: 28204.81535 | H13: 53032.99788 | I13: 4965.636506 | J13: 86203.44974 | K13: 18197 | L13: 53934 | M13: 1959 | N13: 74090 | O13: 64.51735199 | P13: 101.6989462 | Q13: 39.45113578 | R13: 85.94783646
A14: =IF(COUNTRY_INFO!A14=0," ",COUNTRY_INFO!A14) -> BURUNDI | B14: =IF(COUNTRY_INFO!B14=0," ",COUNTRY_INFO!B14) -> Bujumbura Rural | C14: =IF(COUNTRY_INFO!C14=0," ",COUNTRY_INFO!C14) -> Isare | D14: T3 (ALB/MBD) | E14: ALB | F14: Decembre 2020 | G14: 37793.53536 | I14: 6653.791437 | J14: 44447.3268 | K14: 37545 | M14: 5549 | N14: 43094 | O14: 99.34238658 | Q14: 83.39606152 | R14: 96.95521217
A15: =IF(COUNTRY_INFO!A15=0," ",COUNTRY_INFO!A15) -> BURUNDI | B15: =IF(COUNTRY_INFO!B15=0," ",COUNTRY_INFO!B15) -> Bujumbura Rural | C15: =IF(COUNTRY_INFO!C15=0," ",COUNTRY_INFO!C15) -> Kabezi | D15: T3 (ALB/MBD) | E15: ALB | F15: Decembre 2020 | G15: 32302.48259 | I15: 5687.056794 | J15: 37989.53938 | K15: 30829 | M15: 5242 | N15: 36071 | O15: 95.438485 | Q15: 92.17421577 | R15: 94.94982194
A16: =IF(COUNTRY_INFO!A16=0," ",COUNTRY_INFO!A16) -> BURUNDI | B16: =IF(COUNTRY_INFO!B16=0," ",COUNTRY_INFO!B16) -> Bujumbura Rural | C16: =IF(COUNTRY_INFO!C16=0," ",COUNTRY_INFO!C16) -> Rwibaga | D16: T3 (ALB/MBD) | E16: ALB | F16: Decembre 2020 | G16: 16331.55652 | H16: 30707.9267 | I16: 2875.274035 | J16: 49914.75725 | K16: 14647 | L16: 39274 | M16: 1961 | N16: 55882 | O16: 89.68526657 | P16: 127.8953164 | Q16: 68.20219485 | R16: 111.9548668
A17: =IF(COUNTRY_INFO!A17=0," ",COUNTRY_INFO!A17) -> BURUNDI | B17: =IF(COUNTRY_INFO!B17=0," ",COUNTRY_INFO!B17) -> Bururi | C17: =IF(COUNTRY_INFO!C17=0," ",COUNTRY_INFO!C17) -> Bururi | D17: T3 (ALB/MBD) | E17: ALB | F17: Decembre 2020 | G17: 22724.78102 | H17: 42728.98966 | I17: 39765 | J17: 105218.7707 | K17: 28683 | L17: 49205 | M17: 40496 | N17: 118384 | O17: 126.2190381 | P17: 115.1560109 | Q17: 101.8383 | R17: 112.512244
A18: =IF(COUNTRY_INFO!A18=0," ",COUNTRY_INFO!A18) -> BURUNDI | B18: =IF(COUNTRY_INFO!B18=0," ",COUNTRY_INFO!B18) -> Bururi | C18: =IF(COUNTRY_INFO!C18=0," ",COUNTRY_INFO!C18) -> Matana | D18: T3 (ALB/MBD) | E18: ALB | F18: Decembre 2020 | G18: 35710.15746 | H18: 67145.15522 | I18: 20945 | J18: 123800.3127 | K18: 29611 | L18: 73992 | M18: 19119 | N18: 122722 | O18: 82.92038487 | P18: 110.1970794 | Q18: 91.28192886 | R18: 99.12899035
A19: =IF(COUNTRY_INFO!A19=0," ",COUNTRY_INFO!A19) -> BURUNDI | B19: =IF(COUNTRY_INFO!B19=0," ",COUNTRY_INFO!B19) -> Cankuzo | C19: =IF(COUNTRY_INFO!C19=0," ",COUNTRY_INFO!C19) -> Cankuzo | D19: T3 (ALB/MBD) | E19: ALB | F19: Decembre 2020 | G19: 28300.85443 | H19: 53213.5784 | I19: 4982.544794 | J19: 86496.97762 | K19: 25856 | L19: 60788 | M19: 4504 | N19: 91148 | O19: 91.36119924 | P19: 114.2340016 | Q19: 90.39557468 | R19: 105.3770924
A20: =IF(COUNTRY_INFO!A20=0," ",COUNTRY_INFO!A20) -> BURUNDI | B20: =IF(COUNTRY_INFO!B20=0," ",COUNTRY_INFO!B20) -> Cankuzo | C20: =IF(COUNTRY_INFO!C20=0," ",COUNTRY_INFO!C20) -> Murore | D20: T3 (ALB/MBD) | E20: ALB | F20: Decembre 2020 | G20: 26090.6156 | I20: 4593.41824 | J20: 30684.03384 | K20: 26782 | M20: 4030 | N20: 30812 | O20: 102.6499352 | Q20: 87.73422731 | R20: 100.4170448
A21: =IF(COUNTRY_INFO!A21=0," ",COUNTRY_INFO!A21) -> BURUNDI | B21: =IF(COUNTRY_INFO!B21=0," ",COUNTRY_INFO!B21) -> Cibitoke | C21: =IF(COUNTRY_INFO!C21=0," ",COUNTRY_INFO!C21) -> Bukinanyana | D21: T3 (ALB/MBD) | E21: ALB | F21: Decembre 2020 | G21: 29268.69008 | I21: 157461 | J21: 186729.6901 | K21: 26168 | M21: 153534 | N21: 179702 | O21: 89.40611941 | Q21: 97.50604912 | R21: 96.23643671
A22: =IF(COUNTRY_INFO!A22=0," ",COUNTRY_INFO!A22) -> BURUNDI | B22: =IF(COUNTRY_INFO!B22=0," ",COUNTRY_INFO!B22) -> Cibitoke | C22: =IF(COUNTRY_INFO!C22=0," ",COUNTRY_INFO!C22) -> Cibitoke | D22: T3 (ALB/MBD) | E22: ALB | F22: Decembre 2020 | G22: 30550.55117 | I22: 162214 | J22: 192764.5512 | K22: 26494 | M22: 157996 | N22: 184490 | O22: 86.72183967 | Q22: 97.39973122 | R22: 95.7074311
A23: =IF(COUNTRY_INFO!A23=0," ",COUNTRY_INFO!A23) -> BURUNDI | B23: =IF(COUNTRY_INFO!B23=0," ",COUNTRY_INFO!B23) -> Cibitoke | C23: =IF(COUNTRY_INFO!C23=0," ",COUNTRY_INFO!C23) -> Mabayi | D23: T3 (ALB/MBD) | E23: ALB | F23: Decembre 2020 | G23: 33018.38317 | I23: 143452 | J23: 176470.3832 | K23: 25865 | M23: 140125 | N23: 165990 | O23: 78.33515005 | Q23: 97.68075733 | R23: 94.0611093
A24: =IF(COUNTRY_INFO!A24=0," ",COUNTRY_INFO!A24) -> BURUNDI | B24: =IF(COUNTRY_INFO!B24=0," ",COUNTRY_INFO!B24) -> Gitega | C24: =IF(COUNTRY_INFO!C24=0," ",COUNTRY_INFO!C24) -> Gitega | D24: T3 (ALB/MBD) | E24: ALB | F24: Decembre 2020 | G24: 46493.48445 | H24: 87420.84752 | I24: 8185.472614 | J24: 142099.8046 | K24: 37885 | L24: 109298 | M24: 3983 | N24: 151166 | O24: 81.48453584 | P24: 125.0250977 | Q24: 48.65937726 | R24: 106.3801604
A25: =IF(COUNTRY_INFO!A25=0," ",COUNTRY_INFO!A25) -> BURUNDI | B25: =IF(COUNTRY_INFO!B25=0," ",COUNTRY_INFO!B25) -> Gitega | C25: =IF(COUNTRY_INFO!C25=0," ",COUNTRY_INFO!C25) -> Kibuye | D25: T3 (ALB/MBD) | E25: ALB | F25: Decembre 2020 | G25: 32657.30603 | H25: 61404.93457 | I25: 5749.525709 | J25: 99811.7663 | K25: 32365 | L25: 76156 | M25: 4108 | N25: 112629 | O25: 99.10492915 | P25: 124.0226059 | Q25: 71.44937179 | R25: 112.8414055
A26: =IF(COUNTRY_INFO!A26=0," ",COUNTRY_INFO!A26) -> BURUNDI | B26: =IF(COUNTRY_INFO!B26=0," ",COUNTRY_INFO!B26) -> Gitega | C26: =IF(COUNTRY_INFO!C26=0," ",COUNTRY_INFO!C26) -> Mutaho | D26: T3 (ALB/MBD) | E26: ALB | F26: Decembre 2020 | G26: 31649.71467 | H26: 59510.37899 | I26: 5572.132864 | J26: 96732.22652 | K26: 27747 | L26: 71442 | M26: 3732 | N26: 102921 | O26: 87.6690368 | P26: 120.0496472 | Q26: 66.97614883 | R26: 106.3978404
A27: =IF(COUNTRY_INFO!A27=0," ",COUNTRY_INFO!A27) -> BURUNDI | B27: =IF(COUNTRY_INFO!B27=0," ",COUNTRY_INFO!B27) -> Gitega | C27: =IF(COUNTRY_INFO!C27=0," ",COUNTRY_INFO!C27) -> Ryansoro | D27: T3 (ALB/MBD) | E27: ALB | F27: Decembre 2020 | G27: 23363.85034 | H27: 43930.62 | I27: 4113.353933 | J27: 71407.82427 | K27: 23090 | L27: 52951 | M27: 3459 | N27: 79500 | O27: 98.82788866 | P27: 120.5332408 | Q27: 84.09196137 | R27: 111.3323376
A28: =IF(COUNTRY_INFO!A28=0," ",COUNTRY_INFO!A28) -> BURUNDI | B28: =IF(COUNTRY_INFO!B28=0," ",COUNTRY_INFO!B28) -> Karusi | C28: =IF(COUNTRY_INFO!C28=0," ",COUNTRY_INFO!C28) -> Buhiga | D28: T3 (ALB/MBD) | E28: ALB | F28: Decembre 2020 | G28: 44593.10193 | H28: 83847.59307 | I28: 7850.898227 | J28: 136291.5932 | K28: 39423 | L28: 112706 | M28: 6471 | N28: 158600 | O28: 88.40605002 | P28: 134.4176927 | Q28: 82.42368978 | R28: 116.3681459
A29: =IF(COUNTRY_INFO!A29=0," ",COUNTRY_INFO!A29) -> BURUNDI | B29: =IF(COUNTRY_INFO!B29=0," ",COUNTRY_INFO!B29) -> Karusi | C29: =IF(COUNTRY_INFO!C29=0," ",COUNTRY_INFO!C29) -> Nyabikere | D29: T3 (ALB/MBD) | E29: ALB | F29: Decembre 2020 | G29: 38951.21569 | H29: 73239.25768 | I29: 6857.608397 | J29: 119048.0818 | K29: 35804 | L29: 88025 | M29: 5743 | N29: 129572 | O29: 91.9201092 | P29: 120.1882744 | Q29: 83.74639769 | R29: 108.840057
A30: =IF(COUNTRY_INFO!A30=0," ",COUNTRY_INFO!A30) -> BURUNDI | B30: =IF(COUNTRY_INFO!B30=0," ",COUNTRY_INFO!B30) -> Kayanza | C30: =IF(COUNTRY_INFO!C30=0," ",COUNTRY_INFO!C30) -> Gahombo | D30: T3 (ALB/MBD) | E30: ALB | F30: Decembre 2020 | G30: 33529.2515 | H30: 63044.43767 | I30: 5903.037235 | J30: 102476.7264 | K30: 27999 | L30: 66415 | M30: 4056 | N30: 98470 | O30: 83.50618863 | P30: 105.3463278 | Q30: 68.71039159 | R30: 96.09011085
A31: =IF(COUNTRY_INFO!A31=0," ",COUNTRY_INFO!A31) -> BURUNDI | B31: =IF(COUNTRY_INFO!B31=0," ",COUNTRY_INFO!B31) -> Kayanza | C31: =IF(COUNTRY_INFO!C31=0," ",COUNTRY_INFO!C31) -> Kayanza | D31: T3 (ALB/MBD) | E31: ALB | F31: Decembre 2020 | G31: 38336.26781 | H31: 72082.98244 | I31: 6749.342925 | J31: 117168.5932 | K31: 34348 | L31: 97070 | M31: 3867 | N31: 135285 | O31: 89.59661949 | P31: 134.6642394 | Q31: 57.29446619 | R31: 115.4618284
A32: =IF(COUNTRY_INFO!A32=0," ",COUNTRY_INFO!A32) -> BURUNDI | B32: =IF(COUNTRY_INFO!B32=0," ",COUNTRY_INFO!B32) -> Kayanza | C32: =IF(COUNTRY_INFO!C32=0," ",COUNTRY_INFO!C32) -> Musema | D32: T3 (ALB/MBD) | E32: ALB | F32: Decembre 2020 | G32: 35494.70332 | H32: 66740.04075 | I32: 6249.067486 | J32: 108483.8116 | K32: 31345 | L32: 83589 | M32: 3761 | N32: 118695 | O32: 88.30895054 | P32: 125.2456532 | Q32: 60.18497973 | R32: 109.412638
A33: =IF(COUNTRY_INFO!A33=0," ",COUNTRY_INFO!A33) -> BURUNDI | B33: =IF(COUNTRY_INFO!B33=0," ",COUNTRY_INFO!B33) -> Kirundo | C33: =IF(COUNTRY_INFO!C33=0," ",COUNTRY_INFO!C33) -> Busoni | D33: T3 (ALB/MBD) | E33: ALB | F33: Decembre 2020 | G33: 27374.71016 | I33: 4819.491226 | J33: 32194.20139 | K33: 25926 | M33: 3831 | N33: 29757 | O33: 94.70785205 | Q33: 79.48971833 | R33: 92.42968832
A34: =IF(COUNTRY_INFO!A34=0," ",COUNTRY_INFO!A34) -> BURUNDI | B34: =IF(COUNTRY_INFO!B34=0," ",COUNTRY_INFO!B34) -> Kirundo | C34: =IF(COUNTRY_INFO!C34=0," ",COUNTRY_INFO!C34) -> Kirundo | D34: T3 (ALB/MBD) | E34: ALB | F34: Decembre 2020 | G34: 36471.47187 | I34: 6421.033779 | J34: 42892.50565 | K34: 27555 | M34: 5379 | N34: 32934 | O34: 75.55220174 | Q34: 83.77155743 | R34: 76.7826442
A35: =IF(COUNTRY_INFO!A35=0," ",COUNTRY_INFO!A35) -> BURUNDI | B35: =IF(COUNTRY_INFO!B35=0," ",COUNTRY_INFO!B35) -> Kirundo | C35: =IF(COUNTRY_INFO!C35=0," ",COUNTRY_INFO!C35) -> Mukenke | D35: T3 (ALB/MBD) | E35: ALB | F35: Decembre 2020 | G35: 26687.84465 | I35: 4698.564198 | J35: 31386.40885 | K35: 21116 | M35: 3805 | N35: 24921 | O35: 79.12216321 | Q35: 80.98218603 | R35: 79.40060974
A36: =IF(COUNTRY_INFO!A36=0," ",COUNTRY_INFO!A36) -> BURUNDI | B36: =IF(COUNTRY_INFO!B36=0," ",COUNTRY_INFO!B36) -> Kirundo | C36: =IF(COUNTRY_INFO!C36=0," ",COUNTRY_INFO!C36) -> Vumbi | D36: T3 (ALB/MBD) | E36: ALB | F36: Decembre 2020 | G36: 31983.24572 | I36: 5630.85312 | J36: 37614.09884 | K36: 30211 | M36: 5405 | N36: 35616 | O36: 94.45883092 | Q36: 95.98900708 | R36: 94.68789921
A37: =IF(COUNTRY_INFO!A37=0," ",COUNTRY_INFO!A37) -> BURUNDI | B37: =IF(COUNTRY_INFO!B37=0," ",COUNTRY_INFO!B37) -> Makamba | C37: =IF(COUNTRY_INFO!C37=0," ",COUNTRY_INFO!C37) -> Makamba | D37: T3 (ALB/MBD) | E37: ALB | F37: Decembre 2020 | G37: 51390.43503 | I37: 40781 | J37: 92171.43503 | K37: 38157 | M37: 38791 | N37: 76948 | O37: 74.24922551 | Q37: 95.1202766 | R37: 83.48356513
A38: =IF(COUNTRY_INFO!A38=0," ",COUNTRY_INFO!A38) -> BURUNDI | B38: =IF(COUNTRY_INFO!B38=0," ",COUNTRY_INFO!B38) -> Makamba | C38: =IF(COUNTRY_INFO!C38=0," ",COUNTRY_INFO!C38) -> Nyanza-Lac | D38: T3 (ALB/MBD) | E38: ALB | F38: Decembre 2020 | G38: 56507.45655 | I38: 9948.495872 | J38: 66455.95242 | K38: 43017 | M38: 7613 | N38: 50630 | O38: 76.12623647 | Q38: 76.52413086 | R38: 76.1858015
A39: =IF(COUNTRY_INFO!A39=0," ",COUNTRY_INFO!A39) -> BURUNDI | B39: =IF(COUNTRY_INFO!B39=0," ",COUNTRY_INFO!B39) -> Muramvya | C39: =IF(COUNTRY_INFO!C39=0," ",COUNTRY_INFO!C39) -> Kiganda | D39: T3 (ALB/MBD) | E39: ALB | F39: Decembre 2020 | G39: 29440.66703 | H39: 55356.74715 | I39: 5183.216026 | J39: 89980.6302 | K39: 27265 | L39: 61502 | M39: 3637 | N39: 92404 | O39: 92.60999412 | P39: 111.1011813 | Q39: 70.16879061 | R39: 102.6932127
A40: =IF(COUNTRY_INFO!A40=0," ",COUNTRY_INFO!A40) -> BURUNDI | B40: =IF(COUNTRY_INFO!B40=0," ",COUNTRY_INFO!B40) -> Muramvya | C40: =IF(COUNTRY_INFO!C40=0," ",COUNTRY_INFO!C40) -> Muramvya | D40: T3 (ALB/MBD) | E40: ALB | F40: Decembre 2020 | G40: 29227.89208 | H40: 54956.67032 | I40: 5145.755648 | J40: 89330.31805 | K40: 25095 | L40: 66600 | M40: 2671 | N40: 94366 | O40: 85.85976687 | P40: 121.1863812 | Q40: 51.9068565 | R40: 105.6371477
A41: =IF(COUNTRY_INFO!A41=0," ",COUNTRY_INFO!A41) -> BURUNDI | B41: =IF(COUNTRY_INFO!B41=0," ",COUNTRY_INFO!B41) -> Muyinga | C41: =IF(COUNTRY_INFO!C41=0," ",COUNTRY_INFO!C41) -> Gashoho | D41: T3 (ALB/MBD) | E41: ALB | F41: Decembre 2020 | G41: 29433.07324 | H41: 55342.46869 | I41: 5181.879091 | J41: 89957.42102 | K41: 27103 | L41: 64642 | M41: 4660 | N41: 96405 | O41: 92.08348643 | P41: 116.8036077 | Q41: 89.9287675 | R41: 107.1673675
A42: =IF(COUNTRY_INFO!A42=0," ",COUNTRY_INFO!A42) -> BURUNDI | B42: =IF(COUNTRY_INFO!B42=0," ",COUNTRY_INFO!B42) -> Muyinga | C42: =IF(COUNTRY_INFO!C42=0," ",COUNTRY_INFO!C42) -> Giteranyi | D42: T3 (ALB/MBD) | E42: ALB | F42: Decembre 2020 | G42: 52322.08852 | H42: 98380.26503 | I42: 9211.635302 | J42: 159913.9888 | K42: 41200 | L42: 102880 | M42: 6363 | N42: 150443 | O42: 78.74303409 | P42: 104.5738187 | Q42: 69.07568299 | R42: 94.07744818
A43: =IF(COUNTRY_INFO!A43=0," ",COUNTRY_INFO!A43) -> BURUNDI | B43: =IF(COUNTRY_INFO!B43=0," ",COUNTRY_INFO!B43) -> Muyinga | C43: =IF(COUNTRY_INFO!C43=0," ",COUNTRY_INFO!C43) -> Muyinga | D43: T3 (ALB/MBD) | E43: ALB | F43: Decembre 2020 | G43: 51913.36408 | I43: 9139.676774 | J43: 61053.04085 | K43: 48510 | M43: 7039 | N43: 55549 | O43: 93.44414653 | Q43: 77.01585268 | R43: 90.98482111
A44: =IF(COUNTRY_INFO!A44=0," ",COUNTRY_INFO!A44) -> BURUNDI | B44: =IF(COUNTRY_INFO!B44=0," ",COUNTRY_INFO!B44) -> Mwaro | C44: =IF(COUNTRY_INFO!C44=0," ",COUNTRY_INFO!C44) -> Fota | D44: T3 (ALB/MBD) | E44: ALB | F44: Decembre 2020 | G44: 22588.09284 | H44: 42471.97739 | I44: 4315.676672 | J44: 69375.7469 | K44: 18184 | L44: 45441 | M44: 1903 | N44: 65528 | O44: 80.50259102 | P44: 106.9905448 | Q44: 44.09505495 | R44: 94.45375787
A45: =IF(COUNTRY_INFO!A45=0," ",COUNTRY_INFO!A45) -> BURUNDI | B45: =IF(COUNTRY_INFO!B45=0," ",COUNTRY_INFO!B45) -> Mwaro | C45: =IF(COUNTRY_INFO!C45=0," ",COUNTRY_INFO!C45) -> Kibumbu | D45: T3 (ALB/MBD) | E45: ALB | F45: Decembre 2020 | G45: 24513.0435 | H45: 46091.42686 | I45: 3976.776909 | J45: 74581.24726 | K45: 19623 | L45: 53779 | M45: 4772 | N45: 78174 | O45: 80.05125925 | P45: 116.6789654 | Q45: 119.9966734 | R45: 104.8172334
A46: =IF(COUNTRY_INFO!A46=0," ",COUNTRY_INFO!A46) -> BURUNDI | B46: =IF(COUNTRY_INFO!B46=0," ",COUNTRY_INFO!B46) -> Ngozi | C46: =IF(COUNTRY_INFO!C46=0," ",COUNTRY_INFO!C46) -> Buye | D46: T3 (ALB/MBD) | E46: ALB | F46: Decembre 2020 | G46: 30648.97261 | H46: 57628.70202 | I46: 5395.945882 | J46: 93673.6205 | K46: 29060 | L46: 69150 | M46: 4136 | N46: 102346 | O46: 94.81557627 | P46: 119.9922913 | Q46: 76.65013866 | R46: 109.2580808
A47: =IF(COUNTRY_INFO!A47=0," ",COUNTRY_INFO!A47) -> BURUNDI | B47: =IF(COUNTRY_INFO!B47=0," ",COUNTRY_INFO!B47) -> Ngozi | C47: =IF(COUNTRY_INFO!C47=0," ",COUNTRY_INFO!C47) -> Kiremba | D47: T3 (ALB/MBD) | E47: ALB | F47: Decembre 2020 | G47: 43938.24944 | H47: 82616.28592 | I47: 7735.607296 | J47: 134290.1427 | K47: 39406 | L47: 102059 | M47: 4457 | N47: 145922 | O47: 89.68495673 | P47: 123.5337547 | Q47: 57.61667868 | R47: 108.6617358
A48: =IF(COUNTRY_INFO!A48=0," ",COUNTRY_INFO!A48) -> BURUNDI | B48: =IF(COUNTRY_INFO!B48=0," ",COUNTRY_INFO!B48) -> Ngozi | C48: =IF(COUNTRY_INFO!C48=0," ",COUNTRY_INFO!C48) -> Ngozi | D48: T3 (ALB/MBD) | E48: ALB | F48: Decembre 2020 | G48: 49207.5934 | H48: 92524.13689 | I48: 8663.308698 | J48: 150395.039 | K48: 41906 | L48: 106376 | M48: 5779 | N48: 154061 | O48: 85.16165312 | P48: 114.9710806 | Q48: 66.70661524 | R48: 102.4375545
A49: =IF(COUNTRY_INFO!A49=0," ",COUNTRY_INFO!A49) -> BURUNDI | B49: =IF(COUNTRY_INFO!B49=0," ",COUNTRY_INFO!B49) -> Rumonge | C49: =IF(COUNTRY_INFO!C49=0," ",COUNTRY_INFO!C49) -> Bugarama | D49: T3 (ALB/MBD) | E49: ALB | F49: Decembre 2020 | G49: 32539.44384 | I49: 58720 | J49: 91259.44384 | K49: 31427 | M49: 58745 | N49: 90172 | O49: 96.58124507 | Q49: 100.0425749 | R49: 98.80840404
A50: =IF(COUNTRY_INFO!A50=0," ",COUNTRY_INFO!A50) -> BURUNDI | B50: =IF(COUNTRY_INFO!B50=0," ",COUNTRY_INFO!B50) -> Rumonge | C50: =IF(COUNTRY_INFO!C50=0," ",COUNTRY_INFO!C50) -> Rumonge | D50: T3 (ALB/MBD) | E50: ALB | F50: Decembre 2020 | G50: 49788.14589 | I50: 205478 | J50: 255266.1459 | K50: 43215 | M50: 206310 | N50: 249525 | O50: 86.79776928 | Q50: 100.4049095 | R50: 97.75091763
A51: =IF(COUNTRY_INFO!A51=0," ",COUNTRY_INFO!A51) -> BURUNDI | B51: =IF(COUNTRY_INFO!B51=0," ",COUNTRY_INFO!B51) -> Rutana | C51: =IF(COUNTRY_INFO!C51=0," ",COUNTRY_INFO!C51) -> Gihofi | D51: T3 (ALB/MBD) | E51: ALB | F51: Decembre 2020 | G51: 38337.3101 | I51: 162116 | J51: 200453.3101 | K51: 34150 | M51: 157075 | N51: 191225 | O51: 89.07771545 | Q51: 96.89049816 | R51: 95.39627952
A52: =IF(COUNTRY_INFO!A52=0," ",COUNTRY_INFO!A52) -> BURUNDI | B52: =IF(COUNTRY_INFO!B52=0," ",COUNTRY_INFO!B52) -> Rutana | C52: =IF(COUNTRY_INFO!C52=0," ",COUNTRY_INFO!C52) -> Rutana | D52: T3 (ALB/MBD) | E52: ALB | F52: Decembre 2020 | G52: 30774.64234 | I52: 18314 | J52: 49088.64234 | K52: 25529 | M52: 16536 | N52: 42065 | O52: 82.95466025 | Q52: 90.29158021 | R52: 85.69191974
A53: =IF(COUNTRY_INFO!A53=0," ",COUNTRY_INFO!A53) -> BURUNDI | B53: =IF(COUNTRY_INFO!B53=0," ",COUNTRY_INFO!B53) -> Ruyigi | C53: =IF(COUNTRY_INFO!C53=0," ",COUNTRY_INFO!C53) -> Butezi | D53: T3 (ALB/MBD) | E53: ALB | F53: Decembre 2020 | G53: 20714.21902 | I53: 3646.869546 | J53: 24361.08857 | K53: 18394 | M53: 2849 | N53: 21243 | O53: 88.79890659 | Q53: 78.12179635 | R53: 87.20053679
A54: =IF(COUNTRY_INFO!A54=0," ",COUNTRY_INFO!A54) -> BURUNDI | B54: =IF(COUNTRY_INFO!B54=0," ",COUNTRY_INFO!B54) -> Ruyigi | C54: =IF(COUNTRY_INFO!C54=0," ",COUNTRY_INFO!C54) -> Kinyinya | D54: T3 (ALB/MBD) | E54: ALB | F54: Decembre 2020 | G54: 44393.51918 | I54: 7815.760419 | J54: 52209.2796 | K54: 35774 | M54: 4636 | N54: 40410 | O54: 80.58383445 | Q54: 59.31604542 | R54: 77.40003369
A55: =IF(COUNTRY_INFO!A55=0," ",COUNTRY_INFO!A55) -> BURUNDI | B55: =IF(COUNTRY_INFO!B55=0," ",COUNTRY_INFO!B55) -> Ruyigi | C55: =IF(COUNTRY_INFO!C55=0," ",COUNTRY_INFO!C55) -> Ruyigi | D55: T3 (ALB/MBD) | E55: ALB | F55: Decembre 2020 | G55: 21225.38025 | H55: 39909.69385 | I55: 3736.86272 | J55: 64871.93682 | K55: 19457 | L55: 42051 | M55: 2934 | N55: 64442 | O55: 91.66855798 | P55: 105.3653785 | Q55: 78.51505982 | R55: 99.33725299

Sheet DISTRICT
A1: Nombre d'individus traités
A2: Structure administrative, population traitée par groupe d'âge et sexe
A4: TOTAL | D4: =SUM(D$9:D$1000) -> 0 | E4: =SUM(E$9:E$1000) -> 0 | F4: =SUM(F$9:F$1000) -> 0 | G4: =SUM(G$9:G$1000) -> 0 | H4: =SUM(H$9:H$1000) -> 0 | I4: =IF(D4>0, IF(H4/D4*100<>0, H4/D4*100, "-"),0) -> 0 | J4: =SUM(J$9:J$1000) -> 2008421 | K4: =SUM(K$9:K$1000) -> 768385 | L4: =SUM(L$9:L$1000) -> 870932 | M4: =SUM(M$9:M$1000) -> 1639317 | N4: =SUM(N$9:N$1000) -> 1639317 | O4: =IF(J4>0, IF(N4/J4*100<>0, N4/J4*100, "-"),0) -> 81.62217981 | P4: =SUM(P$9:P$1000) -> 2296352 | Q4: =SUM(Q$9:Q$1000) -> 0 | R4: =SUM(R$9:R$1000) -> 0 | S4: =SUM(S$9:S$1000) -> 6785103 | T4: =SUM(T$9:T$1000) -> 745038 | V4: 1498761 | X4: =SUM(X$9:X$1000) -> 2243799 | Y4: =IF(P4>0, IF(X4/P4*100<>0, X4/P4*100, "-"),0) -> 97.71145713 | Z4: =SUM(Z$9:Z$1000) -> 608973.12 | AA4: 785091 | AB4: 848459 | AC4: 1633550 | AD4: 541043.32 | AF4: 0 | AH4: 541043.32 | AI4: =IF(Z4>0, IF(AH4/Z4*100<>0, AH4/Z4*100, "-"),0) -> 88.84518909
A6: Structure administrative du pays | D6: Population nécessitant la CP pour FL | E6: Population traitée pour la filariose lymphatique | J6: Population nécessitant la CP pour ONCHO | K6: Population traitée pour l'onchocercose | P6: Population nécessitant la CP pour STH | Q6: Population traitée pour les géohelminthiases | Z6: Population nécessitant la CP pour SCH | AA6: Population traitée pour la schistosomiase | AP6: =SUM(AP9:AP1000) -> 74311.82727 | AQ6: 1044780.138 | AR6: 2203314.679 | AS6: 1156756.641 | AT6: =SUM(AT9:AT1000) -> 4479163.285 | AU6: =COUNTIF(AU9:AU1000,"Y") -> 40 | AV6: =SUM(AV9:AV1000) -> 1542639 | AW6: 3798509 | AX6: 1456082 | AY6: =SUM(AY9:AY1000) -> 6797230 | AZ6: 745038 | BA6: 2122626.75 | BB6: 1201621 | BC6: 4068370.772 | BD6: =IF(AT6<>0,BC6/AT6,0) -> 0.9082881141
A7: Pays | B7: Région/Département | C7: District | E7: Masculine | F7: Féminine | G7: Total traité | H7: Total traité ayant besoin de CP | I7: (%) | K7: Masculine | L7: Féminine | M7: Total traité | N7: Total traité ayant besoin de CP | O7: (%) | Q7: Masculine | R7: Féminine | S7: Total traité | T7: EAPréS traité ayant besoin de CP | U7: EAPréS (%) | V7: EAS traité ayant besoin de CP | W7: EAS (%) | X7: Total traité ayant besoin de CP | Y7: (%) | AA7: Masculine | AB7: Féminine | AC7: Total traité | AD7: EAS traité ayant besoin de CP | AE7: EAS (%) | AF7: Adultes traité ayant besoin de CP | AG7: Adultes (%) | AH7: Total traité ayant besoin de CP | AI7: (%) | AK7: LF | AL7: ONCHO | AM7: STH | AN7: SCH-SAC | AO7: SCH_Adults | AP7: <1 | AQ7: PreSAC | AR7: SAC | AS7: Adults | AT7: Total | AU7: Dis | AV7: PreSAC | AW7: SAC | AX7: Adults | AY7: Total | AZ7: PreSAC | BA7: SAC | BB7: Adults | BC7: Total | BD7: Coverage
A9: =IF(COUNTRY_INFO!A9=0," ",COUNTRY_INFO!A9) -> BURUNDI | B9: =IF(COUNTRY_INFO!B9=0," ",COUNTRY_INFO!B9) -> Bubanza | C9: =IF(COUNTRY_INFO!C9=0," ",COUNTRY_INFO!C9) -> Bubanza | D9: =COUNTRY_INFO!L9 -> Non requis | G9: =MAX('MDA1'!M9,'MDA2'!M9) -> 0 | H9: =IF(AND(COUNTRY_INFO!H9>0,COUNTRY_INFO!H9<4),IF(D9>MAX('MDA1'!M9,'MDA2'!M9),MAX('MDA1'!M9,'MDA2'!M9),D9),0) -> 0 | I9: =IF(AND(COUNTRY_INFO!H9>0,COUNTRY_INFO!H9<4), IF(G9/D9*100<>0, IF(G9/D9*100>100,100,G9/D9*100), "-"),0) -> 0 | J9: =COUNTRY_INFO!M9 -> 250891 | K9: 100220 | L9: 106596 | M9: =MAX('MDA1'!M9,MAX('MDA3'!I9,'MDA3'!L9)+MAX('MDA3'!J9,'MDA3'!M9)) -> 206816 | N9: =IF(AND(COUNTRY_INFO!I9>0,COUNTRY_INFO!I9<4),IF(J9>MAX('MDA1'!M9,MAX('MDA3'!I9,'MDA3'!L9)+MAX('MDA3'!J9,'MDA3'!M9)),MAX('MDA1'!M9,MAX('MDA3'!I9,'MDA3'!L9)+MAX('MDA3'!J9,'MDA3'!M9)),J9),0) -> 206816 | O9: =IF(AND(COUNTRY_INFO!I9>0,COUNTRY_INFO!I9<4), IF(M9/J9*100<>0, IF(M9/J9*100>100,100,M9/J9*100), "-"),0) -> 82.43261018 | P9: =COUNTRY_INFO!N9 -> 0 | S9: =SUM(MAX('MDA2'!J9, 'T1'!L9, MAX(T3_R1!K9, T3_R2!K9)), MAX('MDA1'!K9, 'MDA2'!K9, 'T1'!M9, MAX(T3_R1!L9, T3_R2!L9)), MAX('MDA1'!L9, 'MDA2'!L9, 'T1'!N9, MAX(T3_R1!M9, T3_R2!M9))) -> 273853 | T9: =IF(AND(COUNTRY_INFO!J9>1,COUNTRY_INFO!J9<4),IF(COUNTRY_INFO!E9>MAX('MDA2'!J9,'T1'!L9,MAX(T3_R1!K9,T3_R2!K9)),MAX('MDA2'!J9,'T1'!L9,MAX(T3_R1!K9,T3_R2!K9)),COUNTRY_INFO!E9),0) -> 0 | U9: =IF(AND(COUNTRY_INFO!J9>1,COUNTRY_INFO!J9<4), IF(T9/COUNTRY_INFO!E9*100<>0, IF(T9/COUNTRY_INFO!E9*100>100,100,T9/COUNTRY_INFO!E9*100), "-"),0) -> 0 | V9: =IF(AND(COUNTRY_INFO!J9>1,COUNTRY_INFO!J9<4),IF(COUNTRY_INFO!F9>MAX('MDA1'!K9,'MDA2'!K9,'T1'!M9,MAX(T3_R1!L9,T3_R2!L9)),MAX('MDA1'!K9,'MDA2'!K9,'T1'!M9,MAX(T3_R1!L9,T3_R2!L9)),COUNTRY_INFO!F9),0) -> 0 | W9: =IF(AND(COUNTRY_INFO!J9>1,COUNTRY_INFO!J9<4), IF(V9/COUNTRY_INFO!F9*100<>0, IF(V9/COUNTRY_INFO!F9*100>100,100,V9/COUNTRY_INFO!F9*100), "-"),0) -> 0 | X9: =SUM(T9,V9) -> 0 | Y9: =IF(AND(COUNTRY_INFO!J9>1,COUNTRY_INFO!J9<4), IF(S9/P9*100<>0, IF(X9/P9*100>100,100,X9/P9*100), "-"),0) -> 0 | Z9: =COUNTRY_INFO!O9 -> 21263.55 | AA9: 30975 | AB9: 32194 | AC9: =MAX('T1'!L9,'T2'!J9)+MAX('T1'!M9,'T2'!K9)+MAX('T1'!N9,'T2'!L9) -> 63169 | AD9: =IF(COUNTRY_INFO!K9=1,IF(COUNTRY_INFO!F9*0.33>MAX('T1'!M9,'T2'!K9),MAX('T1'!M9,'T2'!K9),COUNTRY_INFO!F9*0.33),IF(COUNTRY_INFO!K9=2,IF(COUNTRY_INFO!F9*0.5>MAX('T1'!M9,'T2'!K9),MAX('T1'!M9,'T2'!K9),COUNTRY_INFO!F9*0.5),IF(COUNTRY_INFO!K9=3,IF(COUNTRY_INFO!F9>MAX('T1'!M9,'T2'!K9),MAX('T1'!M9,'T2'!K9),COUNTRY_INFO!F9),0))) -> 21263.55 | AE9: =IF(AND(COUNTRY_INFO!K9>0,COUNTRY_INFO!K9<4),IF(Z9>0,IF(COUNTRY_INFO!K9=1, AD9/(COUNTRY_INFO!F9*0.33)*100, IF(COUNTRY_INFO!K9=2, AD9/(COUNTRY_INFO!F9*0.5)*100, IF(COUNTRY_INFO!K9=3, AD9/COUNTRY_INFO!F9*100))),"-"),0) -> 100 | AF9: =IF(COUNTRY_INFO!K9=2,IF(COUNTRY_INFO!G9*0.2>MAX('T1'!N9,'T2'!L9),MAX('T1'!N9,'T2'!L9),COUNTRY_INFO!G9*0.2),IF(COUNTRY_INFO!K9=3,IF(COUNTRY_INFO!G9>MAX('T1'!N9,'T2'!L9),MAX('T1'!N9,'T2'!L9),COUNTRY_INFO!G9),0)) -> 0 | AG9: =IF(AND(COUNTRY_INFO!K9>0,COUNTRY_INFO!K9<4),IF(Z9>0,IF(COUNTRY_INFO!K9=1, 0, IF(COUNTRY_INFO!K9=2, AF9/(COUNTRY_INFO!G9*0.2)*100, IF(COUNTRY_INFO!K9=3, AF9/COUNTRY_INFO!G9*100))),"-"),0) -> 0 | AH9: =SUM(AD9,AF9) -> 21263.55 | AI9: =IF(AND(COUNTRY_INFO!K9>0,COUNTRY_INFO!K9<4), IF(AC9/Z9*100<>0, IF(AH9/Z9*100>100,100,AH9/Z9*100), "-"),0) -> 100 | AK9: =IF(AND(D9<>0, D9<>"Inconnu",D9<>"Interrompu",D9<>"Non requis"),D9/COUNTRY_INFO!D9, 0) -> 0 | AL9: =IF(AND(J9<>0,J9<>"Inconnu",J9<>"Interrompu",J9<>"Non requis"),J9/COUNTRY_INFO!D9, 0) -> 1.039618957 | AM9: =IF(AND(P9<>0,P9<>"Inconnu",P9<>"Non requis"),P9/(COUNTRY_INFO!E9+COUNTRY_INFO!F9), 0) -> 0 | AN9: =IF(AND(Z9<>0,Z9<>"Inconnu",Z9<>"Non requis"),IF(COUNTRY_INFO!K9=1,1,IF(COUNTRY_INFO!K9=2,0.5*COUNTRY_INFO!F9/(0.5*COUNTRY_INFO!F9+0.2*COUNTRY_INFO!G9),IF(COUNTRY_INFO!K9=3,COUNTRY_INFO!F9/(COUNTRY_INFO!F9+COUNTRY_INFO!G9)))),0) -> 1 | AO9: =IF(AND(Z9<>0,Z9<>"Inconnu",Z9<>"Non requis"),IF(COUNTRY_INFO!K9=1,0,IF(COUNTRY_INFO!K9=2,0.2*COUNTRY_INFO!G9/(0.5*COUNTRY_INFO!F9+0.2*COUNTRY_INFO!G9),IF(COUNTRY_INFO!K9=3,COUNTRY_INFO!G9/(COUNTRY_INFO!F9+COUNTRY_INFO!G9)))),0) -> 0 | AP9: =MAX(COUNTRY_INFO!D9*AK9*PROFILE!$G$7,COUNTRY_INFO!D9*AL9*PROFILE!$G$7) -> 9282.998263 | AQ9: =MAX(COUNTRY_INFO!D9*AK9*PROFILE!$G$8,COUNTRY_INFO!D9*AL9*PROFILE!$G$8,COUNTRY_INFO!D9*AM9*PROFILE!$G$8) -> 35626.51963 | AR9: =MAX(COUNTRY_INFO!D9*AK9*PROFILE!$G$9,COUNTRY_INFO!D9*AL9*PROFILE!$G$9,COUNTRY_INFO!D9*AM9*PROFILE!$G$9,IF(AND(DISTRICT!Z9<>"Inconnu",Z9<>"Non requis"),COUNTRY_INFO!O9*DISTRICT!AN9,0)) -> 66987.91725 | AS9: =MAX(COUNTRY_INFO!D9*AK9*PROFILE!$G$10,COUNTRY_INFO!D9*AL9*PROFILE!$G$10,IF(AND(DISTRICT!Z9<>"Inconnu",Z9<>"Non requis"),COUNTRY_INFO!O9*DISTRICT!AO9,0)) -> 138993.5649 | AT9: =SUM(AP9:AS9) -> 250891 | AU9: =IF(COUNTIFS(AK9:AN9,">0")=0,0, IF(COUNTIFS(AK9:AN9,">0")<=IF(AND(OR(D9>=0,D9="Non requis",D9="Inconnu",D9="Interrompu"),D9>0,H9>0),1,0)+IF(AND(OR(J9>=0,J9="Non requis",J9="Inconnu",J9="Interrompu"),J9>0,N9>0),1,0)+IF(AND(OR(P9>=0,P9="Non requis",P9="Inconnu"),P9>0,X9>0),1,0)+IF(AND(OR(Z9>=0,Z9="Non requis",Z9="Inconnu"),Z9>0,AH9>0),1,0),"Y",0)) -> Y | AV9: =MAX('MDA2'!J9,'T1'!L9,'T2'!J9,T3_R1!K9,T3_R2!K9) -> 28962 | AW9: =MAX('MDA1'!K9,'MDA2'!K9,'MDA3'!I9,'MDA3'!L9,'T1'!M9,'T2'!K9,T3_R1!L9,T3_R2!L9) -> 83171 | AX9: =MAX('MDA1'!L9,'MDA2'!L9,'MDA3'!J9,'MDA3'!M9,'T1'!N9,'T2'!L9,T3_R1!M9,T3_R2!M9) -> 161720 | AY9: =SUM(AV9:AX9) -> 273853 | AZ9: =MAX('MDA2'!J9,T9) -> 0 | BA9: =MAX('MDA1'!K9,'MDA2'!K9,'MDA3'!I9,'MDA3'!L9,V9,AD9) -> 55220 | BB9: =MAX('MDA1'!L9,'MDA2'!L9,'MDA3'!J9,'MDA3'!M9,AF9) -> 151596 | BC9: =IF(AT9<SUM(AZ9:BB9), AT9,SUM(AZ9:BB9)) -> 206816 | BD9: =IF(AT9<>0,BC9/AT9*100,0) -> 82.43261018
A10: =IF(COUNTRY_INFO!A10=0," ",COUNTRY_INFO!A10) -> BURUNDI | B10: =IF(COUNTRY_INFO!B10=0," ",COUNTRY_INFO!B10) -> Bubanza | C10: =IF(COUNTRY_INFO!C10=0," ",COUNTRY_INFO!C10) -> Mpanda | D10: =COUNTRY_INFO!L10 -> Non requis | G10: =MAX('MDA1'!M10,'MDA2'!M10) -> 0 | H10: =IF(AND(COUNTRY_INFO!H10>0,COUNTRY_INFO!H10<4),IF(D10>MAX('MDA1'!M10,'MDA2'!M10),MAX('MDA1'!M10,'MDA2'!M10),D10),0) -> 0 | I10: =IF(AND(COUNTRY_INFO!H10>0,COUNTRY_INFO!H10<4), IF(G10/D10*100<>0, IF(G10/D10*100>100,100,G10/D10*100), "-"),0) -> 0 | J10: =COUNTRY_INFO!M10 -> 216410 | K10: 86394 | L10: 90464 | M10: =MAX('MDA1'!M10,MAX('MDA3'!I10,'MDA3'!L10)+MAX('MDA3'!J10,'MDA3'!M10)) -> 176858 | N10: =IF(AND(COUNTRY_INFO!I10>0,COUNTRY_INFO!I10<4),IF(J10>MAX('MDA1'!M10,MAX('MDA3'!I10,'MDA3'!L10)+MAX('MDA3'!J10,'MDA3'!M10)),MAX('MDA1'!M10,MAX('MDA3'!I10,'MDA3'!L10)+MAX('MDA3'!J10,'MDA3'!M10)),J10),0) -> 176858 | O10: =IF(AND(COUNTRY_INFO!I10>0,COUNTRY_INFO!I10<4), IF(M10/J10*100<>0, IF(M10/J10*100>100,100,M10/J10*100), "-"),0) -> 81.72358024 | P10: =COUNTRY_INFO!N10 -> 0 | S10: =SUM(MAX('MDA2'!J10, 'T1'!L10, MAX(T3_R1!K10, T3_R2!K10)), MAX('MDA1'!K10, 'MDA2'!K10, 'T1'!M10, MAX(T3_R1!L10, T3_R2!L10)), MAX('MDA1'!L10, 'MDA2'!L10, 'T1'!N10, MAX(T3_R1!M10, T3_R2!M10))) -> 268809 | T10: =IF(AND(COUNTRY_INFO!J10>1,COUNTRY_INFO!J10<4),IF(COUNTRY_INFO!E10>MAX('MDA2'!J10,'T1'!L10,MAX(T3_R1!K10,T3_R2!K10)),MAX('MDA2'!J10,'T1'!L10,MAX(T3_R1!K10,T3_R2!K10)),COUNTRY_INFO!E10),0) -> 0 | U10: =IF(AND(COUNTRY_INFO!J10>1,COUNTRY_INFO!J10<4), IF(T10/COUNTRY_INFO!E10*100<>0, IF(T10/COUNTRY_INFO!E10*100>100,100,T10/COUNTRY_INFO!E10*100), "-"),0) -> 0 | V10: =IF(AND(COUNTRY_INFO!J10>1,COUNTRY_INFO!J10<4),IF(COUNTRY_INFO!F10>MAX('MDA1'!K10,'MDA2'!K10,'T1'!M10,MAX(T3_R1!L10,T3_R2!L10)),MAX('MDA1'!K10,'MDA2'!K10,'T1'!M10,MAX(T3_R1!L10,T3_R2!L10)),COUNTRY_INFO!F10),0) -> 0 | W10: =IF(AND(COUNTRY_INFO!J10>1,COUNTRY_INFO!J10<4), IF(V10/COUNTRY_INFO!F10*100<>0, IF(V10/COUNTRY_INFO!F10*100>100,100,V10/COUNTRY_INFO!F10*100), "-"),0) -> 0 | X10: =SUM(T10,V10) -> 0 | Y10: =IF(AND(COUNTRY_INFO!J10>1,COUNTRY_INFO!J10<4), IF(S10/P10*100<>0, IF(X10/P10*100>100,100,X10/P10*100), "-"),0) -> 0 | Z10: =COUNTRY_INFO!O10 -> 26836.92 | AA10: 37696 | AB10: 41096 | AC10: =MAX('T1'!L10,'T2'!J10)+MAX('T1'!M10,'T2'!K10)+MAX('T1'!N10,'T2'!L10) -> 78792 | AD10: =IF(COUNTRY_INFO!K10=1,IF(COUNTRY_INFO!F10*0.33>MAX('T1'!M10,'T2'!K10),MAX('T1'!M10,'T2'!K10),COUNTRY_INFO!F10*0.33),IF(COUNTRY_INFO!K10=2,IF(COUNTRY_INFO!F10*0.5>MAX('T1'!M10,'T2'!K10),MAX('T1'!M10,'T2'!K10),COUNTRY_INFO!F10*0.5),IF(COUNTRY_INFO!K10=3,IF(COUNTRY_INFO!F10>MAX('T1'!M10,'T2'!K10),MAX('T1'!M10,'T2'!K10),COUNTRY_INFO!F10),0))) -> 26836.92 | AE10: =IF(AND(COUNTRY_INFO!K10>0,COUNTRY_INFO!K10<4),IF(Z10>0,IF(COUNTRY_INFO!K10=1, AD10/(COUNTRY_INFO!F10*0.33)*100, IF(COUNTRY_INFO!K10=2, AD10/(COUNTRY_INFO!F10*0.5)*100, IF(COUNTRY_INFO!K10=3, AD10/COUNTRY_INFO!F10*100))),"-"),0) -> 100 | AF10: =IF(COUNTRY_INFO!K10=2,IF(COUNTRY_INFO!G10*0.2>MAX('T1'!N10,'T2'!L10),MAX('T1'!N10,'T2'!L10),COUNTRY_INFO!G10*0.2),IF(COUNTRY_INFO!K10=3,IF(COUNTRY_INFO!G10>MAX('T1'!N10,'T2'!L10),MAX('T1'!N10,'T2'!L10),COUNTRY_INFO!G10),0)) -> 0 | AG10: =IF(AND(COUNTRY_INFO!K10>0,COUNTRY_INFO!K10<4),IF(Z10>0,IF(COUNTRY_INFO!K10=1, 0, IF(COUNTRY_INFO!K10=2, AF10/(COUNTRY_INFO!G10*0.2)*100, IF(COUNTRY_INFO!K10=3, AF10/COUNTRY_INFO!G10*100))),"-"),0) -> 0 | AH10: =SUM(AD10,AF10) -> 26836.92 | AI10: =IF(AND(COUNTRY_INFO!K10>0,COUNTRY_INFO!K10<4), IF(AC10/Z10*100<>0, IF(AH10/Z10*100>100,100,AH10/Z10*100), "-"),0) -> 100 | AK10: =IF(AND(D10<>0, D10<>"Inconnu",D10<>"Interrompu",D10<>"Non requis"),D10/COUNTRY_INFO!D10, 0) -> 0 | AL10: =IF(AND(J10<>0,J10<>"Inconnu",J10<>"Interrompu",J10<>"Non requis"),J10/COUNTRY_INFO!D10, 0) -> 0.7105123671 | AM10: =IF(AND(P10<>0,P10<>"Inconnu",P10<>"Non requis"),P10/(COUNTRY_INFO!E10+COUNTRY_INFO!F10), 0) -> 0 | AN10: =IF(AND(Z10<>0,Z10<>"Inconnu",Z10<>"Non requis"),IF(COUNTRY_INFO!K10=1,1,IF(COUNTRY_INFO!K10=2,0.5*COUNTRY_INFO!F10/(0.5*COUNTRY_INFO!F10+0.2*COUNTRY_INFO!G10),IF(COUNTRY_INFO!K10=3,COUNTRY_INFO!F10/(COUNTRY_INFO!F10+COUNTRY_INFO!G10)))),0) -> 1 | AO10: =IF(AND(Z10<>0,Z10<>"Inconnu",Z10<>"Non requis"),IF(COUNTRY_INFO!K10=1,0,IF(COUNTRY_INFO!K10=2,0.2*COUNTRY_INFO!G10/(0.5*COUNTRY_INFO!F10+0.2*COUNTRY_INFO!G10),IF(COUNTRY_INFO!K10=3,COUNTRY_INFO!G10/(COUNTRY_INFO!F10+COUNTRY_INFO!G10)))),0) -> 0 | AP10: =MAX(COUNTRY_INFO!D10*AK10*PROFILE!$G$7,COUNTRY_INFO!D10*AL10*PROFILE!$G$7) -> 8007.196967 | AQ10: =MAX(COUNTRY_INFO!D10*AK10*PROFILE!$G$8,COUNTRY_INFO!D10*AL10*PROFILE!$G$8,COUNTRY_INFO!D10*AM10*PROFILE!$G$8) -> 30730.21796 | AR10: =MAX(COUNTRY_INFO!D10*AK10*PROFILE!$G$9,COUNTRY_INFO!D10*AL10*PROFILE!$G$9,COUNTRY_INFO!D10*AM10*PROFILE!$G$9,IF(AND(DISTRICT!Z10<>"Inconnu",Z10<>"Non requis"),COUNTRY_INFO!O10*DISTRICT!AN10,0)) -> 57781.48747 | AS10: =MAX(COUNTRY_INFO!D10*AK10*PROFILE!$G$10,COUNTRY_INFO!D10*AL10*PROFILE!$G$10,IF(AND(DISTRICT!Z10<>"Inconnu",Z10<>"Non requis"),COUNTRY_INFO!O10*DISTRICT!AO10,0)) -> 119891.0976 | AT10: =SUM(AP10:AS10) -> 216410 | AU10: Y | AV10: =MAX('MDA2'!J10,'T1'!L10,'T2'!J10,T3_R1!K10,T3_R2!K10) -> 38757 | AW10: =MAX('MDA1'!K10,'MDA2'!K10,'MDA3'!I10,'MDA3'!L10,'T1'!M10,'T2'!K10,T3_R1!L10,T3_R2!L10) -> 92945 | AX10: =MAX('MDA1'!L10,'MDA2'!L10,'MDA3'!J10,'MDA3'!M10,'T1'!N10,'T2'!L10,T3_R1!M10,T3_R2!M10) -> 137107 | AY10: =SUM(AV10:AX10) -> 268809 | AZ10: =MAX('MDA2'!J10,T10) -> 0 | BA10: =MAX('MDA1'!K10,'MDA2'!K10,'MDA3'!I10,'MDA3'!L10,V10,AD10) -> 47221 | BB10: =MAX('MDA1'!L10,'MDA2'!L10,'MDA3'!J10,'MDA3'!M10,AF10) -> 129637 | BC10: 176858 | BD10: 81.72358024
A11: =IF(COUNTRY_INFO!A11=0," ",COUNTRY_INFO!A11) -> BURUNDI | B11: =IF(COUNTRY_INFO!B11=0," ",COUNTRY_INFO!B11) -> Bujumbura Mairie | C11: =IF(COUNTRY_INFO!C11=0," ",COUNTRY_INFO!C11) -> Zone Centre | D11: =COUNTRY_INFO!L11 -> Non requis | G11: =MAX('MDA1'!M11,'MDA2'!M11) -> 0 | H11: =IF(AND(COUNTRY_INFO!H11>0,COUNTRY_INFO!H11<4),IF(D11>MAX('MDA1'!M11,'MDA2'!M11),MAX('MDA1'!M11,'MDA2'!M11),D11),0) -> 0 | I11: =IF(AND(COUNTRY_INFO!H11>0,COUNTRY_INFO!H11<4), IF(G11/D11*100<>0, IF(G11/D11*100>100,100,G11/D11*100), "-"),0) -> 0 | J11: =COUNTRY_INFO!M11 -> 0 | M11: =MAX('MDA1'!M11,MAX('MDA3'!I11,'MDA3'!L11)+MAX('MDA3'!J11,'MDA3'!M11)) -> 0 | N11: =IF(AND(COUNTRY_INFO!I11>0,COUNTRY_INFO!I11<4),IF(J11>MAX('MDA1'!M11,MAX('MDA3'!I11,'MDA3'!L11)+MAX('MDA3'!J11,'MDA3'!M11)),MAX('MDA1'!M11,MAX('MDA3'!I11,'MDA3'!L11)+MAX('MDA3'!J11,'MDA3'!M11)),J11),0) -> 0 | O11: =IF(AND(COUNTRY_INFO!I11>0,COUNTRY_INFO!I11<4), IF(M11/J11*100<>0, IF(M11/J11*100>100,100,M11/J11*100), "-"),0) -> 0 | P11: =COUNTRY_INFO!N11 -> 0 | S11: =SUM(MAX('MDA2'!J11, 'T1'!L11, MAX(T3_R1!K11, T3_R2!K11)), MAX('MDA1'!K11, 'MDA2'!K11, 'T1'!M11, MAX(T3_R1!L11, T3_R2!L11)), MAX('MDA1'!L11, 'MDA2'!L11, 'T1'!N11, MAX(T3_R1!M11, T3_R2!M11))) -> 56340 | T11: =IF(AND(COUNTRY_INFO!J11>1,COUNTRY_INFO!J11<4),IF(COUNTRY_INFO!E11>MAX('MDA2'!J11,'T1'!L11,MAX(T3_R1!K11,T3_R2!K11)),MAX('MDA2'!J11,'T1'!L11,MAX(T3_R1!K11,T3_R2!K11)),COUNTRY_INFO!E11),0) -> 0 | U11: =IF(AND(COUNTRY_INFO!J11>1,COUNTRY_INFO!J11<4), IF(T11/COUNTRY_INFO!E11*100<>0, IF(T11/COUNTRY_INFO!E11*100>100,100,T11/COUNTRY_INFO!E11*100), "-"),0) -> 0 | V11: =IF(AND(COUNTRY_INFO!J11>1,COUNTRY_INFO!J11<4),IF(COUNTRY_INFO!F11>MAX('MDA1'!K11,'MDA2'!K11,'T1'!M11,MAX(T3_R1!L11,T3_R2!L11)),MAX('MDA1'!K11,'MDA2'!K11,'T1'!M11,MAX(T3_R1!L11,T3_R2!L11)),COUNTRY_INFO!F11),0) -> 0 | W11: =IF(AND(COUNTRY_INFO!J11>1,COUNTRY_INFO!J11<4), IF(V11/COUNTRY_INFO!F11*100<>0, IF(V11/COUNTRY_INFO!F11*100>100,100,V11/COUNTRY_INFO!F11*100), "-"),0) -> 0 | X11: 0 | Y11: =IF(AND(COUNTRY_INFO!J11>1,COUNTRY_INFO!J11<4), IF(S11/P11*100<>0, IF(X11/P11*100>100,100,X11/P11*100), "-"),0) -> 0 | Z11: =COUNTRY_INFO!O11 -> 0 | AC11: =MAX('T1'!L11,'T2'!J11)+MAX('T1'!M11,'T2'!K11)+MAX('T1'!N11,'T2'!L11) -> 0 | AD11: =IF(COUNTRY_INFO!K11=1,IF(COUNTRY_INFO!F11*0.33>MAX('T1'!M11,'T2'!K11),MAX('T1'!M11,'T2'!K11),COUNTRY_INFO!F11*0.33),IF(COUNTRY_INFO!K11=2,IF(COUNTRY_INFO!F11*0.5>MAX('T1'!M11,'T2'!K11),MAX('T1'!M11,'T2'!K11),COUNTRY_INFO!F11*0.5),IF(COUNTRY_INFO!K11=3,IF(COUNTRY_INFO!F11>MAX('T1'!M11,'T2'!K11),MAX('T1'!M11,'T2'!K11),COUNTRY_INFO!F11),0))) -> 0 | AE11: =IF(AND(COUNTRY_INFO!K11>0,COUNTRY_INFO!K11<4),IF(Z11>0,IF(COUNTRY_INFO!K11=1, AD11/(COUNTRY_INFO!F11*0.33)*100, IF(COUNTRY_INFO!K11=2, AD11/(COUNTRY_INFO!F11*0.5)*100, IF(COUNTRY_INFO!K11=3, AD11/COUNTRY_INFO!F11*100))),"-"),0) -> 0 | AF11: =IF(COUNTRY_INFO!K11=2,IF(COUNTRY_INFO!G11*0.2>MAX('T1'!N11,'T2'!L11),MAX('T1'!N11,'T2'!L11),COUNTRY_INFO!G11*0.2),IF(COUNTRY_INFO!K11=3,IF(COUNTRY_INFO!G11>MAX('T1'!N11,'T2'!L11),MAX('T1'!N11,'T2'!L11),COUNTRY_INFO!G11),0)) -> 0 | AG11: =IF(AND(COUNTRY_INFO!K11>0,COUNTRY_INFO!K11<4),IF(Z11>0,IF(COUNTRY_INFO!K11=1, 0, IF(COUNTRY_INFO!K11=2, AF11/(COUNTRY_INFO!G11*0.2)*100, IF(COUNTRY_INFO!K11=3, AF11/COUNTRY_INFO!G11*100))),"-"),0) -> 0 | AH11: 0 | AI11: =IF(AND(COUNTRY_INFO!K11>0,COUNTRY_INFO!K11<4), IF(AC11/Z11*100<>0, IF(AH11/Z11*100>100,100,AH11/Z11*100), "-"),0) -> 0 | AK11: =IF(AND(D11<>0, D11<>"Inconnu",D11<>"Interrompu",D11<>"Non requis"),D11/COUNTRY_INFO!D11, 0) -> 0 | AL11: =IF(AND(J11<>0,J11<>"Inconnu",J11<>"Interrompu",J11<>"Non requis"),J11/COUNTRY_INFO!D11, 0) -> 0 | AM11: =IF(AND(P11<>0,P11<>"Inconnu",P11<>"Non requis"),P11/(COUNTRY_INFO!E11+COUNTRY_INFO!F11), 0) -> 0 | AN11: =IF(AND(Z11<>0,Z11<>"Inconnu",Z11<>"Non requis"),IF(COUNTRY_INFO!K11=1,1,IF(COUNTRY_INFO!K11=2,0.5*COUNTRY_INFO!F11/(0.5*COUNTRY_INFO!F11+0.2*COUNTRY_INFO!G11),IF(COUNTRY_INFO!K11=3,COUNTRY_INFO!F11/(COUNTRY_INFO!F11+COUNTRY_INFO!G11)))),0) -> 0 | AO11: =IF(AND(Z11<>0,Z11<>"Inconnu",Z11<>"Non requis"),IF(COUNTRY_INFO!K11=1,0,IF(COUNTRY_INFO!K11=2,0.2*COUNTRY_INFO!G11/(0.5*COUNTRY_INFO!F11+0.2*COUNTRY_INFO!G11),IF(COUNTRY_INFO!K11=3,COUNTRY_INFO!G11/(COUNTRY_INFO!F11+COUNTRY_INFO!G11)))),0) -> 0 | AP11: =MAX(COUNTRY_INFO!D11*AK11*PROFILE!$G$7,COUNTRY_INFO!D11*AL11*PROFILE!$G$7) -> 0 | AQ11: =MAX(COUNTRY_INFO!D11*AK11*PROFILE!$G$8,COUNTRY_INFO!D11*AL11*PROFILE!$G$8,COUNTRY_INFO!D11*AM11*PROFILE!$G$8) -> 0 | AR11: =MAX(COUNTRY_INFO!D11*AK11*PROFILE!$G$9,COUNTRY_INFO!D11*AL11*PROFILE!$G$9,COUNTRY_INFO!D11*AM11*PROFILE!$G$9,IF(AND(DISTRICT!Z11<>"Inconnu",Z11<>"Non requis"),COUNTRY_INFO!O11*DISTRICT!AN11,0)) -> 0 | AS11: =MAX(COUNTRY_INFO!D11*AK11*PROFILE!$G$10,COUNTRY_INFO!D11*AL11*PROFILE!$G$10,IF(AND(DISTRICT!Z11<>"Inconnu",Z11<>"Non requis"),COUNTRY_INFO!O11*DISTRICT!AO11,0)) -> 0 | AT11: 0 | AU11: 0 | AV11: =MAX('MDA2'!J11,'T1'!L11,'T2'!J11,T3_R1!K11,T3_R2!K11) -> 11566 | AW11: =MAX('MDA1'!K11,'MDA2'!K11,'MDA3'!I11,'MDA3'!L11,'T1'!M11,'T2'!K11,T3_R1!L11,T3_R2!L11) -> 42545 | AX11: =MAX('MDA1'!L11,'MDA2'!L11,'MDA3'!J11,'MDA3'!M11,'T1'!N11,'T2'!L11,T3_R1!M11,T3_R2!M11) -> 2229 | AY11: 56340 | AZ11: =MAX('MDA2'!J11,T11) -> 0 | BA11: =MAX('MDA1'!K11,'MDA2'!K11,'MDA3'!I11,'MDA3'!L11,V11,AD11) -> 0 | BB11: =MAX('MDA1'!L11,'MDA2'!L11,'MDA3'!J11,'MDA3'!M11,AF11) -> 0 | BC11: 0 | BD11: 0
A12: =IF(COUNTRY_INFO!A12=0," ",COUNTRY_INFO!A12) -> BURUNDI | B12: =IF(COUNTRY_INFO!B12=0," ",COUNTRY_INFO!B12) -> Bujumbura Mairie | C12: =IF(COUNTRY_INFO!C12=0," ",COUNTRY_INFO!C12) -> Zone Nord | D12: =COUNTRY_INFO!L12 -> Non requis | G12: =MAX('MDA1'!M12,'MDA2'!M12) -> 0 | H12: =IF(AND(COUNTRY_INFO!H12>0,COUNTRY_INFO!H12<4),IF(D12>MAX('MDA1'!M12,'MDA2'!M12),MAX('MDA1'!M12,'MDA2'!M12),D12),0) -> 0 | I12: =IF(AND(COUNTRY_INFO!H12>0,COUNTRY_INFO!H12<4), IF(G12/D12*100<>0, IF(G12/D12*100>100,100,G12/D12*100), "-"),0) -> 0 | J12: =COUNTRY_INFO!M12 -> 0 | M12: =MAX('MDA1'!M12,MAX('MDA3'!I12,'MDA3'!L12)+MAX('MDA3'!J12,'MDA3'!M12)) -> 0 | N12: =IF(AND(COUNTRY_INFO!I12>0,COUNTRY_INFO!I12<4),IF(J12>MAX('MDA1'!M12,MAX('MDA3'!I12,'MDA3'!L12)+MAX('MDA3'!J12,'MDA3'!M12)),MAX('MDA1'!M12,MAX('MDA3'!I12,'MDA3'!L12)+MAX('MDA3'!J12,'MDA3'!M12)),J12),0) -> 0 | O12: =IF(AND(COUNTRY_INFO!I12>0,COUNTRY_INFO!I12<4), IF(M12/J12*100<>0, IF(M12/J12*100>100,100,M12/J12*100), "-"),0) -> 0 | P12: =COUNTRY_INFO!N12 -> 0 | S12: =SUM(MAX('MDA2'!J12, 'T1'!L12, MAX(T3_R1!K12, T3_R2!K12)), MAX('MDA1'!K12, 'MDA2'!K12, 'T1'!M12, MAX(T3_R1!L12, T3_R2!L12)), MAX('MDA1'!L12, 'MDA2'!L12, 'T1'!N12, MAX(T3_R1!M12, T3_R2!M12))) -> 152609 | T12: =IF(AND(COUNTRY_INFO!J12>1,COUNTRY_INFO!J12<4),IF(COUNTRY_INFO!E12>MAX('MDA2'!J12,'T1'!L12,MAX(T3_R1!K12,T3_R2!K12)),MAX('MDA2'!J12,'T1'!L12,MAX(T3_R1!K12,T3_R2!K12)),COUNTRY_INFO!E12),0) -> 0 | U12: =IF(AND(COUNTRY_INFO!J12>1,COUNTRY_INFO!J12<4), IF(T12/COUNTRY_INFO!E12*100<>0, IF(T12/COUNTRY_INFO!E12*100>100,100,T12/COUNTRY_INFO!E12*100), "-"),0) -> 0 | V12: =IF(AND(COUNTRY_INFO!J12>1,COUNTRY_INFO!J12<4),IF(COUNTRY_INFO!F12>MAX('MDA1'!K12,'MDA2'!K12,'T1'!M12,MAX(T3_R1!L12,T3_R2!L12)),MAX('MDA1'!K12,'MDA2'!K12,'T1'!M12,MAX(T3_R1!L12,T3_R2!L12)),COUNTRY_INFO!F12),0) -> 0 | W12: =IF(AND(COUNTRY_INFO!J12>1,COUNTRY_INFO!J12<4), IF(V12/COUNTRY_INFO!F12*100<>0, IF(V12/COUNTRY_INFO!F12*100>100,100,V12/COUNTRY_INFO!F12*100), "-"),0) -> 0 | X12: 0 | Y12: =IF(AND(COUNTRY_INFO!J12>1,COUNTRY_INFO!J12<4), IF(S12/P12*100<>0, IF(X12/P12*100>100,100,X12/P12*100), "-"),0) -> 0 | Z12: =COUNTRY_INFO!O12 -> 38277.36 | AA12: 48851 | AB12: 53028 | AC12: =MAX('T1'!L12,'T2'!J12)+MAX('T1'!M12,'T2'!K12)+MAX('T1'!N12,'T2'!L12) -> 101879 | AD12: =IF(COUNTRY_INFO!K12=1,IF(COUNTRY_INFO!F12*0.33>MAX('T1'!M12,'T2'!K12),MAX('T1'!M12,'T2'!K12),COUNTRY_INFO!F12*0.33),IF(COUNTRY_INFO!K12=2,IF(COUNTRY_INFO!F12*0.5>MAX('T1'!M12,'T2'!K12),MAX('T1'!M12,'T2'!K12),COUNTRY_INFO!F12*0.5),IF(COUNTRY_INFO!K12=3,IF(COUNTRY_INFO!F12>MAX('T1'!M12,'T2'!K12),MAX('T1'!M12,'T2'!K12),COUNTRY_INFO!F12),0))) -> 38277.36 | AE12: =IF(AND(COUNTRY_INFO!K12>0,COUNTRY_INFO!K12<4),IF(Z12>0,IF(COUNTRY_INFO!K12=1, AD12/(COUNTRY_INFO!F12*0.33)*100, IF(COUNTRY_INFO!K12=2, AD12/(COUNTRY_INFO!F12*0.5)*100, IF(COUNTRY_INFO!K12=3, AD12/COUNTRY_INFO!F12*100))),"-"),0) -> 100 | AF12: =IF(COUNTRY_INFO!K12=2,IF(COUNTRY_INFO!G12*0.2>MAX('T1'!N12,'T2'!L12),MAX('T1'!N12,'T2'!L12),COUNTRY_INFO!G12*0.2),IF(COUNTRY_INFO!K12=3,IF(COUNTRY_INFO!G12>MAX('T1'!N12,'T2'!L12),MAX('T1'!N12,'T2'!L12),COUNTRY_INFO!G12),0)) -> 0 | AG12: =IF(AND(COUNTRY_INFO!K12>0,COUNTRY_INFO!K12<4),IF(Z12>0,IF(COUNTRY_INFO!K12=1, 0, IF(COUNTRY_INFO!K12=2, AF12/(COUNTRY_INFO!G12*0.2)*100, IF(COUNTRY_INFO!K12=3, AF12/COUNTRY_INFO!G12*100))),"-"),0) -> 0 | AH12: 38277.36 | AI12: =IF(AND(COUNTRY_INFO!K12>0,COUNTRY_INFO!K12<4), IF(AC12/Z12*100<>0, IF(AH12/Z12*100>100,100,AH12/Z12*100), "-"),0) -> 100 | AK12: =IF(AND(D12<>0, D12<>"Inconnu",D12<>"Interrompu",D12<>"Non requis"),D12/COUNTRY_INFO!D12, 0) -> 0 | AL12: =IF(AND(J12<>0,J12<>"Inconnu",J12<>"Interrompu",J12<>"Non requis"),J12/COUNTRY_INFO!D12, 0) -> 0 | AM12: =IF(AND(P12<>0,P12<>"Inconnu",P12<>"Non requis"),P12/(COUNTRY_INFO!E12+COUNTRY_INFO!F12), 0) -> 0 | AN12: =IF(AND(Z12<>0,Z12<>"Inconnu",Z12<>"Non requis"),IF(COUNTRY_INFO!K12=1,1,IF(COUNTRY_INFO!K12=2,0.5*COUNTRY_INFO!F12/(0.5*COUNTRY_INFO!F12+0.2*COUNTRY_INFO!G12),IF(COUNTRY_INFO!K12=3,COUNTRY_INFO!F12/(COUNTRY_INFO!F12+COUNTRY_INFO!G12)))),0) -> 1 | AO12: =IF(AND(Z12<>0,Z12<>"Inconnu",Z12<>"Non requis"),IF(COUNTRY_INFO!K12=1,0,IF(COUNTRY_INFO!K12=2,0.2*COUNTRY_INFO!G12/(0.5*COUNTRY_INFO!F12+0.2*COUNTRY_INFO!G12),IF(COUNTRY_INFO!K12=3,COUNTRY_INFO!G12/(COUNTRY_INFO!F12+COUNTRY_INFO!G12)))),0) -> 0 | AP12: =MAX(COUNTRY_INFO!D12*AK12*PROFILE!$G$7,COUNTRY_INFO!D12*AL12*PROFILE!$G$7) -> 0 | AQ12: =MAX(COUNTRY_INFO!D12*AK12*PROFILE!$G$8,COUNTRY_INFO!D12*AL12*PROFILE!$G$8,COUNTRY_INFO!D12*AM12*PROFILE!$G$8) -> 0 | AR12: =MAX(COUNTRY_INFO!D12*AK12*PROFILE!$G$9,COUNTRY_INFO!D12*AL12*PROFILE!$G$9,COUNTRY_INFO!D12*AM12*PROFILE!$G$9,IF(AND(DISTRICT!Z12<>"Inconnu",Z12<>"Non requis"),COUNTRY_INFO!O12*DISTRICT!AN12,0)) -> 38277.36 | AS12: =MAX(COUNTRY_INFO!D12*AK12*PROFILE!$G$10,COUNTRY_INFO!D12*AL12*PROFILE!$G$10,IF(AND(DISTRICT!Z12<>"Inconnu",Z12<>"Non requis"),COUNTRY_INFO!O12*DISTRICT!AO12,0)) -> 0 | AT12: 38277.36 | AU12: Y | AV12: =MAX('MDA2'!J12,'T1'!L12,'T2'!J12,T3_R1!K12,T3_R2!K12) -> 42347 | AW12: =MAX('MDA1'!K12,'MDA2'!K12,'MDA3'!I12,'MDA3'!L12,'T1'!M12,'T2'!K12,T3_R1!L12,T3_R2!L12) -> 101879 | AX12: =MAX('MDA1'!L12,'MDA2'!L12,'MDA3'!J12,'MDA3'!M12,'T1'!N12,'T2'!L12,T3_R1!M12,T3_R2!M12) -> 8383 | AY12: 152609 | AZ12: =MAX('MDA2'!J12,T12) -> 0 | BA12: =MAX('MDA1'!K12,'MDA2'!K12,'MDA3'!I12,'MDA3'!L12,V12,AD12) -> 38277.36 | BB12: =MAX('MDA1'!L12,'MDA2'!L12,'MDA3'!J12,'MDA3'!M12,AF12) -> 0 | BC12: 38277.36 | BD12: 100
A13: =IF(COUNTRY_INFO!A13=0," ",COUNTRY_INFO!A13) -> BURUNDI | B13: =IF(COUNTRY_INFO!B13=0," ",COUNTRY_INFO!B13) -> Bujumbura Mairie | C13: =IF(COUNTRY_INFO!C13=0," ",COUNTRY_INFO!C13) -> Zone Sud | D13: =COUNTRY_INFO!L13 -> Non requis | G13: =MAX('MDA1'!M13,'MDA2'!M13) -> 0 | H13: =IF(AND(COUNTRY_INFO!H13>0,COUNTRY_INFO!H13<4),IF(D13>MAX('MDA1'!M13,'MDA2'!M13),MAX('MDA1'!M13,'MDA2'!M13),D13),0) -> 0 | I13: =IF(AND(COUNTRY_INFO!H13>0,COUNTRY_INFO!H13<4), IF(G13/D13*100<>0, IF(G13/D13*100>100,100,G13/D13*100), "-"),0) -> 0 | J13: =COUNTRY_INFO!M13 -> 0 | M13: =MAX('MDA1'!M13,MAX('MDA3'!I13,'MDA3'!L13)+MAX('MDA3'!J13,'MDA3'!M13)) -> 0 | N13: =IF(AND(COUNTRY_INFO!I13>0,COUNTRY_INFO!I13<4),IF(J13>MAX('MDA1'!M13,MAX('MDA3'!I13,'MDA3'!L13)+MAX('MDA3'!J13,'MDA3'!M13)),MAX('MDA1'!M13,MAX('MDA3'!I13,'MDA3'!L13)+MAX('MDA3'!J13,'MDA3'!M13)),J13),0) -> 0 | O13: =IF(AND(COUNTRY_INFO!I13>0,COUNTRY_INFO!I13<4), IF(M13/J13*100<>0, IF(M13/J13*100>100,100,M13/J13*100), "-"),0) -> 0 | P13: =COUNTRY_INFO!N13 -> 0 | S13: =SUM(MAX('MDA2'!J13, 'T1'!L13, MAX(T3_R1!K13, T3_R2!K13)), MAX('MDA1'!K13, 'MDA2'!K13, 'T1'!M13, MAX(T3_R1!L13, T3_R2!L13)), MAX('MDA1'!L13, 'MDA2'!L13, 'T1'!N13, MAX(T3_R1!M13, T3_R2!M13))) -> 74090 | T13: =IF(AND(COUNTRY_INFO!J13>1,COUNTRY_INFO!J13<4),IF(COUNTRY_INFO!E13>MAX('MDA2'!J13,'T1'!L13,MAX(T3_R1!K13,T3_R2!K13)),MAX('MDA2'!J13,'T1'!L13,MAX(T3_R1!K13,T3_R2!K13)),COUNTRY_INFO!E13),0) -> 0 | U13: =IF(AND(COUNTRY_INFO!J13>1,COUNTRY_INFO!J13<4), IF(T13/COUNTRY_INFO!E13*100<>0, IF(T13/COUNTRY_INFO!E13*100>100,100,T13/COUNTRY_INFO!E13*100), "-"),0) -> 0 | V13: =IF(AND(COUNTRY_INFO!J13>1,COUNTRY_INFO!J13<4),IF(COUNTRY_INFO!F13>MAX('MDA1'!K13,'MDA2'!K13,'T1'!M13,MAX(T3_R1!L13,T3_R2!L13)),MAX('MDA1'!K13,'MDA2'!K13,'T1'!M13,MAX(T3_R1!L13,T3_R2!L13)),COUNTRY_INFO!F13),0) -> 0 | W13: =IF(AND(COUNTRY_INFO!J13>1,COUNTRY_INFO!J13<4), IF(V13/COUNTRY_INFO!F13*100<>0, IF(V13/COUNTRY_INFO!F13*100>100,100,V13/COUNTRY_INFO!F13*100), "-"),0) -> 0 | X13: 0 | Y13: =IF(AND(COUNTRY_INFO!J13>1,COUNTRY_INFO!J13<4), IF(S13/P13*100<>0, IF(X13/P13*100>100,100,X13/P13*100), "-"),0) -> 0 | Z13: =COUNTRY_INFO!O13 -> 0 | AC13: =MAX('T1'!L13,'T2'!J13)+MAX('T1'!M13,'T2'!K13)+MAX('T1'!N13,'T2'!L13) -> 0 | AD13: =IF(COUNTRY_INFO!K13=1,IF(COUNTRY_INFO!F13*0.33>MAX('T1'!M13,'T2'!K13),MAX('T1'!M13,'T2'!K13),COUNTRY_INFO!F13*0.33),IF(COUNTRY_INFO!K13=2,IF(COUNTRY_INFO!F13*0.5>MAX('T1'!M13,'T2'!K13),MAX('T1'!M13,'T2'!K13),COUNTRY_INFO!F13*0.5),IF(COUNTRY_INFO!K13=3,IF(COUNTRY_INFO!F13>MAX('T1'!M13,'T2'!K13),MAX('T1'!M13,'T2'!K13),COUNTRY_INFO!F13),0))) -> 0 | AE13: =IF(AND(COUNTRY_INFO!K13>0,COUNTRY_INFO!K13<4),IF(Z13>0,IF(COUNTRY_INFO!K13=1, AD13/(COUNTRY_INFO!F13*0.33)*100, IF(COUNTRY_INFO!K13=2, AD13/(COUNTRY_INFO!F13*0.5)*100, IF(COUNTRY_INFO!K13=3, AD13/COUNTRY_INFO!F13*100))),"-"),0) -> 0 | AF13: =IF(COUNTRY_INFO!K13=2,IF(COUNTRY_INFO!G13*0.2>MAX('T1'!N13,'T2'!L13),MAX('T1'!N13,'T2'!L13),COUNTRY_INFO!G13*0.2),IF(COUNTRY_INFO!K13=3,IF(COUNTRY_INFO!G13>MAX('T1'!N13,'T2'!L13),MAX('T1'!N13,'T2'!L13),COUNTRY_INFO!G13),0)) -> 0 | AG13: =IF(AND(COUNTRY_INFO!K13>0,COUNTRY_INFO!K13<4),IF(Z13>0,IF(COUNTRY_INFO!K13=1, 0, IF(COUNTRY_INFO!K13=2, AF13/(COUNTRY_INFO!G13*0.2)*100, IF(COUNTRY_INFO!K13=3, AF13/COUNTRY_INFO!G13*100))),"-"),0) -> 0 | AH13: 0 | AI13: =IF(AND(COUNTRY_INFO!K13>0,COUNTRY_INFO!K13<4), IF(AC13/Z13*100<>0, IF(AH13/Z13*100>100,100,AH13/Z13*100), "-"),0) -> 0 | AK13: =IF(AND(D13<>0, D13<>"Inconnu",D13<>"Interrompu",D13<>"Non requis"),D13/COUNTRY_INFO!D13, 0) -> 0 | AL13: =IF(AND(J13<>0,J13<>"Inconnu",J13<>"Interrompu",J13<>"Non requis"),J13/COUNTRY_INFO!D13, 0) -> 0 | AM13: =IF(AND(P13<>0,P13<>"Inconnu",P13<>"Non requis"),P13/(COUNTRY_INFO!E13+COUNTRY_INFO!F13), 0) -> 0 | AN13: =IF(AND(Z13<>0,Z13<>"Inconnu",Z13<>"Non requis"),IF(COUNTRY_INFO!K13=1,1,IF(COUNTRY_INFO!K13=2,0.5*COUNTRY_INFO!F13/(0.5*COUNTRY_INFO!F13+0.2*COUNTRY_INFO!G13),IF(COUNTRY_INFO!K13=3,COUNTRY_INFO!F13/(COUNTRY_INFO!F13+COUNTRY_INFO!G13)))),0) -> 0 | AO13: =IF(AND(Z13<>0,Z13<>"Inconnu",Z13<>"Non requis"),IF(COUNTRY_INFO!K13=1,0,IF(COUNTRY_INFO!K13=2,0.2*COUNTRY_INFO!G13/(0.5*COUNTRY_INFO!F13+0.2*COUNTRY_INFO!G13),IF(COUNTRY_INFO!K13=3,COUNTRY_INFO!G13/(COUNTRY_INFO!F13+COUNTRY_INFO!G13)))),0) -> 0 | AP13: =MAX(COUNTRY_INFO!D13*AK13*PROFILE!$G$7,COUNTRY_INFO!D13*AL13*PROFILE!$G$7) -> 0 | AQ13: =MAX(COUNTRY_INFO!D13*AK13*PROFILE!$G$8,COUNTRY_INFO!D13*AL13*PROFILE!$G$8,COUNTRY_INFO!D13*AM13*PROFILE!$G$8) -> 0 | AR13: =MAX(COUNTRY_INFO!D13*AK13*PROFILE!$G$9,COUNTRY_INFO!D13*AL13*PROFILE!$G$9,COUNTRY_INFO!D13*AM13*PROFILE!$G$9,IF(AND(DISTRICT!Z13<>"Inconnu",Z13<>"Non requis"),COUNTRY_INFO!O13*DISTRICT!AN13,0)) -> 0 | AS13: =MAX(COUNTRY_INFO!D13*AK13*PROFILE!$G$10,COUNTRY_INFO!D13*AL13*PROFILE!$G$10,IF(AND(DISTRICT!Z13<>"Inconnu",Z13<>"Non requis"),COUNTRY_INFO!O13*DISTRICT!AO13,0)) -> 0 | AT13: 0 | AU13: 0 | AV13: =MAX('MDA2'!J13,'T1'!L13,'T2'!J13,T3_R1!K13,T3_R2!K13) -> 18197 | AW13: =MAX('MDA1'!K13,'MDA2'!K13,'MDA3'!I13,'MDA3'!L13,'T1'!M13,'T2'!K13,T3_R1!L13,T3_R2!L13) -> 53934 | AX13: =MAX('MDA1'!L13,'MDA2'!L13,'MDA3'!J13,'MDA3'!M13,'T1'!N13,'T2'!L13,T3_R1!M13,T3_R2!M13) -> 1959 | AY13: 74090 | AZ13: =MAX('MDA2'!J13,T13) -> 0 | BA13: =MAX('MDA1'!K13,'MDA2'!K13,'MDA3'!I13,'MDA3'!L13,V13,AD13) -> 0 | BB13: =MAX('MDA1'!L13,'MDA2'!L13,'MDA3'!J13,'MDA3'!M13,AF13) -> 0 | BC13: 0 | BD13: 0
A14: =IF(COUNTRY_INFO!A14=0," ",COUNTRY_INFO!A14) -> BURUNDI | B14: =IF(COUNTRY_INFO!B14=0," ",COUNTRY_INFO!B14) -> Bujumbura Rural | C14: =IF(COUNTRY_INFO!C14=0," ",COUNTRY_INFO!C14) -> Isare | D14: =COUNTRY_INFO!L14 -> Non requis | G14: =MAX('MDA1'!M14,'MDA2'!M14) -> 0 | H14: =IF(AND(COUNTRY_INFO!H14>0,COUNTRY_INFO!H14<4),IF(D14>MAX('MDA1'!M14,'MDA2'!M14),MAX('MDA1'!M14,'MDA2'!M14),D14),0) -> 0 | I14: =IF(AND(COUNTRY_INFO!H14>0,COUNTRY_INFO!H14<4), IF(G14/D14*100<>0, IF(G14/D14*100>100,100,G14/D14*100), "-"),0) -> 0 | J14: =COUNTRY_INFO!M14 -> 0 | M14: =MAX('MDA1'!M14,MAX('MDA3'!I14,'MDA3'!L14)+MAX('MDA3'!J14,'MDA3'!M14)) -> 0 | N14: =IF(AND(COUNTRY_INFO!I14>0,COUNTRY_INFO!I14<4),IF(J14>MAX('MDA1'!M14,MAX('MDA3'!I14,'MDA3'!L14)+MAX('MDA3'!J14,'MDA3'!M14)),MAX('MDA1'!M14,MAX('MDA3'!I14,'MDA3'!L14)+MAX('MDA3'!J14,'MDA3'!M14)),J14),0) -> 0 | O14: =IF(AND(COUNTRY_INFO!I14>0,COUNTRY_INFO!I14<4), IF(M14/J14*100<>0, IF(M14/J14*100>100,100,M14/J14*100), "-"),0) -> 0 | P14: =COUNTRY_INFO!N14 -> 93040 | S14: =SUM(MAX('MDA2'!J14, 'T1'!L14, MAX(T3_R1!K14, T3_R2!K14)), MAX('MDA1'!K14, 'MDA2'!K14, 'T1'!M14, MAX(T3_R1!L14, T3_R2!L14)), MAX('MDA1'!L14, 'MDA2'!L14, 'T1'!N14, MAX(T3_R1!M14, T3_R2!M14))) -> 139729 | T14: =IF(AND(COUNTRY_INFO!J14>1,COUNTRY_INFO!J14<4),IF(COUNTRY_INFO!E14>MAX('MDA2'!J14,'T1'!L14,MAX(T3_R1!K14,T3_R2!K14)),MAX('MDA2'!J14,'T1'!L14,MAX(T3_R1!K14,T3_R2!K14)),COUNTRY_INFO!E14),0) -> 32302 | U14: =IF(AND(COUNTRY_INFO!J14>1,COUNTRY_INFO!J14<4), IF(T14/COUNTRY_INFO!E14*100<>0, IF(T14/COUNTRY_INFO!E14*100>100,100,T14/COUNTRY_INFO!E14*100), "-"),0) -> 100 | V14: =IF(AND(COUNTRY_INFO!J14>1,COUNTRY_INFO!J14<4),IF(COUNTRY_INFO!F14>MAX('MDA1'!K14,'MDA2'!K14,'T1'!M14,MAX(T3_R1!L14,T3_R2!L14)),MAX('MDA1'!K14,'MDA2'!K14,'T1'!M14,MAX(T3_R1!L14,T3_R2!L14)),COUNTRY_INFO!F14),0) -> 60738 | W14: =IF(AND(COUNTRY_INFO!J14>1,COUNTRY_INFO!J14<4), IF(V14/COUNTRY_INFO!F14*100<>0, IF(V14/COUNTRY_INFO!F14*100>100,100,V14/COUNTRY_INFO!F14*100), "-"),0) -> 100 | X14: 93040 | Y14: =IF(AND(COUNTRY_INFO!J14>1,COUNTRY_INFO!J14<4), IF(S14/P14*100<>0, IF(X14/P14*100>100,100,X14/P14*100), "-"),0) -> 100 | Z14: =COUNTRY_INFO!O14 -> 20043.54 | AA14: 46228 | AB14: 50407 | AC14: =MAX('T1'!L14,'T2'!J14)+MAX('T1'!M14,'T2'!K14)+MAX('T1'!N14,'T2'!L14) -> 96635 | AD14: =IF(COUNTRY_INFO!K14=1,IF(COUNTRY_INFO!F14*0.33>MAX('T1'!M14,'T2'!K14),MAX('T1'!M14,'T2'!K14),COUNTRY_INFO!F14*0.33),IF(COUNTRY_INFO!K14=2,IF(COUNTRY_INFO!F14*0.5>MAX('T1'!M14,'T2'!K14),MAX('T1'!M14,'T2'!K14),COUNTRY_INFO!F14*0.5),IF(COUNTRY_INFO!K14=3,IF(COUNTRY_INFO!F14>MAX('T1'!M14,'T2'!K14),MAX('T1'!M14,'T2'!K14),COUNTRY_INFO!F14),0))) -> 20043.54 | AE14: =IF(AND(COUNTRY_INFO!K14>0,COUNTRY_INFO!K14<4),IF(Z14>0,IF(COUNTRY_INFO!K14=1, AD14/(COUNTRY_INFO!F14*0.33)*100, IF(COUNTRY_INFO!K14=2, AD14/(COUNTRY_INFO!F14*0.5)*100, IF(COUNTRY_INFO!K14=3, AD14/COUNTRY_INFO!F14*100))),"-"),0) -> 100 | AF14: =IF(COUNTRY_INFO!K14=2,IF(COUNTRY_INFO!G14*0.2>MAX('T1'!N14,'T2'!L14),MAX('T1'!N14,'T2'!L14),COUNTRY_INFO!G14*0.2),IF(COUNTRY_INFO!K14=3,IF(COUNTRY_INFO!G14>MAX('T1'!N14,'T2'!L14),MAX('T1'!N14,'T2'!L14),COUNTRY_INFO!G14),0)) -> 0 | AG14: =IF(AND(COUNTRY_INFO!K14>0,COUNTRY_INFO!K14<4),IF(Z14>0,IF(COUNTRY_INFO!K14=1, 0, IF(COUNTRY_INFO!K14=2, AF14/(COUNTRY_INFO!G14*0.2)*100, IF(COUNTRY_INFO!K14=3, AF14/COUNTRY_INFO!G14*100))),"-"),0) -> 0 | AH14: 20043.54 | AI14: =IF(AND(COUNTRY_INFO!K14>0,COUNTRY_INFO!K14<4), IF(AC14/Z14*100<>0, IF(AH14/Z14*100>100,100,AH14/Z14*100), "-"),0) -> 100 | AK14: =IF(AND(D14<>0, D14<>"Inconnu",D14<>"Interrompu",D14<>"Non requis"),D14/COUNTRY_INFO!D14, 0) -> 0 | AL14: =IF(AND(J14<>0,J14<>"Inconnu",J14<>"Interrompu",J14<>"Non requis"),J14/COUNTRY_INFO!D14, 0) -> 0 | AM14: =IF(AND(P14<>0,P14<>"Inconnu",P14<>"Non requis"),P14/(COUNTRY_INFO!E14+COUNTRY_INFO!F14), 0) -> 1 | AN14: =IF(AND(Z14<>0,Z14<>"Inconnu",Z14<>"Non requis"),IF(COUNTRY_INFO!K14=1,1,IF(COUNTRY_INFO!K14=2,0.5*COUNTRY_INFO!F14/(0.5*COUNTRY_INFO!F14+0.2*COUNTRY_INFO!G14),IF(COUNTRY_INFO!K14=3,COUNTRY_INFO!F14/(COUNTRY_INFO!F14+COUNTRY_INFO!G14)))),0) -> 1 | AO14: =IF(AND(Z14<>0,Z14<>"Inconnu",Z14<>"Non requis"),IF(COUNTRY_INFO!K14=1,0,IF(COUNTRY_INFO!K14=2,0.2*COUNTRY_INFO!G14/(0.5*COUNTRY_INFO!F14+0.2*COUNTRY_INFO!G14),IF(COUNTRY_INFO!K14=3,COUNTRY_INFO!G14/(COUNTRY_INFO!F14+COUNTRY_INFO!G14)))),0) -> 0 | AP14: =MAX(COUNTRY_INFO!D14*AK14*PROFILE!$G$7,COUNTRY_INFO!D14*AL14*PROFILE!$G$7) -> 0 | AQ14: =MAX(COUNTRY_INFO!D14*AK14*PROFILE!$G$8,COUNTRY_INFO!D14*AL14*PROFILE!$G$8,COUNTRY_INFO!D14*AM14*PROFILE!$G$8) -> 32302.48044 | AR14: =MAX(COUNTRY_INFO!D14*AK14*PROFILE!$G$9,COUNTRY_INFO!D14*AL14*PROFILE!$G$9,COUNTRY_INFO!D14*AM14*PROFILE!$G$9,IF(AND(DISTRICT!Z14<>"Inconnu",Z14<>"Non requis"),COUNTRY_INFO!O14*DISTRICT!AN14,0)) -> 60737.78492 | AS14: =MAX(COUNTRY_INFO!D14*AK14*PROFILE!$G$10,COUNTRY_INFO!D14*AL14*PROFILE!$G$10,IF(AND(DISTRICT!Z14<>"Inconnu",Z14<>"Non requis"),COUNTRY_INFO!O14*DISTRICT!AO14,0)) -> 0 | AT14: 93040.26536 | AU14: Y | AV14: =MAX('MDA2'!J14,'T1'!L14,'T2'!J14,T3_R1!K14,T3_R2!K14) -> 37545 | AW14: =MAX('MDA1'!K14,'MDA2'!K14,'MDA3'!I14,'MDA3'!L14,'T1'!M14,'T2'!K14,T3_R1!L14,T3_R2!L14) -> 96635 | AX14: =MAX('MDA1'!L14,'MDA2'!L14,'MDA3'!J14,'MDA3'!M14,'T1'!N14,'T2'!L14,T3_R1!M14,T3_R2!M14) -> 5549 | AY14: 139729 | AZ14: =MAX('MDA2'!J14,T14) -> 32302 | BA14: =MAX('MDA1'!K14,'MDA2'!K14,'MDA3'!I14,'MDA3'!L14,V14,AD14) -> 60738 | BB14: =MAX('MDA1'!L14,'MDA2'!L14,'MDA3'!J14,'MDA3'!M14,AF14) -> 0 | BC14: 93040 | BD14: 99.99971479
A15: =IF(COUNTRY_INFO!A15=0," ",COUNTRY_INFO!A15) -> BURUNDI | B15: =IF(COUNTRY_INFO!B15=0," ",COUNTRY_INFO!B15) -> Bujumbura Rural | C15: =IF(COUNTRY_INFO!C15=0," ",COUNTRY_INFO!C15) -> Kabezi | D15: =COUNTRY_INFO!L15 -> Non requis | G15: =MAX('MDA1'!M15,'MDA2'!M15) -> 0 | H15: =IF(AND(COUNTRY_INFO!H15>0,COUNTRY_INFO!H15<4),IF(D15>MAX('MDA1'!M15,'MDA2'!M15),MAX('MDA1'!M15,'MDA2'!M15),D15),0) -> 0 | I15: =IF(AND(COUNTRY_INFO!H15>0,COUNTRY_INFO!H15<4), IF(G15/D15*100<>0, IF(G15/D15*100>100,100,G15/D15*100), "-"),0) -> 0 | J15: =COUNTRY_INFO!M15 -> 0 | M15: =MAX('MDA1'!M15,MAX('MDA3'!I15,'MDA3'!L15)+MAX('MDA3'!J15,'MDA3'!M15)) -> 0 | N15: =IF(AND(COUNTRY_INFO!I15>0,COUNTRY_INFO!I15<4),IF(J15>MAX('MDA1'!M15,MAX('MDA3'!I15,'MDA3'!L15)+MAX('MDA3'!J15,'MDA3'!M15)),MAX('MDA1'!M15,MAX('MDA3'!I15,'MDA3'!L15)+MAX('MDA3'!J15,'MDA3'!M15)),J15),0) -> 0 | O15: =IF(AND(COUNTRY_INFO!I15>0,COUNTRY_INFO!I15<4), IF(M15/J15*100<>0, IF(M15/J15*100>100,100,M15/J15*100), "-"),0) -> 0 | P15: =COUNTRY_INFO!N15 -> 108856 | S15: =SUM(MAX('MDA2'!J15, 'T1'!L15, MAX(T3_R1!K15, T3_R2!K15)), MAX('MDA1'!K15, 'MDA2'!K15, 'T1'!M15, MAX(T3_R1!L15, T3_R2!L15)), MAX('MDA1'!L15, 'MDA2'!L15, 'T1'!N15, MAX(T3_R1!M15, T3_R2!M15))) -> 113259 | T15: =IF(AND(COUNTRY_INFO!J15>1,COUNTRY_INFO!J15<4),IF(COUNTRY_INFO!E15>MAX('MDA2'!J15,'T1'!L15,MAX(T3_R1!K15,T3_R2!K15)),MAX('MDA2'!J15,'T1'!L15,MAX(T3_R1!K15,T3_R2!K15)),COUNTRY_INFO!E15),0) -> 30829 | U15: =IF(AND(COUNTRY_INFO!J15>1,COUNTRY_INFO!J15<4), IF(T15/COUNTRY_INFO!E15*100<>0, IF(T15/COUNTRY_INFO!E15*100>100,100,T15/COUNTRY_INFO!E15*100), "-"),0) -> 81.57114886 | V15: =IF(AND(COUNTRY_INFO!J15>1,COUNTRY_INFO!J15<4),IF(COUNTRY_INFO!F15>MAX('MDA1'!K15,'MDA2'!K15,'T1'!M15,MAX(T3_R1!L15,T3_R2!L15)),MAX('MDA1'!K15,'MDA2'!K15,'T1'!M15,MAX(T3_R1!L15,T3_R2!L15)),COUNTRY_INFO!F15),0) -> 71062 | W15: =IF(AND(COUNTRY_INFO!J15>1,COUNTRY_INFO!J15<4), IF(V15/COUNTRY_INFO!F15*100<>0, IF(V15/COUNTRY_INFO!F15*100>100,100,V15/COUNTRY_INFO!F15*100), "-"),0) -> 100 | X15: 101891 | Y15: =IF(AND(COUNTRY_INFO!J15>1,COUNTRY_INFO!J15<4), IF(S15/P15*100<>0, IF(X15/P15*100>100,100,X15/P15*100), "-"),0) -> 93.60163886 | Z15: =COUNTRY_INFO!O15 -> 23450.46 | AA15: 28974 | AB15: 33637 | AC15: =MAX('T1'!L15,'T2'!J15)+MAX('T1'!M15,'T2'!K15)+MAX('T1'!N15,'T2'!L15) -> 62611 | AD15: =IF(COUNTRY_INFO!K15=1,IF(COUNTRY_INFO!F15*0.33>MAX('T1'!M15,'T2'!K15),MAX('T1'!M15,'T2'!K15),COUNTRY_INFO!F15*0.33),IF(COUNTRY_INFO!K15=2,IF(COUNTRY_INFO!F15*0.5>MAX('T1'!M15,'T2'!K15),MAX('T1'!M15,'T2'!K15),COUNTRY_INFO!F15*0.5),IF(COUNTRY_INFO!K15=3,IF(COUNTRY_INFO!F15>MAX('T1'!M15,'T2'!K15),MAX('T1'!M15,'T2'!K15),COUNTRY_INFO!F15),0))) -> 23450.46 | AE15: =IF(AND(COUNTRY_INFO!K15>0,COUNTRY_INFO!K15<4),IF(Z15>0,IF(COUNTRY_INFO!K15=1, AD15/(COUNTRY_INFO!F15*0.33)*100, IF(COUNTRY_INFO!K15=2, AD15/(COUNTRY_INFO!F15*0.5)*100, IF(COUNTRY_INFO!K15=3, AD15/COUNTRY_INFO!F15*100))),"-"),0) -> 100 | AF15: =IF(COUNTRY_INFO!K15=2,IF(COUNTRY_INFO!G15*0.2>MAX('T1'!N15,'T2'!L15),MAX('T1'!N15,'T2'!L15),COUNTRY_INFO!G15*0.2),IF(COUNTRY_INFO!K15=3,IF(COUNTRY_INFO!G15>MAX('T1'!N15,'T2'!L15),MAX('T1'!N15,'T2'!L15),COUNTRY_INFO!G15),0)) -> 0 | AG15: =IF(AND(COUNTRY_INFO!K15>0,COUNTRY_INFO!K15<4),IF(Z15>0,IF(COUNTRY_INFO!K15=1, 0, IF(COUNTRY_INFO!K15=2, AF15/(COUNTRY_INFO!G15*0.2)*100, IF(COUNTRY_INFO!K15=3, AF15/COUNTRY_INFO!G15*100))),"-"),0) -> 0 | AH15: 23450.46 | AI15: =IF(AND(COUNTRY_INFO!K15>0,COUNTRY_INFO!K15<4), IF(AC15/Z15*100<>0, IF(AH15/Z15*100>100,100,AH15/Z15*100), "-"),0) -> 100 | AK15: =IF(AND(D15<>0, D15<>"Inconnu",D15<>"Interrompu",D15<>"Non requis"),D15/COUNTRY_INFO!D15, 0) -> 0 | AL15: =IF(AND(J15<>0,J15<>"Inconnu",J15<>"Interrompu",J15<>"Non requis"),J15/COUNTRY_INFO!D15, 0) -> 0 | AM15: =IF(AND(P15<>0,P15<>"Inconnu",P15<>"Non requis"),P15/(COUNTRY_INFO!E15+COUNTRY_INFO!F15), 0) -> 1 | AN15: =IF(AND(Z15<>0,Z15<>"Inconnu",Z15<>"Non requis"),IF(COUNTRY_INFO!K15=1,1,IF(COUNTRY_INFO!K15=2,0.5*COUNTRY_INFO!F15/(0.5*COUNTRY_INFO!F15+0.2*COUNTRY_INFO!G15),IF(COUNTRY_INFO!K15=3,COUNTRY_INFO!F15/(COUNTRY_INFO!F15+COUNTRY_INFO!G15)))),0) -> 1 | AO15: =IF(AND(Z15<>0,Z15<>"Inconnu",Z15<>"Non requis"),IF(COUNTRY_INFO!K15=1,0,IF(COUNTRY_INFO!K15=2,0.2*COUNTRY_INFO!G15/(0.5*COUNTRY_INFO!F15+0.2*COUNTRY_INFO!G15),IF(COUNTRY_INFO!K15=3,COUNTRY_INFO!G15/(COUNTRY_INFO!F15+COUNTRY_INFO!G15)))),0) -> 0 | AP15: =MAX(COUNTRY_INFO!D15*AK15*PROFILE!$G$7,COUNTRY_INFO!D15*AL15*PROFILE!$G$7) -> 0 | AQ15: =MAX(COUNTRY_INFO!D15*AK15*PROFILE!$G$8,COUNTRY_INFO!D15*AL15*PROFILE!$G$8,COUNTRY_INFO!D15*AM15*PROFILE!$G$8) -> 37793.53285 | AR15: =MAX(COUNTRY_INFO!D15*AK15*PROFILE!$G$9,COUNTRY_INFO!D15*AL15*PROFILE!$G$9,COUNTRY_INFO!D15*AM15*PROFILE!$G$9,IF(AND(DISTRICT!Z15<>"Inconnu",Z15<>"Non requis"),COUNTRY_INFO!O15*DISTRICT!AN15,0)) -> 71062.51403 | AS15: =MAX(COUNTRY_INFO!D15*AK15*PROFILE!$G$10,COUNTRY_INFO!D15*AL15*PROFILE!$G$10,IF(AND(DISTRICT!Z15<>"Inconnu",Z15<>"Non requis"),COUNTRY_INFO!O15*DISTRICT!AO15,0)) -> 0 | AT15: 108856.0469 | AU15: Y | AV15: =MAX('MDA2'!J15,'T1'!L15,'T2'!J15,T3_R1!K15,T3_R2!K15) -> 30829 | AW15: =MAX('MDA1'!K15,'MDA2'!K15,'MDA3'!I15,'MDA3'!L15,'T1'!M15,'T2'!K15,T3_R1!L15,T3_R2!L15) -> 77188 | AX15: =MAX('MDA1'!L15,'MDA2'!L15,'MDA3'!J15,'MDA3'!M15,'T1'!N15,'T2'!L15,T3_R1!M15,T3_R2!M15) -> 5242 | AY15: 113259 | AZ15: =MAX('MDA2'!J15,T15) -> 30829 | BA15: =MAX('MDA1'!K15,'MDA2'!K15,'MDA3'!I15,'MDA3'!L15,V15,AD15) -> 71062 | BB15: =MAX('MDA1'!L15,'MDA2'!L15,'MDA3'!J15,'MDA3'!M15,AF15) -> 0 | BC15: 101891 | BD15: 93.60159855
A16: =IF(COUNTRY_INFO!A16=0," ",COUNTRY_INFO!A16) -> BURUNDI | B16: =IF(COUNTRY_INFO!B16=0," ",COUNTRY_INFO!B16) -> Bujumbura Rural | C16: =IF(COUNTRY_INFO!C16=0," ",COUNTRY_INFO!C16) -> Rwibaga | D16: =COUNTRY_INFO!L16 -> Non requis | G16: =MAX('MDA1'!M16,'MDA2'!M16) -> 0 | H16: =IF(AND(COUNTRY_INFO!H16>0,COUNTRY_INFO!H16<4),IF(D16>MAX('MDA1'!M16,'MDA2'!M16),MAX('MDA1'!M16,'MDA2'!M16),D16),0) -> 0 | I16: =IF(AND(COUNTRY_INFO!H16>0,COUNTRY_INFO!H16<4), IF(G16/D16*100<>0, IF(G16/D16*100>100,100,G16/D16*100), "-"),0) -> 0 | J16: =COUNTRY_INFO!M16 -> 0 | M16: =MAX('MDA1'!M16,MAX('MDA3'!I16,'MDA3'!L16)+MAX('MDA3'!J16,'MDA3'!M16)) -> 0 | N16: =IF(AND(COUNTRY_INFO!I16>0,COUNTRY_INFO!I16<4),IF(J16>MAX('MDA1'!M16,MAX('MDA3'!I16,'MDA3'!L16)+MAX('MDA3'!J16,'MDA3'!M16)),MAX('MDA1'!M16,MAX('MDA3'!I16,'MDA3'!L16)+MAX('MDA3'!J16,'MDA3'!M16)),J16),0) -> 0 | O16: =IF(AND(COUNTRY_INFO!I16>0,COUNTRY_INFO!I16<4), IF(M16/J16*100<>0, IF(M16/J16*100>100,100,M16/J16*100), "-"),0) -> 0 | P16: =COUNTRY_INFO!N16 -> 47040 | S16: =SUM(MAX('MDA2'!J16, 'T1'!L16, MAX(T3_R1!K16, T3_R2!K16)), MAX('MDA1'!K16, 'MDA2'!K16, 'T1'!M16, MAX(T3_R1!L16, T3_R2!L16)), MAX('MDA1'!L16, 'MDA2'!L16, 'T1'!N16, MAX(T3_R1!M16, T3_R2!M16))) -> 55882 | T16: =IF(AND(COUNTRY_INFO!J16>1,COUNTRY_INFO!J16<4),IF(COUNTRY_INFO!E16>MAX('MDA2'!J16,'T1'!L16,MAX(T3_R1!K16,T3_R2!K16)),MAX('MDA2'!J16,'T1'!L16,MAX(T3_R1!K16,T3_R2!K16)),COUNTRY_INFO!E16),0) -> 14647 | U16: =IF(AND(COUNTRY_INFO!J16>1,COUNTRY_INFO!J16<4), IF(T16/COUNTRY_INFO!E16*100<>0, IF(T16/COUNTRY_INFO!E16*100>100,100,T16/COUNTRY_INFO!E16*100), "-"),0) -> 89.68283125 | V16: =IF(AND(COUNTRY_INFO!J16>1,COUNTRY_INFO!J16<4),IF(COUNTRY_INFO!F16>MAX('MDA1'!K16,'MDA2'!K16,'T1'!M16,MAX(T3_R1!L16,T3_R2!L16)),MAX('MDA1'!K16,'MDA2'!K16,'T1'!M16,MAX(T3_R1!L16,T3_R2!L16)),COUNTRY_INFO!F16),0) -> 30708 | W16: =IF(AND(COUNTRY_INFO!J16>1,COUNTRY_INFO!J16<4), IF(V16/COUNTRY_INFO!F16*100<>0, IF(V16/COUNTRY_INFO!F16*100>100,100,V16/COUNTRY_INFO!F16*100), "-"),0) -> 100 | X16: 45355 | Y16: =IF(AND(COUNTRY_INFO!J16>1,COUNTRY_INFO!J16<4), IF(S16/P16*100<>0, IF(X16/P16*100>100,100,X16/P16*100), "-"),0) -> 96.41794218 | Z16: =COUNTRY_INFO!O16 -> 0 | AC16: =MAX('T1'!L16,'T2'!J16)+MAX('T1'!M16,'T2'!K16)+MAX('T1'!N16,'T2'!L16) -> 0 | AD16: =IF(COUNTRY_INFO!K16=1,IF(COUNTRY_INFO!F16*0.33>MAX('T1'!M16,'T2'!K16),MAX('T1'!M16,'T2'!K16),COUNTRY_INFO!F16*0.33),IF(COUNTRY_INFO!K16=2,IF(COUNTRY_INFO!F16*0.5>MAX('T1'!M16,'T2'!K16),MAX('T1'!M16,'T2'!K16),COUNTRY_INFO!F16*0.5),IF(COUNTRY_INFO!K16=3,IF(COUNTRY_INFO!F16>MAX('T1'!M16,'T2'!K16),MAX('T1'!M16,'T2'!K16),COUNTRY_INFO!F16),0))) -> 0 | AE16: =IF(AND(COUNTRY_INFO!K16>0,COUNTRY_INFO!K16<4),IF(Z16>0,IF(COUNTRY_INFO!K16=1, AD16/(COUNTRY_INFO!F16*0.33)*100, IF(COUNTRY_INFO!K16=2, AD16/(COUNTRY_INFO!F16*0.5)*100, IF(COUNTRY_INFO!K16=3, AD16/COUNTRY_INFO!F16*100))),"-"),0) -> 0 | AF16: =IF(COUNTRY_INFO!K16=2,IF(COUNTRY_INFO!G16*0.2>MAX('T1'!N16,'T2'!L16),MAX('T1'!N16,'T2'!L16),COUNTRY_INFO!G16*0.2),IF(COUNTRY_INFO!K16=3,IF(COUNTRY_INFO!G16>MAX('T1'!N16,'T2'!L16),MAX('T1'!N16,'T2'!L16),COUNTRY_INFO!G16),0)) -> 0 | AG16: =IF(AND(COUNTRY_INFO!K16>0,COUNTRY_INFO!K16<4),IF(Z16>0,IF(COUNTRY_INFO!K16=1, 0, IF(COUNTRY_INFO!K16=2, AF16/(COUNTRY_INFO!G16*0.2)*100, IF(COUNTRY_INFO!K16=3, AF16/COUNTRY_INFO!G16*100))),"-"),0) -> 0 | AH16: 0 | AI16: =IF(AND(COUNTRY_INFO!K16>0,COUNTRY_INFO!K16<4), IF(AC16/Z16*100<>0, IF(AH16/Z16*100>100,100,AH16/Z16*100), "-"),0) -> 0 | AK16: =IF(AND(D16<>0, D16<>"Inconnu",D16<>"Interrompu",D16<>"Non requis"),D16/COUNTRY_INFO!D16, 0) -> 0 | AL16: =IF(AND(J16<>0,J16<>"Inconnu",J16<>"Interrompu",J16<>"Non requis"),J16/COUNTRY_INFO!D16, 0) -> 0 | AM16: =IF(AND(P16<>0,P16<>"Inconnu",P16<>"Non requis"),P16/(COUNTRY_INFO!E16+COUNTRY_INFO!F16), 0) -> 1 | AN16: =IF(AND(Z16<>0,Z16<>"Inconnu",Z16<>"Non requis"),IF(COUNTRY_INFO!K16=1,1,IF(COUNTRY_INFO!K16=2,0.5*COUNTRY_INFO!F16/(0.5*COUNTRY_INFO!F16+0.2*COUNTRY_INFO!G16),IF(COUNTRY_INFO!K16=3,COUNTRY_INFO!F16/(COUNTRY_INFO!F16+COUNTRY_INFO!G16)))),0) -> 0 | AO16: =IF(AND(Z16<>0,Z16<>"Inconnu",Z16<>"Non requis"),IF(COUNTRY_INFO!K16=1,0,IF(COUNTRY_INFO!K16=2,0.2*COUNTRY_INFO!G16/(0.5*COUNTRY_INFO!F16+0.2*COUNTRY_INFO!G16),IF(COUNTRY_INFO!K16=3,COUNTRY_INFO!G16/(COUNTRY_INFO!F16+COUNTRY_INFO!G16)))),0) -> 0 | AP16: =MAX(COUNTRY_INFO!D16*AK16*PROFILE!$G$7,COUNTRY_INFO!D16*AL16*PROFILE!$G$7) -> 0 | AQ16: =MAX(COUNTRY_INFO!D16*AK16*PROFILE!$G$8,COUNTRY_INFO!D16*AL16*PROFILE!$G$8,COUNTRY_INFO!D16*AM16*PROFILE!$G$8) -> 16331.55543 | AR16: =MAX(COUNTRY_INFO!D16*AK16*PROFILE!$G$9,COUNTRY_INFO!D16*AL16*PROFILE!$G$9,COUNTRY_INFO!D16*AM16*PROFILE!$G$9,IF(AND(DISTRICT!Z16<>"Inconnu",Z16<>"Non requis"),COUNTRY_INFO!O16*DISTRICT!AN16,0)) -> 30707.93598 | AS16: =MAX(COUNTRY_INFO!D16*AK16*PROFILE!$G$10,COUNTRY_INFO!D16*AL16*PROFILE!$G$10,IF(AND(DISTRICT!Z16<>"Inconnu",Z16<>"Non requis"),COUNTRY_INFO!O16*DISTRICT!AO16,0)) -> 0 | AT16: 47039.49141 | AU16: Y | AV16: =MAX('MDA2'!J16,'T1'!L16,'T2'!J16,T3_R1!K16,T3_R2!K16) -> 14647 | AW16: =MAX('MDA1'!K16,'MDA2'!K16,'MDA3'!I16,'MDA3'!L16,'T1'!M16,'T2'!K16,T3_R1!L16,T3_R2!L16) -> 39274 | AX16: =MAX('MDA1'!L16,'MDA2'!L16,'MDA3'!J16,'MDA3'!M16,'T1'!N16,'T2'!L16,T3_R1!M16,T3_R2!M16) -> 1961 | AY16: 55882 | AZ16: =MAX('MDA2'!J16,T16) -> 14647 | BA16: =MAX('MDA1'!K16,'MDA2'!K16,'MDA3'!I16,'MDA3'!L16,V16,AD16) -> 30708 | BB16: =MAX('MDA1'!L16,'MDA2'!L16,'MDA3'!J16,'MDA3'!M16,AF16) -> 0 | BC16: 45355 | BD16: 96.41898464
A17: =IF(COUNTRY_INFO!A17=0," ",COUNTRY_INFO!A17) -> BURUNDI | B17: =IF(COUNTRY_INFO!B17=0," ",COUNTRY_INFO!B17) -> Bururi | C17: =IF(COUNTRY_INFO!C17=0," ",COUNTRY_INFO!C17) -> Bururi | D17: =COUNTRY_INFO!L17 -> Non requis | G17: =MAX('MDA1'!M17,'MDA2'!M17) -> 0 | H17: =IF(AND(COUNTRY_INFO!H17>0,COUNTRY_INFO!H17<4),IF(D17>MAX('MDA1'!M17,'MDA2'!M17),MAX('MDA1'!M17,'MDA2'!M17),D17),0) -> 0 | I17: =IF(AND(COUNTRY_INFO!H17>0,COUNTRY_INFO!H17<4), IF(G17/D17*100<>0, IF(G17/D17*100>100,100,G17/D17*100), "-"),0) -> 0 | J17: =COUNTRY_INFO!M17 -> 54158 | K17: 20831 | L17: 23339 | M17: =MAX('MDA1'!M17,MAX('MDA3'!I17,'MDA3'!L17)+MAX('MDA3'!J17,'MDA3'!M17)) -> 44170 | N17: =IF(AND(COUNTRY_INFO!I17>0,COUNTRY_INFO!I17<4),IF(J17>MAX('MDA1'!M17,MAX('MDA3'!I17,'MDA3'!L17)+MAX('MDA3'!J17,'MDA3'!M17)),MAX('MDA1'!M17,MAX('MDA3'!I17,'MDA3'!L17)+MAX('MDA3'!J17,'MDA3'!M17)),J17),0) -> 44170 | O17: =IF(AND(COUNTRY_INFO!I17>0,COUNTRY_INFO!I17<4), IF(M17/J17*100<>0, IF(M17/J17*100>100,100,M17/J17*100), "-"),0) -> 81.55766461 | P17: =COUNTRY_INFO!N17 -> 0 | S17: =SUM(MAX('MDA2'!J17, 'T1'!L17, MAX(T3_R1!K17, T3_R2!K17)), MAX('MDA1'!K17, 'MDA2'!K17, 'T1'!M17, MAX(T3_R1!L17, T3_R2!L17)), MAX('MDA1'!L17, 'MDA2'!L17, 'T1'!N17, MAX(T3_R1!M17, T3_R2!M17))) -> 120453 | T17: =IF(AND(COUNTRY_INFO!J17>1,COUNTRY_INFO!J17<4),IF(COUNTRY_INFO!E17>MAX('MDA2'!J17,'T1'!L17,MAX(T3_R1!K17,T3_R2!K17)),MAX('MDA2'!J17,'T1'!L17,MAX(T3_R1!K17,T3_R2!K17)),COUNTRY_INFO!E17),0) -> 0 | U17: =IF(AND(COUNTRY_INFO!J17>1,COUNTRY_INFO!J17<4), IF(T17/COUNTRY_INFO!E17*100<>0, IF(T17/COUNTRY_INFO!E17*100>100,100,T17/COUNTRY_INFO!E17*100), "-"),0) -> 0 | V17: =IF(AND(COUNTRY_INFO!J17>1,COUNTRY_INFO!J17<4),IF(COUNTRY_INFO!F17>MAX('MDA1'!K17,'MDA2'!K17,'T1'!M17,MAX(T3_R1!L17,T3_R2!L17)),MAX('MDA1'!K17,'MDA2'!K17,'T1'!M17,MAX(T3_R1!L17,T3_R2!L17)),COUNTRY_INFO!F17),0) -> 0 | W17: =IF(AND(COUNTRY_INFO!J17>1,COUNTRY_INFO!J17<4), IF(V17/COUNTRY_INFO!F17*100<>0, IF(V17/COUNTRY_INFO!F17*100>100,100,V17/COUNTRY_INFO!F17*100), "-"),0) -> 0 | X17: 0 | Y17: =IF(AND(COUNTRY_INFO!J17>1,COUNTRY_INFO!J17<4), IF(S17/P17*100<>0, IF(X17/P17*100>100,100,X17/P17*100), "-"),0) -> 0 | Z17: =COUNTRY_INFO!O17 -> 0 | AC17: =MAX('T1'!L17,'T2'!J17)+MAX('T1'!M17,'T2'!K17)+MAX('T1'!N17,'T2'!L17) -> 0 | AD17: =IF(COUNTRY_INFO!K17=1,IF(COUNTRY_INFO!F17*0.33>MAX('T1'!M17,'T2'!K17),MAX('T1'!M17,'T2'!K17),COUNTRY_INFO!F17*0.33),IF(COUNTRY_INFO!K17=2,IF(COUNTRY_INFO!F17*0.5>MAX('T1'!M17,'T2'!K17),MAX('T1'!M17,'T2'!K17),COUNTRY_INFO!F17*0.5),IF(COUNTRY_INFO!K17=3,IF(COUNTRY_INFO!F17>MAX('T1'!M17,'T2'!K17),MAX('T1'!M17,'T2'!K17),COUNTRY_INFO!F17),0))) -> 0 | AE17: =IF(AND(COUNTRY_INFO!K17>0,COUNTRY_INFO!K17<4),IF(Z17>0,IF(COUNTRY_INFO!K17=1, AD17/(COUNTRY_INFO!F17*0.33)*100, IF(COUNTRY_INFO!K17=2, AD17/(COUNTRY_INFO!F17*0.5)*100, IF(COUNTRY_INFO!K17=3, AD17/COUNTRY_INFO!F17*100))),"-"),0) -> 0 | AF17: =IF(COUNTRY_INFO!K17=2,IF(COUNTRY_INFO!G17*0.2>MAX('T1'!N17,'T2'!L17),MAX('T1'!N17,'T2'!L17),COUNTRY_INFO!G17*0.2),IF(COUNTRY_INFO!K17=3,IF(COUNTRY_INFO!G17>MAX('T1'!N17,'T2'!L17),MAX('T1'!N17,'T2'!L17),COUNTRY_INFO!G17),0)) -> 0 | AG17: =IF(AND(COUNTRY_INFO!K17>0,COUNTRY_INFO!K17<4),IF(Z17>0,IF(COUNTRY_INFO!K17=1, 0, IF(COUNTRY_INFO!K17=2, AF17/(COUNTRY_INFO!G17*0.2)*100, IF(COUNTRY_INFO!K17=3, AF17/COUNTRY_INFO!G17*100))),"-"),0) -> 0 | AH17: 0 | AI17: =IF(AND(COUNTRY_INFO!K17>0,COUNTRY_INFO!K17<4), IF(AC17/Z17*100<>0, IF(AH17/Z17*100>100,100,AH17/Z17*100), "-"),0) -> 0 | AK17: =IF(AND(D17<>0, D17<>"Inconnu",D17<>"Interrompu",D17<>"Non requis"),D17/COUNTRY_INFO!D17, 0) -> 0 | AL17: =IF(AND(J17<>0,J17<>"Inconnu",J17<>"Interrompu",J17<>"Non requis"),J17/COUNTRY_INFO!D17, 0) -> 0.3384162864 | AM17: =IF(AND(P17<>0,P17<>"Inconnu",P17<>"Non requis"),P17/(COUNTRY_INFO!E17+COUNTRY_INFO!F17), 0) -> 0 | AN17: =IF(AND(Z17<>0,Z17<>"Inconnu",Z17<>"Non requis"),IF(COUNTRY_INFO!K17=1,1,IF(COUNTRY_INFO!K17=2,0.5*COUNTRY_INFO!F17/(0.5*COUNTRY_INFO!F17+0.2*COUNTRY_INFO!G17),IF(COUNTRY_INFO!K17=3,COUNTRY_INFO!F17/(COUNTRY_INFO!F17+COUNTRY_INFO!G17)))),0) -> 0 | AO17: =IF(AND(Z17<>0,Z17<>"Inconnu",Z17<>"Non requis"),IF(COUNTRY_INFO!K17=1,0,IF(COUNTRY_INFO!K17=2,0.2*COUNTRY_INFO!G17/(0.5*COUNTRY_INFO!F17+0.2*COUNTRY_INFO!G17),IF(COUNTRY_INFO!K17=3,COUNTRY_INFO!G17/(COUNTRY_INFO!F17+COUNTRY_INFO!G17)))),0) -> 0 | AP17: =MAX(COUNTRY_INFO!D17*AK17*PROFILE!$G$7,COUNTRY_INFO!D17*AL17*PROFILE!$G$7) -> 2003.852749 | AQ17: =MAX(COUNTRY_INFO!D17*AK17*PROFILE!$G$8,COUNTRY_INFO!D17*AL17*PROFILE!$G$8,COUNTRY_INFO!D17*AM17*PROFILE!$G$8) -> 7690.435488 | AR17: =MAX(COUNTRY_INFO!D17*AK17*PROFILE!$G$9,COUNTRY_INFO!D17*AL17*PROFILE!$G$9,COUNTRY_INFO!D17*AM17*PROFILE!$G$9,IF(AND(DISTRICT!Z17<>"Inconnu",Z17<>"Non requis"),COUNTRY_INFO!O17*DISTRICT!AN17,0)) -> 14460.19037 | AS17: =MAX(COUNTRY_INFO!D17*AK17*PROFILE!$G$10,COUNTRY_INFO!D17*AL17*PROFILE!$G$10,IF(AND(DISTRICT!Z17<>"Inconnu",Z17<>"Non requis"),COUNTRY_INFO!O17*DISTRICT!AO17,0)) -> 30003.52139 | AT17: 54158 | AU17: Y | AV17: =MAX('MDA2'!J17,'T1'!L17,'T2'!J17,T3_R1!K17,T3_R2!K17) -> 28683 | AW17: =MAX('MDA1'!K17,'MDA2'!K17,'MDA3'!I17,'MDA3'!L17,'T1'!M17,'T2'!K17,T3_R1!L17,T3_R2!L17) -> 51274 | AX17: =MAX('MDA1'!L17,'MDA2'!L17,'MDA3'!J17,'MDA3'!M17,'T1'!N17,'T2'!L17,T3_R1!M17,T3_R2!M17) -> 40496 | AY17: 120453 | AZ17: =MAX('MDA2'!J17,T17) -> 0 | BA17: =MAX('MDA1'!K17,'MDA2'!K17,'MDA3'!I17,'MDA3'!L17,V17,AD17) -> 11793 | BB17: =MAX('MDA1'!L17,'MDA2'!L17,'MDA3'!J17,'MDA3'!M17,AF17) -> 32377 | BC17: 44170 | BD17: 81.55766461
A18: =IF(COUNTRY_INFO!A18=0," ",COUNTRY_INFO!A18) -> BURUNDI | B18: =IF(COUNTRY_INFO!B18=0," ",COUNTRY_INFO!B18) -> Bururi | C18: =IF(COUNTRY_INFO!C18=0," ",COUNTRY_INFO!C18) -> Matana | D18: =COUNTRY_INFO!L18 -> Non requis | G18: =MAX('MDA1'!M18,'MDA2'!M18) -> 0 | H18: =IF(AND(COUNTRY_INFO!H18>0,COUNTRY_INFO!H18<4),IF(D18>MAX('MDA1'!M18,'MDA2'!M18),MAX('MDA1'!M18,'MDA2'!M18),D18),0) -> 0 | I18: =IF(AND(COUNTRY_INFO!H18>0,COUNTRY_INFO!H18<4), IF(G18/D18*100<>0, IF(G18/D18*100>100,100,G18/D18*100), "-"),0) -> 0 | J18: =COUNTRY_INFO!M18 -> 22760 | K18: 8298 | L18: 10342 | M18: =MAX('MDA1'!M18,MAX('MDA3'!I18,'MDA3'!L18)+MAX('MDA3'!J18,'MDA3'!M18)) -> 18640 | N18: =IF(AND(COUNTRY_INFO!I18>0,COUNTRY_INFO!I18<4),IF(J18>MAX('MDA1'!M18,MAX('MDA3'!I18,'MDA3'!L18)+MAX('MDA3'!J18,'MDA3'!M18)),MAX('MDA1'!M18,MAX('MDA3'!I18,'MDA3'!L18)+MAX('MDA3'!J18,'MDA3'!M18)),J18),0) -> 18640 | O18: =IF(AND(COUNTRY_INFO!I18>0,COUNTRY_INFO!I18<4), IF(M18/J18*100<>0, IF(M18/J18*100>100,100,M18/J18*100), "-"),0) -> 81.89806678 | P18: =COUNTRY_INFO!N18 -> 102855 | S18: =SUM(MAX('MDA2'!J18, 'T1'!L18, MAX(T3_R1!K18, T3_R2!K18)), MAX('MDA1'!K18, 'MDA2'!K18, 'T1'!M18, MAX(T3_R1!L18, T3_R2!L18)), MAX('MDA1'!L18, 'MDA2'!L18, 'T1'!N18, MAX(T3_R1!M18, T3_R2!M18))) -> 127811 | T18: =IF(AND(COUNTRY_INFO!J18>1,COUNTRY_INFO!J18<4),IF(COUNTRY_INFO!E18>MAX('MDA2'!J18,'T1'!L18,MAX(T3_R1!K18,T3_R2!K18)),MAX('MDA2'!J18,'T1'!L18,MAX(T3_R1!K18,T3_R2!K18)),COUNTRY_INFO!E18),0) -> 29611 | U18: =IF(AND(COUNTRY_INFO!J18>1,COUNTRY_INFO!J18<4), IF(T18/COUNTRY_INFO!E18*100<>0, IF(T18/COUNTRY_INFO!E18*100>100,100,T18/COUNTRY_INFO!E18*100), "-"),0) -> 82.92075049 | V18: =IF(AND(COUNTRY_INFO!J18>1,COUNTRY_INFO!J18<4),IF(COUNTRY_INFO!F18>MAX('MDA1'!K18,'MDA2'!K18,'T1'!M18,MAX(T3_R1!L18,T3_R2!L18)),MAX('MDA1'!K18,'MDA2'!K18,'T1'!M18,MAX(T3_R1!L18,T3_R2!L18)),COUNTRY_INFO!F18),0) -> 67145 | W18: =IF(AND(COUNTRY_INFO!J18>1,COUNTRY_INFO!J18<4), IF(V18/COUNTRY_INFO!F18*100<>0, IF(V18/COUNTRY_INFO!F18*100>100,100,V18/COUNTRY_INFO!F18*100), "-"),0) -> 100 | X18: 96756 | Y18: =IF(AND(COUNTRY_INFO!J18>1,COUNTRY_INFO!J18<4), IF(S18/P18*100<>0, IF(X18/P18*100>100,100,X18/P18*100), "-"),0) -> 94.07029313 | Z18: =COUNTRY_INFO!O18 -> 0 | AC18: =MAX('T1'!L18,'T2'!J18)+MAX('T1'!M18,'T2'!K18)+MAX('T1'!N18,'T2'!L18) -> 0 | AD18: =IF(COUNTRY_INFO!K18=1,IF(COUNTRY_INFO!F18*0.33>MAX('T1'!M18,'T2'!K18),MAX('T1'!M18,'T2'!K18),COUNTRY_INFO!F18*0.33),IF(COUNTRY_INFO!K18=2,IF(COUNTRY_INFO!F18*0.5>MAX('T1'!M18,'T2'!K18),MAX('T1'!M18,'T2'!K18),COUNTRY_INFO!F18*0.5),IF(COUNTRY_INFO!K18=3,IF(COUNTRY_INFO!F18>MAX('T1'!M18,'T2'!K18),MAX('T1'!M18,'T2'!K18),COUNTRY_INFO!F18),0))) -> 0 | AE18: =IF(AND(COUNTRY_INFO!K18>0,COUNTRY_INFO!K18<4),IF(Z18>0,IF(COUNTRY_INFO!K18=1, AD18/(COUNTRY_INFO!F18*0.33)*100, IF(COUNTRY_INFO!K18=2, AD18/(COUNTRY_INFO!F18*0.5)*100, IF(COUNTRY_INFO!K18=3, AD18/COUNTRY_INFO!F18*100))),"-"),0) -> 0 | AF18: =IF(COUNTRY_INFO!K18=2,IF(COUNTRY_INFO!G18*0.2>MAX('T1'!N18,'T2'!L18),MAX('T1'!N18,'T2'!L18),COUNTRY_INFO!G18*0.2),IF(COUNTRY_INFO!K18=3,IF(COUNTRY_INFO!G18>MAX('T1'!N18,'T2'!L18),MAX('T1'!N18,'T2'!L18),COUNTRY_INFO!G18),0)) -> 0 | AG18: =IF(AND(COUNTRY_INFO!K18>0,COUNTRY_INFO!K18<4),IF(Z18>0,IF(COUNTRY_INFO!K18=1, 0, IF(COUNTRY_INFO!K18=2, AF18/(COUNTRY_INFO!G18*0.2)*100, IF(COUNTRY_INFO!K18=3, AF18/COUNTRY_INFO!G18*100))),"-"),0) -> 0 | AH18: 0 | AI18: =IF(AND(COUNTRY_INFO!K18>0,COUNTRY_INFO!K18<4), IF(AC18/Z18*100<>0, IF(AH18/Z18*100>100,100,AH18/Z18*100), "-"),0) -> 0 | AK18: =IF(AND(D18<>0, D18<>"Inconnu",D18<>"Interrompu",D18<>"Non requis"),D18/COUNTRY_INFO!D18, 0) -> 0 | AL18: =IF(AND(J18<>0,J18<>"Inconnu",J18<>"Interrompu",J18<>"Non requis"),J18/COUNTRY_INFO!D18, 0) -> 0.0905042215 | AM18: =IF(AND(P18<>0,P18<>"Inconnu",P18<>"Non requis"),P18/(COUNTRY_INFO!E18+COUNTRY_INFO!F18), 0) -> 1 | AN18: =IF(AND(Z18<>0,Z18<>"Inconnu",Z18<>"Non requis"),IF(COUNTRY_INFO!K18=1,1,IF(COUNTRY_INFO!K18=2,0.5*COUNTRY_INFO!F18/(0.5*COUNTRY_INFO!F18+0.2*COUNTRY_INFO!G18),IF(COUNTRY_INFO!K18=3,COUNTRY_INFO!F18/(COUNTRY_INFO!F18+COUNTRY_INFO!G18)))),0) -> 0 | AO18: =IF(AND(Z18<>0,Z18<>"Inconnu",Z18<>"Non requis"),IF(COUNTRY_INFO!K18=1,0,IF(COUNTRY_INFO!K18=2,0.2*COUNTRY_INFO!G18/(0.5*COUNTRY_INFO!F18+0.2*COUNTRY_INFO!G18),IF(COUNTRY_INFO!K18=3,COUNTRY_INFO!G18/(COUNTRY_INFO!F18+COUNTRY_INFO!G18)))),0) -> 0 | AP18: =MAX(COUNTRY_INFO!D18*AK18*PROFILE!$G$7,COUNTRY_INFO!D18*AL18*PROFILE!$G$7) -> 842.1228361 | AQ18: =MAX(COUNTRY_INFO!D18*AK18*PROFILE!$G$8,COUNTRY_INFO!D18*AL18*PROFILE!$G$8,COUNTRY_INFO!D18*AM18*PROFILE!$G$8) -> 35710.15508 | AR18: =MAX(COUNTRY_INFO!D18*AK18*PROFILE!$G$9,COUNTRY_INFO!D18*AL18*PROFILE!$G$9,COUNTRY_INFO!D18*AM18*PROFILE!$G$9,IF(AND(DISTRICT!Z18<>"Inconnu",Z18<>"Non requis"),COUNTRY_INFO!O18*DISTRICT!AN18,0)) -> 67145.17552 | AS18: =MAX(COUNTRY_INFO!D18*AK18*PROFILE!$G$10,COUNTRY_INFO!D18*AL18*PROFILE!$G$10,IF(AND(DISTRICT!Z18<>"Inconnu",Z18<>"Non requis"),COUNTRY_INFO!O18*DISTRICT!AO18,0)) -> 12609.03554 | AT18: 116306.489 | AU18: Y | AV18: =MAX('MDA2'!J18,'T1'!L18,'T2'!J18,T3_R1!K18,T3_R2!K18) -> 29611 | AW18: =MAX('MDA1'!K18,'MDA2'!K18,'MDA3'!I18,'MDA3'!L18,'T1'!M18,'T2'!K18,T3_R1!L18,T3_R2!L18) -> 79081 | AX18: =MAX('MDA1'!L18,'MDA2'!L18,'MDA3'!J18,'MDA3'!M18,'T1'!N18,'T2'!L18,T3_R1!M18,T3_R2!M18) -> 19119 | AY18: 127811 | AZ18: =MAX('MDA2'!J18,T18) -> 29611 | BA18: =MAX('MDA1'!K18,'MDA2'!K18,'MDA3'!I18,'MDA3'!L18,V18,AD18) -> 67145 | BB18: =MAX('MDA1'!L18,'MDA2'!L18,'MDA3'!J18,'MDA3'!M18,AF18) -> 13663 | BC18: 110419 | BD18: 94.93795314
A19: =IF(COUNTRY_INFO!A19=0," ",COUNTRY_INFO!A19) -> BURUNDI | B19: =IF(COUNTRY_INFO!B19=0," ",COUNTRY_INFO!B19) -> Cankuzo | C19: =IF(COUNTRY_INFO!C19=0," ",COUNTRY_INFO!C19) -> Cankuzo | D19: =COUNTRY_INFO!L19 -> Non requis | G19: =MAX('MDA1'!M19,'MDA2'!M19) -> 0 | H19: =IF(AND(COUNTRY_INFO!H19>0,COUNTRY_INFO!H19<4),IF(D19>MAX('MDA1'!M19,'MDA2'!M19),MAX('MDA1'!M19,'MDA2'!M19),D19),0) -> 0 | I19: =IF(AND(COUNTRY_INFO!H19>0,COUNTRY_INFO!H19<4), IF(G19/D19*100<>0, IF(G19/D19*100>100,100,G19/D19*100), "-"),0) -> 0 | J19: =COUNTRY_INFO!M19 -> 0 | M19: =MAX('MDA1'!M19,MAX('MDA3'!I19,'MDA3'!L19)+MAX('MDA3'!J19,'MDA3'!M19)) -> 0 | N19: =IF(AND(COUNTRY_INFO!I19>0,COUNTRY_INFO!I19<4),IF(J19>MAX('MDA1'!M19,MAX('MDA3'!I19,'MDA3'!L19)+MAX('MDA3'!J19,'MDA3'!M19)),MAX('MDA1'!M19,MAX('MDA3'!I19,'MDA3'!L19)+MAX('MDA3'!J19,'MDA3'!M19)),J19),0) -> 0 | O19: =IF(AND(COUNTRY_INFO!I19>0,COUNTRY_INFO!I19<4), IF(M19/J19*100<>0, IF(M19/J19*100>100,100,M19/J19*100), "-"),0) -> 0 | P19: =COUNTRY_INFO!N19 -> 0 | S19: =SUM(MAX('MDA2'!J19, 'T1'!L19, MAX(T3_R1!K19, T3_R2!K19)), MAX('MDA1'!K19, 'MDA2'!K19, 'T1'!M19, MAX(T3_R1!L19, T3_R2!L19)), MAX('MDA1'!L19, 'MDA2'!L19, 'T1'!N19, MAX(T3_R1!M19, T3_R2!M19))) -> 99508 | T19: =IF(AND(COUNTRY_INFO!J19>1,COUNTRY_INFO!J19<4),IF(COUNTRY_INFO!E19>MAX('MDA2'!J19,'T1'!L19,MAX(T3_R1!K19,T3_R2!K19)),MAX('MDA2'!J19,'T1'!L19,MAX(T3_R1!K19,T3_R2!K19)),COUNTRY_INFO!E19),0) -> 0 | U19: =IF(AND(COUNTRY_INFO!J19>1,COUNTRY_INFO!J19<4), IF(T19/COUNTRY_INFO!E19*100<>0, IF(T19/COUNTRY_INFO!E19*100>100,100,T19/COUNTRY_INFO!E19*100), "-"),0) -> 0 | V19: =IF(AND(COUNTRY_INFO!J19>1,COUNTRY_INFO!J19<4),IF(COUNTRY_INFO!F19>MAX('MDA1'!K19,'MDA2'!K19,'T1'!M19,MAX(T3_R1!L19,T3_R2!L19)),MAX('MDA1'!K19,'MDA2'!K19,'T1'!M19,MAX(T3_R1!L19,T3_R2!L19)),COUNTRY_INFO!F19),0) -> 0 | W19: =IF(AND(COUNTRY_INFO!J19>1,COUNTRY_INFO!J19<4), IF(V19/COUNTRY_INFO!F19*100<>0, IF(V19/COUNTRY_INFO!F19*100>100,100,V19/COUNTRY_INFO!F19*100), "-"),0) -> 0 | X19: 0 | Y19: =IF(AND(COUNTRY_INFO!J19>1,COUNTRY_INFO!J19<4), IF(S19/P19*100<>0, IF(X19/P19*100>100,100,X19/P19*100), "-"),0) -> 0 | Z19: =COUNTRY_INFO!O19 -> 0 | AC19: =MAX('T1'!L19,'T2'!J19)+MAX('T1'!M19,'T2'!K19)+MAX('T1'!N19,'T2'!L19) -> 0 | AD19: =IF(COUNTRY_INFO!K19=1,IF(COUNTRY_INFO!F19*0.33>MAX('T1'!M19,'T2'!K19),MAX('T1'!M19,'T2'!K19),COUNTRY_INFO!F19*0.33),IF(COUNTRY_INFO!K19=2,IF(COUNTRY_INFO!F19*0.5>MAX('T1'!M19,'T2'!K19),MAX('T1'!M19,'T2'!K19),COUNTRY_INFO!F19*0.5),IF(COUNTRY_INFO!K19=3,IF(COUNTRY_INFO!F19>MAX('T1'!M19,'T2'!K19),MAX('T1'!M19,'T2'!K19),COUNTRY_INFO!F19),0))) -> 0 | AE19: =IF(AND(COUNTRY_INFO!K19>0,COUNTRY_INFO!K19<4),IF(Z19>0,IF(COUNTRY_INFO!K19=1, AD19/(COUNTRY_INFO!F19*0.33)*100, IF(COUNTRY_INFO!K19=2, AD19/(COUNTRY_INFO!F19*0.5)*100, IF(COUNTRY_INFO!K19=3, AD19/COUNTRY_INFO!F19*100))),"-"),0) -> 0 | AF19: =IF(COUNTRY_INFO!K19=2,IF(COUNTRY_INFO!G19*0.2>MAX('T1'!N19,'T2'!L19),MAX('T1'!N19,'T2'!L19),COUNTRY_INFO!G19*0.2),IF(COUNTRY_INFO!K19=3,IF(COUNTRY_INFO!G19>MAX('T1'!N19,'T2'!L19),MAX('T1'!N19,'T2'!L19),COUNTRY_INFO!G19),0)) -> 0 | AG19: =IF(AND(COUNTRY_INFO!K19>0,COUNTRY_INFO!K19<4),IF(Z19>0,IF(COUNTRY_INFO!K19=1, 0, IF(COUNTRY_INFO!K19=2, AF19/(COUNTRY_INFO!G19*0.2)*100, IF(COUNTRY_INFO!K19=3, AF19/COUNTRY_INFO!G19*100))),"-"),0) -> 0 | AH19: 0 | AI19: =IF(AND(COUNTRY_INFO!K19>0,COUNTRY_INFO!K19<4), IF(AC19/Z19*100<>0, IF(AH19/Z19*100>100,100,AH19/Z19*100), "-"),0) -> 0 | AK19: =IF(AND(D19<>0, D19<>"Inconnu",D19<>"Interrompu",D19<>"Non requis"),D19/COUNTRY_INFO!D19, 0) -> 0 | AL19: =IF(AND(J19<>0,J19<>"Inconnu",J19<>"Interrompu",J19<>"Non requis"),J19/COUNTRY_INFO!D19, 0) -> 0 | AM19: =IF(AND(P19<>0,P19<>"Inconnu",P19<>"Non requis"),P19/(COUNTRY_INFO!E19+COUNTRY_INFO!F19), 0) -> 0 | AN19: =IF(AND(Z19<>0,Z19<>"Inconnu",Z19<>"Non requis"),IF(COUNTRY_INFO!K19=1,1,IF(COUNTRY_INFO!K19=2,0.5*COUNTRY_INFO!F19/(0.5*COUNTRY_INFO!F19+0.2*COUNTRY_INFO!G19),IF(COUNTRY_INFO!K19=3,COUNTRY_INFO!F19/(COUNTRY_INFO!F19+COUNTRY_INFO!G19)))),0) -> 0 | AO19: =IF(AND(Z19<>0,Z19<>"Inconnu",Z19<>"Non requis"),IF(COUNTRY_INFO!K19=1,0,IF(COUNTRY_INFO!K19=2,0.2*COUNTRY_INFO!G19/(0.5*COUNTRY_INFO!F19+0.2*COUNTRY_INFO!G19),IF(COUNTRY_INFO!K19=3,COUNTRY_INFO!G19/(COUNTRY_INFO!F19+COUNTRY_INFO!G19)))),0) -> 0 | AP19: =MAX(COUNTRY_INFO!D19*AK19*PROFILE!$G$7,COUNTRY_INFO!D19*AL19*PROFILE!$G$7) -> 0 | AQ19: =MAX(COUNTRY_INFO!D19*AK19*PROFILE!$G$8,COUNTRY_INFO!D19*AL19*PROFILE!$G$8,COUNTRY_INFO!D19*AM19*PROFILE!$G$8) -> 0 | AR19: =MAX(COUNTRY_INFO!D19*AK19*PROFILE!$G$9,COUNTRY_INFO!D19*AL19*PROFILE!$G$9,COUNTRY_INFO!D19*AM19*PROFILE!$G$9,IF(AND(DISTRICT!Z19<>"Inconnu",Z19<>"Non requis"),COUNTRY_INFO!O19*DISTRICT!AN19,0)) -> 0 | AS19: =MAX(COUNTRY_INFO!D19*AK19*PROFILE!$G$10,COUNTRY_INFO!D19*AL19*PROFILE!$G$10,IF(AND(DISTRICT!Z19<>"Inconnu",Z19<>"Non requis"),COUNTRY_INFO!O19*DISTRICT!AO19,0)) -> 0 | AT19: 0 | AU19: 0 | AV19: =MAX('MDA2'!J19,'T1'!L19,'T2'!J19,T3_R1!K19,T3_R2!K19) -> 28137 | AW19: =MAX('MDA1'!K19,'MDA2'!K19,'MDA3'!I19,'MDA3'!L19,'T1'!M19,'T2'!K19,T3_R1!L19,T3_R2!L19) -> 66867 | AX19: =MAX('MDA1'!L19,'MDA2'!L19,'MDA3'!J19,'MDA3'!M19,'T1'!N19,'T2'!L19,T3_R1!M19,T3_R2!M19) -> 4504 | AY19: 99508 | AZ19: =MAX('MDA2'!J19,T19) -> 0 | BA19: =MAX('MDA1'!K19,'MDA2'!K19,'MDA3'!I19,'MDA3'!L19,V19,AD19) -> 0 | BB19: =MAX('MDA1'!L19,'MDA2'!L19,'MDA3'!J19,'MDA3'!M19,AF19) -> 0 | BC19: 0 | BD19: 0
A20: =IF(COUNTRY_INFO!A20=0," ",COUNTRY_INFO!A20) -> BURUNDI | B20: =IF(COUNTRY_INFO!B20=0," ",COUNTRY_INFO!B20) -> Cankuzo | C20: =IF(COUNTRY_INFO!C20=0," ",COUNTRY_INFO!C20) -> Murore | D20: =COUNTRY_INFO!L20 -> Non requis | G20: =MAX('MDA1'!M20,'MDA2'!M20) -> 0 | H20: =IF(AND(COUNTRY_INFO!H20>0,COUNTRY_INFO!H20<4),IF(D20>MAX('MDA1'!M20,'MDA2'!M20),MAX('MDA1'!M20,'MDA2'!M20),D20),0) -> 0 | I20: =IF(AND(COUNTRY_INFO!H20>0,COUNTRY_INFO!H20<4), IF(G20/D20*100<>0, IF(G20/D20*100>100,100,G20/D20*100), "-"),0) -> 0 | J20: =COUNTRY_INFO!M20 -> 0 | M20: =MAX('MDA1'!M20,MAX('MDA3'!I20,'MDA3'!L20)+MAX('MDA3'!J20,'MDA3'!M20)) -> 0 | N20: =IF(AND(COUNTRY_INFO!I20>0,COUNTRY_INFO!I20<4),IF(J20>MAX('MDA1'!M20,MAX('MDA3'!I20,'MDA3'!L20)+MAX('MDA3'!J20,'MDA3'!M20)),MAX('MDA1'!M20,MAX('MDA3'!I20,'MDA3'!L20)+MAX('MDA3'!J20,'MDA3'!M20)),J20),0) -> 0 | O20: =IF(AND(COUNTRY_INFO!I20>0,COUNTRY_INFO!I20<4), IF(M20/J20*100<>0, IF(M20/J20*100>100,100,M20/J20*100), "-"),0) -> 0 | P20: =COUNTRY_INFO!N20 -> 0 | S20: =SUM(MAX('MDA2'!J20, 'T1'!L20, MAX(T3_R1!K20, T3_R2!K20)), MAX('MDA1'!K20, 'MDA2'!K20, 'T1'!M20, MAX(T3_R1!L20, T3_R2!L20)), MAX('MDA1'!L20, 'MDA2'!L20, 'T1'!N20, MAX(T3_R1!M20, T3_R2!M20))) -> 99791 | T20: =IF(AND(COUNTRY_INFO!J20>1,COUNTRY_INFO!J20<4),IF(COUNTRY_INFO!E20>MAX('MDA2'!J20,'T1'!L20,MAX(T3_R1!K20,T3_R2!K20)),MAX('MDA2'!J20,'T1'!L20,MAX(T3_R1!K20,T3_R2!K20)),COUNTRY_INFO!E20),0) -> 0 | U20: =IF(AND(COUNTRY_INFO!J20>1,COUNTRY_INFO!J20<4), IF(T20/COUNTRY_INFO!E20*100<>0, IF(T20/COUNTRY_INFO!E20*100>100,100,T20/COUNTRY_INFO!E20*100), "-"),0) -> 0 | V20: =IF(AND(COUNTRY_INFO!J20>1,COUNTRY_INFO!J20<4),IF(COUNTRY_INFO!F20>MAX('MDA1'!K20,'MDA2'!K20,'T1'!M20,MAX(T3_R1!L20,T3_R2!L20)),MAX('MDA1'!K20,'MDA2'!K20,'T1'!M20,MAX(T3_R1!L20,T3_R2!L20)),COUNTRY_INFO!F20),0) -> 0 | W20: =IF(AND(COUNTRY_INFO!J20>1,COUNTRY_INFO!J20<4), IF(V20/COUNTRY_INFO!F20*100<>0, IF(V20/COUNTRY_INFO!F20*100>100,100,V20/COUNTRY_INFO!F20*100), "-"),0) -> 0 | X20: 0 | Y20: =IF(AND(COUNTRY_INFO!J20>1,COUNTRY_INFO!J20<4), IF(S20/P20*100<>0, IF(X20/P20*100>100,100,X20/P20*100), "-"),0) -> 0 | Z20: =COUNTRY_INFO!O20 -> 16189.14 | AA20: 25157 | AB20: 27588 | AC20: =MAX('T1'!L20,'T2'!J20)+MAX('T1'!M20,'T2'!K20)+MAX('T1'!N20,'T2'!L20) -> 52745 | AD20: =IF(COUNTRY_INFO!K20=1,IF(COUNTRY_INFO!F20*0.33>MAX('T1'!M20,'T2'!K20),MAX('T1'!M20,'T2'!K20),COUNTRY_INFO!F20*0.33),IF(COUNTRY_INFO!K20=2,IF(COUNTRY_INFO!F20*0.5>MAX('T1'!M20,'T2'!K20),MAX('T1'!M20,'T2'!K20),COUNTRY_INFO!F20*0.5),IF(COUNTRY_INFO!K20=3,IF(COUNTRY_INFO!F20>MAX('T1'!M20,'T2'!K20),MAX('T1'!M20,'T2'!K20),COUNTRY_INFO!F20),0))) -> 16189.14 | AE20: =IF(AND(COUNTRY_INFO!K20>0,COUNTRY_INFO!K20<4),IF(Z20>0,IF(COUNTRY_INFO!K20=1, AD20/(COUNTRY_INFO!F20*0.33)*100, IF(COUNTRY_INFO!K20=2, AD20/(COUNTRY_INFO!F20*0.5)*100, IF(COUNTRY_INFO!K20=3, AD20/COUNTRY_INFO!F20*100))),"-"),0) -> 100 | AF20: =IF(COUNTRY_INFO!K20=2,IF(COUNTRY_INFO!G20*0.2>MAX('T1'!N20,'T2'!L20),MAX('T1'!N20,'T2'!L20),COUNTRY_INFO!G20*0.2),IF(COUNTRY_INFO!K20=3,IF(COUNTRY_INFO!G20>MAX('T1'!N20,'T2'!L20),MAX('T1'!N20,'T2'!L20),COUNTRY_INFO!G20),0)) -> 0 | AG20: =IF(AND(COUNTRY_INFO!K20>0,COUNTRY_INFO!K20<4),IF(Z20>0,IF(COUNTRY_INFO!K20=1, 0, IF(COUNTRY_INFO!K20=2, AF20/(COUNTRY_INFO!G20*0.2)*100, IF(COUNTRY_INFO!K20=3, AF20/COUNTRY_INFO!G20*100))),"-"),0) -> 0 | AH20: 16189.14 | AI20: =IF(AND(COUNTRY_INFO!K20>0,COUNTRY_INFO!K20<4), IF(AC20/Z20*100<>0, IF(AH20/Z20*100>100,100,AH20/Z20*100), "-"),0) -> 100 | AK20: =IF(AND(D20<>0, D20<>"Inconnu",D20<>"Interrompu",D20<>"Non requis"),D20/COUNTRY_INFO!D20, 0) -> 0 | AL20: =IF(AND(J20<>0,J20<>"Inconnu",J20<>"Interrompu",J20<>"Non requis"),J20/COUNTRY_INFO!D20, 0) -> 0 | AM20: =IF(AND(P20<>0,P20<>"Inconnu",P20<>"Non requis"),P20/(COUNTRY_INFO!E20+COUNTRY_INFO!F20), 0) -> 0 | AN20: =IF(AND(Z20<>0,Z20<>"Inconnu",Z20<>"Non requis"),IF(COUNTRY_INFO!K20=1,1,IF(COUNTRY_INFO!K20=2,0.5*COUNTRY_INFO!F20/(0.5*COUNTRY_INFO!F20+0.2*COUNTRY_INFO!G20),IF(COUNTRY_INFO!K20=3,COUNTRY_INFO!F20/(COUNTRY_INFO!F20+COUNTRY_INFO!G20)))),0) -> 1 | AO20: =IF(AND(Z20<>0,Z20<>"Inconnu",Z20<>"Non requis"),IF(COUNTRY_INFO!K20=1,0,IF(COUNTRY_INFO!K20=2,0.2*COUNTRY_INFO!G20/(0.5*COUNTRY_INFO!F20+0.2*COUNTRY_INFO!G20),IF(COUNTRY_INFO!K20=3,COUNTRY_INFO!G20/(COUNTRY_INFO!F20+COUNTRY_INFO!G20)))),0) -> 0 | AP20: =MAX(COUNTRY_INFO!D20*AK20*PROFILE!$G$7,COUNTRY_INFO!D20*AL20*PROFILE!$G$7) -> 0 | AQ20: =MAX(COUNTRY_INFO!D20*AK20*PROFILE!$G$8,COUNTRY_INFO!D20*AL20*PROFILE!$G$8,COUNTRY_INFO!D20*AM20*PROFILE!$G$8) -> 0 | AR20: =MAX(COUNTRY_INFO!D20*AK20*PROFILE!$G$9,COUNTRY_INFO!D20*AL20*PROFILE!$G$9,COUNTRY_INFO!D20*AM20*PROFILE!$G$9,IF(AND(DISTRICT!Z20<>"Inconnu",Z20<>"Non requis"),COUNTRY_INFO!O20*DISTRICT!AN20,0)) -> 16189.14 | AS20: =MAX(COUNTRY_INFO!D20*AK20*PROFILE!$G$10,COUNTRY_INFO!D20*AL20*PROFILE!$G$10,IF(AND(DISTRICT!Z20<>"Inconnu",Z20<>"Non requis"),COUNTRY_INFO!O20*DISTRICT!AO20,0)) -> 0 | AT20: 16189.14 | AU20: Y | AV20: =MAX('MDA2'!J20,'T1'!L20,'T2'!J20,T3_R1!K20,T3_R2!K20) -> 27544 | AW20: =MAX('MDA1'!K20,'MDA2'!K20,'MDA3'!I20,'MDA3'!L20,'T1'!M20,'T2'!K20,T3_R1!L20,T3_R2!L20) -> 68217 | AX20: =MAX('MDA1'!L20,'MDA2'!L20,'MDA3'!J20,'MDA3'!M20,'T1'!N20,'T2'!L20,T3_R1!M20,T3_R2!M20) -> 4030 | AY20: 99791 | AZ20: =MAX('MDA2'!J20,T20) -> 0 | BA20: =MAX('MDA1'!K20,'MDA2'!K20,'MDA3'!I20,'MDA3'!L20,V20,AD20) -> 16189.14 | BB20: =MAX('MDA1'!L20,'MDA2'!L20,'MDA3'!J20,'MDA3'!M20,AF20) -> 0 | BC20: 16189.14 | BD20: 100
A21: =IF(COUNTRY_INFO!A21=0," ",COUNTRY_INFO!A21) -> BURUNDI | B21: =IF(COUNTRY_INFO!B21=0," ",COUNTRY_INFO!B21) -> Cibitoke | C21: =IF(COUNTRY_INFO!C21=0," ",COUNTRY_INFO!C21) -> Bukinanyana | D21: =COUNTRY_INFO!L21 -> Non requis | G21: =MAX('MDA1'!M21,'MDA2'!M21) -> 0 | H21: =IF(AND(COUNTRY_INFO!H21>0,COUNTRY_INFO!H21<4),IF(D21>MAX('MDA1'!M21,'MDA2'!M21),MAX('MDA1'!M21,'MDA2'!M21),D21),0) -> 0 | I21: =IF(AND(COUNTRY_INFO!H21>0,COUNTRY_INFO!H21<4), IF(G21/D21*100<>0, IF(G21/D21*100>100,100,G21/D21*100), "-"),0) -> 0 | J21: =COUNTRY_INFO!M21 -> 225354 | K21: 89258 | L21: 96349 | M21: =MAX('MDA1'!M21,MAX('MDA3'!I21,'MDA3'!L21)+MAX('MDA3'!J21,'MDA3'!M21)) -> 185607 | N21: =IF(AND(COUNTRY_INFO!I21>0,COUNTRY_INFO!I21<4),IF(J21>MAX('MDA1'!M21,MAX('MDA3'!I21,'MDA3'!L21)+MAX('MDA3'!J21,'MDA3'!M21)),MAX('MDA1'!M21,MAX('MDA3'!I21,'MDA3'!L21)+MAX('MDA3'!J21,'MDA3'!M21)),J21),0) -> 185607 | O21: =IF(AND(COUNTRY_INFO!I21>0,COUNTRY_INFO!I21<4), IF(M21/J21*100<>0, IF(M21/J21*100>100,100,M21/J21*100), "-"),0) -> 82.36241646 | P21: =COUNTRY_INFO!N21 -> 0 | S21: =SUM(MAX('MDA2'!J21, 'T1'!L21, MAX(T3_R1!K21, T3_R2!K21)), MAX('MDA1'!K21, 'MDA2'!K21, 'T1'!M21, MAX(T3_R1!L21, T3_R2!L21)), MAX('MDA1'!L21, 'MDA2'!L21, 'T1'!N21, MAX(T3_R1!M21, T3_R2!M21))) -> 250456 | T21: =IF(AND(COUNTRY_INFO!J21>1,COUNTRY_INFO!J21<4),IF(COUNTRY_INFO!E21>MAX('MDA2'!J21,'T1'!L21,MAX(T3_R1!K21,T3_R2!K21)),MAX('MDA2'!J21,'T1'!L21,MAX(T3_R1!K21,T3_R2!K21)),COUNTRY_INFO!E21),0) -> 0 | U21: =IF(AND(COUNTRY_INFO!J21>1,COUNTRY_INFO!J21<4), IF(T21/COUNTRY_INFO!E21*100<>0, IF(T21/COUNTRY_INFO!E21*100>100,100,T21/COUNTRY_INFO!E21*100), "-"),0) -> 0 | V21: =IF(AND(COUNTRY_INFO!J21>1,COUNTRY_INFO!J21<4),IF(COUNTRY_INFO!F21>MAX('MDA1'!K21,'MDA2'!K21,'T1'!M21,MAX(T3_R1!L21,T3_R2!L21)),MAX('MDA1'!K21,'MDA2'!K21,'T1'!M21,MAX(T3_R1!L21,T3_R2!L21)),COUNTRY_INFO!F21),0) -> 0 | W21: =IF(AND(COUNTRY_INFO!J21>1,COUNTRY_INFO!J21<4), IF(V21/COUNTRY_INFO!F21*100<>0, IF(V21/COUNTRY_INFO!F21*100>100,100,V21/COUNTRY_INFO!F21*100), "-"),0) -> 0 | X21: 0 | Y21: =IF(AND(COUNTRY_INFO!J21>1,COUNTRY_INFO!J21<4), IF(S21/P21*100<>0, IF(X21/P21*100>100,100,X21/P21*100), "-"),0) -> 0 | Z21: =COUNTRY_INFO!O21 -> 18160.89 | AA21: 30853 | AB21: 34846 | AC21: =MAX('T1'!L21,'T2'!J21)+MAX('T1'!M21,'T2'!K21)+MAX('T1'!N21,'T2'!L21) -> 65699 | AD21: =IF(COUNTRY_INFO!K21=1,IF(COUNTRY_INFO!F21*0.33>MAX('T1'!M21,'T2'!K21),MAX('T1'!M21,'T2'!K21),COUNTRY_INFO!F21*0.33),IF(COUNTRY_INFO!K21=2,IF(COUNTRY_INFO!F21*0.5>MAX('T1'!M21,'T2'!K21),MAX('T1'!M21,'T2'!K21),COUNTRY_INFO!F21*0.5),IF(COUNTRY_INFO!K21=3,IF(COUNTRY_INFO!F21>MAX('T1'!M21,'T2'!K21),MAX('T1'!M21,'T2'!K21),COUNTRY_INFO!F21),0))) -> 18160.89 | AE21: =IF(AND(COUNTRY_INFO!K21>0,COUNTRY_INFO!K21<4),IF(Z21>0,IF(COUNTRY_INFO!K21=1, AD21/(COUNTRY_INFO!F21*0.33)*100, IF(COUNTRY_INFO!K21=2, AD21/(COUNTRY_INFO!F21*0.5)*100, IF(COUNTRY_INFO!K21=3, AD21/COUNTRY_INFO!F21*100))),"-"),0) -> 100 | AF21: =IF(COUNTRY_INFO!K21=2,IF(COUNTRY_INFO!G21*0.2>MAX('T1'!N21,'T2'!L21),MAX('T1'!N21,'T2'!L21),COUNTRY_INFO!G21*0.2),IF(COUNTRY_INFO!K21=3,IF(COUNTRY_INFO!G21>MAX('T1'!N21,'T2'!L21),MAX('T1'!N21,'T2'!L21),COUNTRY_INFO!G21),0)) -> 0 | AG21: =IF(AND(COUNTRY_INFO!K21>0,COUNTRY_INFO!K21<4),IF(Z21>0,IF(COUNTRY_INFO!K21=1, 0, IF(COUNTRY_INFO!K21=2, AF21/(COUNTRY_INFO!G21*0.2)*100, IF(COUNTRY_INFO!K21=3, AF21/COUNTRY_INFO!G21*100))),"-"),0) -> 0 | AH21: 18160.89 | AI21: =IF(AND(COUNTRY_INFO!K21>0,COUNTRY_INFO!K21<4), IF(AC21/Z21*100<>0, IF(AH21/Z21*100>100,100,AH21/Z21*100), "-"),0) -> 100 | AK21: =IF(AND(D21<>0, D21<>"Inconnu",D21<>"Interrompu",D21<>"Non requis"),D21/COUNTRY_INFO!D21, 0) -> 0 | AL21: =IF(AND(J21<>0,J21<>"Inconnu",J21<>"Interrompu",J21<>"Non requis"),J21/COUNTRY_INFO!D21, 0) -> 1.093327645 | AM21: =IF(AND(P21<>0,P21<>"Inconnu",P21<>"Non requis"),P21/(COUNTRY_INFO!E21+COUNTRY_INFO!F21), 0) -> 0 | AN21: =IF(AND(Z21<>0,Z21<>"Inconnu",Z21<>"Non requis"),IF(COUNTRY_INFO!K21=1,1,IF(COUNTRY_INFO!K21=2,0.5*COUNTRY_INFO!F21/(0.5*COUNTRY_INFO!F21+0.2*COUNTRY_INFO!G21),IF(COUNTRY_INFO!K21=3,COUNTRY_INFO!F21/(COUNTRY_INFO!F21+COUNTRY_INFO!G21)))),0) -> 1 | AO21: =IF(AND(Z21<>0,Z21<>"Inconnu",Z21<>"Non requis"),IF(COUNTRY_INFO!K21=1,0,IF(COUNTRY_INFO!K21=2,0.2*COUNTRY_INFO!G21/(0.5*COUNTRY_INFO!F21+0.2*COUNTRY_INFO!G21),IF(COUNTRY_INFO!K21=3,COUNTRY_INFO!G21/(COUNTRY_INFO!F21+COUNTRY_INFO!G21)))),0) -> 0 | AP21: =MAX(COUNTRY_INFO!D21*AK21*PROFILE!$G$7,COUNTRY_INFO!D21*AL21*PROFILE!$G$7) -> 8338.126081 | AQ21: =MAX(COUNTRY_INFO!D21*AK21*PROFILE!$G$8,COUNTRY_INFO!D21*AL21*PROFILE!$G$8,COUNTRY_INFO!D21*AM21*PROFILE!$G$8) -> 32000.26587 | AR21: =MAX(COUNTRY_INFO!D21*AK21*PROFILE!$G$9,COUNTRY_INFO!D21*AL21*PROFILE!$G$9,COUNTRY_INFO!D21*AM21*PROFILE!$G$9,IF(AND(DISTRICT!Z21<>"Inconnu",Z21<>"Non requis"),COUNTRY_INFO!O21*DISTRICT!AN21,0)) -> 60169.53619 | AS21: =MAX(COUNTRY_INFO!D21*AK21*PROFILE!$G$10,COUNTRY_INFO!D21*AL21*PROFILE!$G$10,IF(AND(DISTRICT!Z21<>"Inconnu",Z21<>"Non requis"),COUNTRY_INFO!O21*DISTRICT!AO21,0)) -> 124846.0719 | AT21: 225354 | AU21: Y | AV21: =MAX('MDA2'!J21,'T1'!L21,'T2'!J21,T3_R1!K21,T3_R2!K21) -> 28098 | AW21: =MAX('MDA1'!K21,'MDA2'!K21,'MDA3'!I21,'MDA3'!L21,'T1'!M21,'T2'!K21,T3_R1!L21,T3_R2!L21) -> 68824 | AX21: =MAX('MDA1'!L21,'MDA2'!L21,'MDA3'!J21,'MDA3'!M21,'T1'!N21,'T2'!L21,T3_R1!M21,T3_R2!M21) -> 153534 | AY21: 250456 | AZ21: =MAX('MDA2'!J21,T21) -> 0 | BA21: =MAX('MDA1'!K21,'MDA2'!K21,'MDA3'!I21,'MDA3'!L21,V21,AD21) -> 49557 | BB21: =MAX('MDA1'!L21,'MDA2'!L21,'MDA3'!J21,'MDA3'!M21,AF21) -> 136050 | BC21: 185607 | BD21: 82.36241646
A22: =IF(COUNTRY_INFO!A22=0," ",COUNTRY_INFO!A22) -> BURUNDI | B22: =IF(COUNTRY_INFO!B22=0," ",COUNTRY_INFO!B22) -> Cibitoke | C22: =IF(COUNTRY_INFO!C22=0," ",COUNTRY_INFO!C22) -> Cibitoke | D22: =COUNTRY_INFO!L22 -> Non requis | G22: =MAX('MDA1'!M22,'MDA2'!M22) -> 0 | H22: =IF(AND(COUNTRY_INFO!H22>0,COUNTRY_INFO!H22<4),IF(D22>MAX('MDA1'!M22,'MDA2'!M22),MAX('MDA1'!M22,'MDA2'!M22),D22),0) -> 0 | I22: =IF(AND(COUNTRY_INFO!H22>0,COUNTRY_INFO!H22<4), IF(G22/D22*100<>0, IF(G22/D22*100>100,100,G22/D22*100), "-"),0) -> 0 | J22: =COUNTRY_INFO!M22 -> 249522 | K22: 95679 | L22: 109583 | M22: =MAX('MDA1'!M22,MAX('MDA3'!I22,'MDA3'!L22)+MAX('MDA3'!J22,'MDA3'!M22)) -> 205262 | N22: =IF(AND(COUNTRY_INFO!I22>0,COUNTRY_INFO!I22<4),IF(J22>MAX('MDA1'!M22,MAX('MDA3'!I22,'MDA3'!L22)+MAX('MDA3'!J22,'MDA3'!M22)),MAX('MDA1'!M22,MAX('MDA3'!I22,'MDA3'!L22)+MAX('MDA3'!J22,'MDA3'!M22)),J22),0) -> 205262 | O22: =IF(AND(COUNTRY_INFO!I22>0,COUNTRY_INFO!I22<4), IF(M22/J22*100<>0, IF(M22/J22*100>100,100,M22/J22*100), "-"),0) -> 82.26208511 | P22: =COUNTRY_INFO!N22 -> 0 | S22: =SUM(MAX('MDA2'!J22, 'T1'!L22, MAX(T3_R1!K22, T3_R2!K22)), MAX('MDA1'!K22, 'MDA2'!K22, 'T1'!M22, MAX(T3_R1!L22, T3_R2!L22)), MAX('MDA1'!L22, 'MDA2'!L22, 'T1'!N22, MAX(T3_R1!M22, T3_R2!M22))) -> 262955 | T22: =IF(AND(COUNTRY_INFO!J22>1,COUNTRY_INFO!J22<4),IF(COUNTRY_INFO!E22>MAX('MDA2'!J22,'T1'!L22,MAX(T3_R1!K22,T3_R2!K22)),MAX('MDA2'!J22,'T1'!L22,MAX(T3_R1!K22,T3_R2!K22)),COUNTRY_INFO!E22),0) -> 0 | U22: =IF(AND(COUNTRY_INFO!J22>1,COUNTRY_INFO!J22<4), IF(T22/COUNTRY_INFO!E22*100<>0, IF(T22/COUNTRY_INFO!E22*100>100,100,T22/COUNTRY_INFO!E22*100), "-"),0) -> 0 | V22: =IF(AND(COUNTRY_INFO!J22>1,COUNTRY_INFO!J22<4),IF(COUNTRY_INFO!F22>MAX('MDA1'!K22,'MDA2'!K22,'T1'!M22,MAX(T3_R1!L22,T3_R2!L22)),MAX('MDA1'!K22,'MDA2'!K22,'T1'!M22,MAX(T3_R1!L22,T3_R2!L22)),COUNTRY_INFO!F22),0) -> 0 | W22: =IF(AND(COUNTRY_INFO!J22>1,COUNTRY_INFO!J22<4), IF(V22/COUNTRY_INFO!F22*100<>0, IF(V22/COUNTRY_INFO!F22*100>100,100,V22/COUNTRY_INFO!F22*100), "-"),0) -> 0 | X22: 0 | Y22: =IF(AND(COUNTRY_INFO!J22>1,COUNTRY_INFO!J22<4), IF(S22/P22*100<>0, IF(X22/P22*100>100,100,X22/P22*100), "-"),0) -> 0 | Z22: =COUNTRY_INFO!O22 -> 52560 | AA22: 33554 | AB22: 36697 | AC22: =MAX('T1'!L22,'T2'!J22)+MAX('T1'!M22,'T2'!K22)+MAX('T1'!N22,'T2'!L22) -> 70251 | AD22: =IF(COUNTRY_INFO!K22=1,IF(COUNTRY_INFO!F22*0.33>MAX('T1'!M22,'T2'!K22),MAX('T1'!M22,'T2'!K22),COUNTRY_INFO!F22*0.33),IF(COUNTRY_INFO!K22=2,IF(COUNTRY_INFO!F22*0.5>MAX('T1'!M22,'T2'!K22),MAX('T1'!M22,'T2'!K22),COUNTRY_INFO!F22*0.5),IF(COUNTRY_INFO!K22=3,IF(COUNTRY_INFO!F22>MAX('T1'!M22,'T2'!K22),MAX('T1'!M22,'T2'!K22),COUNTRY_INFO!F22),0))) -> 28722 | AE22: =IF(AND(COUNTRY_INFO!K22>0,COUNTRY_INFO!K22<4),IF(Z22>0,IF(COUNTRY_INFO!K22=1, AD22/(COUNTRY_INFO!F22*0.33)*100, IF(COUNTRY_INFO!K22=2, AD22/(COUNTRY_INFO!F22*0.5)*100, IF(COUNTRY_INFO!K22=3, AD22/COUNTRY_INFO!F22*100))),"-"),0) -> 100 | AF22: =IF(COUNTRY_INFO!K22=2,IF(COUNTRY_INFO!G22*0.2>MAX('T1'!N22,'T2'!L22),MAX('T1'!N22,'T2'!L22),COUNTRY_INFO!G22*0.2),IF(COUNTRY_INFO!K22=3,IF(COUNTRY_INFO!G22>MAX('T1'!N22,'T2'!L22),MAX('T1'!N22,'T2'!L22),COUNTRY_INFO!G22),0)) -> 0 | AG22: =IF(AND(COUNTRY_INFO!K22>0,COUNTRY_INFO!K22<4),IF(Z22>0,IF(COUNTRY_INFO!K22=1, 0, IF(COUNTRY_INFO!K22=2, AF22/(COUNTRY_INFO!G22*0.2)*100, IF(COUNTRY_INFO!K22=3, AF22/COUNTRY_INFO!G22*100))),"-"),0) -> 0 | AH22: 28722 | AI22: =IF(AND(COUNTRY_INFO!K22>0,COUNTRY_INFO!K22<4), IF(AC22/Z22*100<>0, IF(AH22/Z22*100>100,100,AH22/Z22*100), "-"),0) -> 54.64611872 | AK22: =IF(AND(D22<>0, D22<>"Inconnu",D22<>"Interrompu",D22<>"Non requis"),D22/COUNTRY_INFO!D22, 0) -> 0 | AL22: =IF(AND(J22<>0,J22<>"Inconnu",J22<>"Interrompu",J22<>"Non requis"),J22/COUNTRY_INFO!D22, 0) -> 1.159786735 | AM22: =IF(AND(P22<>0,P22<>"Inconnu",P22<>"Non requis"),P22/(COUNTRY_INFO!E22+COUNTRY_INFO!F22), 0) -> 0 | AN22: =IF(AND(Z22<>0,Z22<>"Inconnu",Z22<>"Non requis"),IF(COUNTRY_INFO!K22=1,1,IF(COUNTRY_INFO!K22=2,0.5*COUNTRY_INFO!F22/(0.5*COUNTRY_INFO!F22+0.2*COUNTRY_INFO!G22),IF(COUNTRY_INFO!K22=3,COUNTRY_INFO!F22/(COUNTRY_INFO!F22+COUNTRY_INFO!G22)))),0) -> 0.5464611872 | AO22: =IF(AND(Z22<>0,Z22<>"Inconnu",Z22<>"Non requis"),IF(COUNTRY_INFO!K22=1,0,IF(COUNTRY_INFO!K22=2,0.2*COUNTRY_INFO!G22/(0.5*COUNTRY_INFO!F22+0.2*COUNTRY_INFO!G22),IF(COUNTRY_INFO!K22=3,COUNTRY_INFO!G22/(COUNTRY_INFO!F22+COUNTRY_INFO!G22)))),0) -> 0.4535388128 | AP22: =MAX(COUNTRY_INFO!D22*AK22*PROFILE!$G$7,COUNTRY_INFO!D22*AL22*PROFILE!$G$7) -> 9232.345093 | AQ22: =MAX(COUNTRY_INFO!D22*AK22*PROFILE!$G$8,COUNTRY_INFO!D22*AL22*PROFILE!$G$8,COUNTRY_INFO!D22*AM22*PROFILE!$G$8) -> 35432.12164 | AR22: =MAX(COUNTRY_INFO!D22*AK22*PROFILE!$G$9,COUNTRY_INFO!D22*AL22*PROFILE!$G$9,COUNTRY_INFO!D22*AM22*PROFILE!$G$9,IF(AND(DISTRICT!Z22<>"Inconnu",Z22<>"Non requis"),COUNTRY_INFO!O22*DISTRICT!AN22,0)) -> 66622.39414 | AS22: =MAX(COUNTRY_INFO!D22*AK22*PROFILE!$G$10,COUNTRY_INFO!D22*AL22*PROFILE!$G$10,IF(AND(DISTRICT!Z22<>"Inconnu",Z22<>"Non requis"),COUNTRY_INFO!O22*DISTRICT!AO22,0)) -> 138235.1391 | AT22: 249522 | AU22: Y | AV22: =MAX('MDA2'!J22,'T1'!L22,'T2'!J22,T3_R1!K22,T3_R2!K22) -> 26494 | AW22: =MAX('MDA1'!K22,'MDA2'!K22,'MDA3'!I22,'MDA3'!L22,'T1'!M22,'T2'!K22,T3_R1!L22,T3_R2!L22) -> 78465 | AX22: =MAX('MDA1'!L22,'MDA2'!L22,'MDA3'!J22,'MDA3'!M22,'T1'!N22,'T2'!L22,T3_R1!M22,T3_R2!M22) -> 157996 | AY22: 262955 | AZ22: =MAX('MDA2'!J22,T22) -> 0 | BA22: =MAX('MDA1'!K22,'MDA2'!K22,'MDA3'!I22,'MDA3'!L22,V22,AD22) -> 54805 | BB22: =MAX('MDA1'!L22,'MDA2'!L22,'MDA3'!J22,'MDA3'!M22,AF22) -> 150457 | BC22: 205262 | BD22: 82.26208511
A23: =IF(COUNTRY_INFO!A23=0," ",COUNTRY_INFO!A23) -> BURUNDI | B23: =IF(COUNTRY_INFO!B23=0," ",COUNTRY_INFO!B23) -> Cibitoke | C23: =IF(COUNTRY_INFO!C23=0," ",COUNTRY_INFO!C23) -> Mabayi | D23: =COUNTRY_INFO!L23 -> Non requis | G23: =MAX('MDA1'!M23,'MDA2'!M23) -> 0 | H23: =IF(AND(COUNTRY_INFO!H23>0,COUNTRY_INFO!H23<4),IF(D23>MAX('MDA1'!M23,'MDA2'!M23),MAX('MDA1'!M23,'MDA2'!M23),D23),0) -> 0 | I23: =IF(AND(COUNTRY_INFO!H23>0,COUNTRY_INFO!H23<4), IF(G23/D23*100<>0, IF(G23/D23*100>100,100,G23/D23*100), "-"),0) -> 0 | J23: =COUNTRY_INFO!M23 -> 220022 | K23: 88846 | L23: 91698 | M23: =MAX('MDA1'!M23,MAX('MDA3'!I23,'MDA3'!L23)+MAX('MDA3'!J23,'MDA3'!M23)) -> 180544 | N23: =IF(AND(COUNTRY_INFO!I23>0,COUNTRY_INFO!I23<4),IF(J23>MAX('MDA1'!M23,MAX('MDA3'!I23,'MDA3'!L23)+MAX('MDA3'!J23,'MDA3'!M23)),MAX('MDA1'!M23,MAX('MDA3'!I23,'MDA3'!L23)+MAX('MDA3'!J23,'MDA3'!M23)),J23),0) -> 180544 | O23: =IF(AND(COUNTRY_INFO!I23>0,COUNTRY_INFO!I23<4), IF(M23/J23*100<>0, IF(M23/J23*100>100,100,M23/J23*100), "-"),0) -> 82.05724882 | P23: =COUNTRY_INFO!N23 -> 95102 | S23: =SUM(MAX('MDA2'!J23, 'T1'!L23, MAX(T3_R1!K23, T3_R2!K23)), MAX('MDA1'!K23, 'MDA2'!K23, 'T1'!M23, MAX(T3_R1!L23, T3_R2!L23)), MAX('MDA1'!L23, 'MDA2'!L23, 'T1'!N23, MAX(T3_R1!M23, T3_R2!M23))) -> 254160 | T23: =IF(AND(COUNTRY_INFO!J23>1,COUNTRY_INFO!J23<4),IF(COUNTRY_INFO!E23>MAX('MDA2'!J23,'T1'!L23,MAX(T3_R1!K23,T3_R2!K23)),MAX('MDA2'!J23,'T1'!L23,MAX(T3_R1!K23,T3_R2!K23)),COUNTRY_INFO!E23),0) -> 31453 | U23: =IF(AND(COUNTRY_INFO!J23>1,COUNTRY_INFO!J23<4), IF(T23/COUNTRY_INFO!E23*100<>0, IF(T23/COUNTRY_INFO!E23*100>100,100,T23/COUNTRY_INFO!E23*100), "-"),0) -> 95.26016112 | V23: =IF(AND(COUNTRY_INFO!J23>1,COUNTRY_INFO!J23<4),IF(COUNTRY_INFO!F23>MAX('MDA1'!K23,'MDA2'!K23,'T1'!M23,MAX(T3_R1!L23,T3_R2!L23)),MAX('MDA1'!K23,'MDA2'!K23,'T1'!M23,MAX(T3_R1!L23,T3_R2!L23)),COUNTRY_INFO!F23),0) -> 62084 | W23: =IF(AND(COUNTRY_INFO!J23>1,COUNTRY_INFO!J23<4), IF(V23/COUNTRY_INFO!F23*100<>0, IF(V23/COUNTRY_INFO!F23*100>100,100,V23/COUNTRY_INFO!F23*100), "-"),0) -> 100 | X23: 93537 | Y23: =IF(AND(COUNTRY_INFO!J23>1,COUNTRY_INFO!J23<4), IF(S23/P23*100<>0, IF(X23/P23*100>100,100,X23/P23*100), "-"),0) -> 98.35439844 | Z23: =COUNTRY_INFO!O23 -> 20487.72 | AA23: 32085 | AB23: 35641 | AC23: =MAX('T1'!L23,'T2'!J23)+MAX('T1'!M23,'T2'!K23)+MAX('T1'!N23,'T2'!L23) -> 67726 | AD23: =IF(COUNTRY_INFO!K23=1,IF(COUNTRY_INFO!F23*0.33>MAX('T1'!M23,'T2'!K23),MAX('T1'!M23,'T2'!K23),COUNTRY_INFO!F23*0.33),IF(COUNTRY_INFO!K23=2,IF(COUNTRY_INFO!F23*0.5>MAX('T1'!M23,'T2'!K23),MAX('T1'!M23,'T2'!K23),COUNTRY_INFO!F23*0.5),IF(COUNTRY_INFO!K23=3,IF(COUNTRY_INFO!F23>MAX('T1'!M23,'T2'!K23),MAX('T1'!M23,'T2'!K23),COUNTRY_INFO!F23),0))) -> 20487.72 | AE23: =IF(AND(COUNTRY_INFO!K23>0,COUNTRY_INFO!K23<4),IF(Z23>0,IF(COUNTRY_INFO!K23=1, AD23/(COUNTRY_INFO!F23*0.33)*100, IF(COUNTRY_INFO!K23=2, AD23/(COUNTRY_INFO!F23*0.5)*100, IF(COUNTRY_INFO!K23=3, AD23/COUNTRY_INFO!F23*100))),"-"),0) -> 100 | AF23: =IF(COUNTRY_INFO!K23=2,IF(COUNTRY_INFO!G23*0.2>MAX('T1'!N23,'T2'!L23),MAX('T1'!N23,'T2'!L23),COUNTRY_INFO!G23*0.2),IF(COUNTRY_INFO!K23=3,IF(COUNTRY_INFO!G23>MAX('T1'!N23,'T2'!L23),MAX('T1'!N23,'T2'!L23),COUNTRY_INFO!G23),0)) -> 0 | AG23: =IF(AND(COUNTRY_INFO!K23>0,COUNTRY_INFO!K23<4),IF(Z23>0,IF(COUNTRY_INFO!K23=1, 0, IF(COUNTRY_INFO!K23=2, AF23/(COUNTRY_INFO!G23*0.2)*100, IF(COUNTRY_INFO!K23=3, AF23/COUNTRY_INFO!G23*100))),"-"),0) -> 0 | AH23: 20487.72 | AI23: =IF(AND(COUNTRY_INFO!K23>0,COUNTRY_INFO!K23<4), IF(AC23/Z23*100<>0, IF(AH23/Z23*100>100,100,AH23/Z23*100), "-"),0) -> 100 | AK23: =IF(AND(D23<>0, D23<>"Inconnu",D23<>"Interrompu",D23<>"Non requis"),D23/COUNTRY_INFO!D23, 0) -> 0 | AL23: =IF(AND(J23<>0,J23<>"Inconnu",J23<>"Interrompu",J23<>"Non requis"),J23/COUNTRY_INFO!D23, 0) -> 0.9462342186 | AM23: =IF(AND(P23<>0,P23<>"Inconnu",P23<>"Non requis"),P23/(COUNTRY_INFO!E23+COUNTRY_INFO!F23), 0) -> 1 | AN23: =IF(AND(Z23<>0,Z23<>"Inconnu",Z23<>"Non requis"),IF(COUNTRY_INFO!K23=1,1,IF(COUNTRY_INFO!K23=2,0.5*COUNTRY_INFO!F23/(0.5*COUNTRY_INFO!F23+0.2*COUNTRY_INFO!G23),IF(COUNTRY_INFO!K23=3,COUNTRY_INFO!F23/(COUNTRY_INFO!F23+COUNTRY_INFO!G23)))),0) -> 1 | AO23: =IF(AND(Z23<>0,Z23<>"Inconnu",Z23<>"Non requis"),IF(COUNTRY_INFO!K23=1,0,IF(COUNTRY_INFO!K23=2,0.2*COUNTRY_INFO!G23/(0.5*COUNTRY_INFO!F23+0.2*COUNTRY_INFO!G23),IF(COUNTRY_INFO!K23=3,COUNTRY_INFO!G23/(COUNTRY_INFO!F23+COUNTRY_INFO!G23)))),0) -> 0 | AP23: =MAX(COUNTRY_INFO!D23*AK23*PROFILE!$G$7,COUNTRY_INFO!D23*AL23*PROFILE!$G$7) -> 8140.841417 | AQ23: =MAX(COUNTRY_INFO!D23*AK23*PROFILE!$G$8,COUNTRY_INFO!D23*AL23*PROFILE!$G$8,COUNTRY_INFO!D23*AM23*PROFILE!$G$8) -> 33018.38098 | AR23: =MAX(COUNTRY_INFO!D23*AK23*PROFILE!$G$9,COUNTRY_INFO!D23*AL23*PROFILE!$G$9,COUNTRY_INFO!D23*AM23*PROFILE!$G$9,IF(AND(DISTRICT!Z23<>"Inconnu",Z23<>"Non requis"),COUNTRY_INFO!O23*DISTRICT!AN23,0)) -> 62083.88009 | AS23: =MAX(COUNTRY_INFO!D23*AK23*PROFILE!$G$10,COUNTRY_INFO!D23*AL23*PROFILE!$G$10,IF(AND(DISTRICT!Z23<>"Inconnu",Z23<>"Non requis"),COUNTRY_INFO!O23*DISTRICT!AO23,0)) -> 121892.1449 | AT23: 225135.2474 | AU23: Y | AV23: =MAX('MDA2'!J23,'T1'!L23,'T2'!J23,T3_R1!K23,T3_R2!K23) -> 31453 | AW23: =MAX('MDA1'!K23,'MDA2'!K23,'MDA3'!I23,'MDA3'!L23,'T1'!M23,'T2'!K23,T3_R1!L23,T3_R2!L23) -> 82582 | AX23: =MAX('MDA1'!L23,'MDA2'!L23,'MDA3'!J23,'MDA3'!M23,'T1'!N23,'T2'!L23,T3_R1!M23,T3_R2!M23) -> 140125 | AY23: 254160 | AZ23: =MAX('MDA2'!J23,T23) -> 31453 | BA23: =MAX('MDA1'!K23,'MDA2'!K23,'MDA3'!I23,'MDA3'!L23,V23,AD23) -> 62084 | BB23: =MAX('MDA1'!L23,'MDA2'!L23,'MDA3'!J23,'MDA3'!M23,AF23) -> 132339 | BC23: 225135.2474 | BD23: 100
A24: =IF(COUNTRY_INFO!A24=0," ",COUNTRY_INFO!A24) -> BURUNDI | B24: =IF(COUNTRY_INFO!B24=0," ",COUNTRY_INFO!B24) -> Gitega | C24: =IF(COUNTRY_INFO!C24=0," ",COUNTRY_INFO!C24) -> Gitega | D24: =COUNTRY_INFO!L24 -> Non requis | G24: =MAX('MDA1'!M24,'MDA2'!M24) -> 0 | H24: =IF(AND(COUNTRY_INFO!H24>0,COUNTRY_INFO!H24<4),IF(D24>MAX('MDA1'!M24,'MDA2'!M24),MAX('MDA1'!M24,'MDA2'!M24),D24),0) -> 0 | I24: =IF(AND(COUNTRY_INFO!H24>0,COUNTRY_INFO!H24<4), IF(G24/D24*100<>0, IF(G24/D24*100>100,100,G24/D24*100), "-"),0) -> 0 | J24: =COUNTRY_INFO!M24 -> 0 | M24: =MAX('MDA1'!M24,MAX('MDA3'!I24,'MDA3'!L24)+MAX('MDA3'!J24,'MDA3'!M24)) -> 0 | N24: =IF(AND(COUNTRY_INFO!I24>0,COUNTRY_INFO!I24<4),IF(J24>MAX('MDA1'!M24,MAX('MDA3'!I24,'MDA3'!L24)+MAX('MDA3'!J24,'MDA3'!M24)),MAX('MDA1'!M24,MAX('MDA3'!I24,'MDA3'!L24)+MAX('MDA3'!J24,'MDA3'!M24)),J24),0) -> 0 | O24: =IF(AND(COUNTRY_INFO!I24>0,COUNTRY_INFO!I24<4), IF(M24/J24*100<>0, IF(M24/J24*100>100,100,M24/J24*100), "-"),0) -> 0 | P24: =COUNTRY_INFO!N24 -> 133914 | S24: =SUM(MAX('MDA2'!J24, 'T1'!L24, MAX(T3_R1!K24, T3_R2!K24)), MAX('MDA1'!K24, 'MDA2'!K24, 'T1'!M24, MAX(T3_R1!L24, T3_R2!L24)), MAX('MDA1'!L24, 'MDA2'!L24, 'T1'!N24, MAX(T3_R1!M24, T3_R2!M24))) -> 155239 | T24: =IF(AND(COUNTRY_INFO!J24>1,COUNTRY_INFO!J24<4),IF(COUNTRY_INFO!E24>MAX('MDA2'!J24,'T1'!L24,MAX(T3_R1!K24,T3_R2!K24)),MAX('MDA2'!J24,'T1'!L24,MAX(T3_R1!K24,T3_R2!K24)),COUNTRY_INFO!E24),0) -> 41958 | U24: =IF(AND(COUNTRY_INFO!J24>1,COUNTRY_INFO!J24<4), IF(T24/COUNTRY_INFO!E24*100<>0, IF(T24/COUNTRY_INFO!E24*100>100,100,T24/COUNTRY_INFO!E24*100), "-"),0) -> 90.24584346 | V24: =IF(AND(COUNTRY_INFO!J24>1,COUNTRY_INFO!J24<4),IF(COUNTRY_INFO!F24>MAX('MDA1'!K24,'MDA2'!K24,'T1'!M24,MAX(T3_R1!L24,T3_R2!L24)),MAX('MDA1'!K24,'MDA2'!K24,'T1'!M24,MAX(T3_R1!L24,T3_R2!L24)),COUNTRY_INFO!F24),0) -> 87421 | W24: =IF(AND(COUNTRY_INFO!J24>1,COUNTRY_INFO!J24<4), IF(V24/COUNTRY_INFO!F24*100<>0, IF(V24/COUNTRY_INFO!F24*100>100,100,V24/COUNTRY_INFO!F24*100), "-"),0) -> 100 | X24: 129379 | Y24: =IF(AND(COUNTRY_INFO!J24>1,COUNTRY_INFO!J24<4), IF(S24/P24*100<>0, IF(X24/P24*100>100,100,X24/P24*100), "-"),0) -> 96.61349822 | Z24: =COUNTRY_INFO!O24 -> 0 | AC24: =MAX('T1'!L24,'T2'!J24)+MAX('T1'!M24,'T2'!K24)+MAX('T1'!N24,'T2'!L24) -> 0 | AD24: =IF(COUNTRY_INFO!K24=1,IF(COUNTRY_INFO!F24*0.33>MAX('T1'!M24,'T2'!K24),MAX('T1'!M24,'T2'!K24),COUNTRY_INFO!F24*0.33),IF(COUNTRY_INFO!K24=2,IF(COUNTRY_INFO!F24*0.5>MAX('T1'!M24,'T2'!K24),MAX('T1'!M24,'T2'!K24),COUNTRY_INFO!F24*0.5),IF(COUNTRY_INFO!K24=3,IF(COUNTRY_INFO!F24>MAX('T1'!M24,'T2'!K24),MAX('T1'!M24,'T2'!K24),COUNTRY_INFO!F24),0))) -> 0 | AE24: =IF(AND(COUNTRY_INFO!K24>0,COUNTRY_INFO!K24<4),IF(Z24>0,IF(COUNTRY_INFO!K24=1, AD24/(COUNTRY_INFO!F24*0.33)*100, IF(COUNTRY_INFO!K24=2, AD24/(COUNTRY_INFO!F24*0.5)*100, IF(COUNTRY_INFO!K24=3, AD24/COUNTRY_INFO!F24*100))),"-"),0) -> 0 | AF24: =IF(COUNTRY_INFO!K24=2,IF(COUNTRY_INFO!G24*0.2>MAX('T1'!N24,'T2'!L24),MAX('T1'!N24,'T2'!L24),COUNTRY_INFO!G24*0.2),IF(COUNTRY_INFO!K24=3,IF(COUNTRY_INFO!G24>MAX('T1'!N24,'T2'!L24),MAX('T1'!N24,'T2'!L24),COUNTRY_INFO!G24),0)) -> 0 | AG24: =IF(AND(COUNTRY_INFO!K24>0,COUNTRY_INFO!K24<4),IF(Z24>0,IF(COUNTRY_INFO!K24=1, 0, IF(COUNTRY_INFO!K24=2, AF24/(COUNTRY_INFO!G24*0.2)*100, IF(COUNTRY_INFO!K24=3, AF24/COUNTRY_INFO!G24*100))),"-"),0) -> 0 | AH24: 0 | AI24: =IF(AND(COUNTRY_INFO!K24>0,COUNTRY_INFO!K24<4), IF(AC24/Z24*100<>0, IF(AH24/Z24*100>100,100,AH24/Z24*100), "-"),0) -> 0 | AK24: =IF(AND(D24<>0, D24<>"Inconnu",D24<>"Interrompu",D24<>"Non requis"),D24/COUNTRY_INFO!D24, 0) -> 0 | AL24: =IF(AND(J24<>0,J24<>"Inconnu",J24<>"Interrompu",J24<>"Non requis"),J24/COUNTRY_INFO!D24, 0) -> 0 | AM24: =IF(AND(P24<>0,P24<>"Inconnu",P24<>"Non requis"),P24/(COUNTRY_INFO!E24+COUNTRY_INFO!F24), 0) -> 1 | AN24: =IF(AND(Z24<>0,Z24<>"Inconnu",Z24<>"Non requis"),IF(COUNTRY_INFO!K24=1,1,IF(COUNTRY_INFO!K24=2,0.5*COUNTRY_INFO!F24/(0.5*COUNTRY_INFO!F24+0.2*COUNTRY_INFO!G24),IF(COUNTRY_INFO!K24=3,COUNTRY_INFO!F24/(COUNTRY_INFO!F24+COUNTRY_INFO!G24)))),0) -> 0 | AO24: =IF(AND(Z24<>0,Z24<>"Inconnu",Z24<>"Non requis"),IF(COUNTRY_INFO!K24=1,0,IF(COUNTRY_INFO!K24=2,0.2*COUNTRY_INFO!G24/(0.5*COUNTRY_INFO!F24+0.2*COUNTRY_INFO!G24),IF(COUNTRY_INFO!K24=3,COUNTRY_INFO!G24/(COUNTRY_INFO!F24+COUNTRY_INFO!G24)))),0) -> 0 | AP24: =MAX(COUNTRY_INFO!D24*AK24*PROFILE!$G$7,COUNTRY_INFO!D24*AL24*PROFILE!$G$7) -> 0 | AQ24: =MAX(COUNTRY_INFO!D24*AK24*PROFILE!$G$8,COUNTRY_INFO!D24*AL24*PROFILE!$G$8,COUNTRY_INFO!D24*AM24*PROFILE!$G$8) -> 46493.48136 | AR24: =MAX(COUNTRY_INFO!D24*AK24*PROFILE!$G$9,COUNTRY_INFO!D24*AL24*PROFILE!$G$9,COUNTRY_INFO!D24*AM24*PROFILE!$G$9,IF(AND(DISTRICT!Z24<>"Inconnu",Z24<>"Non requis"),COUNTRY_INFO!O24*DISTRICT!AN24,0)) -> 87420.87395 | AS24: =MAX(COUNTRY_INFO!D24*AK24*PROFILE!$G$10,COUNTRY_INFO!D24*AL24*PROFILE!$G$10,IF(AND(DISTRICT!Z24<>"Inconnu",Z24<>"Non requis"),COUNTRY_INFO!O24*DISTRICT!AO24,0)) -> 0 | AT24: 133914.3553 | AU24: Y | AV24: =MAX('MDA2'!J24,'T1'!L24,'T2'!J24,T3_R1!K24,T3_R2!K24) -> 41958 | AW24: =MAX('MDA1'!K24,'MDA2'!K24,'MDA3'!I24,'MDA3'!L24,'T1'!M24,'T2'!K24,T3_R1!L24,T3_R2!L24) -> 109298 | AX24: =MAX('MDA1'!L24,'MDA2'!L24,'MDA3'!J24,'MDA3'!M24,'T1'!N24,'T2'!L24,T3_R1!M24,T3_R2!M24) -> 3983 | AY24: 155239 | AZ24: =MAX('MDA2'!J24,T24) -> 41958 | BA24: =MAX('MDA1'!K24,'MDA2'!K24,'MDA3'!I24,'MDA3'!L24,V24,AD24) -> 87421 | BB24: =MAX('MDA1'!L24,'MDA2'!L24,'MDA3'!J24,'MDA3'!M24,AF24) -> 0 | BC24: 129379 | BD24: 96.61324187
A25: =IF(COUNTRY_INFO!A25=0," ",COUNTRY_INFO!A25) -> BURUNDI | B25: =IF(COUNTRY_INFO!B25=0," ",COUNTRY_INFO!B25) -> Gitega | C25: =IF(COUNTRY_INFO!C25=0," ",COUNTRY_INFO!C25) -> Kibuye | D25: =COUNTRY_INFO!L25 -> Non requis | G25: =MAX('MDA1'!M25,'MDA2'!M25) -> 0 | H25: =IF(AND(COUNTRY_INFO!H25>0,COUNTRY_INFO!H25<4),IF(D25>MAX('MDA1'!M25,'MDA2'!M25),MAX('MDA1'!M25,'MDA2'!M25),D25),0) -> 0 | I25: =IF(AND(COUNTRY_INFO!H25>0,COUNTRY_INFO!H25<4), IF(G25/D25*100<>0, IF(G25/D25*100>100,100,G25/D25*100), "-"),0) -> 0 | J25: =COUNTRY_INFO!M25 -> 0 | M25: =MAX('MDA1'!M25,MAX('MDA3'!I25,'MDA3'!L25)+MAX('MDA3'!J25,'MDA3'!M25)) -> 0 | N25: =IF(AND(COUNTRY_INFO!I25>0,COUNTRY_INFO!I25<4),IF(J25>MAX('MDA1'!M25,MAX('MDA3'!I25,'MDA3'!L25)+MAX('MDA3'!J25,'MDA3'!M25)),MAX('MDA1'!M25,MAX('MDA3'!I25,'MDA3'!L25)+MAX('MDA3'!J25,'MDA3'!M25)),J25),0) -> 0 | O25: =IF(AND(COUNTRY_INFO!I25>0,COUNTRY_INFO!I25<4), IF(M25/J25*100<>0, IF(M25/J25*100>100,100,M25/J25*100), "-"),0) -> 0 | P25: =COUNTRY_INFO!N25 -> 94062 | S25: =SUM(MAX('MDA2'!J25, 'T1'!L25, MAX(T3_R1!K25, T3_R2!K25)), MAX('MDA1'!K25, 'MDA2'!K25, 'T1'!M25, MAX(T3_R1!L25, T3_R2!L25)), MAX('MDA1'!L25, 'MDA2'!L25, 'T1'!N25, MAX(T3_R1!M25, T3_R2!M25))) -> 121662 | T25: =IF(AND(COUNTRY_INFO!J25>1,COUNTRY_INFO!J25<4),IF(COUNTRY_INFO!E25>MAX('MDA2'!J25,'T1'!L25,MAX(T3_R1!K25,T3_R2!K25)),MAX('MDA2'!J25,'T1'!L25,MAX(T3_R1!K25,T3_R2!K25)),COUNTRY_INFO!E25),0) -> 32657 | U25: =IF(AND(COUNTRY_INFO!J25>1,COUNTRY_INFO!J25<4), IF(T25/COUNTRY_INFO!E25*100<>0, IF(T25/COUNTRY_INFO!E25*100>100,100,T25/COUNTRY_INFO!E25*100), "-"),0) -> 100 | V25: =IF(AND(COUNTRY_INFO!J25>1,COUNTRY_INFO!J25<4),IF(COUNTRY_INFO!F25>MAX('MDA1'!K25,'MDA2'!K25,'T1'!M25,MAX(T3_R1!L25,T3_R2!L25)),MAX('MDA1'!K25,'MDA2'!K25,'T1'!M25,MAX(T3_R1!L25,T3_R2!L25)),COUNTRY_INFO!F25),0) -> 61405 | W25: =IF(AND(COUNTRY_INFO!J25>1,COUNTRY_INFO!J25<4), IF(V25/COUNTRY_INFO!F25*100<>0, IF(V25/COUNTRY_INFO!F25*100>100,100,V25/COUNTRY_INFO!F25*100), "-"),0) -> 100 | X25: 94062 | Y25: =IF(AND(COUNTRY_INFO!J25>1,COUNTRY_INFO!J25<4), IF(S25/P25*100<>0, IF(X25/P25*100>100,100,X25/P25*100), "-"),0) -> 100 | Z25: =COUNTRY_INFO!O25 -> 0 | AC25: =MAX('T1'!L25,'T2'!J25)+MAX('T1'!M25,'T2'!K25)+MAX('T1'!N25,'T2'!L25) -> 0 | AD25: =IF(COUNTRY_INFO!K25=1,IF(COUNTRY_INFO!F25*0.33>MAX('T1'!M25,'T2'!K25),MAX('T1'!M25,'T2'!K25),COUNTRY_INFO!F25*0.33),IF(COUNTRY_INFO!K25=2,IF(COUNTRY_INFO!F25*0.5>MAX('T1'!M25,'T2'!K25),MAX('T1'!M25,'T2'!K25),COUNTRY_INFO!F25*0.5),IF(COUNTRY_INFO!K25=3,IF(COUNTRY_INFO!F25>MAX('T1'!M25,'T2'!K25),MAX('T1'!M25,'T2'!K25),COUNTRY_INFO!F25),0))) -> 0 | AE25: =IF(AND(COUNTRY_INFO!K25>0,COUNTRY_INFO!K25<4),IF(Z25>0,IF(COUNTRY_INFO!K25=1, AD25/(COUNTRY_INFO!F25*0.33)*100, IF(COUNTRY_INFO!K25=2, AD25/(COUNTRY_INFO!F25*0.5)*100, IF(COUNTRY_INFO!K25=3, AD25/COUNTRY_INFO!F25*100))),"-"),0) -> 0 | AF25: =IF(COUNTRY_INFO!K25=2,IF(COUNTRY_INFO!G25*0.2>MAX('T1'!N25,'T2'!L25),MAX('T1'!N25,'T2'!L25),COUNTRY_INFO!G25*0.2),IF(COUNTRY_INFO!K25=3,IF(COUNTRY_INFO!G25>MAX('T1'!N25,'T2'!L25),MAX('T1'!N25,'T2'!L25),COUNTRY_INFO!G25),0)) -> 0 | AG25: =IF(AND(COUNTRY_INFO!K25>0,COUNTRY_INFO!K25<4),IF(Z25>0,IF(COUNTRY_INFO!K25=1, 0, IF(COUNTRY_INFO!K25=2, AF25/(COUNTRY_INFO!G25*0.2)*100, IF(COUNTRY_INFO!K25=3, AF25/COUNTRY_INFO!G25*100))),"-"),0) -> 0 | AH25: 0 | AI25: =IF(AND(COUNTRY_INFO!K25>0,COUNTRY_INFO!K25<4), IF(AC25/Z25*100<>0, IF(AH25/Z25*100>100,100,AH25/Z25*100), "-"),0) -> 0 | AK25: =IF(AND(D25<>0, D25<>"Inconnu",D25<>"Interrompu",D25<>"Non requis"),D25/COUNTRY_INFO!D25, 0) -> 0 | AL25: =IF(AND(J25<>0,J25<>"Inconnu",J25<>"Interrompu",J25<>"Non requis"),J25/COUNTRY_INFO!D25, 0) -> 0 | AM25: =IF(AND(P25<>0,P25<>"Inconnu",P25<>"Non requis"),P25/(COUNTRY_INFO!E25+COUNTRY_INFO!F25), 0) -> 1 | AN25: =IF(AND(Z25<>0,Z25<>"Inconnu",Z25<>"Non requis"),IF(COUNTRY_INFO!K25=1,1,IF(COUNTRY_INFO!K25=2,0.5*COUNTRY_INFO!F25/(0.5*COUNTRY_INFO!F25+0.2*COUNTRY_INFO!G25),IF(COUNTRY_INFO!K25=3,COUNTRY_INFO!F25/(COUNTRY_INFO!F25+COUNTRY_INFO!G25)))),0) -> 0 | AO25: =IF(AND(Z25<>0,Z25<>"Inconnu",Z25<>"Non requis"),IF(COUNTRY_INFO!K25=1,0,IF(COUNTRY_INFO!K25=2,0.2*COUNTRY_INFO!G25/(0.5*COUNTRY_INFO!F25+0.2*COUNTRY_INFO!G25),IF(COUNTRY_INFO!K25=3,COUNTRY_INFO!G25/(COUNTRY_INFO!F25+COUNTRY_INFO!G25)))),0) -> 0 | AP25: =MAX(COUNTRY_INFO!D25*AK25*PROFILE!$G$7,COUNTRY_INFO!D25*AL25*PROFILE!$G$7) -> 0 | AQ25: =MAX(COUNTRY_INFO!D25*AK25*PROFILE!$G$8,COUNTRY_INFO!D25*AL25*PROFILE!$G$8,COUNTRY_INFO!D25*AM25*PROFILE!$G$8) -> 32657.30385 | AR25: =MAX(COUNTRY_INFO!D25*AK25*PROFILE!$G$9,COUNTRY_INFO!D25*AL25*PROFILE!$G$9,COUNTRY_INFO!D25*AM25*PROFILE!$G$9,IF(AND(DISTRICT!Z25<>"Inconnu",Z25<>"Non requis"),COUNTRY_INFO!O25*DISTRICT!AN25,0)) -> 61404.95314 | AS25: =MAX(COUNTRY_INFO!D25*AK25*PROFILE!$G$10,COUNTRY_INFO!D25*AL25*PROFILE!$G$10,IF(AND(DISTRICT!Z25<>"Inconnu",Z25<>"Non requis"),COUNTRY_INFO!O25*DISTRICT!AO25,0)) -> 0 | AT25: 94062.25699 | AU25: Y | AV25: =MAX('MDA2'!J25,'T1'!L25,'T2'!J25,T3_R1!K25,T3_R2!K25) -> 35032 | AW25: =MAX('MDA1'!K25,'MDA2'!K25,'MDA3'!I25,'MDA3'!L25,'T1'!M25,'T2'!K25,T3_R1!L25,T3_R2!L25) -> 82522 | AX25: =MAX('MDA1'!L25,'MDA2'!L25,'MDA3'!J25,'MDA3'!M25,'T1'!N25,'T2'!L25,T3_R1!M25,T3_R2!M25) -> 4108 | AY25: 121662 | AZ25: =MAX('MDA2'!J25,T25) -> 32657 | BA25: =MAX('MDA1'!K25,'MDA2'!K25,'MDA3'!I25,'MDA3'!L25,V25,AD25) -> 61405 | BB25: =MAX('MDA1'!L25,'MDA2'!L25,'MDA3'!J25,'MDA3'!M25,AF25) -> 0 | BC25: 94062 | BD25: 99.99972679
A26: =IF(COUNTRY_INFO!A26=0," ",COUNTRY_INFO!A26) -> BURUNDI | B26: =IF(COUNTRY_INFO!B26=0," ",COUNTRY_INFO!B26) -> Gitega | C26: =IF(COUNTRY_INFO!C26=0," ",COUNTRY_INFO!C26) -> Mutaho | D26: =COUNTRY_INFO!L26 -> Non requis | G26: =MAX('MDA1'!M26,'MDA2'!M26) -> 0 | H26: =IF(AND(COUNTRY_INFO!H26>0,COUNTRY_INFO!H26<4),IF(D26>MAX('MDA1'!M26,'MDA2'!M26),MAX('MDA1'!M26,'MDA2'!M26),D26),0) -> 0 | I26: =IF(AND(COUNTRY_INFO!H26>0,COUNTRY_INFO!H26<4), IF(G26/D26*100<>0, IF(G26/D26*100>100,100,G26/D26*100), "-"),0) -> 0 | J26: =COUNTRY_INFO!M26 -> 0 | M26: =MAX('MDA1'!M26,MAX('MDA3'!I26,'MDA3'!L26)+MAX('MDA3'!J26,'MDA3'!M26)) -> 0 | N26: =IF(AND(COUNTRY_INFO!I26>0,COUNTRY_INFO!I26<4),IF(J26>MAX('MDA1'!M26,MAX('MDA3'!I26,'MDA3'!L26)+MAX('MDA3'!J26,'MDA3'!M26)),MAX('MDA1'!M26,MAX('MDA3'!I26,'MDA3'!L26)+MAX('MDA3'!J26,'MDA3'!M26)),J26),0) -> 0 | O26: =IF(AND(COUNTRY_INFO!I26>0,COUNTRY_INFO!I26<4), IF(M26/J26*100<>0, IF(M26/J26*100>100,100,M26/J26*100), "-"),0) -> 0 | P26: =COUNTRY_INFO!N26 -> 91160 | S26: =SUM(MAX('MDA2'!J26, 'T1'!L26, MAX(T3_R1!K26, T3_R2!K26)), MAX('MDA1'!K26, 'MDA2'!K26, 'T1'!M26, MAX(T3_R1!L26, T3_R2!L26)), MAX('MDA1'!L26, 'MDA2'!L26, 'T1'!N26, MAX(T3_R1!M26, T3_R2!M26))) -> 105081 | T26: =IF(AND(COUNTRY_INFO!J26>1,COUNTRY_INFO!J26<4),IF(COUNTRY_INFO!E26>MAX('MDA2'!J26,'T1'!L26,MAX(T3_R1!K26,T3_R2!K26)),MAX('MDA2'!J26,'T1'!L26,MAX(T3_R1!K26,T3_R2!K26)),COUNTRY_INFO!E26),0) -> 29907 | U26: =IF(AND(COUNTRY_INFO!J26>1,COUNTRY_INFO!J26<4), IF(T26/COUNTRY_INFO!E26*100<>0, IF(T26/COUNTRY_INFO!E26*100>100,100,T26/COUNTRY_INFO!E26*100), "-"),0) -> 94.492891 | V26: =IF(AND(COUNTRY_INFO!J26>1,COUNTRY_INFO!J26<4),IF(COUNTRY_INFO!F26>MAX('MDA1'!K26,'MDA2'!K26,'T1'!M26,MAX(T3_R1!L26,T3_R2!L26)),MAX('MDA1'!K26,'MDA2'!K26,'T1'!M26,MAX(T3_R1!L26,T3_R2!L26)),COUNTRY_INFO!F26),0) -> 59510 | W26: =IF(AND(COUNTRY_INFO!J26>1,COUNTRY_INFO!J26<4), IF(V26/COUNTRY_INFO!F26*100<>0, IF(V26/COUNTRY_INFO!F26*100>100,100,V26/COUNTRY_INFO!F26*100), "-"),0) -> 100 | X26: 89417 | Y26: =IF(AND(COUNTRY_INFO!J26>1,COUNTRY_INFO!J26<4), IF(S26/P26*100<>0, IF(X26/P26*100>100,100,X26/P26*100), "-"),0) -> 98.08797718 | Z26: =COUNTRY_INFO!O26 -> 0 | AC26: =MAX('T1'!L26,'T2'!J26)+MAX('T1'!M26,'T2'!K26)+MAX('T1'!N26,'T2'!L26) -> 0 | AD26: =IF(COUNTRY_INFO!K26=1,IF(COUNTRY_INFO!F26*0.33>MAX('T1'!M26,'T2'!K26),MAX('T1'!M26,'T2'!K26),COUNTRY_INFO!F26*0.33),IF(COUNTRY_INFO!K26=2,IF(COUNTRY_INFO!F26*0.5>MAX('T1'!M26,'T2'!K26),MAX('T1'!M26,'T2'!K26),COUNTRY_INFO!F26*0.5),IF(COUNTRY_INFO!K26=3,IF(COUNTRY_INFO!F26>MAX('T1'!M26,'T2'!K26),MAX('T1'!M26,'T2'!K26),COUNTRY_INFO!F26),0))) -> 0 | AE26: =IF(AND(COUNTRY_INFO!K26>0,COUNTRY_INFO!K26<4),IF(Z26>0,IF(COUNTRY_INFO!K26=1, AD26/(COUNTRY_INFO!F26*0.33)*100, IF(COUNTRY_INFO!K26=2, AD26/(COUNTRY_INFO!F26*0.5)*100, IF(COUNTRY_INFO!K26=3, AD26/COUNTRY_INFO!F26*100))),"-"),0) -> 0 | AF26: =IF(COUNTRY_INFO!K26=2,IF(COUNTRY_INFO!G26*0.2>MAX('T1'!N26,'T2'!L26),MAX('T1'!N26,'T2'!L26),COUNTRY_INFO!G26*0.2),IF(COUNTRY_INFO!K26=3,IF(COUNTRY_INFO!G26>MAX('T1'!N26,'T2'!L26),MAX('T1'!N26,'T2'!L26),COUNTRY_INFO!G26),0)) -> 0 | AG26: =IF(AND(COUNTRY_INFO!K26>0,COUNTRY_INFO!K26<4),IF(Z26>0,IF(COUNTRY_INFO!K26=1, 0, IF(COUNTRY_INFO!K26=2, AF26/(COUNTRY_INFO!G26*0.2)*100, IF(COUNTRY_INFO!K26=3, AF26/COUNTRY_INFO!G26*100))),"-"),0) -> 0 | AH26: 0 | AI26: =IF(AND(COUNTRY_INFO!K26>0,COUNTRY_INFO!K26<4), IF(AC26/Z26*100<>0, IF(AH26/Z26*100>100,100,AH26/Z26*100), "-"),0) -> 0 | AK26: =IF(AND(D26<>0, D26<>"Inconnu",D26<>"Interrompu",D26<>"Non requis"),D26/COUNTRY_INFO!D26, 0) -> 0 | AL26: =IF(AND(J26<>0,J26<>"Inconnu",J26<>"Interrompu",J26<>"Non requis"),J26/COUNTRY_INFO!D26, 0) -> 0 | AM26: =IF(AND(P26<>0,P26<>"Inconnu",P26<>"Non requis"),P26/(COUNTRY_INFO!E26+COUNTRY_INFO!F26), 0) -> 1 | AN26: =IF(AND(Z26<>0,Z26<>"Inconnu",Z26<>"Non requis"),IF(COUNTRY_INFO!K26=1,1,IF(COUNTRY_INFO!K26=2,0.5*COUNTRY_INFO!F26/(0.5*COUNTRY_INFO!F26+0.2*COUNTRY_INFO!G26),IF(COUNTRY_INFO!K26=3,COUNTRY_INFO!F26/(COUNTRY_INFO!F26+COUNTRY_INFO!G26)))),0) -> 0 | AO26: =IF(AND(Z26<>0,Z26<>"Inconnu",Z26<>"Non requis"),IF(COUNTRY_INFO!K26=1,0,IF(COUNTRY_INFO!K26=2,0.2*COUNTRY_INFO!G26/(0.5*COUNTRY_INFO!F26+0.2*COUNTRY_INFO!G26),IF(COUNTRY_INFO!K26=3,COUNTRY_INFO!G26/(COUNTRY_INFO!F26+COUNTRY_INFO!G26)))),0) -> 0 | AP26: =MAX(COUNTRY_INFO!D26*AK26*PROFILE!$G$7,COUNTRY_INFO!D26*AL26*PROFILE!$G$7) -> 0 | AQ26: =MAX(COUNTRY_INFO!D26*AK26*PROFILE!$G$8,COUNTRY_INFO!D26*AL26*PROFILE!$G$8,COUNTRY_INFO!D26*AM26*PROFILE!$G$8) -> 31649.71256 | AR26: =MAX(COUNTRY_INFO!D26*AK26*PROFILE!$G$9,COUNTRY_INFO!D26*AL26*PROFILE!$G$9,COUNTRY_INFO!D26*AM26*PROFILE!$G$9,IF(AND(DISTRICT!Z26<>"Inconnu",Z26<>"Non requis"),COUNTRY_INFO!O26*DISTRICT!AN26,0)) -> 59510.39698 | AS26: =MAX(COUNTRY_INFO!D26*AK26*PROFILE!$G$10,COUNTRY_INFO!D26*AL26*PROFILE!$G$10,IF(AND(DISTRICT!Z26<>"Inconnu",Z26<>"Non requis"),COUNTRY_INFO!O26*DISTRICT!AO26,0)) -> 0 | AT26: 91160.10954 | AU26: Y | AV26: =MAX('MDA2'!J26,'T1'!L26,'T2'!J26,T3_R1!K26,T3_R2!K26) -> 29907 | AW26: =MAX('MDA1'!K26,'MDA2'!K26,'MDA3'!I26,'MDA3'!L26,'T1'!M26,'T2'!K26,T3_R1!L26,T3_R2!L26) -> 71442 | AX26: =MAX('MDA1'!L26,'MDA2'!L26,'MDA3'!J26,'MDA3'!M26,'T1'!N26,'T2'!L26,T3_R1!M26,T3_R2!M26) -> 3732 | AY26: 105081 | AZ26: =MAX('MDA2'!J26,T26) -> 29907 | BA26: =MAX('MDA1'!K26,'MDA2'!K26,'MDA3'!I26,'MDA3'!L26,V26,AD26) -> 59510 | BB26: =MAX('MDA1'!L26,'MDA2'!L26,'MDA3'!J26,'MDA3'!M26,AF26) -> 0 | BC26: 89417 | BD26: 98.08785932
A27: =IF(COUNTRY_INFO!A27=0," ",COUNTRY_INFO!A27) -> BURUNDI | B27: =IF(COUNTRY_INFO!B27=0," ",COUNTRY_INFO!B27) -> Gitega | C27: =IF(COUNTRY_INFO!C27=0," ",COUNTRY_INFO!C27) -> Ryansoro | D27: =COUNTRY_INFO!L27 -> Non requis | G27: =MAX('MDA1'!M27,'MDA2'!M27) -> 0 | H27: =IF(AND(COUNTRY_INFO!H27>0,COUNTRY_INFO!H27<4),IF(D27>MAX('MDA1'!M27,'MDA2'!M27),MAX('MDA1'!M27,'MDA2'!M27),D27),0) -> 0 | I27: =IF(AND(COUNTRY_INFO!H27>0,COUNTRY_INFO!H27<4), IF(G27/D27*100<>0, IF(G27/D27*100>100,100,G27/D27*100), "-"),0) -> 0 | J27: =COUNTRY_INFO!M27 -> 0 | M27: =MAX('MDA1'!M27,MAX('MDA3'!I27,'MDA3'!L27)+MAX('MDA3'!J27,'MDA3'!M27)) -> 0 | N27: =IF(AND(COUNTRY_INFO!I27>0,COUNTRY_INFO!I27<4),IF(J27>MAX('MDA1'!M27,MAX('MDA3'!I27,'MDA3'!L27)+MAX('MDA3'!J27,'MDA3'!M27)),MAX('MDA1'!M27,MAX('MDA3'!I27,'MDA3'!L27)+MAX('MDA3'!J27,'MDA3'!M27)),J27),0) -> 0 | O27: =IF(AND(COUNTRY_INFO!I27>0,COUNTRY_INFO!I27<4), IF(M27/J27*100<>0, IF(M27/J27*100>100,100,M27/J27*100), "-"),0) -> 0 | P27: =COUNTRY_INFO!N27 -> 67295 | S27: =SUM(MAX('MDA2'!J27, 'T1'!L27, MAX(T3_R1!K27, T3_R2!K27)), MAX('MDA1'!K27, 'MDA2'!K27, 'T1'!M27, MAX(T3_R1!L27, T3_R2!L27)), MAX('MDA1'!L27, 'MDA2'!L27, 'T1'!N27, MAX(T3_R1!M27, T3_R2!M27))) -> 80021 | T27: =IF(AND(COUNTRY_INFO!J27>1,COUNTRY_INFO!J27<4),IF(COUNTRY_INFO!E27>MAX('MDA2'!J27,'T1'!L27,MAX(T3_R1!K27,T3_R2!K27)),MAX('MDA2'!J27,'T1'!L27,MAX(T3_R1!K27,T3_R2!K27)),COUNTRY_INFO!E27),0) -> 23090 | U27: =IF(AND(COUNTRY_INFO!J27>1,COUNTRY_INFO!J27<4), IF(T27/COUNTRY_INFO!E27*100<>0, IF(T27/COUNTRY_INFO!E27*100>100,100,T27/COUNTRY_INFO!E27*100), "-"),0) -> 98.82725561 | V27: =IF(AND(COUNTRY_INFO!J27>1,COUNTRY_INFO!J27<4),IF(COUNTRY_INFO!F27>MAX('MDA1'!K27,'MDA2'!K27,'T1'!M27,MAX(T3_R1!L27,T3_R2!L27)),MAX('MDA1'!K27,'MDA2'!K27,'T1'!M27,MAX(T3_R1!L27,T3_R2!L27)),COUNTRY_INFO!F27),0) -> 43931 | W27: =IF(AND(COUNTRY_INFO!J27>1,COUNTRY_INFO!J27<4), IF(V27/COUNTRY_INFO!F27*100<>0, IF(V27/COUNTRY_INFO!F27*100>100,100,V27/COUNTRY_INFO!F27*100), "-"),0) -> 100 | X27: 67021 | Y27: =IF(AND(COUNTRY_INFO!J27>1,COUNTRY_INFO!J27<4), IF(S27/P27*100<>0, IF(X27/P27*100>100,100,X27/P27*100), "-"),0) -> 99.59283751 | Z27: =COUNTRY_INFO!O27 -> 0 | AC27: =MAX('T1'!L27,'T2'!J27)+MAX('T1'!M27,'T2'!K27)+MAX('T1'!N27,'T2'!L27) -> 0 | AD27: =IF(COUNTRY_INFO!K27=1,IF(COUNTRY_INFO!F27*0.33>MAX('T1'!M27,'T2'!K27),MAX('T1'!M27,'T2'!K27),COUNTRY_INFO!F27*0.33),IF(COUNTRY_INFO!K27=2,IF(COUNTRY_INFO!F27*0.5>MAX('T1'!M27,'T2'!K27),MAX('T1'!M27,'T2'!K27),COUNTRY_INFO!F27*0.5),IF(COUNTRY_INFO!K27=3,IF(COUNTRY_INFO!F27>MAX('T1'!M27,'T2'!K27),MAX('T1'!M27,'T2'!K27),COUNTRY_INFO!F27),0))) -> 0 | AE27: =IF(AND(COUNTRY_INFO!K27>0,COUNTRY_INFO!K27<4),IF(Z27>0,IF(COUNTRY_INFO!K27=1, AD27/(COUNTRY_INFO!F27*0.33)*100, IF(COUNTRY_INFO!K27=2, AD27/(COUNTRY_INFO!F27*0.5)*100, IF(COUNTRY_INFO!K27=3, AD27/COUNTRY_INFO!F27*100))),"-"),0) -> 0 | AF27: =IF(COUNTRY_INFO!K27=2,IF(COUNTRY_INFO!G27*0.2>MAX('T1'!N27,'T2'!L27),MAX('T1'!N27,'T2'!L27),COUNTRY_INFO!G27*0.2),IF(COUNTRY_INFO!K27=3,IF(COUNTRY_INFO!G27>MAX('T1'!N27,'T2'!L27),MAX('T1'!N27,'T2'!L27),COUNTRY_INFO!G27),0)) -> 0 | AG27: =IF(AND(COUNTRY_INFO!K27>0,COUNTRY_INFO!K27<4),IF(Z27>0,IF(COUNTRY_INFO!K27=1, 0, IF(COUNTRY_INFO!K27=2, AF27/(COUNTRY_INFO!G27*0.2)*100, IF(COUNTRY_INFO!K27=3, AF27/COUNTRY_INFO!G27*100))),"-"),0) -> 0 | AH27: 0 | AI27: =IF(AND(COUNTRY_INFO!K27>0,COUNTRY_INFO!K27<4), IF(AC27/Z27*100<>0, IF(AH27/Z27*100>100,100,AH27/Z27*100), "-"),0) -> 0 | AK27: =IF(AND(D27<>0, D27<>"Inconnu",D27<>"Interrompu",D27<>"Non requis"),D27/COUNTRY_INFO!D27, 0) -> 0 | AL27: =IF(AND(J27<>0,J27<>"Inconnu",J27<>"Interrompu",J27<>"Non requis"),J27/COUNTRY_INFO!D27, 0) -> 0 | AM27: =IF(AND(P27<>0,P27<>"Inconnu",P27<>"Non requis"),P27/(COUNTRY_INFO!E27+COUNTRY_INFO!F27), 0) -> 1 | AN27: =IF(AND(Z27<>0,Z27<>"Inconnu",Z27<>"Non requis"),IF(COUNTRY_INFO!K27=1,1,IF(COUNTRY_INFO!K27=2,0.5*COUNTRY_INFO!F27/(0.5*COUNTRY_INFO!F27+0.2*COUNTRY_INFO!G27),IF(COUNTRY_INFO!K27=3,COUNTRY_INFO!F27/(COUNTRY_INFO!F27+COUNTRY_INFO!G27)))),0) -> 0 | AO27: =IF(AND(Z27<>0,Z27<>"Inconnu",Z27<>"Non requis"),IF(COUNTRY_INFO!K27=1,0,IF(COUNTRY_INFO!K27=2,0.2*COUNTRY_INFO!G27/(0.5*COUNTRY_INFO!F27+0.2*COUNTRY_INFO!G27),IF(COUNTRY_INFO!K27=3,COUNTRY_INFO!G27/(COUNTRY_INFO!F27+COUNTRY_INFO!G27)))),0) -> 0 | AP27: =MAX(COUNTRY_INFO!D27*AK27*PROFILE!$G$7,COUNTRY_INFO!D27*AL27*PROFILE!$G$7) -> 0 | AQ27: =MAX(COUNTRY_INFO!D27*AK27*PROFILE!$G$8,COUNTRY_INFO!D27*AL27*PROFILE!$G$8,COUNTRY_INFO!D27*AM27*PROFILE!$G$8) -> 23363.84878 | AR27: =MAX(COUNTRY_INFO!D27*AK27*PROFILE!$G$9,COUNTRY_INFO!D27*AL27*PROFILE!$G$9,COUNTRY_INFO!D27*AM27*PROFILE!$G$9,IF(AND(DISTRICT!Z27<>"Inconnu",Z27<>"Non requis"),COUNTRY_INFO!O27*DISTRICT!AN27,0)) -> 43930.63328 | AS27: =MAX(COUNTRY_INFO!D27*AK27*PROFILE!$G$10,COUNTRY_INFO!D27*AL27*PROFILE!$G$10,IF(AND(DISTRICT!Z27<>"Inconnu",Z27<>"Non requis"),COUNTRY_INFO!O27*DISTRICT!AO27,0)) -> 0 | AT27: 67294.48207 | AU27: Y | AV27: =MAX('MDA2'!J27,'T1'!L27,'T2'!J27,T3_R1!K27,T3_R2!K27) -> 23090 | AW27: =MAX('MDA1'!K27,'MDA2'!K27,'MDA3'!I27,'MDA3'!L27,'T1'!M27,'T2'!K27,T3_R1!L27,T3_R2!L27) -> 53472 | AX27: =MAX('MDA1'!L27,'MDA2'!L27,'MDA3'!J27,'MDA3'!M27,'T1'!N27,'T2'!L27,T3_R1!M27,T3_R2!M27) -> 3459 | AY27: 80021 | AZ27: =MAX('MDA2'!J27,T27) -> 23090 | BA27: =MAX('MDA1'!K27,'MDA2'!K27,'MDA3'!I27,'MDA3'!L27,V27,AD27) -> 43931 | BB27: =MAX('MDA1'!L27,'MDA2'!L27,'MDA3'!J27,'MDA3'!M27,AF27) -> 0 | BC27: 67021 | BD27: 99.59360402
A28: =IF(COUNTRY_INFO!A28=0," ",COUNTRY_INFO!A28) -> BURUNDI | B28: =IF(COUNTRY_INFO!B28=0," ",COUNTRY_INFO!B28) -> Karusi | C28: =IF(COUNTRY_INFO!C28=0," ",COUNTRY_INFO!C28) -> Buhiga | D28: =COUNTRY_INFO!L28 -> Non requis | G28: =MAX('MDA1'!M28,'MDA2'!M28) -> 0 | H28: =IF(AND(COUNTRY_INFO!H28>0,COUNTRY_INFO!H28<4),IF(D28>MAX('MDA1'!M28,'MDA2'!M28),MAX('MDA1'!M28,'MDA2'!M28),D28),0) -> 0 | I28: =IF(AND(COUNTRY_INFO!H28>0,COUNTRY_INFO!H28<4), IF(G28/D28*100<>0, IF(G28/D28*100>100,100,G28/D28*100), "-"),0) -> 0 | J28: =COUNTRY_INFO!M28 -> 0 | M28: =MAX('MDA1'!M28,MAX('MDA3'!I28,'MDA3'!L28)+MAX('MDA3'!J28,'MDA3'!M28)) -> 0 | N28: =IF(AND(COUNTRY_INFO!I28>0,COUNTRY_INFO!I28<4),IF(J28>MAX('MDA1'!M28,MAX('MDA3'!I28,'MDA3'!L28)+MAX('MDA3'!J28,'MDA3'!M28)),MAX('MDA1'!M28,MAX('MDA3'!I28,'MDA3'!L28)+MAX('MDA3'!J28,'MDA3'!M28)),J28),0) -> 0 | O28: =IF(AND(COUNTRY_INFO!I28>0,COUNTRY_INFO!I28<4), IF(M28/J28*100<>0, IF(M28/J28*100>100,100,M28/J28*100), "-"),0) -> 0 | P28: =COUNTRY_INFO!N28 -> 96573 | S28: =SUM(MAX('MDA2'!J28, 'T1'!L28, MAX(T3_R1!K28, T3_R2!K28)), MAX('MDA1'!K28, 'MDA2'!K28, 'T1'!M28, MAX(T3_R1!L28, T3_R2!L28)), MAX('MDA1'!L28, 'MDA2'!L28, 'T1'!N28, MAX(T3_R1!M28, T3_R2!M28))) -> 167411 | T28: =IF(AND(COUNTRY_INFO!J28>1,COUNTRY_INFO!J28<4),IF(COUNTRY_INFO!E28>MAX('MDA2'!J28,'T1'!L28,MAX(T3_R1!K28,T3_R2!K28)),MAX('MDA2'!J28,'T1'!L28,MAX(T3_R1!K28,T3_R2!K28)),COUNTRY_INFO!E28),0) -> 33529 | U28: =IF(AND(COUNTRY_INFO!J28>1,COUNTRY_INFO!J28<4), IF(T28/COUNTRY_INFO!E28*100<>0, IF(T28/COUNTRY_INFO!E28*100>100,100,T28/COUNTRY_INFO!E28*100), "-"),0) -> 100 | V28: =IF(AND(COUNTRY_INFO!J28>1,COUNTRY_INFO!J28<4),IF(COUNTRY_INFO!F28>MAX('MDA1'!K28,'MDA2'!K28,'T1'!M28,MAX(T3_R1!L28,T3_R2!L28)),MAX('MDA1'!K28,'MDA2'!K28,'T1'!M28,MAX(T3_R1!L28,T3_R2!L28)),COUNTRY_INFO!F28),0) -> 63044 | W28: =IF(AND(COUNTRY_INFO!J28>1,COUNTRY_INFO!J28<4), IF(V28/COUNTRY_INFO!F28*100<>0, IF(V28/COUNTRY_INFO!F28*100>100,100,V28/COUNTRY_INFO!F28*100), "-"),0) -> 100 | X28: 96573 | Y28: =IF(AND(COUNTRY_INFO!J28>1,COUNTRY_INFO!J28<4), IF(S28/P28*100<>0, IF(X28/P28*100>100,100,X28/P28*100), "-"),0) -> 100 | Z28: =COUNTRY_INFO!O28 -> 0 | AC28: =MAX('T1'!L28,'T2'!J28)+MAX('T1'!M28,'T2'!K28)+MAX('T1'!N28,'T2'!L28) -> 0 | AD28: =IF(COUNTRY_INFO!K28=1,IF(COUNTRY_INFO!F28*0.33>MAX('T1'!M28,'T2'!K28),MAX('T1'!M28,'T2'!K28),COUNTRY_INFO!F28*0.33),IF(COUNTRY_INFO!K28=2,IF(COUNTRY_INFO!F28*0.5>MAX('T1'!M28,'T2'!K28),MAX('T1'!M28,'T2'!K28),COUNTRY_INFO!F28*0.5),IF(COUNTRY_INFO!K28=3,IF(COUNTRY_INFO!F28>MAX('T1'!M28,'T2'!K28),MAX('T1'!M28,'T2'!K28),COUNTRY_INFO!F28),0))) -> 0 | AE28: =IF(AND(COUNTRY_INFO!K28>0,COUNTRY_INFO!K28<4),IF(Z28>0,IF(COUNTRY_INFO!K28=1, AD28/(COUNTRY_INFO!F28*0.33)*100, IF(COUNTRY_INFO!K28=2, AD28/(COUNTRY_INFO!F28*0.5)*100, IF(COUNTRY_INFO!K28=3, AD28/COUNTRY_INFO!F28*100))),"-"),0) -> 0 | AF28: =IF(COUNTRY_INFO!K28=2,IF(COUNTRY_INFO!G28*0.2>MAX('T1'!N28,'T2'!L28),MAX('T1'!N28,'T2'!L28),COUNTRY_INFO!G28*0.2),IF(COUNTRY_INFO!K28=3,IF(COUNTRY_INFO!G28>MAX('T1'!N28,'T2'!L28),MAX('T1'!N28,'T2'!L28),COUNTRY_INFO!G28),0)) -> 0 | AG28: =IF(AND(COUNTRY_INFO!K28>0,COUNTRY_INFO!K28<4),IF(Z28>0,IF(COUNTRY_INFO!K28=1, 0, IF(COUNTRY_INFO!K28=2, AF28/(COUNTRY_INFO!G28*0.2)*100, IF(COUNTRY_INFO!K28=3, AF28/COUNTRY_INFO!G28*100))),"-"),0) -> 0 | AH28: 0 | AI28: =IF(AND(COUNTRY_INFO!K28>0,COUNTRY_INFO!K28<4), IF(AC28/Z28*100<>0, IF(AH28/Z28*100>100,100,AH28/Z28*100), "-"),0) -> 0 | AK28: =IF(AND(D28<>0, D28<>"Inconnu",D28<>"Interrompu",D28<>"Non requis"),D28/COUNTRY_INFO!D28, 0) -> 0 | AL28: =IF(AND(J28<>0,J28<>"Inconnu",J28<>"Interrompu",J28<>"Non requis"),J28/COUNTRY_INFO!D28, 0) -> 0 | AM28: =IF(AND(P28<>0,P28<>"Inconnu",P28<>"Non requis"),P28/(COUNTRY_INFO!E28+COUNTRY_INFO!F28), 0) -> 1 | AN28: =IF(AND(Z28<>0,Z28<>"Inconnu",Z28<>"Non requis"),IF(COUNTRY_INFO!K28=1,1,IF(COUNTRY_INFO!K28=2,0.5*COUNTRY_INFO!F28/(0.5*COUNTRY_INFO!F28+0.2*COUNTRY_INFO!G28),IF(COUNTRY_INFO!K28=3,COUNTRY_INFO!F28/(COUNTRY_INFO!F28+COUNTRY_INFO!G28)))),0) -> 0 | AO28: =IF(AND(Z28<>0,Z28<>"Inconnu",Z28<>"Non requis"),IF(COUNTRY_INFO!K28=1,0,IF(COUNTRY_INFO!K28=2,0.2*COUNTRY_INFO!G28/(0.5*COUNTRY_INFO!F28+0.2*COUNTRY_INFO!G28),IF(COUNTRY_INFO!K28=3,COUNTRY_INFO!G28/(COUNTRY_INFO!F28+COUNTRY_INFO!G28)))),0) -> 0 | AP28: =MAX(COUNTRY_INFO!D28*AK28*PROFILE!$G$7,COUNTRY_INFO!D28*AL28*PROFILE!$G$7) -> 0 | AQ28: =MAX(COUNTRY_INFO!D28*AK28*PROFILE!$G$8,COUNTRY_INFO!D28*AL28*PROFILE!$G$8,COUNTRY_INFO!D28*AM28*PROFILE!$G$8) -> 33529.24927 | AR28: =MAX(COUNTRY_INFO!D28*AK28*PROFILE!$G$9,COUNTRY_INFO!D28*AL28*PROFILE!$G$9,COUNTRY_INFO!D28*AM28*PROFILE!$G$9,IF(AND(DISTRICT!Z28<>"Inconnu",Z28<>"Non requis"),COUNTRY_INFO!O28*DISTRICT!AN28,0)) -> 63044.45673 | AS28: =MAX(COUNTRY_INFO!D28*AK28*PROFILE!$G$10,COUNTRY_INFO!D28*AL28*PROFILE!$G$10,IF(AND(DISTRICT!Z28<>"Inconnu",Z28<>"Non requis"),COUNTRY_INFO!O28*DISTRICT!AO28,0)) -> 0 | AT28: 96573.706 | AU28: Y | AV28: =MAX('MDA2'!J28,'T1'!L28,'T2'!J28,T3_R1!K28,T3_R2!K28) -> 48234 | AW28: =MAX('MDA1'!K28,'MDA2'!K28,'MDA3'!I28,'MDA3'!L28,'T1'!M28,'T2'!K28,T3_R1!L28,T3_R2!L28) -> 112706 | AX28: =MAX('MDA1'!L28,'MDA2'!L28,'MDA3'!J28,'MDA3'!M28,'T1'!N28,'T2'!L28,T3_R1!M28,T3_R2!M28) -> 6471 | AY28: 167411 | AZ28: =MAX('MDA2'!J28,T28) -> 33529 | BA28: =MAX('MDA1'!K28,'MDA2'!K28,'MDA3'!I28,'MDA3'!L28,V28,AD28) -> 63044 | BB28: =MAX('MDA1'!L28,'MDA2'!L28,'MDA3'!J28,'MDA3'!M28,AF28) -> 0 | BC28: 96573 | BD28: 99.99926895
A29: =IF(COUNTRY_INFO!A29=0," ",COUNTRY_INFO!A29) -> BURUNDI | B29: =IF(COUNTRY_INFO!B29=0," ",COUNTRY_INFO!B29) -> Karusi | C29: =IF(COUNTRY_INFO!C29=0," ",COUNTRY_INFO!C29) -> Nyabikere | D29: =COUNTRY_INFO!L29 -> Non requis | G29: =MAX('MDA1'!M29,'MDA2'!M29) -> 0 | H29: =IF(AND(COUNTRY_INFO!H29>0,COUNTRY_INFO!H29<4),IF(D29>MAX('MDA1'!M29,'MDA2'!M29),MAX('MDA1'!M29,'MDA2'!M29),D29),0) -> 0 | I29: =IF(AND(COUNTRY_INFO!H29>0,COUNTRY_INFO!H29<4), IF(G29/D29*100<>0, IF(G29/D29*100>100,100,G29/D29*100), "-"),0) -> 0 | J29: =COUNTRY_INFO!M29 -> 0 | M29: =MAX('MDA1'!M29,MAX('MDA3'!I29,'MDA3'!L29)+MAX('MDA3'!J29,'MDA3'!M29)) -> 0 | N29: =IF(AND(COUNTRY_INFO!I29>0,COUNTRY_INFO!I29<4),IF(J29>MAX('MDA1'!M29,MAX('MDA3'!I29,'MDA3'!L29)+MAX('MDA3'!J29,'MDA3'!M29)),MAX('MDA1'!M29,MAX('MDA3'!I29,'MDA3'!L29)+MAX('MDA3'!J29,'MDA3'!M29)),J29),0) -> 0 | O29: =IF(AND(COUNTRY_INFO!I29>0,COUNTRY_INFO!I29<4), IF(M29/J29*100<>0, IF(M29/J29*100>100,100,M29/J29*100), "-"),0) -> 0 | P29: =COUNTRY_INFO!N29 -> 110419 | S29: =SUM(MAX('MDA2'!J29, 'T1'!L29, MAX(T3_R1!K29, T3_R2!K29)), MAX('MDA1'!K29, 'MDA2'!K29, 'T1'!M29, MAX(T3_R1!L29, T3_R2!L29)), MAX('MDA1'!L29, 'MDA2'!L29, 'T1'!N29, MAX(T3_R1!M29, T3_R2!M29))) -> 133105 | T29: =IF(AND(COUNTRY_INFO!J29>1,COUNTRY_INFO!J29<4),IF(COUNTRY_INFO!E29>MAX('MDA2'!J29,'T1'!L29,MAX(T3_R1!K29,T3_R2!K29)),MAX('MDA2'!J29,'T1'!L29,MAX(T3_R1!K29,T3_R2!K29)),COUNTRY_INFO!E29),0) -> 38336 | U29: =IF(AND(COUNTRY_INFO!J29>1,COUNTRY_INFO!J29<4), IF(T29/COUNTRY_INFO!E29*100<>0, IF(T29/COUNTRY_INFO!E29*100>100,100,T29/COUNTRY_INFO!E29*100), "-"),0) -> 100 | V29: =IF(AND(COUNTRY_INFO!J29>1,COUNTRY_INFO!J29<4),IF(COUNTRY_INFO!F29>MAX('MDA1'!K29,'MDA2'!K29,'T1'!M29,MAX(T3_R1!L29,T3_R2!L29)),MAX('MDA1'!K29,'MDA2'!K29,'T1'!M29,MAX(T3_R1!L29,T3_R2!L29)),COUNTRY_INFO!F29),0) -> 72083 | W29: =IF(AND(COUNTRY_INFO!J29>1,COUNTRY_INFO!J29<4), IF(V29/COUNTRY_INFO!F29*100<>0, IF(V29/COUNTRY_INFO!F29*100>100,100,V29/COUNTRY_INFO!F29*100), "-"),0) -> 100 | X29: 110419 | Y29: =IF(AND(COUNTRY_INFO!J29>1,COUNTRY_INFO!J29<4), IF(S29/P29*100<>0, IF(X29/P29*100>100,100,X29/P29*100), "-"),0) -> 100 | Z29: =COUNTRY_INFO!O29 -> 0 | AC29: =MAX('T1'!L29,'T2'!J29)+MAX('T1'!M29,'T2'!K29)+MAX('T1'!N29,'T2'!L29) -> 0 | AD29: =IF(COUNTRY_INFO!K29=1,IF(COUNTRY_INFO!F29*0.33>MAX('T1'!M29,'T2'!K29),MAX('T1'!M29,'T2'!K29),COUNTRY_INFO!F29*0.33),IF(COUNTRY_INFO!K29=2,IF(COUNTRY_INFO!F29*0.5>MAX('T1'!M29,'T2'!K29),MAX('T1'!M29,'T2'!K29),COUNTRY_INFO!F29*0.5),IF(COUNTRY_INFO!K29=3,IF(COUNTRY_INFO!F29>MAX('T1'!M29,'T2'!K29),MAX('T1'!M29,'T2'!K29),COUNTRY_INFO!F29),0))) -> 0 | AE29: =IF(AND(COUNTRY_INFO!K29>0,COUNTRY_INFO!K29<4),IF(Z29>0,IF(COUNTRY_INFO!K29=1, AD29/(COUNTRY_INFO!F29*0.33)*100, IF(COUNTRY_INFO!K29=2, AD29/(COUNTRY_INFO!F29*0.5)*100, IF(COUNTRY_INFO!K29=3, AD29/COUNTRY_INFO!F29*100))),"-"),0) -> 0 | AF29: =IF(COUNTRY_INFO!K29=2,IF(COUNTRY_INFO!G29*0.2>MAX('T1'!N29,'T2'!L29),MAX('T1'!N29,'T2'!L29),COUNTRY_INFO!G29*0.2),IF(COUNTRY_INFO!K29=3,IF(COUNTRY_INFO!G29>MAX('T1'!N29,'T2'!L29),MAX('T1'!N29,'T2'!L29),COUNTRY_INFO!G29),0)) -> 0 | AG29: =IF(AND(COUNTRY_INFO!K29>0,COUNTRY_INFO!K29<4),IF(Z29>0,IF(COUNTRY_INFO!K29=1, 0, IF(COUNTRY_INFO!K29=2, AF29/(COUNTRY_INFO!G29*0.2)*100, IF(COUNTRY_INFO!K29=3, AF29/COUNTRY_INFO!G29*100))),"-"),0) -> 0 | AH29: 0 | AI29: =IF(AND(COUNTRY_INFO!K29>0,COUNTRY_INFO!K29<4), IF(AC29/Z29*100<>0, IF(AH29/Z29*100>100,100,AH29/Z29*100), "-"),0) -> 0 | AK29: =IF(AND(D29<>0, D29<>"Inconnu",D29<>"Interrompu",D29<>"Non requis"),D29/COUNTRY_INFO!D29, 0) -> 0 | AL29: =IF(AND(J29<>0,J29<>"Inconnu",J29<>"Interrompu",J29<>"Non requis"),J29/COUNTRY_INFO!D29, 0) -> 0 | AM29: =IF(AND(P29<>0,P29<>"Inconnu",P29<>"Non requis"),P29/(COUNTRY_INFO!E29+COUNTRY_INFO!F29), 0) -> 1 | AN29: =IF(AND(Z29<>0,Z29<>"Inconnu",Z29<>"Non requis"),IF(COUNTRY_INFO!K29=1,1,IF(COUNTRY_INFO!K29=2,0.5*COUNTRY_INFO!F29/(0.5*COUNTRY_INFO!F29+0.2*COUNTRY_INFO!G29),IF(COUNTRY_INFO!K29=3,COUNTRY_INFO!F29/(COUNTRY_INFO!F29+COUNTRY_INFO!G29)))),0) -> 0 | AO29: =IF(AND(Z29<>0,Z29<>"Inconnu",Z29<>"Non requis"),IF(COUNTRY_INFO!K29=1,0,IF(COUNTRY_INFO!K29=2,0.2*COUNTRY_INFO!G29/(0.5*COUNTRY_INFO!F29+0.2*COUNTRY_INFO!G29),IF(COUNTRY_INFO!K29=3,COUNTRY_INFO!G29/(COUNTRY_INFO!F29+COUNTRY_INFO!G29)))),0) -> 0 | AP29: =MAX(COUNTRY_INFO!D29*AK29*PROFILE!$G$7,COUNTRY_INFO!D29*AL29*PROFILE!$G$7) -> 0 | AQ29: =MAX(COUNTRY_INFO!D29*AK29*PROFILE!$G$8,COUNTRY_INFO!D29*AL29*PROFILE!$G$8,COUNTRY_INFO!D29*AM29*PROFILE!$G$8) -> 38336.26526 | AR29: =MAX(COUNTRY_INFO!D29*AK29*PROFILE!$G$9,COUNTRY_INFO!D29*AL29*PROFILE!$G$9,COUNTRY_INFO!D29*AM29*PROFILE!$G$9,IF(AND(DISTRICT!Z29<>"Inconnu",Z29<>"Non requis"),COUNTRY_INFO!O29*DISTRICT!AN29,0)) -> 72083.00423 | AS29: =MAX(COUNTRY_INFO!D29*AK29*PROFILE!$G$10,COUNTRY_INFO!D29*AL29*PROFILE!$G$10,IF(AND(DISTRICT!Z29<>"Inconnu",Z29<>"Non requis"),COUNTRY_INFO!O29*DISTRICT!AO29,0)) -> 0 | AT29: 110419.2695 | AU29: Y | AV29: =MAX('MDA2'!J29,'T1'!L29,'T2'!J29,T3_R1!K29,T3_R2!K29) -> 39337 | AW29: =MAX('MDA1'!K29,'MDA2'!K29,'MDA3'!I29,'MDA3'!L29,'T1'!M29,'T2'!K29,T3_R1!L29,T3_R2!L29) -> 88025 | AX29: =MAX('MDA1'!L29,'MDA2'!L29,'MDA3'!J29,'MDA3'!M29,'T1'!N29,'T2'!L29,T3_R1!M29,T3_R2!M29) -> 5743 | AY29: 133105 | AZ29: =MAX('MDA2'!J29,T29) -> 38336 | BA29: =MAX('MDA1'!K29,'MDA2'!K29,'MDA3'!I29,'MDA3'!L29,V29,AD29) -> 72083 | BB29: =MAX('MDA1'!L29,'MDA2'!L29,'MDA3'!J29,'MDA3'!M29,AF29) -> 0 | BC29: 110419 | BD29: 99.99975594
